Workbook

Sheet Intro & Assumptions
A1: Intro & Assumptions
B2: This Excel workbook contains "Life-Cycle Cost Analysis" (LCCA) and carbon analysis, for new buildings, additions, & major renovations at the University of Michigan. The data for the Flint and Dearborn campuses is currently a work in progress. This workbook represents a cross functional effort from multiple units across the University.
B4: OVERVIEW | D4: This workbook is a intended to be a design tool for evaluating project alternatives that fulfill the same/similar performance requirements. Project specific data should be entered within the orange cells on the "Input" tab. The financial and carbon (i.e., operational & embodied) impacts are determined and summarized on the "LCCA Proposed Alternatives" tab. Please note that the analysis is not intended to be predictive of actual costs or carbon impacts ("your mileage may vary").
B5: Key Assumptions | C5: Alternate Premium Costs | D5: The estimated premium cost of the design alternative above/beyond the Project Baseline. The cost of the "Baselines" are not requested because this analysis is intended to compare different design alternatives, so we felt that using the alternatives cost premium would more accurately represent the decision which was intended to be considered.
C6: Annual Fuel Use | D6: As determined by energy modeling. Information is entered on the "Input" tab in units indicated for the particular fuel.
C7: ASHRAE Baseline | D7: The baseline which is prescribed by applicable version of ASHRAE. Information is entered on the "Input" tab in applicable cells.
C8: Chilled Water (Made at Building) | D8: This workbook assumes that energy required to produce chilled water will be included within applicable annual fuel use on the "Input" tab. Note - If chilled water at building is produced using only electricity, then see "Chilled Water from Central Plant" and select "On-Site (All Elect.) Chiller Plant" from drop down list.
C9: Chilled Water from Central Plant | D9: This workbook has the ability to calculate the energy required to produce chilled water from one of the central chilled water plants on the Ann Arbor Campus. On the "Input" use the drop down to select the chilled water plant which the project is connected to and provide the annual ton hours of chilled water required. The workbook will automatically update the applicable (i.e., electric and/or steam) annual fuel use.
C10: Embodied Carbon | D10: In order to coordinate with LEED, the embodied carbon for this analysis includes the following systems: exterior envelope, structure footings/foundations, and structural wall/floors/cladding assemblies. To coordinate with LEED please report "cradle to gate" (A1 - A3) values.
C11: Emissions | D11: Emissions are calculated based upon data provided by UM Office of Campus Sustainability.
C12: Energy Costs | D12: Energy Costs are calculated based upon data provided by UM Utilities.
C13: EUI | D13: EUI is determined by dividing a building’s total annual energy consumption, in KBtU, by its square footage. This is done to normalize the energy consumption of buildings of different types and sizes to compare their relative energy efficiency level. Note this workbook reports the EUI provided by the design team.
C14: Data | D14: Project specific data should be entered within the orange cells on the "Input" tab by the design team.
C15: Life-Cycle Cost Analysis | D15: The Life-Cycle Costs Analysis (LCCA) compares the various design alternatives to the ASHRAE baseline. The LCCA value is the design alternative's project cost premium less any lifetime energy savings to support the comparison of alternatives. To reinforce the decision, the LCCA for the ASHRAE Baseline is "N/A," and the Project Baseline is "base case".
C16: "Lifetime" | D16: For purposes of this analysis "lifetime" a 30-year time period is assumed. It is calculated/determined as Project's Energy Year, as input on the AE Input tab, plus twenty-nine (29) years.
C17: Other | D17: Please contact the project's AEC Design Manager with any questions or concerns.
C18: Power Purchase Agreement (PPA) | D18: The University currently has a power purchase agreement (PPA) with DTE for 200,000 MWH of renewables. The "PPA-200,000MWH Renewable" should be used for all projects on the Ann Arbor campus at this time. The "No Power Purchase Agreement" should be used for all projects on the Dearborn and Flint campuses. The "PPA-All Purchase Renewable" is included for what-if comparisons. The applicable PPA is selected via a pulldown menu on the "Output" tab.
C19: Project Baseline | D19: The alternative which the team defines as it's baseline. This baseline should include all of the project specific programmatic and energy goals. Information is entered on the "Input" tab within applicable cells.
C20: Selected Design | D20: The alternative which the team ultimately decides to proceed with. Information for the selected option is entered on the "Input" tab within applicable cells. This information should be updated at the completion of each subsequent phase of the project.

Sheet Input
A1: Project Data | M1: Instructions/Notes:
C2: AEC Project Name | M2: The italicized text is explanatory.
C4: AEC Project Number | M4: Enter the project specific information in all orange cells.
C6: A/E Consultant | M6: It is anticipated that this sheet is reviewed, and if necessary updated, annually by AEC (Scott Wood, scottdw@umich.edu).
C8: Project Phase
C10: Today's Date | M10: This analysis is intended to be a tool for evaluating project alternatives that fulfill the same/similar performance requirements early in the design process. This analysis is NOT intended to be predictive of actual costs or carbon impacts ("your mileage may vary").
C12: Project's Energy Year | E12: The year the facility will be completed & occupied (i.e., first year of operation)
C14: GSF Area Breakdown | F14: Use Classification (from list below) | G14: Use % of GSF
C15: New/Addition | E15: GSF | F15: Educational (No Labs) | H15: Low-tech instructional space with conventional A/V systems | M15: For purposes of this analysis, all design alternative should be based upon designs with identical GSF.
C16: Renovation | E16: GSF Not Used | F16: Educational (Dry Labs) | H16: Active learning with high-tech/energy-intensive A/V equipment, and/or non-wet lab equipment
C17: Total | D17: =SUM(D15:D16) -> 0 | E17: GSF (self-calculates) | F17: Educational (High-Load Labs) | H17: Instructional and/or research lab spaces, energy-intensive equipment
F18: Library | H18: Traditional library space with book storage, fixed/flexible seating (not including food service, instructional or computing spaces) | M18: The "Use Classifications" are from the PCCN Building Standard's Subcommittee.
F19: Clinical Outpatient Business | H19: Typical outpatient clinical space with exam rooms & offices
F20: Clinical Outpatient Ambulatory | H20: Clinical space with ambulatory arrival
F21: Clinical Inpatient | H21: Inpatient clinical space
F22: Residential (Dormitory) | H22: Student housing (includes support spaces except dining & commercial kitchens)
F23: Administrative | H23: Offices & meeting spaces with conventional A/V systems
F24: Athletic Low Intensity | H24: Varsity practice and/or Rec. Sports athletic competition (non-spectator)
F25: Athletic Medium Intensity | H25: Varsity team HQ and Rec. Sports facilities
F26: Athletic High Intensity | H26: Varsity competition, natatorium with deck and assoc. locker, sports med., therapy pools & training/conditioning & rehab
F27: Other | H27: Other uses which do not explicitly fit into other PCCN use classifications (i.e., vivarium, commercial kitchens, event spaces, collection spaces, etc.) | M27: The "Other" use classification is intended as a last resort for uses that don't fit into other categories. It's use will require custom programming, see Scott before using.
G28: =SUM(G15:G27) -> 0 | H28: Total (self-calculates) Should be 100%
A29: Design Alternatives: | E29: ASHRAE Baseline | F29: Project Baseline | G29: Alt #1 | H29: Alt #2 | I29: Alt #3 | J29: Alt #4 | K29: Selected Design
C30: Alternative (Brief) Title | D30: Example | E30: ASHRAE Baseline | F30: - | G30: - | H30: - | I30: - | J30: - | M30: Enter "-" if not used/needed, Enter "Net-Zero" if anticipated performance is net-zero
C31: Alternate Description | D31: Type of HVAC Type of structure Type of on-site renewables | M31: Enter "-" if not used/needed. Provide a very brief summary of the alternative see the example for type of information. For ASHRAE Baseline, please note ASHRAE edition, HVAC system type, baseline system description (e.g., 90.1-2013 Packaged VAV w/ Reheat, Direct Expansion Cooling, Hot-Water Boiler Heat).
B32: Site EUI Per Energy Model | C32: KBtU/SF | D32: 27 | I32: - | M32: Enter "-" if not used/needed, Enter "Net~0" if anticipated performance is net-zero
B33: DTE Electricity | C33: KWH | D33: 0 | E33: 0 | F33: 0 | G33: 0 | H33: 0 | I33: 0 | J33: 0 | K33: 0 | M33: Annual electricity (kwh) from DTE per A/E's energy model
B34: DTE Electricity (with Chilled H20) | C34: KWH | E34: =IF($E$33>0,$E$33+$E$53,0) -> 0 | F34: =IF($F$33>0,$F$33+$F$53,0) -> 0 | G34: =IF($G$33>0,$G$33+$G$53,0) -> 0 | H34: =IF($H$33>0,$H$33+$H$53,0) -> 0 | I34: =IF($I$33>0,$I$33+$I$53,0) -> 0 | J34: =IF($J$33>0,$J$33+$J$53,0) -> 0 | K34: 0 | M34: Self calculates Annual Electricity (kwh) from DTE w/chilled H20
B35: CPP Electricity | C35: KWH | D35: 0 | E35: 0 | F35: 0 | G35: 0 | H35: 0 | I35: 0 | J35: 0 | K35: 0 | M35: Annual electricity (kwh) from UM Central Power Plant (CPP) per A/E's energy model
B36: CPP Electricity (with Chilled H20) | C36: KWH | E36: =IF($E$35>0,$E$35+$E$53,0) -> 0 | F36: =IF($F$35>0,$F$35+$F$53,0) -> 0 | G36: =IF($G$35>0,$G$35+$G$53,0) -> 0 | H36: =IF($H$35>0,$H$35+$H$53,0) -> 0 | I36: =IF($I$35>0,$I$35+$I$53,0) -> 0 | J36: =IF($J$35>0,$J$35+$J$53,0) -> 0 | K36: 323911.42 | M36: Self calculates Annual Electricity (kwh) from CPP w/chilled H20
B37: DTE Electricity (Dearborn) | C37: KWH | E37: 0 | F37: 0 | G37: 0 | H37: 0 | I37: 0 | J37: 0 | K37: 0 | M37: Annual electricity (kwh) from DTE (Dearborn) per A/E's energy model
B38: DTE Electricity (Dearborn) (with Chilled H20) | C38: KWH | E38: =IF($E$37>0,$E$37+$E$53,0) -> 0 | F38: =IF($F$37>0,$F$37+$F$53,0) -> 0 | G38: =IF($G$37>0,$G$37+$G$53,0) -> 0 | H38: =IF($H$37>0,$H$37+$H$53,0) -> 0 | I38: =IF($I$37>0,$I$37+$I$53,0) -> 0 | J38: =IF($J$37>0,$J$37+$J$53,0) -> 0 | K38: 0 | M38: Self calculates Annual Electricity (kwh) from DTE (Dearborn) w/chilled H20
B39: Consumers Energy Electricity (Flint) | C39: KWH | F39: 0 | G39: 0 | H39: 0 | I39: 0 | J39: 0 | K39: 0 | M39: Annual electricity (kwh) from Consumers Electricity (Flint) per A/E's energy model
B40: Consumers E. Elect. (Flint) (with Chilled H20) | C40: KWH | E40: =IF($E$39>0,$E$39+$E$53,0) -> 0 | F40: =IF($F$39>0,$F$39+$F$53,0) -> 0 | G40: =IF($G$39>0,$G$39+$G$53,0) -> 0 | H40: =IF($H$39>0,$H$39+$H$53,0) -> 0 | I40: =IF($I$39>0,$I$39+$I$53,0) -> 0 | J40: =IF($J$39>0,$J$39+$J$53,0) -> 0 | K40: 0 | M40: Self calculates Annual Electricity (kwh) from Consumers Elect. w/chilled H20
B41: DTE Natural Gas | C41: CCF | D41: 0 | E41: 0 | F41: 0 | G41: 0 | H41: 0 | I41: 0 | J41: 0 | K41: 0 | M41: Annual natural Gas (ccf) from DTE per A/E's energy model
B42: DTE Natural Gas (Dearborn) | C42: CCF | E42: 0 | F42: 0 | G42: 0 | H42: 0 | I42: 0 | J42: 0 | K42: 0 | M42: Annual natural Gas (ccf) from DTE (Dearborn) per A/E's energy model
B43: Consumers Natural Gas (Flint) | C43: CCF | F43: 0 | G43: 0 | H43: 0 | I43: 0 | J43: 0 | K43: 0 | M43: Annual natural Gas (ccf) from Consumers Energy (Flint) per A/E's energy model
B44: CPP Steam | C44: MLB | D44: 0 | E44: 0 | F44: 0 | G44: 0 | H44: 0 | I44: 0 | J44: 0 | K44: 0 | M44: Annual steam (mlb) from UM Central Power Plant (CPP) per A/E's energy model
B45: CPP Steam (with Chilled H20) | C45: MLB | E45: =IF($E$44>0,$E$44+$E$54,0) -> 0 | F45: =IF($F$44>0,$F$44+$F$54,0) -> 0 | G45: =IF($G$44>0,$G$44+$G$54,0) -> 0 | H45: =IF($H$44>0,$H$44+$H$54,0) -> 0 | I45: =IF($I$44>0,$I$44+$I$54,0) -> 0 | J45: =IF($J$44>0,$J$44+$J$54,0) -> 0 | K45: 0
B46: Satellite Steam | C46: MLB | D46: 0 | E46: 0 | F46: 0 | G46: 0 | H46: 0 | I46: 0 | J46: 0 | K46: 0 | M46: Annual steam (mlb) from satellite source (non-CPP) per A/E's energy model
B47: Satellite Steam (with Chilled H20) | C47: MLB | E47: =IF($E$46>0,$E$46+$E$54,0) -> 0 | F47: =IF($F$46>0,$F$46+$F$54,0) -> 0 | G47: =IF($G$46>0,$G$46+$G$54,0) -> 0 | H47: =IF($H$46>0,$H$46+$H$54,0) -> 0 | I47: =IF($I$46>0,$I$46+$I$54,0) -> 0 | J47: =IF($J$46>0,$J$46+$J$54,0) -> 0 | K47: =IF($K$46>0,$K$46+$K$54,0) -> 0
B48: Dearborn Steam | C48: MLB | E48: 0 | F48: 0 | G48: 0 | H48: 0 | I48: 0 | J48: 0 | K48: 0 | M48: Annual steam (mlb) from Flint Central Power Plant (CPP) per A/E's energy model
B49: Dearborn Steam (with Chilled H20) | C49: MLB | E49: =IF($E$48>0,$E$48+$E$54,0) -> 0 | F49: =IF($F$48>0,$F$48+$F$54,0) -> 0 | G49: =IF($G$48>0,$G$48+$G$54,0) -> 0 | H49: =IF($H$48>0,$H$48+$H$54,0) -> 0 | I49: =IF($I$48>0,$I$48+$I$54,0) -> 0 | J49: =IF($J$48>0,$J$48+$J$54,0) -> 0 | K49: =IF($K$48>0,$K$48+$K$54,0) -> 0
B50: Flint Steam | C50: MLB | E50: 0 | F50: 0 | G50: 0 | H50: 0 | I50: 0 | J50: 0 | K50: 0 | M50: Annual steam (mlb) from Dearborn Central Power Plant (CPP) per A/E's energy model
B51: Flint Steam (with Chilled H20) | C51: MLB | E51: =IF($E$50>0,$E$50+$E$54,0) -> 0 | F51: =IF($F$50>0,$F$50+$F$54,0) -> 0 | G51: =IF($G$50>0,$G$50+$G$54,0) -> 0 | H51: =IF($H$50>0,$H$50+$H$54,0) -> 0 | I51: =IF($I$50>0,$I$50+$I$54,0) -> 0 | J51: =IF($J$50>0,$J$50+$J$54,0) -> 0 | K51: =IF($K$50>0,$K$50+$K$54,0) -> 0
B52: Select a Chiller Plant | C52: Ton-Hours | D52: 0 | E52: 0 | F52: 0 | G52: 0 | H52: 0 | I52: 0 | J52: 0 | K52: 0 | M52: Annual chilled water (ton-hours) from central CW plant per A/E's energy model
B53: CW Elect (hidden) | C53: KWH | D53: 0 | E53: =VLOOKUP($B$52,Table1[],3,FALSE)*E$52 -> 0 | F53: =VLOOKUP($B$52,Table1[],3,FALSE)*F$52 -> 0 | G53: =VLOOKUP($B$52,Table1[],3,FALSE)*G$52 -> 0 | H53: =VLOOKUP($B$52,Table1[],3,FALSE)*H$52 -> 0 | I53: =VLOOKUP($B$52,Table1[],3,FALSE)*I$52 -> 0 | J53: =VLOOKUP($B$52,Table1[],3,FALSE)*J$52 -> 0 | K53: =VLOOKUP($B$52,Table1[],3,FALSE)*K$52 -> 0
B54: CW Steam (hidden) | C54: MLB | D54: =VLOOKUP($B$52,Table1[[Central Chiller Plant]:[MLB/Ton-Hr]],6,FALSE)*Input!D52 -> 0 | E54: =VLOOKUP($B$52,Table1[],6,FALSE)*E$52 -> 0 | F54: =VLOOKUP($B$52,Table1[],6,FALSE)*F$52 -> 0 | G54: =VLOOKUP($B$52,Table1[],6,FALSE)*G$52 -> 0 | H54: =VLOOKUP($B$52,Table1[],6,FALSE)*H$52 -> 0 | I54: =VLOOKUP($B$52,Table1[],6,FALSE)*I$52 -> 0 | J54: =VLOOKUP($B$52,Table1[],6,FALSE)*J$52 -> 0 | K54: =VLOOKUP($B$52,Table1[],6,FALSE)*K$52 -> 0
B55: Total Elect + Steam | D55: =D53+D54 -> 0 | E55: =E53+E54 -> 0 | F55: =F53+F54 -> 0 | G55: 0 | H55: 0 | I55: 0 | J55: 0 | K55: 0
B56: Water/Sewer | C56: CCU | D56: 0 | E56: 0 | F56: 0 | G56: 0 | H56: 0 | I56: 0 | J56: 0 | K56: 0 | M56: Annual water (ccu) from the City of Ann Arbor
B58: Alternate Cost Premium (Project Cost) | E58: N/A | F58: N/A | M58: The estimated premium cost of the design alternative above/beyond the Project Baseline. The cost of the "Baselines" are not requested because this analysis is intended to compare different design alternatives, so we felt that using the alternatives cost premium would more accurately represent the decision which was intended to be considered.
B60: Embodied Carbon GWP | C60: MT C02e | M60: The embodied carbon (MT C02e) for this analysis includes the following systems: exterior envelope, structure footings/foundations, and structural wall/floors/cladding assemblies.
E62: =F62*0.95 -> 142500000 | F62: =145000000+5000000 -> 150000000 | G62: =F62+G58 -> 150000000
D65: 7778 | E65: KBTU | F65: 1 | G65: ccf | H65: =D65*(F65/F66) -> 7507.722008
F66: 1.036 | G66: kBtu
D94: ='GHG Calcs'!B189 ->  | E94: ='GHG Calcs'!C189 ->  | F94: ='GHG Calcs'!D189 ->  | G94: ='GHG Calcs'!E189 -> 
D95: ='GHG Calcs'!B190 ->  | E95: ='GHG Calcs'!C190 ->  | F95: ='GHG Calcs'!D190 ->  | G95: ='GHG Calcs'!E190 -> 
D96: ='GHG Calcs'!B191 ->  | E96: ='GHG Calcs'!C191 ->  | F96: ='GHG Calcs'!D191 ->  | G96: ='GHG Calcs'!E191 -> 
D97: ='GHG Calcs'!B192 ->  | E97: ='GHG Calcs'!C192 ->  | F97: ='GHG Calcs'!D192 ->  | G97: ='GHG Calcs'!E192 -> 
D98: ='GHG Calcs'!B193 ->  | E98: ='GHG Calcs'!C193 ->  | F98: ='GHG Calcs'!D193 ->  | G98: ='GHG Calcs'!E193 -> 
D99: ='GHG Calcs'!B194 ->  | E99: ='GHG Calcs'!C194 ->  | F99: ='GHG Calcs'!D194 ->  | G99: ='GHG Calcs'!E194 -> 
D100: ='GHG Calcs'!B195 ->  | E100: ='GHG Calcs'!C195 ->  | F100: ='GHG Calcs'!D195 ->  | G100: ='GHG Calcs'!E195 -> 
D101: ='GHG Calcs'!B196 ->  | E101: ='GHG Calcs'!C196 ->  | F101: ='GHG Calcs'!D196 ->  | G101: ='GHG Calcs'!E196 -> 
D102: ='GHG Calcs'!B197 ->  | E102: ='GHG Calcs'!C197 ->  | F102: ='GHG Calcs'!D197 ->  | G102: ='GHG Calcs'!E197 -> 
D103: ='GHG Calcs'!B198 ->  | E103: ='GHG Calcs'!C198 ->  | F103: ='GHG Calcs'!D198 ->  | G103: ='GHG Calcs'!E198 -> 
F104: ='GHG Calcs'!D199 ->  | G104: ='GHG Calcs'!E199 -> kg Co2/GSF

Sheet Output (hidden)
A1: =CONCATENATE("AEC Project #",Input!$D$4) -> AEC Project # | D1: =CONCATENATE(Input!$D$2," - LCC & Carbon Summary") -> - LCC & Carbon Summary | H1: =CONCATENATE("Project Phase: ",Input!$D$8) -> Project Phase: | J1: Instructions/Notes:
A2: Analysis Assumptions: | B2: Date Prepared = | C2: =Input!D10 -> 0 | D2: =CONCATENATE("Lifetime (30-years) = FY",Input!$D$12," - FY",Input!$D$12+29) -> Lifetime (30-years) = FY - FY29 | H2: PPA-All Purchased Renewable | J2: Select a PPA using drop down menu. For Dearborn & Flint campus use "No PPA". For A2 Campus use "PPA-200,000 MWH Renewable". The "PPA-All Purchase Renewable" is for future or project specific 100% Renewable PPA.
B3: Proposed SQFT = | C3: =Input!$D$17 -> 0 | D3: =CONCATENATE("MTCO2 Data Version: ",'MTCO2 Tables'!Y1) -> MTCO2 Data Version: Spring 2021 | G3: =CONCATENATE("Max Emissions Target = ",'GHG Calcs'!$D$199," Kg C02e/GSF") -> 
B4: ASHRAE Baseline | C4: Designs Evaluated | H4: Selected Design
B5: =Input!$E$30 -> ASHRAE Baseline | C5: =Input!$F$30 -> - | D5: =Input!$G$30 -> - | E5: =Input!$H$30 -> - | F5: =Input!$I$30 -> - | G5: =Input!$J$30 -> - | H5: =Input!$K$30 -> 0
B6: =Input!E31 -> 0 | C6: =Input!F31 -> 0 | D6: =Input!G31 -> 0 | E6: =Input!H31 -> 0 | F6: =IF(F5="-","-",Input!I31) -> - | G6: =IF(G5="-","-",Input!J31) -> - | H6: =IF(H5="-","-",Input!K31) -> 0 | J6: The EUI will highlight in red when the difference between the reported EUI and calculated EUI is more than 10%. If this occurs, the DM should discuss with the A/E and have them update their EUI or correct their energy modeling.
A7: Site EUI (kBtu/SF) | B7: =Input!$E$32 -> 0 | C7: =Input!$F$32 -> 0 | D7: =Input!$G$32 -> 0 | E7: =Input!$H$32 -> 0 | F7: =Input!$I$32 -> - | G7: =Input!$J$32 -> 0 | H7: =Input!K32 -> 0 | J7: This document is formatted to be print cells A1 through H34 on a 11x17 sheet.
A8: Energy
A9: =CONCATENATE("Annual Energy Use FY",Input!D12," (kBTU)") -> Annual Energy Use FY (kBTU) | B9: =IF(B5="Net-Zero","Nominal",IF(B5="-","-",ROUND(((Input!E33*'Inputs & Utility Cost'!$C$61)+(Input!E35*'Inputs & Utility Cost'!$C$61)+(Input!E41*'Inputs & Utility Cost'!$C$63)+(Input!E44*'Inputs & Utility Cost'!$C$64)+(Input!E46*'Inputs & Utility Cost'!$C$64))/1000,-3))) -> 0 | C9: =IF(C5="Net-Zero","Nominal",IF(C5="-","-",ROUND(((Input!F33*'Inputs & Utility Cost'!$C$61)+(Input!F35*'Inputs & Utility Cost'!$C$61)+(Input!F41*'Inputs & Utility Cost'!$C$63)+(Input!F44*'Inputs & Utility Cost'!$C$64)+(Input!F46*'Inputs & Utility Cost'!$C$64))/1000,-3))) -> - | D9: =IF(D5="Net-Zero","Nominal",IF(D5="-","-",ROUND(((Input!G33*'Inputs & Utility Cost'!$C$61)+(Input!G35*'Inputs & Utility Cost'!$C$61)+(Input!G41*'Inputs & Utility Cost'!$C$63)+(Input!G44*'Inputs & Utility Cost'!$C$64)+(Input!G46*'Inputs & Utility Cost'!$C$64))/1000,-3))) -> - | E9: =IF(E5="Net-Zero","Nominal",IF(E5="-","-",ROUND(((Input!H33*'Inputs & Utility Cost'!$C$61)+(Input!H35*'Inputs & Utility Cost'!$C$61)+(Input!H41*'Inputs & Utility Cost'!$C$63)+(Input!H44*'Inputs & Utility Cost'!$C$64)+(Input!H46*'Inputs & Utility Cost'!$C$64))/1000,-3))) -> - | F9: =IF(F5="Net-Zero","Nominal",IF(F5="-","-",ROUND(((Input!I33*'Inputs & Utility Cost'!$C$61)+(Input!I35*'Inputs & Utility Cost'!$C$61)+(Input!I41*'Inputs & Utility Cost'!$C$63)+(Input!I44*'Inputs & Utility Cost'!$C$64)+(Input!I46*'Inputs & Utility Cost'!$C$64))/1000,-3))) -> - | G9: =IF(G5="Net-Zero","Nominal",IF(G5="-","-",ROUND(((Input!J33*'Inputs & Utility Cost'!$C$61)+(Input!J35*'Inputs & Utility Cost'!$C$61)+(Input!J41*'Inputs & Utility Cost'!$C$63)+(Input!J44*'Inputs & Utility Cost'!$C$64)+Input!J46*'Inputs & Utility Cost'!$C$64)/1000,-3))) -> - | H9: =IF(H5="Net-Zero","Nominal",IF(H5="-","-",ROUND(((Input!K33*'Inputs & Utility Cost'!$C$61)+(Input!K35*'Inputs & Utility Cost'!$C$61)+(Input!K41*'Inputs & Utility Cost'!$C$63)+(Input!K44*'Inputs & Utility Cost'!$C$64)+(Input!K46*'Inputs & Utility Cost'!$C$64))/1000,-3))) -> 0
A10: =CONCATENATE("Annual Energy Use FY",Input!D12," (kWh)") -> Annual Energy Use FY (kWh) | B10: =IFERROR(IF($B$5="Net-Zero","Nominal",IF($B$5="-","-",ROUND(Input!$E$33+Input!$E$35+Input!$E$37+Input!$E$39+((Input!$E$41*101800)/3412.14)+((Input!$E$42*101800)/3412.14)+((Input!$E$43*101800)/3412.14)+((Input!$E$44*'Inputs & Utility Cost'!$C$64)/3412.14)+((Input!$E$46*'Inputs & Utility Cost'!$C$64)/3412.14)+((Input!$E$48*'Inputs & Utility Cost'!$C$64)/3412.14)+((Input!$E$50*'Inputs & Utility Cost'!$C$64)/3412.14)+Input!$E$53+((Input!$E$54*'Inputs & Utility Cost'!$C$64)/3412.14),-3))),"-") -> 0 | C10: =IFERROR(IF($C$5="Net-Zero","Nominal",IF($C$5="-","-",ROUND(Input!$F$33+Input!$F$35+Input!$F$37+Input!$F$39+((Input!$F$41*101800)/3412.14)+((Input!$F$42*101800)/3412.14)+((Input!$F$43*101800)/3412.14)+((Input!$F$44*'Inputs & Utility Cost'!$C$64)/3412.14)+((Input!$F$46*'Inputs & Utility Cost'!$C$64)/3412.14)+((Input!$F$48*'Inputs & Utility Cost'!$C$64)/3412.14)+((Input!$F$50*'Inputs & Utility Cost'!$C$64)/3412.14)+Input!$F$53+((Input!$F$54*'Inputs & Utility Cost'!$C$64)/3412.14),-3))),"-") -> - | D10: =IFERROR(IF($D$5="Net-Zero","Nominal",IF($D$5="-","-",ROUND(Input!$G$33+Input!$G$35+Input!$G$37+Input!$G$39+((Input!$G$41*101800)/3412.14)+((Input!$G$42*101800)/3412.14)+((Input!$G$43*101800)/3412.14)+((Input!$G$44*'Inputs & Utility Cost'!$C$64)/3412.14)+((Input!$G$46*'Inputs & Utility Cost'!$C$64)/3412.14)+((Input!$G$48*'Inputs & Utility Cost'!$C$64)/3412.14)+((Input!$G$50*'Inputs & Utility Cost'!$C$64)/3412.14)+Input!$G$53+((Input!$G$54*'Inputs & Utility Cost'!$C$64)/3412.14),-3))),"-") -> - | E10: =IFERROR(IF($E$5="Net-Zero","Nominal",IF($E$5="-","-",ROUND(Input!$H$33+Input!$H$35+Input!$H$37+Input!$H$39+((Input!$H$41*101800)/3412.14)+((Input!$H$42*101800)/3412.14)+((Input!$H$43*101800)/3412.14)+((Input!$H$44*'Inputs & Utility Cost'!$C$64)/3412.14)+((Input!$H$46*'Inputs & Utility Cost'!$C$64)/3412.14)+((Input!$H$48*'Inputs & Utility Cost'!$C$64)/3412.14)+((Input!$H$50*'Inputs & Utility Cost'!$C$64)/3412.14)+Input!$H$53+((Input!$H$54*'Inputs & Utility Cost'!$C$64)/3412.14),-3))),"-") -> - | F10: =IFERROR(IF($F$5="Net-Zero","Nominal",IF($F$5="-","-",ROUND(Input!$I$33+Input!$I$35+Input!$I$37+Input!$I$39+((Input!$I$41*101800)/3412.14)+((Input!$I$42*101800)/3412.14)+((Input!$I$43*101800)/3412.14)+((Input!$I$44*'Inputs & Utility Cost'!$C$64)/3412.14)+((Input!$I$46*'Inputs & Utility Cost'!$C$64)/3412.14)+((Input!$I$48*'Inputs & Utility Cost'!$C$64)/3412.14)+((Input!$I$50*'Inputs & Utility Cost'!$C$64)/3412.14)+Input!$I$53+((Input!$I$54*'Inputs & Utility Cost'!$C$64)/3412.14),-3))),"-") -> - | G10: =IFERROR(IF($G$5="Net-Zero","Nominal",IF($G$5="-","-",ROUND(Input!$J$33+Input!$J$35+Input!$J$37+Input!$J$39+((Input!$J$41*101800)/3412.14)+((Input!$J$42*101800)/3412.14)+((Input!$J$43*101800)/3412.14)+((Input!$J$44*'Inputs & Utility Cost'!$C$64)/3412.14)+((Input!$J$46*'Inputs & Utility Cost'!$C$64)/3412.14)+((Input!$J$48*'Inputs & Utility Cost'!$C$64)/3412.14)+((Input!$J$50*'Inputs & Utility Cost'!$C$64)/3412.14)+Input!$J$53+((Input!$J$54*'Inputs & Utility Cost'!$C$64)/3412.14),-3))),"-") -> - | H10: =IFERROR(IF($H$5="Net-Zero","Nominal",IF($H$5="-","-",ROUND(Input!$K$33+Input!$K$35+Input!$K$37+Input!$K$39+((Input!$K$41*101800)/3412.14)+((Input!$K$42*101800)/3412.14)+((Input!$K$43*101800)/3412.14)+((Input!$K$44*'Inputs & Utility Cost'!$C$64)/3412.14)+((Input!$K$46*'Inputs & Utility Cost'!$C$64)/3412.14)+((Input!$K$48*'Inputs & Utility Cost'!$C$64)/3412.14)+((Input!$K$50*'Inputs & Utility Cost'!$C$64)/3412.14)+Input!$K$53+((Input!$K$54*'Inputs & Utility Cost'!$C$64)/3412.14),-3))),"-") -> 0
A11: =CONCATENATE("Annual Energy Cost FY",Input!D12) -> Annual Energy Cost FY | B11: =IF($B$5="Net-Zero","Nominal",IF($B$5="-","-",VLOOKUP(Input!$D$12,'Inputs & Utility Cost'!$H$12:$DS$48,110,FALSE))) ->  | C11: =IF($C$5="Net-Zero","Nominal",IF($C$5="-","-",VLOOKUP(Input!$D$12,'Inputs & Utility Cost'!$H$12:$DS$48,111,FALSE))) -> - | D11: =IF($D$5="Net-Zero","Nominal",IF($D$5="-","-",VLOOKUP(Input!$D$12,'Inputs & Utility Cost'!$H$12:$DS$48,112,FALSE))) -> - | E11: =IF($E$5="Net-Zero","Nominal",IF($E$5="-","-",VLOOKUP(Input!$D$12,'Inputs & Utility Cost'!$H$12:$DS$48,113,FALSE))) -> - | F11: =IF($F$5="Net-Zero","Nominal",IF($F$5="-","-",VLOOKUP(Input!$D$12,'Inputs & Utility Cost'!$H$12:$DS$48,114,FALSE))) -> - | G11: =IF($G$5="Net-Zero","Nominal",IF($G$5="-","-",VLOOKUP(Input!$D$12,'Inputs & Utility Cost'!$H$12:$DS$48,115,FALSE))) -> - | H11: =IF($H$5="Net-Zero","Nominal",IF($H$5="-","-",VLOOKUP(Input!$D$12,'Inputs & Utility Cost'!$H$12:$DS$48,116,FALSE))) -> 
A12: Lifetime (30-years) Energy Cost | B12: ='Inputs & Utility Cost'!$L$54 -> 0 | C12: =IF($C$5="Net-Zero","Nominal",IF($C$5="-","-",IF($H$2='Inputs & Utility Cost'!B40,'Inputs & Utility Cost'!$L$55,IF($H$2='Inputs & Utility Cost'!$B$41,'Inputs & Utility Cost'!$M$55,'Inputs & Utility Cost'!$N$55)))) -> - | D12: =IF($D$5="Net-Zero","Nominal",IF($D$5="-","-",IF($H$2='Inputs & Utility Cost'!$B$40,'Inputs & Utility Cost'!$L$56,IF($H$2='Inputs & Utility Cost'!$B$41,'Inputs & Utility Cost'!$M$56,'Inputs & Utility Cost'!$N$56)))) -> - | E12: =IF($E$5="Net-Zero","Nominal",IF($E$5="-","-",IF($H$2='Inputs & Utility Cost'!$B$40,'Inputs & Utility Cost'!$L$57,IF($H$2='Inputs & Utility Cost'!$B$41,'Inputs & Utility Cost'!$M$57,'Inputs & Utility Cost'!$N$57)))) -> - | F12: =IF($F$5="Net-Zero","Nominal",IF($F$5="-","-",IF($H$2='Inputs & Utility Cost'!$B$40,'Inputs & Utility Cost'!$L$58,IF($H$2='Inputs & Utility Cost'!$B$41,'Inputs & Utility Cost'!$M$58,'Inputs & Utility Cost'!$N$58)))) -> - | G12: =IF($G$5="Net-Zero","Nominal",IF($G$5="-","-",IF($H$2='Inputs & Utility Cost'!$B$40,'Inputs & Utility Cost'!$L$59,IF($H$2='Inputs & Utility Cost'!$B$41,'Inputs & Utility Cost'!$M$59,'Inputs & Utility Cost'!$N$59)))) -> - | H12: =IF($H$5="Net-Zero","Nominal",IF($H$5="-","-",IF($H$2='Inputs & Utility Cost'!$B$40,'Inputs & Utility Cost'!$L$60,IF($H$2='Inputs & Utility Cost'!$B$41,'Inputs & Utility Cost'!$M$60,'Inputs & Utility Cost'!$N$60)))) -> 0 | J12: For purposes of this analysis, all design alternative should be based upon designs with identical GSF.
A14: Operational Carbon
A15: =CONCATENATE("Annual GHG FY",Input!D12," (MT CO2e)") -> Annual GHG FY (MT CO2e) | B15: =IF($B$5="Net-Zero","Net ~ 0",IF($B$5="-","-",INDEX(ASHRAEGHG[],MATCH(Input!$D$12,ASHRAEGHG[FY],0),13))) ->  | C15: =IF($C$5="Net-Zero","Net ~ 0",IF($C$5="-","-",INDEX(ProjBaselineGHG[],MATCH(Input!$D$12,ProjBaselineGHG[FY],0),13))) -> - | D15: =IF($D$5="Net-Zero","Net ~ 0",IF($D$5="-","-",INDEX(AltNo1GHG22[],MATCH(Input!$D$12,AltNo1GHG22[FY],0),13))) -> - | E15: =IF($E$5="Net-Zero","Net ~ 0",IF($E$5="-","-",INDEX(AltNo2GHG[],MATCH(Input!$D$12,AltNo2GHG[FY],0),13))) -> - | F15: =IF(F5="Net-Zero","Net ~ 0",IF($F$5="-","-",INDEX(AltNo3GHG[],MATCH(Input!$D$12,AltNo3GHG[FY],0),13))) -> - | G15: =IF(G5="Net-Zero","Net ~ 0",IF(G5="-","-",INDEX(AltNo4GHG[],MATCH(Input!$D$12,AltNo4GHG[FY],0),13))) -> - | H15: =IF($H$5="Net-Zero","Net ~ 0",IF($H$5="-","-",INDEX(AltNo2GHG26[],MATCH(Input!D12,AltNo2GHG26[FY],0),13))) -> 
A16: Lifetime (30-years) GHG (MT CO2e) | B16: =IF($B$5="Net-Zero","Net ~ 0",IF($B$5="-","-",ASHRAEGHG[[#Totals],[Annual GHG:]])) -> 0 | C16: =IF($C$5="Net-Zero","Net ~ 0",IF($C$5="-","-",ProjBaselineGHG[[#Totals],[Annual GHG:]])) -> - | D16: =IF($D$5="Net-Zero","Net ~ 0",IF($D$5="-","-",AltNo1GHG22[[#Totals],[Annual GHG:]])) -> - | E16: =IF($E$5="Net-Zero","Net ~ 0",IF($E$5="-","-",AltNo2GHG[[#Totals],[Annual GHG:]])) -> - | F16: =IF($F$5="Net-Zero","Net ~ 0",IF($F$5="-","-",AltNo3GHG[[#Totals],[Annual GHG:]])) -> - | G16: =IF($G$5="Net-Zero","Net ~ 0",IF($G$5="-","-",AltNo4GHG[[#Totals],[Annual GHG:]])) -> - | H16: =IF($H$5="Net-Zero","Net ~ 0",IF($H$5="-","-",AltNo2GHG26[[#Totals],[Annual GHG:]])) -> 0 | J16: Green highlighting is used to point out the lower carbon alternatives. The darker the green highlight the lower the carbon of the alternative.
A17: GHG per GSF (kg CO2e/GSF) | B17: =IF($B$5="Net-Zero","Net ~ 0",IF($B$5="-","-",($B$15*1000)/Input!$D$17)) ->  | C17: =IF($C$5="Net-Zero","Net ~ 0",IF($C$5="-","-",($C$15*1000)/Input!$D$17)) -> - | D17: =IF($D$5="Net-Zero","Net ~ 0",IF($D$5="-","-",($D$15*1000)/Input!$D$17)) -> - | E17: =IF($E$5="Net-Zero","Net ~ 0",IF($E$5="-","-",($E$15*1000)/Input!$D$17)) -> - | F17: =IF($F$5="Net-Zero","Net ~ 0",IF($F$5="-","-",($F$15*1000)/Input!$D$17)) -> - | G17: =IF($G$5="Net-Zero","Net ~ 0",IF($G$5="-","-",($G$15*1000)/Input!$D$17)) -> - | H17: =IF(H5="Net-Zero","Net ~ 0",IF(H5="-","-",($H$15*1000)/Input!$D$17)) -> 
A18: Comparison to Emissions Target | B18: =IF($B$5="Net-Zero",0,IF($B$5="-","-",1-($B$17/'GHG Calcs'!$D$155))) ->  | C18: =IF($C$5="Net-Zero",0,IF($C$5="-","-",1-($C$17/'GHG Calcs'!$D$155))) -> - | D18: =IF($D$5="Net-Zero",0,IF($D$5="-","-",1-($D$17/'GHG Calcs'!$D$155))) -> - | E18: =IF($E$5="Net-Zero",0,IF($E$5="-","-",1-($E$17/'GHG Calcs'!$D$155))) -> - | F18: =IF($F$5="Net-Zero",0,IF($F$5="-","-",1-($F$17/'GHG Calcs'!$D$155))) -> - | G18: =IF($G$5="Net-Zero",0,IF($G$5="-","-",1-($G$17/'GHG Calcs'!$D$155))) -> - | H18: =IF($H$5="Net-Zero",0,IF($H$5="-","-",1-($H$17/'GHG Calcs'!$D$155))) -> 
A20: Embodied Carbon | J20: The Life-Cycle Costs Analysis (LCCA) compares the various design alternatives to the baseline. The LCCA value is the design alternative's project cost premium less any lifetime energy savings to support the comparison of alternatives. To reinforce the decision, the LCCA for the ASHRAE & Project Baselines are "N/A".
A21: GWP (MT CO2e) | B21: =IF($B$5="-","-",Input!$E$60) -> 0 | C21: =IF($C$5="-","-",Input!$F$60) -> - | D21: =IF($D$5="-","-",Input!$G$60) -> - | E21: =IF($E$5="-","-",Input!$H$60) -> - | F21: =IF($F$5="-","-",Input!$I$60) -> - | G21: =IF($G$5="-","-",Input!$J$60) -> - | H21: =IF($H$5="-","-",Input!$K$60) -> 0
A22: GWP per GSF (kg CO2e/GSF) | B22: =IF($B$5="-","-",Input!$E$60/Input!$D$17*1000) ->  | C22: =IF($C$5="-","-",Input!$F$60/Input!$D$17*1000) -> - | D22: =IF($D$5="-","-",Input!$G$60/Input!$D$17*1000) -> - | E22: =IF($E$5="-","-",Input!$H$60/Input!$D$17*1000) -> - | F22: =IF($F$5="-","-",Input!$I$60/Input!$D$17*1000) -> - | G22: =IF($G$5="-","-",Input!$J$60/Input!$D$17*1000) -> - | H22: =IF($H$5="-","-",Input!$K$60/Input!$D$17*1000) -> 
A24: Total Carbon per GSF (kg CO2e/GSF) | B24: =IF($B$5="Net-Zero",$B$22,IF(B5="-","-",$B$17+$B$22)) ->  | C24: =IF($C$5="Net-Zero",$C$22,IF(C5="-","-",$C$17+$C$22)) -> - | D24: =IF($D$5="Net-Zero",$D$22,IF($D$5="-","-",$D$17+$D$22)) -> - | E24: =IF($E$5="Net-Zero",$E$22,IF($E$5="-","-",$E$17+$E$22)) -> - | F24: =IF($F$5="Net-Zero",$F$22,IF($F$5="-","-",$F$17+$F$22)) -> - | G24: =IF($G$5="Net-Zero",$G$22,IF($G$5="-","-",$G$17+$G$22)) -> - | H24: =IF($H$5="Net-Zero",$H$22,IF($H$5="-","-",$H$17+$H$22)) -> 
A25: Life-Cycle Cost (LCCA) (Project Cost Premium - Lifetime Energy Savings) | B25: N/A | C25: Base Case | D25: ='LCCA Calculations'!G8 -> - | E25: ='LCCA Calculations'!G9 -> - | F25: ='LCCA Calculations'!G10 -> - | G25: ='LCCA Calculations'!G11 -> - | H25: ='LCCA Calculations'!G12 -> 0
A27: Notes on Alternatives | B27: Assumes no PPA | J27: It is anticipated that this sheet is reviewed, and if necessary updated, annually by AEC (Scott Wood, scottdw@umich.edu).
B28: =IFERROR(B29/B7,) -> 0 | C28: =IFERROR(C29/C7,) -> 0 | D28: 0 | E28: 0 | F28: 0 | G28: 0 | H28: 0
A29: General Notes: | B29: =IFERROR(ROUNDDOWN(B9/$C$3,0),0) -> 0 | C29: =IFERROR(ROUNDDOWN(C9/$C$3,0),0) -> 0 | D29: =IFERROR(ROUNDDOWN(D9/$C$3,0),0) -> 0 | E29: 0 | F29: 0 | G29: 0 | H29: 0
A30: 1. This analysis is intended to be a tool for evaluating project alternatives that fulfill the same/similar performance requirements early in the design process. This analysis is not intended to be predictive of actual costs or carbon impacts ("your mileage may vary").
A31: 2. Project Baseline includes project specific programmatic and energy goals.
A32: 3. The terms "Net ~ 0" & "Nominal" are intended to highlight that these alternatives are zero due to offsets (i.e., on-site solar, PPA, or etc.).
A33: 4. In order to coordinate with LEED, the embodied carbon for this analysis includes the following systems: exterior envelope, structure footings/foundations, and structural wall/floors/cladding assemblies.
A34: 5. Lifetime Total Carbon per GSF value is a UM theoretical number which combines both operational (OC) and embodied (EC) carbon. These two types of carbon are usually reported separately because EC impact is greatest at the beginning/end of life of a facility while OC impact is throughout the operation of the building. However, by combining them together we are trying to emphasize they both should be considered when selecting a design alternative.
A35: 5. The Life-Cycle Cost (LCCA) includes the premium (project costs) for the design alternative less any lifetime energy savings when compared to the ASHRAE Baseline. It does not factor in maintenance, replacement costs, or business-as-usual costs.

Sheet LCCA Calculations (hidden)
A1: U-M's LCC & Carbon's Tool Life-Cycle Cost (LCC) Calculation:
A3: ASHRAE Baseline - Lifetime Energy Cost: | C3: =Output!B12 -> 0
A5: LCC = Project Cost Premium - Lifetime Energy Savings
A7: Alt | B7: Alt. Title | C7: Project Cost Premium | D7: - | E7: Lifetime Energy Savings | F7: = | G7: LCC
A8: Alt#1 | B8: =Input!G30 -> - | C8: =Input!G58 -> 0 | D8: - | E8: =IF(B8="Net-Zero",($C$3-0),IF(B8="-","-",($C$3-Output!$D$12))) -> - | F8: = | G8: =IF(B8="-","-",C8-E8) -> -
A9: Alt#2 | B9: =Input!H30 -> - | C9: =Input!H58 -> 0 | D9: - | E9: =IF(B9="Net-Zero",($C$3-0),IF(B9="-","-",($C$3-Output!$E$12))) -> - | F9: = | G9: =IF(B9="-","-",C9-E9) -> -
A10: Alt#3 | B10: =Input!I30 -> - | C10: =Input!I58 -> 0 | D10: - | E10: =IF(B10="Net-Zero",($C$3-0),IF(B10="-","-",($C$3-Output!$F$12))) -> - | F10: = | G10: -
A11: Alt#4 | B11: =Input!J30 -> - | C11: =Input!J58 -> 0 | D11: - | E11: =IF(B11="Net-Zero",($C$3-0),IF(B11="-","-",($C$3-Output!$G$12))) -> - | F11: = | G11: -
A12: Selected Design | B12: =Input!K30 -> 0 | C12: =Input!K58 -> 0 | D12: - | E12: =IF(A12="Net-Zero",($C$3-0),IF(B12="-","-",($C$3-Output!$H$12))) -> 0 | F12: = | G12: 0

Sheet Inputs & Utility Cost (hidden)
A1: Utility Costs & Unit Conversions
B2: PPA: | C2: =Output!H2:H3 -> PPA-All Purchased Renewable | H2: Add flint and Dearborn Electricity use C13 as base rate for now
B3: Projects Energy Year: | C3: =Input!$D$12 -> 0 | D3: From AE Input tab
B4: Projects Lifetime End: | C4: =C3+30 -> 30 | D4: Project Energy Year + 30 yrs.
H7: 1 | I7: 2 | J7: 3 | K7: 4 | L7: 5 | M7: 6 | N7: 7 | O7: 8 | P7: 9 | Q7: 10 | R7: 11 | S7: 12 | T7: 13 | U7: 14 | V7: 15 | W7: 16 | X7: 17 | Y7: 18 | Z7: 19 | AA7: 20 | AB7: 21 | AC7: 22 | AD7: 23 | AE7: 24 | AF7: 25 | AG7: 26 | AH7: 27 | AI7: 28 | AJ7: 29 | AK7: 30 | AL7: 31 | AM7: 32 | AN7: 33 | AO7: 34 | AP7: 35 | AQ7: 36 | AR7: 37 | AS7: 38 | AT7: 39 | AU7: 40 | AV7: 41 | AW7: 42 | AX7: 43 | AY7: 44 | AZ7: 45 | BA7: 46 | BB7: 47 | BC7: 48 | BD7: 49 | BE7: 50 | BF7: 51 | BG7: 52 | BH7: 53 | BI7: 54 | BJ7: 55 | BK7: 56 | BL7: 57 | BM7: 58 | BN7: 59 | BO7: 60 | BP7: 61 | BQ7: 62 | BR7: 63 | BS7: 64 | BT7: 65 | BU7: 66 | BV7: 67 | BW7: 68 | BX7: 69 | BY7: 70 | BZ7: 71 | CA7: 72 | CB7: 73 | CC7: 74 | CD7: 75 | CE7: 76 | CF7: 77 | CG7: 78 | CH7: 79 | CI7: 80 | CJ7: 81 | CK7: 82 | CL7: 83 | CM7: 84 | CN7: 85 | CO7: 86 | CP7: 87 | CQ7: 88 | CR7: 89 | CS7: 90 | CT7: 91 | CU7: 92 | CV7: 93 | CW7: 94 | CX7: 95 | CY7: 96 | CZ7: 97 | DA7: 98 | DB7: 99 | DC7: 100 | DD7: 101 | DE7: 102 | DF7: 103 | DG7: 104 | DH7: 105 | DI7: 106 | DJ7: 107 | DK7: 108 | DL7: 109 | DM7: 110 | DN7: 111 | DO7: 112 | DP7: 113 | DQ7: 114 | DR7: 115 | DS7: 116
I8: DTE Natural Gas | BY8: DTE Natural Gas | CI8: DTE Natural Gas
H9: FY | I9: NATURAL GAS | S9: CPP ELECTRICITY | AC9: DTE ELECTRICITY | AM9: CPP STEAM | AW9: Satellite Steam | BE9: DTE Electricity (Dearborn) | BO9: Consumers Electricity (Flint) | BY9: Consumers Energy Natural Gas (Flint) | CI9: DTE Natural Gas (Dearborn) | CS9: Flint Steam | DC9: Dearborn Steam | DM9: Annual Energy Cost (with Applicable Campus PPA Fee)
B10: FINANCIAL INPUTS | I10: =Input!$E$30 -> ASHRAE Baseline | J10: =Input!$F$30 -> - | K10: =Input!$G$30 -> - | L10: =Input!$H$30 -> - | M10: =Input!$I$30 -> - | N10: =Output!$G$5 -> - | O10: =Input!$K$30 -> 0 | S10: =Input!$E$30 -> ASHRAE Baseline | T10: =Input!$F$30 -> - | U10: =Input!$G$30 -> - | V10: =Input!$H$30 -> - | W10: =Input!$I$30 -> - | X10: =Output!$G$5 -> - | Y10: =Input!$K$30 -> 0 | AC10: =Input!$E$30 -> ASHRAE Baseline | AD10: =Input!$F$30 -> - | AE10: =Input!$G$30 -> - | AF10: =Input!$H$30 -> - | AG10: =Input!$I$30 -> - | AH10: =Output!$G$5 -> - | AI10: =Input!$K$30 -> 0 | AM10: =Input!$E$30 -> ASHRAE Baseline | AN10: =Input!$F$30 -> - | AO10: =Input!$G$30 -> - | AP10: =Input!$H$30 -> - | AQ10: =Input!$I$30 -> - | AR10: =Output!$G$5 -> - | AS10: =Input!$K$30 -> 0 | AW10: =Input!$E$30 -> ASHRAE Baseline | AX10: =Input!$F$30 -> - | AY10: =Input!$G$30 -> - | AZ10: =Input!$H$30 -> - | BA10: =Input!$I$30 -> - | BB10: =Output!$G$5 -> - | BC10: =Input!$K$30 -> 0 | BE10: =Input!$E$30 -> ASHRAE Baseline | BF10: =Input!$F$30 -> - | BG10: =Input!$G$30 -> - | BH10: =Input!$H$30 -> - | BI10: =Input!$I$30 -> - | BJ10: =Output!$G$5 -> - | BK10: =Input!$K$30 -> 0 | BO10: =Input!$E$30 -> ASHRAE Baseline | BP10: =Input!$F$30 -> - | BQ10: =Input!$G$30 -> - | BR10: =Input!$H$30 -> - | BS10: =Input!$I$30 -> - | BT10: =Output!$G$5 -> - | BU10: =Input!$K$30 -> 0 | BY10: =Input!$E$30 -> ASHRAE Baseline | BZ10: =Input!$F$30 -> - | CA10: =Input!$G$30 -> - | CB10: =Input!$H$30 -> - | CC10: =Input!$I$30 -> - | CD10: =Output!$G$5 -> - | CE10: =Input!$K$30 -> 0 | CI10: =Input!$E$30 -> ASHRAE Baseline | CJ10: =Input!$F$30 -> - | CK10: =Input!$G$30 -> - | CL10: =Input!$H$30 -> - | CM10: =Input!$I$30 -> - | CN10: =Output!$G$5 -> - | CO10: =Input!$K$30 -> 0 | CS10: =Input!$E$30 -> ASHRAE Baseline | CT10: =Input!$F$30 -> - | CU10: =Input!$G$30 -> - | CV10: =Input!$H$30 -> - | CW10: =Input!$I$30 -> - | CX10: =Output!$G$5 -> - | CY10: =Input!$K$30 -> 0 | DC10: =Input!$E$30 -> ASHRAE Baseline | DD10: =Input!$F$30 -> - | DE10: =Input!$G$30 -> - | DF10: =Input!$H$30 -> - | DG10: =Input!$I$30 -> - | DH10: =Output!$G$5 -> - | DI10: =Input!$K$30 -> 0 | DM10: =Input!$E$30 -> ASHRAE Baseline | DN10: =Input!$F$30 -> - | DO10: =Input!$G$30 -> - | DP10: =Input!$H$30 -> - | DQ10: =Input!$I$30 -> - | DR10: =Output!$G$5 -> - | DS10: =Input!$K$30 -> 0
F11: Notes | P11: Nat Gas - Base | Q11: Nat Gas - High | R11: Nat Gas - Low | Z11: Elec - Base | AA11: Elec - High | AB11: Elec - Low | AJ11: Elec - Base | AK11: Elec - High | AL11: Elec - Low | AT11: Steam -Base | AU11: Steam - high | AV11: Steam - Low | BD11: Steam -Base | BL11: Elec - Base | BM11: Elec - High | BN11: Elec - Low | BV11: Elec - Base | BW11: Elec - High | BX11: Elec - Low | CF11: Nat Gas - Base | CG11: Nat Gas - High | CH11: Nat Gas - Low | CP11: Nat Gas - Base | CQ11: Nat Gas - High | CR11: Nat Gas - Low | CZ11: =$C$27 -> 15.64 | DA11: Steam - high | DB11: Steam - Low | DJ11: Steam -Base | DK11: Steam - high | DL11: Steam - Low
B12: Discount Rate | C12: 0.04 | H12: 2024 | I12: =$P$12*Input!$E$41 -> 0 | J12: =$P12*Input!$F$41 -> 0 | K12: =$P12*Input!$G$41 -> 0 | L12: =$P12*Input!$H$41 -> 0 | M12: =$P12*Input!$I$41 -> 0 | N12: =$P12*Input!$J$41 -> 0 | O12: =$P12*Input!$K$41 -> 0 | P12: =$C$19 -> 0.34 | Q12: =C30 -> 0 | R12: =C30 -> 0 | S12: =IF(Input!$E$35>0,(Input!E$35+Input!E$53)*$Z12,0) -> 0 | T12: =IF(Input!$F$35>0,(Input!F$35+Input!F$53)*$Z12,0) -> 0 | U12: =IF(Input!$G$35>0,(Input!G$35+Input!G$53)*$Z12,0) -> 0 | V12: =IF(Input!$H$35>0,(Input!H$35+Input!H$53)*$Z12,0) -> 0 | W12: =IF(Input!$I$35>0,(Input!I$35+Input!I$53)*$Z12,0) -> 0 | X12: =IF(Input!$J$35>0,(Input!J$35+Input!J$53)*$Z12,0) -> 0 | Y12: =IF(Input!$K$35>0,(Input!K$35+Input!K$53)*$Z12,0) -> 0 | Z12: =$C$13 -> 0.086 | AA12: =C13 -> 0.086 | AB12: =C13 -> 0.086 | AC12: =IF(Input!E$33>0,(Input!E$33+Input!E$53)*$AJ12,0) -> 0 | AD12: =IF(Input!F$33>0,(Input!F$33+Input!F$53)*$AJ12,0) -> 0 | AE12: =IF(Input!G$33>0,(Input!G$33+Input!G$53)*$AJ12,0) -> 0 | AF12: =IF(Input!H$33>0,(Input!H$33+Input!H$53)*$AJ12,0) -> 0 | AG12: =IF(Input!I$33>0,(Input!I$33+Input!I$53)*$AJ12,0) -> 0 | AH12: =IF(Input!J$33>0,(Input!J$33+Input!J$53)*$AJ12,0) -> 0 | AI12: =IF(Input!K$33>0,(Input!K$33+Input!K$53)*$AJ12,0) -> 0 | AJ12: =$C$13 -> 0.086 | AK12: =C13 -> 0.086 | AL12: =C13 -> 0.086 | AM12: =IF(Input!E$44>0,(Input!E$44+Input!E$54)*$AT12,0) -> 0 | AN12: =IF(Input!F$44>0,(Input!F$44+Input!F$54)*$AT12,0) -> 0 | AO12: =IF(Input!G$44>0,(Input!G$44+Input!G$54)*$AT12,0) -> 0 | AP12: =IF(Input!H$44>0,(Input!H$44+Input!H$54)*$AT12,0) -> 0 | AQ12: =IF(Input!I$44>0,(Input!I$44+Input!I$54)*$AT12,0) -> 0 | AR12: =IF(Input!J$44>0,(Input!J$44+Input!J$54)*$AT12,0) -> 0 | AS12: =IF(Input!K$44>0,(Input!K$44+Input!K$54)*$AT12,0) -> 0 | AT12: =$C$27 -> 15.64 | AU12: =C27 -> 15.64 | AV12: =C27 -> 15.64 | AW12: =IF(Input!E$46>0,(Input!E$46+Input!E$54)*$BD12,0) -> 0 | AX12: =IF(Input!F$46>0,(Input!F$46+Input!F$54)*$BD12,0) -> 0 | AY12: =IF(Input!G$46>0,(Input!G$46+Input!G$54)*$BD12,0) -> 0 | AZ12: =IF(Input!H$46>0,(Input!H$46+Input!H$54)*$BD12,0) -> 0 | BA12: =IF(Input!I$46>0,(Input!I$46+Input!I$54)*$BD12,0) -> 0 | BB12: =IF(Input!J$46>0,(Input!J$46+Input!J$54)*$BD12,0) -> 0 | BC12: =IF(Input!K$46>0,(Input!K$46+Input!K$54)*$BD12,0) -> 0 | BD12: =$C$27 -> 15.64 | BE12: =IF(Input!E$37>0,(Input!E$37+Input!E$53)*$AJ12,0) -> 0 | BF12: =IF(Input!F$37>0,(Input!F$37+Input!F$53)*$AJ12,0) -> 0 | BG12: =IF(Input!G$37>0,(Input!G$37+Input!G$53)*$AJ12,0) -> 0 | BH12: =IF(Input!H$37>0,(Input!H$37+Input!H$53)*$AJ12,0) -> 0 | BI12: =IF(Input!I$37>0,(Input!I$37+Input!I$53)*$AJ12,0) -> 0 | BJ12: =IF(Input!J$37>0,(Input!J$37+Input!J$53)*$AJ12,0) -> 0 | BK12: =IF(Input!K$37>0,(Input!K$37+Input!K$53)*$BL12,0) -> 0 | BL12: =$C$13 -> 0.086 | BM12: =AE13 -> 0 | BN12: =AE13 -> 0 | BO12: =IF(Input!E$39>0,(Input!E$39+Input!AQ$53)*$BV12,0) -> 0 | BP12: =IF(Input!F$39>0,(Input!F$39+Input!AR$53)*$BV12,0) -> 0 | BQ12: =IF(Input!G$39>0,(Input!G$39+Input!AS$53)*$BV12,0) -> 0 | BR12: =IF(Input!H$39>0,(Input!H$39+Input!AT$53)*$BV12,0) -> 0 | BS12: =IF(Input!I$39>0,(Input!I$39+Input!AU$53)*$BV12,0) -> 0 | BT12: =IF(Input!J$39>0,(Input!J$39+Input!AV$53)*$BV12,0) -> 0 | BU12: =IF(Input!K$39>0,(Input!K$39+Input!AW$53)*$BV12,0) -> 0 | BV12: =$C$13 -> 0.086 | BW12: =AO13 -> 0 | BX12: =AO13 -> 0 | BY12: =$CF12*Input!$E$43 -> 0 | BZ12: =$CF12*Input!$E$43 -> 0 | CA12: =$CF12*Input!$E$43 -> 0 | CB12: =$CF12*Input!$E$43 -> 0 | CC12: =$CF12*Input!$E$43 -> 0 | CD12: =$CF12*Input!$E$43 -> 0 | CE12: =$CF12*Input!$E$43 -> 0 | CF12: =$C$21 -> 0.34 | CG12: =BS26 -> 0 | CH12: =BS26 -> 0 | CI12: =$CP12*Input!$E$42 -> 0 | CJ12: =$CP12*Input!$E$42 -> 0 | CK12: =$CP12*Input!$E$42 -> 0 | CL12: =$CP12*Input!$E$42 -> 0 | CM12: =$CP12*Input!$E$42 -> 0 | CN12: =$CP12*Input!$E$42 -> 0 | CO12: =$CP12*Input!$E$42 -> 0 | CP12: =$C$20 -> 0.34 | CQ12: =CD26 -> 0 | CR12: =CD26 -> 0 | CS12: =IF(Input!BK$44>0,(Input!BK$44+Input!BK$54)*$AT12,0) -> 0 | CT12: =IF(Input!BL$44>0,(Input!BL$44+Input!BL$54)*$AT12,0) -> 0 | CU12: =IF(Input!BM$44>0,(Input!BM$44+Input!BM$54)*$AT12,0) -> 0 | CV12: =IF(Input!BN$44>0,(Input!BN$44+Input!BN$54)*$AT12,0) -> 0 | CW12: =IF(Input!BO$44>0,(Input!BO$44+Input!BO$54)*$AT12,0) -> 0 | CX12: =IF(Input!BP$44>0,(Input!BP$44+Input!BP$54)*$AT12,0) -> 0 | CY12: =IF(Input!BQ$44>0,(Input!BQ$44+Input!BQ$54)*$AT12,0) -> 0 | CZ12: =CZ11+(CZ11*$C$22) -> 16.120148 | DA12: =BI23 -> 0 | DB12: =BI23 -> 0 | DC12: =IF(Input!BU$44>0,(Input!BU$44+Input!BU$54)*$AT12,0) -> 0 | DD12: =IF(Input!BV$44>0,(Input!BV$44+Input!BV$54)*$AT12,0) -> 0 | DE12: =IF(Input!BW$44>0,(Input!BW$44+Input!BW$54)*$AT12,0) -> 0 | DF12: =IF(Input!BX$44>0,(Input!BX$44+Input!BX$54)*$AT12,0) -> 0 | DG12: =IF(Input!BY$44>0,(Input!BY$44+Input!BY$54)*$AT12,0) -> 0 | DH12: =IF(Input!BZ$44>0,(Input!BZ$44+Input!BZ$54)*$AT12,0) -> 0 | DI12: =IF(Input!CA$44>0,(Input!CA$44+Input!CA$54)*$AT12,0) -> 0 | DJ12: =BS23 -> 0 | DK12: =BS23 -> 0 | DL12: =BS23 -> 0 | DM12: =I12+S12+AC12+AM12+AW12+BE12+BO12+BY12+CI12+CS12+DC12 -> 0 | DN12: =IF(Output!$H$2='Inputs & Utility Cost'!$B$41,('Inputs & Utility Cost'!$C$41*(J12+T12+AD12+AN12+AX12+BF12+BP12+BZ12+CJ12+CT12+DD12)),IF(Output!$H$2='Inputs & Utility Cost'!$B$42,('Inputs & Utility Cost'!$C$42*('Inputs & Utility Cost'!$C$41*(J12+T12+AD12+AN12+AX12+BF12+BP12+BZ12+CJ12+CT12+DD12))),(J12+T12+AD12+AN12+AX12+BF12+BP12+BZ12+CJ12+CT12+DD12))) -> 0 | DO12: =IF(Output!$H$2='Inputs & Utility Cost'!$B$41,('Inputs & Utility Cost'!$C$41*(K12+U12+AE12+AO12+AY12+BG12+BQ12+CA12+CK12+CU12+DE12)),IF(Output!$H$2='Inputs & Utility Cost'!$B$42,('Inputs & Utility Cost'!$C$42*('Inputs & Utility Cost'!$C$41*(K12+U12+AE12+AO12+AY12+BG12+BQ12+CA12+CK12+CU12+DE12))),(K12+U12+AE12+AO12+AY12+BG12+BQ12+CA12+CK12+CU12+DE12))) -> 0 | DP12: =IF(Output!$H$2='Inputs & Utility Cost'!$B$41,('Inputs & Utility Cost'!$C$41*(L12+V12+AF12+AP12+AZ12+BH12+BR12+CB12+CL12+CV12+DF12)),IF(Output!$H$2='Inputs & Utility Cost'!$B$42,('Inputs & Utility Cost'!$C$42*('Inputs & Utility Cost'!$C$41*(L12+V12+AF12+AP12+AZ12+BH12+BR12+CB12+CL12+CV12+DF12))),(L12+V12+AF12+AP12+AZ12+BH12+BR12+CB12+CL12+CV12+DF12))) -> 0 | DQ12: =IF(Output!$H$2='Inputs & Utility Cost'!$B$41,('Inputs & Utility Cost'!$C$41*(M12+W12+AG12+AQ12+BA12+BI12+BS12+CC12+CM12+CW12+DG12)),IF(Output!$H$2='Inputs & Utility Cost'!$B$42,('Inputs & Utility Cost'!$C$42*('Inputs & Utility Cost'!$C$41*(M12+W12+AG12+AQ12+BA12+BI12+BS12+CC12+CM12+CW12+DG12))),(M12+W12+AG12+AQ12+BA12+BI12+BS12+CC12+CM12+CW12+DG12))) -> 0 | DR12: =IF(Output!$H$2='Inputs & Utility Cost'!$B$41,('Inputs & Utility Cost'!$C$41*(N12+X12+AH12+AR12+BB12+BJ12+BT12+CD12+CN12+CX12+DH12)),IF(Output!$H$2='Inputs & Utility Cost'!$B$42,('Inputs & Utility Cost'!$C$42*('Inputs & Utility Cost'!$C$41*(N12+X12+AH12+AR12+BB12+BJ12+BT12+CD12+CN12+CX12+DH12))),(N12+X12+AH12+AR12+BB12+BJ12+BT12+CD12+CN12+CX12+DH12))) -> 0 | DS12: =IF(Output!$H$2='Inputs & Utility Cost'!$B$41,('Inputs & Utility Cost'!$C$41*(O12+Y12+AI12+AS12+BC12+BK12+BU12+CE12+CO12+CY12+DI12)),IF(Output!$H$2='Inputs & Utility Cost'!$B$42,('Inputs & Utility Cost'!$C$42*('Inputs & Utility Cost'!$C$41*(O12+Y12+AI12+AS12+BC12+BK12+BU12+CE12+CO12+CY12+DI12))),(O12+Y12+AI12+AS12+BC12+BK12+BU12+CE12+CO12+CY12+DI12))) -> 0
B13: Electricity: present day price ($/kWh) | C13: =0.086 -> 0.086 | F13: via U-M F&O website (7/2/20) | H13: 2025 | I13: =$P13*Input!$E$41 -> 0 | J13: =$P13*Input!$F$41 -> 0 | K13: =$P13*Input!$G$41 -> 0 | L13: =$P13*Input!$H$41 -> 0 | M13: =$P13*Input!$I$41 -> 0 | N13: =$P13*Input!$J$41 -> 0 | O13: =$P13*Input!$K$41 -> 0 | P13: =P12+(P12*$C$22) -> 0.350438 | Q13: =Q12+(Q12*$C$23) -> 0 | R13: =R12+(R12*$C$24) -> 0 | S13: =IF(Input!$E$35>0,(Input!E$35+Input!E$53)*$Z13,0) -> 0 | T13: =IF(Input!$F$35>0,(Input!F$35+Input!F$53)*$Z13,0) -> 0 | U13: =IF(Input!$G$35>0,(Input!G$35+Input!G$53)*$Z13,0) -> 0 | V13: =IF(Input!$H$35>0,(Input!H$35+Input!H$53)*$Z13,0) -> 0 | W13: =IF(Input!$I$35>0,(Input!I$35+Input!I$53)*$Z13,0) -> 0 | X13: =IF(Input!$J$35>0,(Input!J$35+Input!J$53)*$Z13,0) -> 0 | Y13: =IF(Input!$K$35>0,(Input!K$35+Input!K$53)*$Z13,0) -> 0 | Z13: =Z12+(Z12*$C$16) -> 0.0877458 | AA13: =AA12+(AA12*$C$17) -> 0.0886316 | AB13: =AB12+(AB12*$C$18) -> 0.0876856 | AC13: =IF(Input!E$33>0,(Input!E$33+Input!E$53)*$AJ13,0) -> 0 | AD13: =IF(Input!F$33>0,(Input!F$33+Input!F$53)*$AJ13,0) -> 0 | AE13: =IF(Input!G$33>0,(Input!G$33+Input!G$53)*$AJ13,0) -> 0 | AF13: =IF(Input!H$33>0,(Input!H$33+Input!H$53)*$AJ13,0) -> 0 | AG13: =IF(Input!I$33>0,(Input!I$33+Input!I$53)*$AJ13,0) -> 0 | AH13: =IF(Input!J$33>0,(Input!J$33+Input!J$53)*$AJ13,0) -> 0 | AI13: =IF(Input!K$33>0,(Input!K$33+Input!K$53)*$AJ13,0) -> 0 | AJ13: =AJ12+(AJ12*$C$16) -> 0.0877458 | AK13: =AK12+(AK12*$C$17) -> 0.0886316 | AL13: =AL12+(AL12*$C$18) -> 0.0876856 | AM13: =IF(Input!E$44>0,(Input!E$44+Input!E$54)*$AT13,0) -> 0 | AN13: =IF(Input!F$44>0,(Input!F$44+Input!F$54)*$AT13,0) -> 0 | AO13: =IF(Input!G$44>0,(Input!G$44+Input!G$54)*$AT13,0) -> 0 | AP13: =IF(Input!H$44>0,(Input!H$44+Input!H$54)*$AT13,0) -> 0 | AQ13: =IF(Input!I$44>0,(Input!I$44+Input!I$54)*$AT13,0) -> 0 | AR13: =IF(Input!J$44>0,(Input!J$44+Input!J$54)*$AT13,0) -> 0 | AS13: =IF(Input!K$44>0,(Input!K$44+Input!K$54)*$AT13,0) -> 0 | AT13: =AT12+(AT12*$C$22) -> 16.120148 | AU13: =AU12+(AU12*$C$23) -> 16.270292 | AV13: =AV12+(AV12*$C$24) -> 16.091996 | AW13: =IF(Input!E$46>0,(Input!E$46+Input!E$54)*$BD13,0) -> 0 | AX13: =IF(Input!F$46>0,(Input!F$46+Input!F$54)*$BD13,0) -> 0 | AY13: =IF(Input!G$46>0,(Input!G$46+Input!G$54)*$BD13,0) -> 0 | AZ13: =IF(Input!H$46>0,(Input!H$46+Input!H$54)*$BD13,0) -> 0 | BA13: =IF(Input!I$46>0,(Input!I$46+Input!I$54)*$BD13,0) -> 0 | BB13: =IF(Input!J$46>0,(Input!J$46+Input!J$54)*$BD13,0) -> 0 | BC13: =IF(Input!K$46>0,(Input!K$46+Input!K$54)*$BD13,0) -> 0 | BD13: =BD12+(BD12*$C$22) -> 16.120148 | BE13: =IF(Input!E$37>0,(Input!E$37+Input!E$53)*$AJ13,0) -> 0 | BF13: =IF(Input!F$37>0,(Input!F$37+Input!F$53)*$AJ13,0) -> 0 | BG13: =IF(Input!G$37>0,(Input!G$37+Input!G$53)*$AJ13,0) -> 0 | BH13: =IF(Input!H$37>0,(Input!H$37+Input!H$53)*$AJ13,0) -> 0 | BI13: =IF(Input!I$37>0,(Input!I$37+Input!I$53)*$AJ13,0) -> 0 | BJ13: =IF(Input!J$37>0,(Input!J$37+Input!J$53)*$AJ13,0) -> 0 | BK13: =IF(Input!K$37>0,(Input!K$37+Input!K$53)*$AJ13,0) -> 0 | BL13: =BL12+(BL12*$C$16) -> 0.0877458 | BM13: =BM12+(BM12*$C$17) -> 0 | BN13: =BN12+(BN12*$C$18) -> 0 | BO13: =IF(Input!E$39>0,(Input!E$39+Input!AQ$53)*$BV13,0) -> 0 | BP13: =IF(Input!F$39>0,(Input!F$39+Input!AR$53)*$BV13,0) -> 0 | BQ13: =IF(Input!G$39>0,(Input!G$39+Input!AS$53)*$BV13,0) -> 0 | BR13: =IF(Input!H$39>0,(Input!H$39+Input!AT$53)*$BV13,0) -> 0 | BS13: =IF(Input!I$39>0,(Input!I$39+Input!AU$53)*$BV13,0) -> 0 | BT13: =IF(Input!J$39>0,(Input!J$39+Input!AV$53)*$BV13,0) -> 0 | BU13: =IF(Input!K$39>0,(Input!K$39+Input!AW$53)*$BV13,0) -> 0 | BV13: =BV12+(BV12*$C$16) -> 0.0877458 | BW13: =BW12+(BW12*$C$17) -> 0 | BX13: =BX12+(BX12*$C$18) -> 0 | BY13: =$CF13*Input!$E$43 -> 0 | BZ13: =$CF13*Input!$E$43 -> 0 | CA13: =$CF13*Input!$E$43 -> 0 | CB13: =$CF13*Input!$E$43 -> 0 | CC13: =$CF13*Input!$E$43 -> 0 | CD13: =$CF13*Input!$E$43 -> 0 | CE13: =$CF13*Input!$E$43 -> 0 | CF13: =CF12+(CF12*$C$22) -> 0.350438 | CG13: =CG12+(CG12*$C$23) -> 0 | CH13: =CH12+(CH12*$C$24) -> 0 | CI13: =$CP13*Input!$E$42 -> 0 | CJ13: =$CP13*Input!$E$42 -> 0 | CK13: =$CP13*Input!$E$42 -> 0 | CL13: =$CP13*Input!$E$42 -> 0 | CM13: =$CP13*Input!$E$42 -> 0 | CN13: =$CP13*Input!$E$42 -> 0 | CO13: =$CP13*Input!$E$42 -> 0 | CP13: =CP12+(CP12*$C$22) -> 0.350438 | CQ13: =CQ12+(CQ12*$C$23) -> 0 | CR13: =CR12+(CR12*$C$24) -> 0 | CS13: =IF(Input!BK$44>0,(Input!BK$44+Input!BK$54)*$AT13,0) -> 0 | CT13: =IF(Input!BL$44>0,(Input!BL$44+Input!BL$54)*$AT13,0) -> 0 | CU13: =IF(Input!BM$44>0,(Input!BM$44+Input!BM$54)*$AT13,0) -> 0 | CV13: =IF(Input!BN$44>0,(Input!BN$44+Input!BN$54)*$AT13,0) -> 0 | CW13: =IF(Input!BO$44>0,(Input!BO$44+Input!BO$54)*$AT13,0) -> 0 | CX13: =IF(Input!BP$44>0,(Input!BP$44+Input!BP$54)*$AT13,0) -> 0 | CY13: =IF(Input!BQ$44>0,(Input!BQ$44+Input!BQ$54)*$AT13,0) -> 0 | CZ13: =CZ12+(CZ12*$C$22) -> 16.61503654 | DA13: =DA12+(DA12*$C$23) -> 0 | DB13: =DB12+(DB12*$C$24) -> 0 | DC13: =IF(Input!BU$44>0,(Input!BU$44+Input!BU$54)*$AT13,0) -> 0 | DD13: =IF(Input!BV$44>0,(Input!BV$44+Input!BV$54)*$AT13,0) -> 0 | DE13: =IF(Input!BW$44>0,(Input!BW$44+Input!BW$54)*$AT13,0) -> 0 | DF13: =IF(Input!BX$44>0,(Input!BX$44+Input!BX$54)*$AT13,0) -> 0 | DG13: =IF(Input!BY$44>0,(Input!BY$44+Input!BY$54)*$AT13,0) -> 0 | DH13: =IF(Input!BZ$44>0,(Input!BZ$44+Input!BZ$54)*$AT13,0) -> 0 | DI13: =IF(Input!CA$44>0,(Input!CA$44+Input!CA$54)*$AT13,0) -> 0 | DJ13: =DJ12+(DJ12*$C$22) -> 0 | DK13: =DK12+(DK12*$C$23) -> 0 | DL13: =DL12+(DL12*$C$24) -> 0 | DM13: =I13+S13+AC13+AM13+AW13+BE13+BO13+BY13+CI13+CS13+DC13 -> 0 | DN13: =IF(Output!$H$2='Inputs & Utility Cost'!$B$41,('Inputs & Utility Cost'!$C$41*(J13+T13+AD13+AN13+AX13+BF13+BP13+BZ13+CJ13+CT13+DD13)),IF(Output!$H$2='Inputs & Utility Cost'!$B$42,('Inputs & Utility Cost'!$C$42*('Inputs & Utility Cost'!$C$41*(J13+T13+AD13+AN13+AX13+BF13+BP13+BZ13+CJ13+CT13+DD13))),(J13+T13+AD13+AN13+AX13+BF13+BP13+BZ13+CJ13+CT13+DD13))) -> 0 | DO13: =IF(Output!$H$2='Inputs & Utility Cost'!$B$41,('Inputs & Utility Cost'!$C$41*(K13+U13+AE13+AO13+AY13+BG13+BQ13+CA13+CK13+CU13+DE13)),IF(Output!$H$2='Inputs & Utility Cost'!$B$42,('Inputs & Utility Cost'!$C$42*('Inputs & Utility Cost'!$C$41*(K13+U13+AE13+AO13+AY13+BG13+BQ13+CA13+CK13+CU13+DE13))),(K13+U13+AE13+AO13+AY13+BG13+BQ13+CA13+CK13+CU13+DE13))) -> 0 | DP13: =IF(Output!$H$2='Inputs & Utility Cost'!$B$41,('Inputs & Utility Cost'!$C$41*(L13+V13+AF13+AP13+AZ13+BH13+BR13+CB13+CL13+CV13+DF13)),IF(Output!$H$2='Inputs & Utility Cost'!$B$42,('Inputs & Utility Cost'!$C$42*('Inputs & Utility Cost'!$C$41*(L13+V13+AF13+AP13+AZ13+BH13+BR13+CB13+CL13+CV13+DF13))),(L13+V13+AF13+AP13+AZ13+BH13+BR13+CB13+CL13+CV13+DF13))) -> 0 | DQ13: =IF(Output!$H$2='Inputs & Utility Cost'!$B$41,('Inputs & Utility Cost'!$C$41*(M13+W13+AG13+AQ13+BA13+BI13+BS13+CC13+CM13+CW13+DG13)),IF(Output!$H$2='Inputs & Utility Cost'!$B$42,('Inputs & Utility Cost'!$C$42*('Inputs & Utility Cost'!$C$41*(M13+W13+AG13+AQ13+BA13+BI13+BS13+CC13+CM13+CW13+DG13))),(M13+W13+AG13+AQ13+BA13+BI13+BS13+CC13+CM13+CW13+DG13))) -> 0 | DR13: =IF(Output!$H$2='Inputs & Utility Cost'!$B$41,('Inputs & Utility Cost'!$C$41*(N13+X13+AH13+AR13+BB13+BJ13+BT13+CD13+CN13+CX13+DH13)),IF(Output!$H$2='Inputs & Utility Cost'!$B$42,('Inputs & Utility Cost'!$C$42*('Inputs & Utility Cost'!$C$41*(N13+X13+AH13+AR13+BB13+BJ13+BT13+CD13+CN13+CX13+DH13))),(N13+X13+AH13+AR13+BB13+BJ13+BT13+CD13+CN13+CX13+DH13))) -> 0 | DS13: =IF(Output!$H$2='Inputs & Utility Cost'!$B$41,('Inputs & Utility Cost'!$C$41*(O13+Y13+AI13+AS13+BC13+BK13+BU13+CE13+CO13+CY13+DI13)),IF(Output!$H$2='Inputs & Utility Cost'!$B$42,('Inputs & Utility Cost'!$C$42*('Inputs & Utility Cost'!$C$41*(O13+Y13+AI13+AS13+BC13+BK13+BU13+CE13+CO13+CY13+DI13))),(O13+Y13+AI13+AS13+BC13+BK13+BU13+CE13+CO13+CY13+DI13))) -> 0 | DU13: Instructions/Notes:
B14: Dearborn Electricity: present day price ($/kWh) | C14: =0.086 -> 0.086 | H14: 2026 | I14: =$P14*Input!$E$41 -> 0 | J14: =$P14*Input!$F$41 -> 0 | K14: =$P14*Input!$G$41 -> 0 | L14: =$P14*Input!$H$41 -> 0 | M14: =$P14*Input!$I$41 -> 0 | N14: =$P14*Input!$J$41 -> 0 | O14: =$P14*Input!$K$41 -> 0 | P14: =P13+(P13*$C$22) -> 0.3611964466 | Q14: =Q13+(Q13*$C$23) -> 0 | R14: =R13+(R13*$C$24) -> 0 | S14: =IF(Input!$E$35>0,(Input!E$35+Input!E$53)*$Z14,0) -> 0 | T14: =IF(Input!$F$35>0,(Input!F$35+Input!F$53)*$Z14,0) -> 0 | U14: =IF(Input!$G$35>0,(Input!G$35+Input!G$53)*$Z14,0) -> 0 | V14: =IF(Input!$H$35>0,(Input!H$35+Input!H$53)*$Z14,0) -> 0 | W14: =IF(Input!$I$35>0,(Input!I$35+Input!I$53)*$Z14,0) -> 0 | X14: =IF(Input!$J$35>0,(Input!J$35+Input!J$53)*$Z14,0) -> 0 | Y14: =IF(Input!$K$35>0,(Input!K$35+Input!K$53)*$Z14,0) -> 0 | Z14: =Z13+(Z13*$C$16) -> 0.08952703974 | AA14: =AA13+(AA13*$C$17) -> 0.09134372696 | AB14: =AB13+(AB13*$C$18) -> 0.08940423776 | AC14: =IF(Input!E$33>0,(Input!E$33+Input!E$53)*$AJ14,0) -> 0 | AD14: =IF(Input!F$33>0,(Input!F$33+Input!F$53)*$AJ14,0) -> 0 | AE14: =IF(Input!G$33>0,(Input!G$33+Input!G$53)*$AJ14,0) -> 0 | AF14: =IF(Input!H$33>0,(Input!H$33+Input!H$53)*$AJ14,0) -> 0 | AG14: =IF(Input!I$33>0,(Input!I$33+Input!I$53)*$AJ14,0) -> 0 | AH14: =IF(Input!J$33>0,(Input!J$33+Input!J$53)*$AJ14,0) -> 0 | AI14: =IF(Input!K$33>0,(Input!K$33+Input!K$53)*$AJ14,0) -> 0 | AJ14: =AJ13+(AJ13*$C$16) -> 0.08952703974 | AK14: =AK13+(AK13*$C$17) -> 0.09134372696 | AL14: =AL13+(AL13*$C$18) -> 0.08940423776 | AM14: =IF(Input!E$44>0,(Input!E$44+Input!E$54)*$AT14,0) -> 0 | AN14: =IF(Input!F$44>0,(Input!F$44+Input!F$54)*$AT14,0) -> 0 | AO14: =IF(Input!G$44>0,(Input!G$44+Input!G$54)*$AT14,0) -> 0 | AP14: =IF(Input!H$44>0,(Input!H$44+Input!H$54)*$AT14,0) -> 0 | AQ14: =IF(Input!I$44>0,(Input!I$44+Input!I$54)*$AT14,0) -> 0 | AR14: =IF(Input!J$44>0,(Input!J$44+Input!J$54)*$AT14,0) -> 0 | AS14: =IF(Input!K$44>0,(Input!K$44+Input!K$54)*$AT14,0) -> 0 | AT14: =AT13+(AT13*$C$22) -> 16.61503654 | AU14: =AU13+(AU13*$C$23) -> 16.92598477 | AV14: =AV13+(AV13*$C$24) -> 16.55705468 | AW14: =IF(Input!E$46>0,(Input!E$46+Input!E$54)*$BD14,0) -> 0 | AX14: =IF(Input!F$46>0,(Input!F$46+Input!F$54)*$BD14,0) -> 0 | AY14: =IF(Input!G$46>0,(Input!G$46+Input!G$54)*$BD14,0) -> 0 | AZ14: =IF(Input!H$46>0,(Input!H$46+Input!H$54)*$BD14,0) -> 0 | BA14: =IF(Input!I$46>0,(Input!I$46+Input!I$54)*$BD14,0) -> 0 | BB14: =IF(Input!J$46>0,(Input!J$46+Input!J$54)*$BD14,0) -> 0 | BC14: =IF(Input!K$46>0,(Input!K$46+Input!K$54)*$BD14,0) -> 0 | BD14: =BD13+(BD13*$C$22) -> 16.61503654 | BE14: =IF(Input!E$37>0,(Input!E$37+Input!E$53)*$AJ14,0) -> 0 | BF14: =IF(Input!F$37>0,(Input!F$37+Input!F$53)*$AJ14,0) -> 0 | BG14: =IF(Input!G$37>0,(Input!G$37+Input!G$53)*$AJ14,0) -> 0 | BH14: =IF(Input!H$37>0,(Input!H$37+Input!H$53)*$AJ14,0) -> 0 | BI14: =IF(Input!I$37>0,(Input!I$37+Input!I$53)*$AJ14,0) -> 0 | BJ14: =IF(Input!J$37>0,(Input!J$37+Input!J$53)*$AJ14,0) -> 0 | BK14: =IF(Input!K$37>0,(Input!K$37+Input!K$53)*$AJ14,0) -> 0 | BL14: =BL13+(BL13*$C$16) -> 0.08952703974 | BM14: =BM13+(BM13*$C$17) -> 0 | BN14: =BN13+(BN13*$C$18) -> 0 | BO14: =IF(Input!E$39>0,(Input!E$39+Input!AQ$53)*$BV14,0) -> 0 | BP14: =IF(Input!F$39>0,(Input!F$39+Input!AR$53)*$BV14,0) -> 0 | BQ14: =IF(Input!G$39>0,(Input!G$39+Input!AS$53)*$BV14,0) -> 0 | BR14: =IF(Input!H$39>0,(Input!H$39+Input!AT$53)*$BV14,0) -> 0 | BS14: =IF(Input!I$39>0,(Input!I$39+Input!AU$53)*$BV14,0) -> 0 | BT14: =IF(Input!J$39>0,(Input!J$39+Input!AV$53)*$BV14,0) -> 0 | BU14: =IF(Input!K$39>0,(Input!K$39+Input!AW$53)*$BV14,0) -> 0 | BV14: =BV13+(BV13*$C$16) -> 0.08952703974 | BW14: =BW13+(BW13*$C$17) -> 0 | BX14: =BX13+(BX13*$C$18) -> 0 | BY14: =$CF14*Input!$E$43 -> 0 | BZ14: =$CF14*Input!$E$43 -> 0 | CA14: =$CF14*Input!$E$43 -> 0 | CB14: =$CF14*Input!$E$43 -> 0 | CC14: =$CF14*Input!$E$43 -> 0 | CD14: =$CF14*Input!$E$43 -> 0 | CE14: =$CF14*Input!$E$43 -> 0 | CF14: =CF13+(CF13*$C$22) -> 0.3611964466 | CG14: =CG13+(CG13*$C$23) -> 0 | CH14: =CH13+(CH13*$C$24) -> 0 | CI14: =$CP14*Input!$E$42 -> 0 | CJ14: =$CP14*Input!$E$42 -> 0 | CK14: =$CP14*Input!$E$42 -> 0 | CL14: =$CP14*Input!$E$42 -> 0 | CM14: =$CP14*Input!$E$42 -> 0 | CN14: =$CP14*Input!$E$42 -> 0 | CO14: =$CP14*Input!$E$42 -> 0 | CP14: =CP13+(CP13*$C$22) -> 0.3611964466 | CQ14: =CQ13+(CQ13*$C$23) -> 0 | CR14: =CR13+(CR13*$C$24) -> 0 | CS14: =IF(Input!BK$44>0,(Input!BK$44+Input!BK$54)*$AT14,0) -> 0 | CT14: =IF(Input!BL$44>0,(Input!BL$44+Input!BL$54)*$AT14,0) -> 0 | CU14: =IF(Input!BM$44>0,(Input!BM$44+Input!BM$54)*$AT14,0) -> 0 | CV14: =IF(Input!BN$44>0,(Input!BN$44+Input!BN$54)*$AT14,0) -> 0 | CW14: =IF(Input!BO$44>0,(Input!BO$44+Input!BO$54)*$AT14,0) -> 0 | CX14: =IF(Input!BP$44>0,(Input!BP$44+Input!BP$54)*$AT14,0) -> 0 | CY14: =IF(Input!BQ$44>0,(Input!BQ$44+Input!BQ$54)*$AT14,0) -> 0 | CZ14: 17.12511817 | DA14: =DA13+(DA13*$C$23) -> 0 | DB14: =DB13+(DB13*$C$24) -> 0 | DC14: =IF(Input!BU$44>0,(Input!BU$44+Input!BU$54)*$AT14,0) -> 0 | DD14: =IF(Input!BV$44>0,(Input!BV$44+Input!BV$54)*$AT14,0) -> 0 | DE14: =IF(Input!BW$44>0,(Input!BW$44+Input!BW$54)*$AT14,0) -> 0 | DF14: =IF(Input!BX$44>0,(Input!BX$44+Input!BX$54)*$AT14,0) -> 0 | DG14: =IF(Input!BY$44>0,(Input!BY$44+Input!BY$54)*$AT14,0) -> 0 | DH14: =IF(Input!BZ$44>0,(Input!BZ$44+Input!BZ$54)*$AT14,0) -> 0 | DI14: =IF(Input!CA$44>0,(Input!CA$44+Input!CA$54)*$AT14,0) -> 0 | DJ14: =DJ13+(DJ13*$C$22) -> 0 | DK14: =DK13+(DK13*$C$23) -> 0 | DL14: =DL13+(DL13*$C$24) -> 0 | DM14: 0 | DN14: =IF(Output!$H$2='Inputs & Utility Cost'!$B$41,('Inputs & Utility Cost'!$C$41*(J14+T14+AD14+AN14+AX14+BF14+BP14+BZ14+CJ14+CT14+DD14)),IF(Output!$H$2='Inputs & Utility Cost'!$B$42,('Inputs & Utility Cost'!$C$42*('Inputs & Utility Cost'!$C$41*(J14+T14+AD14+AN14+AX14+BF14+BP14+BZ14+CJ14+CT14+DD14))),(J14+T14+AD14+AN14+AX14+BF14+BP14+BZ14+CJ14+CT14+DD14))) -> 0 | DO14: =IF(Output!$H$2='Inputs & Utility Cost'!$B$41,('Inputs & Utility Cost'!$C$41*(K14+U14+AE14+AO14+AY14+BG14+BQ14+CA14+CK14+CU14+DE14)),IF(Output!$H$2='Inputs & Utility Cost'!$B$42,('Inputs & Utility Cost'!$C$42*('Inputs & Utility Cost'!$C$41*(K14+U14+AE14+AO14+AY14+BG14+BQ14+CA14+CK14+CU14+DE14))),(K14+U14+AE14+AO14+AY14+BG14+BQ14+CA14+CK14+CU14+DE14))) -> 0 | DP14: =IF(Output!$H$2='Inputs & Utility Cost'!$B$41,('Inputs & Utility Cost'!$C$41*(L14+V14+AF14+AP14+AZ14+BH14+BR14+CB14+CL14+CV14+DF14)),IF(Output!$H$2='Inputs & Utility Cost'!$B$42,('Inputs & Utility Cost'!$C$42*('Inputs & Utility Cost'!$C$41*(L14+V14+AF14+AP14+AZ14+BH14+BR14+CB14+CL14+CV14+DF14))),(L14+V14+AF14+AP14+AZ14+BH14+BR14+CB14+CL14+CV14+DF14))) -> 0 | DQ14: =IF(Output!$H$2='Inputs & Utility Cost'!$B$41,('Inputs & Utility Cost'!$C$41*(M14+W14+AG14+AQ14+BA14+BI14+BS14+CC14+CM14+CW14+DG14)),IF(Output!$H$2='Inputs & Utility Cost'!$B$42,('Inputs & Utility Cost'!$C$42*('Inputs & Utility Cost'!$C$41*(M14+W14+AG14+AQ14+BA14+BI14+BS14+CC14+CM14+CW14+DG14))),(M14+W14+AG14+AQ14+BA14+BI14+BS14+CC14+CM14+CW14+DG14))) -> 0 | DR14: =IF(Output!$H$2='Inputs & Utility Cost'!$B$41,('Inputs & Utility Cost'!$C$41*(N14+X14+AH14+AR14+BB14+BJ14+BT14+CD14+CN14+CX14+DH14)),IF(Output!$H$2='Inputs & Utility Cost'!$B$42,('Inputs & Utility Cost'!$C$42*('Inputs & Utility Cost'!$C$41*(N14+X14+AH14+AR14+BB14+BJ14+BT14+CD14+CN14+CX14+DH14))),(N14+X14+AH14+AR14+BB14+BJ14+BT14+CD14+CN14+CX14+DH14))) -> 0 | DS14: =IF(Output!$H$2='Inputs & Utility Cost'!$B$41,('Inputs & Utility Cost'!$C$41*(O14+Y14+AI14+AS14+BC14+BK14+BU14+CE14+CO14+CY14+DI14)),IF(Output!$H$2='Inputs & Utility Cost'!$B$42,('Inputs & Utility Cost'!$C$42*('Inputs & Utility Cost'!$C$41*(O14+Y14+AI14+AS14+BC14+BK14+BU14+CE14+CO14+CY14+DI14))),(O14+Y14+AI14+AS14+BC14+BK14+BU14+CE14+CO14+CY14+DI14))) -> 0 | DU14: Update Instructions: The original source of this data is Real Estate Office (Chris Allen, allenchr@umich.edu). It is anticipated that this data will be reviewed and, if necessary, updated annually.
B15: Flint Electricity: present day price ($/kWh) | C15: =0.086 -> 0.086 | H15: 2027 | I15: =$P15*Input!$E$41 -> 0 | J15: =$P15*Input!$F$41 -> 0 | K15: =$P15*Input!$G$41 -> 0 | L15: =$P15*Input!$H$41 -> 0 | M15: =$P15*Input!$I$41 -> 0 | N15: =$P15*Input!$J$41 -> 0 | O15: =$P15*Input!$K$41 -> 0 | P15: 0.3722851775 | Q15: 0 | R15: 0 | S15: =IF(Input!$E$35>0,(Input!E$35+Input!E$53)*$Z15,0) -> 0 | T15: =IF(Input!$F$35>0,(Input!F$35+Input!F$53)*$Z15,0) -> 0 | U15: =IF(Input!$G$35>0,(Input!G$35+Input!G$53)*$Z15,0) -> 0 | V15: =IF(Input!$H$35>0,(Input!H$35+Input!H$53)*$Z15,0) -> 0 | W15: =IF(Input!$I$35>0,(Input!I$35+Input!I$53)*$Z15,0) -> 0 | X15: =IF(Input!$J$35>0,(Input!J$35+Input!J$53)*$Z15,0) -> 0 | Y15: =IF(Input!$K$35>0,(Input!K$35+Input!K$53)*$Z15,0) -> 0 | Z15: 0.09134443865 | AA15: 0.094138845 | AB15: 0.09115656082 | AC15: =IF(Input!E$33>0,(Input!E$33+Input!E$53)*$AJ15,0) -> 0 | AD15: =IF(Input!F$33>0,(Input!F$33+Input!F$53)*$AJ15,0) -> 0 | AE15: =IF(Input!G$33>0,(Input!G$33+Input!G$53)*$AJ15,0) -> 0 | AF15: =IF(Input!H$33>0,(Input!H$33+Input!H$53)*$AJ15,0) -> 0 | AG15: =IF(Input!I$33>0,(Input!I$33+Input!I$53)*$AJ15,0) -> 0 | AH15: =IF(Input!J$33>0,(Input!J$33+Input!J$53)*$AJ15,0) -> 0 | AI15: =IF(Input!K$33>0,(Input!K$33+Input!K$53)*$AJ15,0) -> 0 | AJ15: 0.09134443865 | AK15: 0.094138845 | AL15: 0.09115656082 | AM15: =IF(Input!E$44>0,(Input!E$44+Input!E$54)*$AT15,0) -> 0 | AN15: =IF(Input!F$44>0,(Input!F$44+Input!F$54)*$AT15,0) -> 0 | AO15: =IF(Input!G$44>0,(Input!G$44+Input!G$54)*$AT15,0) -> 0 | AP15: =IF(Input!H$44>0,(Input!H$44+Input!H$54)*$AT15,0) -> 0 | AQ15: =IF(Input!I$44>0,(Input!I$44+Input!I$54)*$AT15,0) -> 0 | AR15: =IF(Input!J$44>0,(Input!J$44+Input!J$54)*$AT15,0) -> 0 | AS15: =IF(Input!K$44>0,(Input!K$44+Input!K$54)*$AT15,0) -> 0 | AT15: 17.12511817 | AU15: 17.60810195 | AV15: 17.03555356 | AW15: =IF(Input!E$46>0,(Input!E$46+Input!E$54)*$BD15,0) -> 0 | AX15: =IF(Input!F$46>0,(Input!F$46+Input!F$54)*$BD15,0) -> 0 | AY15: =IF(Input!G$46>0,(Input!G$46+Input!G$54)*$BD15,0) -> 0 | AZ15: =IF(Input!H$46>0,(Input!H$46+Input!H$54)*$BD15,0) -> 0 | BA15: =IF(Input!I$46>0,(Input!I$46+Input!I$54)*$BD15,0) -> 0 | BB15: =IF(Input!J$46>0,(Input!J$46+Input!J$54)*$BD15,0) -> 0 | BC15: =IF(Input!K$46>0,(Input!K$46+Input!K$54)*$BD15,0) -> 0 | BD15: 17.12511817 | BE15: =IF(Input!E$37>0,(Input!E$37+Input!E$53)*$AJ15,0) -> 0 | BF15: =IF(Input!F$37>0,(Input!F$37+Input!F$53)*$AJ15,0) -> 0 | BG15: =IF(Input!G$37>0,(Input!G$37+Input!G$53)*$AJ15,0) -> 0 | BH15: =IF(Input!H$37>0,(Input!H$37+Input!H$53)*$AJ15,0) -> 0 | BI15: =IF(Input!I$37>0,(Input!I$37+Input!I$53)*$AJ15,0) -> 0 | BJ15: =IF(Input!J$37>0,(Input!J$37+Input!J$53)*$AJ15,0) -> 0 | BK15: =IF(Input!K$37>0,(Input!K$37+Input!K$53)*$AJ15,0) -> 0 | BL15: 0.09134443865 | BM15: 0 | BN15: 0 | BO15: =IF(Input!E$39>0,(Input!E$39+Input!AQ$53)*$BV15,0) -> 0 | BP15: =IF(Input!F$39>0,(Input!F$39+Input!AR$53)*$BV15,0) -> 0 | BQ15: =IF(Input!G$39>0,(Input!G$39+Input!AS$53)*$BV15,0) -> 0 | BR15: =IF(Input!H$39>0,(Input!H$39+Input!AT$53)*$BV15,0) -> 0 | BS15: =IF(Input!I$39>0,(Input!I$39+Input!AU$53)*$BV15,0) -> 0 | BT15: =IF(Input!J$39>0,(Input!J$39+Input!AV$53)*$BV15,0) -> 0 | BU15: =IF(Input!K$39>0,(Input!K$39+Input!AW$53)*$BV15,0) -> 0 | BV15: 0.09134443865 | BW15: 0 | BX15: 0 | BY15: =$CF15*Input!$E$43 -> 0 | BZ15: =$CF15*Input!$E$43 -> 0 | CA15: =$CF15*Input!$E$43 -> 0 | CB15: =$CF15*Input!$E$43 -> 0 | CC15: =$CF15*Input!$E$43 -> 0 | CD15: =$CF15*Input!$E$43 -> 0 | CE15: =$CF15*Input!$E$43 -> 0 | CF15: 0.3722851775 | CG15: 0 | CH15: 0 | CI15: =$CP15*Input!$E$42 -> 0 | CJ15: =$CP15*Input!$E$42 -> 0 | CK15: =$CP15*Input!$E$42 -> 0 | CL15: =$CP15*Input!$E$42 -> 0 | CM15: =$CP15*Input!$E$42 -> 0 | CN15: =$CP15*Input!$E$42 -> 0 | CO15: =$CP15*Input!$E$42 -> 0 | CP15: 0.3722851775 | CQ15: 0 | CR15: 0 | CS15: =IF(Input!BK$44>0,(Input!BK$44+Input!BK$54)*$AT15,0) -> 0 | CT15: =IF(Input!BL$44>0,(Input!BL$44+Input!BL$54)*$AT15,0) -> 0 | CU15: =IF(Input!BM$44>0,(Input!BM$44+Input!BM$54)*$AT15,0) -> 0 | CV15: =IF(Input!BN$44>0,(Input!BN$44+Input!BN$54)*$AT15,0) -> 0 | CW15: =IF(Input!BO$44>0,(Input!BO$44+Input!BO$54)*$AT15,0) -> 0 | CX15: =IF(Input!BP$44>0,(Input!BP$44+Input!BP$54)*$AT15,0) -> 0 | CY15: =IF(Input!BQ$44>0,(Input!BQ$44+Input!BQ$54)*$AT15,0) -> 0 | CZ15: 17.65085929 | DA15: 0 | DB15: 0 | DC15: =IF(Input!BU$44>0,(Input!BU$44+Input!BU$54)*$AT15,0) -> 0 | DD15: =IF(Input!BV$44>0,(Input!BV$44+Input!BV$54)*$AT15,0) -> 0 | DE15: =IF(Input!BW$44>0,(Input!BW$44+Input!BW$54)*$AT15,0) -> 0 | DF15: =IF(Input!BX$44>0,(Input!BX$44+Input!BX$54)*$AT15,0) -> 0 | DG15: =IF(Input!BY$44>0,(Input!BY$44+Input!BY$54)*$AT15,0) -> 0 | DH15: =IF(Input!BZ$44>0,(Input!BZ$44+Input!BZ$54)*$AT15,0) -> 0 | DI15: =IF(Input!CA$44>0,(Input!CA$44+Input!CA$54)*$AT15,0) -> 0 | DJ15: 0 | DK15: 0 | DL15: 0 | DM15: 0 | DN15: =IF(Output!$H$2='Inputs & Utility Cost'!$B$41,('Inputs & Utility Cost'!$C$41*(J15+T15+AD15+AN15+AX15+BF15+BP15+BZ15+CJ15+CT15+DD15)),IF(Output!$H$2='Inputs & Utility Cost'!$B$42,('Inputs & Utility Cost'!$C$42*('Inputs & Utility Cost'!$C$41*(J15+T15+AD15+AN15+AX15+BF15+BP15+BZ15+CJ15+CT15+DD15))),(J15+T15+AD15+AN15+AX15+BF15+BP15+BZ15+CJ15+CT15+DD15))) -> 0 | DO15: =IF(Output!$H$2='Inputs & Utility Cost'!$B$41,('Inputs & Utility Cost'!$C$41*(K15+U15+AE15+AO15+AY15+BG15+BQ15+CA15+CK15+CU15+DE15)),IF(Output!$H$2='Inputs & Utility Cost'!$B$42,('Inputs & Utility Cost'!$C$42*('Inputs & Utility Cost'!$C$41*(K15+U15+AE15+AO15+AY15+BG15+BQ15+CA15+CK15+CU15+DE15))),(K15+U15+AE15+AO15+AY15+BG15+BQ15+CA15+CK15+CU15+DE15))) -> 0 | DP15: =IF(Output!$H$2='Inputs & Utility Cost'!$B$41,('Inputs & Utility Cost'!$C$41*(L15+V15+AF15+AP15+AZ15+BH15+BR15+CB15+CL15+CV15+DF15)),IF(Output!$H$2='Inputs & Utility Cost'!$B$42,('Inputs & Utility Cost'!$C$42*('Inputs & Utility Cost'!$C$41*(L15+V15+AF15+AP15+AZ15+BH15+BR15+CB15+CL15+CV15+DF15))),(L15+V15+AF15+AP15+AZ15+BH15+BR15+CB15+CL15+CV15+DF15))) -> 0 | DQ15: =IF(Output!$H$2='Inputs & Utility Cost'!$B$41,('Inputs & Utility Cost'!$C$41*(M15+W15+AG15+AQ15+BA15+BI15+BS15+CC15+CM15+CW15+DG15)),IF(Output!$H$2='Inputs & Utility Cost'!$B$42,('Inputs & Utility Cost'!$C$42*('Inputs & Utility Cost'!$C$41*(M15+W15+AG15+AQ15+BA15+BI15+BS15+CC15+CM15+CW15+DG15))),(M15+W15+AG15+AQ15+BA15+BI15+BS15+CC15+CM15+CW15+DG15))) -> 0 | DR15: =IF(Output!$H$2='Inputs & Utility Cost'!$B$41,('Inputs & Utility Cost'!$C$41*(N15+X15+AH15+AR15+BB15+BJ15+BT15+CD15+CN15+CX15+DH15)),IF(Output!$H$2='Inputs & Utility Cost'!$B$42,('Inputs & Utility Cost'!$C$42*('Inputs & Utility Cost'!$C$41*(N15+X15+AH15+AR15+BB15+BJ15+BT15+CD15+CN15+CX15+DH15))),(N15+X15+AH15+AR15+BB15+BJ15+BT15+CD15+CN15+CX15+DH15))) -> 0 | DS15: =IF(Output!$H$2='Inputs & Utility Cost'!$B$41,('Inputs & Utility Cost'!$C$41*(O15+Y15+AI15+AS15+BC15+BK15+BU15+CE15+CO15+CY15+DI15)),IF(Output!$H$2='Inputs & Utility Cost'!$B$42,('Inputs & Utility Cost'!$C$42*('Inputs & Utility Cost'!$C$41*(O15+Y15+AI15+AS15+BC15+BK15+BU15+CE15+CO15+CY15+DI15))),(O15+Y15+AI15+AS15+BC15+BK15+BU15+CE15+CO15+CY15+DI15))) -> 0
B16: Electricity: assumed annual price escalation - base scenario | C16: 0.0203 | F16: via US DOE Energy Information Administration (EIA) 2020 AEO: base case forecast ('20-'49) for commercial sector electric prices (all-in, incl generation and utility charges) | H16: 2028 | I16: =$P16*Input!$E$41 -> 0 | J16: =$P16*Input!$F$41 -> 0 | K16: =$P16*Input!$G$41 -> 0 | L16: =$P16*Input!$H$41 -> 0 | M16: =$P16*Input!$I$41 -> 0 | N16: =$P16*Input!$J$41 -> 0 | O16: =$P16*Input!$K$41 -> 0 | P16: 0.3837143325 | Q16: 0 | R16: 0 | S16: =IF(Input!$E$35>0,(Input!E$35+Input!E$53)*$Z16,0) -> 0 | T16: =IF(Input!$F$35>0,(Input!F$35+Input!F$53)*$Z16,0) -> 0 | U16: =IF(Input!$G$35>0,(Input!G$35+Input!G$53)*$Z16,0) -> 0 | V16: =IF(Input!$H$35>0,(Input!H$35+Input!H$53)*$Z16,0) -> 0 | W16: =IF(Input!$I$35>0,(Input!I$35+Input!I$53)*$Z16,0) -> 0 | X16: =IF(Input!$J$35>0,(Input!J$35+Input!J$53)*$Z16,0) -> 0 | Y16: =IF(Input!$K$35>0,(Input!K$35+Input!K$53)*$Z16,0) -> 0 | Z16: 0.09319873075 | AA16: 0.09701949366 | AB16: 0.09294322941 | AC16: =IF(Input!E$33>0,(Input!E$33+Input!E$53)*$AJ16,0) -> 0 | AD16: =IF(Input!F$33>0,(Input!F$33+Input!F$53)*$AJ16,0) -> 0 | AE16: =IF(Input!G$33>0,(Input!G$33+Input!G$53)*$AJ16,0) -> 0 | AF16: =IF(Input!H$33>0,(Input!H$33+Input!H$53)*$AJ16,0) -> 0 | AG16: =IF(Input!I$33>0,(Input!I$33+Input!I$53)*$AJ16,0) -> 0 | AH16: =IF(Input!J$33>0,(Input!J$33+Input!J$53)*$AJ16,0) -> 0 | AI16: =IF(Input!K$33>0,(Input!K$33+Input!K$53)*$AJ16,0) -> 0 | AJ16: 0.09319873075 | AK16: 0.09701949366 | AL16: 0.09294322941 | AM16: =IF(Input!E$44>0,(Input!E$44+Input!E$54)*$AT16,0) -> 0 | AN16: =IF(Input!F$44>0,(Input!F$44+Input!F$54)*$AT16,0) -> 0 | AO16: =IF(Input!G$44>0,(Input!G$44+Input!G$54)*$AT16,0) -> 0 | AP16: =IF(Input!H$44>0,(Input!H$44+Input!H$54)*$AT16,0) -> 0 | AQ16: =IF(Input!I$44>0,(Input!I$44+Input!I$54)*$AT16,0) -> 0 | AR16: =IF(Input!J$44>0,(Input!J$44+Input!J$54)*$AT16,0) -> 0 | AS16: =IF(Input!K$44>0,(Input!K$44+Input!K$54)*$AT16,0) -> 0 | AT16: 17.65085929 | AU16: 18.31770846 | AV16: 17.52788106 | AW16: =IF(Input!E$46>0,(Input!E$46+Input!E$54)*$BD16,0) -> 0 | AX16: =IF(Input!F$46>0,(Input!F$46+Input!F$54)*$BD16,0) -> 0 | AY16: =IF(Input!G$46>0,(Input!G$46+Input!G$54)*$BD16,0) -> 0 | AZ16: =IF(Input!H$46>0,(Input!H$46+Input!H$54)*$BD16,0) -> 0 | BA16: =IF(Input!I$46>0,(Input!I$46+Input!I$54)*$BD16,0) -> 0 | BB16: =IF(Input!J$46>0,(Input!J$46+Input!J$54)*$BD16,0) -> 0 | BC16: =IF(Input!K$46>0,(Input!K$46+Input!K$54)*$BD16,0) -> 0 | BD16: 17.65085929 | BE16: =IF(Input!E$37>0,(Input!E$37+Input!E$53)*$AJ16,0) -> 0 | BF16: =IF(Input!F$37>0,(Input!F$37+Input!F$53)*$AJ16,0) -> 0 | BG16: =IF(Input!G$37>0,(Input!G$37+Input!G$53)*$AJ16,0) -> 0 | BH16: =IF(Input!H$37>0,(Input!H$37+Input!H$53)*$AJ16,0) -> 0 | BI16: =IF(Input!I$37>0,(Input!I$37+Input!I$53)*$AJ16,0) -> 0 | BJ16: =IF(Input!J$37>0,(Input!J$37+Input!J$53)*$AJ16,0) -> 0 | BK16: =IF(Input!K$37>0,(Input!K$37+Input!K$53)*$AJ16,0) -> 0 | BL16: 0.09319873075 | BM16: 0 | BN16: 0 | BO16: =IF(Input!E$39>0,(Input!E$39+Input!AQ$53)*$BV16,0) -> 0 | BP16: =IF(Input!F$39>0,(Input!F$39+Input!AR$53)*$BV16,0) -> 0 | BQ16: =IF(Input!G$39>0,(Input!G$39+Input!AS$53)*$BV16,0) -> 0 | BR16: =IF(Input!H$39>0,(Input!H$39+Input!AT$53)*$BV16,0) -> 0 | BS16: =IF(Input!I$39>0,(Input!I$39+Input!AU$53)*$BV16,0) -> 0 | BT16: =IF(Input!J$39>0,(Input!J$39+Input!AV$53)*$BV16,0) -> 0 | BU16: =IF(Input!K$39>0,(Input!K$39+Input!AW$53)*$BV16,0) -> 0 | BV16: 0.09319873075 | BW16: 0 | BX16: 0 | BY16: =$CF16*Input!$E$43 -> 0 | BZ16: =$CF16*Input!$E$43 -> 0 | CA16: =$CF16*Input!$E$43 -> 0 | CB16: =$CF16*Input!$E$43 -> 0 | CC16: =$CF16*Input!$E$43 -> 0 | CD16: =$CF16*Input!$E$43 -> 0 | CE16: =$CF16*Input!$E$43 -> 0 | CF16: 0.3837143325 | CG16: 0 | CH16: 0 | CI16: =$CP16*Input!$E$42 -> 0 | CJ16: =$CP16*Input!$E$42 -> 0 | CK16: =$CP16*Input!$E$42 -> 0 | CL16: =$CP16*Input!$E$42 -> 0 | CM16: =$CP16*Input!$E$42 -> 0 | CN16: =$CP16*Input!$E$42 -> 0 | CO16: =$CP16*Input!$E$42 -> 0 | CP16: 0.3837143325 | CQ16: 0 | CR16: 0 | CS16: =IF(Input!BK$44>0,(Input!BK$44+Input!BK$54)*$AT16,0) -> 0 | CT16: =IF(Input!BL$44>0,(Input!BL$44+Input!BL$54)*$AT16,0) -> 0 | CU16: =IF(Input!BM$44>0,(Input!BM$44+Input!BM$54)*$AT16,0) -> 0 | CV16: =IF(Input!BN$44>0,(Input!BN$44+Input!BN$54)*$AT16,0) -> 0 | CW16: =IF(Input!BO$44>0,(Input!BO$44+Input!BO$54)*$AT16,0) -> 0 | CX16: =IF(Input!BP$44>0,(Input!BP$44+Input!BP$54)*$AT16,0) -> 0 | CY16: =IF(Input!BQ$44>0,(Input!BQ$44+Input!BQ$54)*$AT16,0) -> 0 | CZ16: 18.19274067 | DA16: 0 | DB16: 0 | DC16: =IF(Input!BU$44>0,(Input!BU$44+Input!BU$54)*$AT16,0) -> 0 | DD16: =IF(Input!BV$44>0,(Input!BV$44+Input!BV$54)*$AT16,0) -> 0 | DE16: =IF(Input!BW$44>0,(Input!BW$44+Input!BW$54)*$AT16,0) -> 0 | DF16: =IF(Input!BX$44>0,(Input!BX$44+Input!BX$54)*$AT16,0) -> 0 | DG16: =IF(Input!BY$44>0,(Input!BY$44+Input!BY$54)*$AT16,0) -> 0 | DH16: =IF(Input!BZ$44>0,(Input!BZ$44+Input!BZ$54)*$AT16,0) -> 0 | DI16: =IF(Input!CA$44>0,(Input!CA$44+Input!CA$54)*$AT16,0) -> 0 | DJ16: 0 | DK16: 0 | DL16: 0 | DM16: 0 | DN16: =IF(Output!$H$2='Inputs & Utility Cost'!$B$41,('Inputs & Utility Cost'!$C$41*(J16+T16+AD16+AN16+AX16+BF16+BP16+BZ16+CJ16+CT16+DD16)),IF(Output!$H$2='Inputs & Utility Cost'!$B$42,('Inputs & Utility Cost'!$C$42*('Inputs & Utility Cost'!$C$41*(J16+T16+AD16+AN16+AX16+BF16+BP16+BZ16+CJ16+CT16+DD16))),(J16+T16+AD16+AN16+AX16+BF16+BP16+BZ16+CJ16+CT16+DD16))) -> 0 | DO16: =IF(Output!$H$2='Inputs & Utility Cost'!$B$41,('Inputs & Utility Cost'!$C$41*(K16+U16+AE16+AO16+AY16+BG16+BQ16+CA16+CK16+CU16+DE16)),IF(Output!$H$2='Inputs & Utility Cost'!$B$42,('Inputs & Utility Cost'!$C$42*('Inputs & Utility Cost'!$C$41*(K16+U16+AE16+AO16+AY16+BG16+BQ16+CA16+CK16+CU16+DE16))),(K16+U16+AE16+AO16+AY16+BG16+BQ16+CA16+CK16+CU16+DE16))) -> 0 | DP16: =IF(Output!$H$2='Inputs & Utility Cost'!$B$41,('Inputs & Utility Cost'!$C$41*(L16+V16+AF16+AP16+AZ16+BH16+BR16+CB16+CL16+CV16+DF16)),IF(Output!$H$2='Inputs & Utility Cost'!$B$42,('Inputs & Utility Cost'!$C$42*('Inputs & Utility Cost'!$C$41*(L16+V16+AF16+AP16+AZ16+BH16+BR16+CB16+CL16+CV16+DF16))),(L16+V16+AF16+AP16+AZ16+BH16+BR16+CB16+CL16+CV16+DF16))) -> 0 | DQ16: =IF(Output!$H$2='Inputs & Utility Cost'!$B$41,('Inputs & Utility Cost'!$C$41*(M16+W16+AG16+AQ16+BA16+BI16+BS16+CC16+CM16+CW16+DG16)),IF(Output!$H$2='Inputs & Utility Cost'!$B$42,('Inputs & Utility Cost'!$C$42*('Inputs & Utility Cost'!$C$41*(M16+W16+AG16+AQ16+BA16+BI16+BS16+CC16+CM16+CW16+DG16))),(M16+W16+AG16+AQ16+BA16+BI16+BS16+CC16+CM16+CW16+DG16))) -> 0 | DR16: =IF(Output!$H$2='Inputs & Utility Cost'!$B$41,('Inputs & Utility Cost'!$C$41*(N16+X16+AH16+AR16+BB16+BJ16+BT16+CD16+CN16+CX16+DH16)),IF(Output!$H$2='Inputs & Utility Cost'!$B$42,('Inputs & Utility Cost'!$C$42*('Inputs & Utility Cost'!$C$41*(N16+X16+AH16+AR16+BB16+BJ16+BT16+CD16+CN16+CX16+DH16))),(N16+X16+AH16+AR16+BB16+BJ16+BT16+CD16+CN16+CX16+DH16))) -> 0 | DS16: =IF(Output!$H$2='Inputs & Utility Cost'!$B$41,('Inputs & Utility Cost'!$C$41*(O16+Y16+AI16+AS16+BC16+BK16+BU16+CE16+CO16+CY16+DI16)),IF(Output!$H$2='Inputs & Utility Cost'!$B$42,('Inputs & Utility Cost'!$C$42*('Inputs & Utility Cost'!$C$41*(O16+Y16+AI16+AS16+BC16+BK16+BU16+CE16+CO16+CY16+DI16))),(O16+Y16+AI16+AS16+BC16+BK16+BU16+CE16+CO16+CY16+DI16))) -> 0
B17: Electricity: high rate escalation scenario | C17: 0.0306 | F17: EIA economic growth case, 2020-2049 | H17: 2029 | I17: =$P17*Input!$E$41 -> 0 | J17: =$P17*Input!$F$41 -> 0 | K17: =$P17*Input!$G$41 -> 0 | L17: =$P17*Input!$H$41 -> 0 | M17: =$P17*Input!$I$41 -> 0 | N17: =$P17*Input!$J$41 -> 0 | O17: =$P17*Input!$K$41 -> 0 | P17: 0.3954943625 | Q17: 0 | R17: 0 | S17: =IF(Input!$E$35>0,(Input!E$35+Input!E$53)*$Z17,0) -> 0 | T17: =IF(Input!$F$35>0,(Input!F$35+Input!F$53)*$Z17,0) -> 0 | U17: =IF(Input!$G$35>0,(Input!G$35+Input!G$53)*$Z17,0) -> 0 | V17: =IF(Input!$H$35>0,(Input!H$35+Input!H$53)*$Z17,0) -> 0 | W17: =IF(Input!$I$35>0,(Input!I$35+Input!I$53)*$Z17,0) -> 0 | X17: =IF(Input!$J$35>0,(Input!J$35+Input!J$53)*$Z17,0) -> 0 | Y17: =IF(Input!$K$35>0,(Input!K$35+Input!K$53)*$Z17,0) -> 0 | Z17: 0.09509066499 | AA17: 0.09998829017 | AB17: 0.09476491671 | AC17: =IF(Input!E$33>0,(Input!E$33+Input!E$53)*$AJ17,0) -> 0 | AD17: =IF(Input!F$33>0,(Input!F$33+Input!F$53)*$AJ17,0) -> 0 | AE17: =IF(Input!G$33>0,(Input!G$33+Input!G$53)*$AJ17,0) -> 0 | AF17: =IF(Input!H$33>0,(Input!H$33+Input!H$53)*$AJ17,0) -> 0 | AG17: =IF(Input!I$33>0,(Input!I$33+Input!I$53)*$AJ17,0) -> 0 | AH17: =IF(Input!J$33>0,(Input!J$33+Input!J$53)*$AJ17,0) -> 0 | AI17: =IF(Input!K$33>0,(Input!K$33+Input!K$53)*$AJ17,0) -> 0 | AJ17: 0.09509066499 | AK17: 0.09998829017 | AL17: 0.09476491671 | AM17: =IF(Input!E$44>0,(Input!E$44+Input!E$54)*$AT17,0) -> 0 | AN17: =IF(Input!F$44>0,(Input!F$44+Input!F$54)*$AT17,0) -> 0 | AO17: =IF(Input!G$44>0,(Input!G$44+Input!G$54)*$AT17,0) -> 0 | AP17: =IF(Input!H$44>0,(Input!H$44+Input!H$54)*$AT17,0) -> 0 | AQ17: =IF(Input!I$44>0,(Input!I$44+Input!I$54)*$AT17,0) -> 0 | AR17: =IF(Input!J$44>0,(Input!J$44+Input!J$54)*$AT17,0) -> 0 | AS17: =IF(Input!K$44>0,(Input!K$44+Input!K$54)*$AT17,0) -> 0 | AT17: 18.19274067 | AU17: 19.05591211 | AV17: 18.03443683 | AW17: =IF(Input!E$46>0,(Input!E$46+Input!E$54)*$BD17,0) -> 0 | AX17: =IF(Input!F$46>0,(Input!F$46+Input!F$54)*$BD17,0) -> 0 | AY17: =IF(Input!G$46>0,(Input!G$46+Input!G$54)*$BD17,0) -> 0 | AZ17: =IF(Input!H$46>0,(Input!H$46+Input!H$54)*$BD17,0) -> 0 | BA17: =IF(Input!I$46>0,(Input!I$46+Input!I$54)*$BD17,0) -> 0 | BB17: =IF(Input!J$46>0,(Input!J$46+Input!J$54)*$BD17,0) -> 0 | BC17: =IF(Input!K$46>0,(Input!K$46+Input!K$54)*$BD17,0) -> 0 | BD17: 18.19274067 | BE17: =IF(Input!E$37>0,(Input!E$37+Input!E$53)*$AJ17,0) -> 0 | BF17: =IF(Input!F$37>0,(Input!F$37+Input!F$53)*$AJ17,0) -> 0 | BG17: =IF(Input!G$37>0,(Input!G$37+Input!G$53)*$AJ17,0) -> 0 | BH17: =IF(Input!H$37>0,(Input!H$37+Input!H$53)*$AJ17,0) -> 0 | BI17: =IF(Input!I$37>0,(Input!I$37+Input!I$53)*$AJ17,0) -> 0 | BJ17: =IF(Input!J$37>0,(Input!J$37+Input!J$53)*$AJ17,0) -> 0 | BK17: =IF(Input!K$37>0,(Input!K$37+Input!K$53)*$AJ17,0) -> 0 | BL17: 0.09509066499 | BM17: 0 | BN17: 0 | BO17: =IF(Input!E$39>0,(Input!E$39+Input!AQ$53)*$BV17,0) -> 0 | BP17: =IF(Input!F$39>0,(Input!F$39+Input!AR$53)*$BV17,0) -> 0 | BQ17: =IF(Input!G$39>0,(Input!G$39+Input!AS$53)*$BV17,0) -> 0 | BR17: =IF(Input!H$39>0,(Input!H$39+Input!AT$53)*$BV17,0) -> 0 | BS17: =IF(Input!I$39>0,(Input!I$39+Input!AU$53)*$BV17,0) -> 0 | BT17: =IF(Input!J$39>0,(Input!J$39+Input!AV$53)*$BV17,0) -> 0 | BU17: =IF(Input!K$39>0,(Input!K$39+Input!AW$53)*$BV17,0) -> 0 | BV17: 0.09509066499 | BW17: 0 | BX17: 0 | BY17: =$CF17*Input!$E$43 -> 0 | BZ17: =$CF17*Input!$E$43 -> 0 | CA17: =$CF17*Input!$E$43 -> 0 | CB17: =$CF17*Input!$E$43 -> 0 | CC17: =$CF17*Input!$E$43 -> 0 | CD17: =$CF17*Input!$E$43 -> 0 | CE17: =$CF17*Input!$E$43 -> 0 | CF17: 0.3954943625 | CG17: 0 | CH17: 0 | CI17: =$CP17*Input!$E$42 -> 0 | CJ17: =$CP17*Input!$E$42 -> 0 | CK17: =$CP17*Input!$E$42 -> 0 | CL17: =$CP17*Input!$E$42 -> 0 | CM17: =$CP17*Input!$E$42 -> 0 | CN17: =$CP17*Input!$E$42 -> 0 | CO17: =$CP17*Input!$E$42 -> 0 | CP17: 0.3954943625 | CQ17: 0 | CR17: 0 | CS17: =IF(Input!BK$44>0,(Input!BK$44+Input!BK$54)*$AT17,0) -> 0 | CT17: =IF(Input!BL$44>0,(Input!BL$44+Input!BL$54)*$AT17,0) -> 0 | CU17: =IF(Input!BM$44>0,(Input!BM$44+Input!BM$54)*$AT17,0) -> 0 | CV17: =IF(Input!BN$44>0,(Input!BN$44+Input!BN$54)*$AT17,0) -> 0 | CW17: =IF(Input!BO$44>0,(Input!BO$44+Input!BO$54)*$AT17,0) -> 0 | CX17: =IF(Input!BP$44>0,(Input!BP$44+Input!BP$54)*$AT17,0) -> 0 | CY17: =IF(Input!BQ$44>0,(Input!BQ$44+Input!BQ$54)*$AT17,0) -> 0 | CZ17: 18.75125781 | DA17: 0 | DB17: 0 | DC17: =IF(Input!BU$44>0,(Input!BU$44+Input!BU$54)*$AT17,0) -> 0 | DD17: =IF(Input!BV$44>0,(Input!BV$44+Input!BV$54)*$AT17,0) -> 0 | DE17: =IF(Input!BW$44>0,(Input!BW$44+Input!BW$54)*$AT17,0) -> 0 | DF17: =IF(Input!BX$44>0,(Input!BX$44+Input!BX$54)*$AT17,0) -> 0 | DG17: =IF(Input!BY$44>0,(Input!BY$44+Input!BY$54)*$AT17,0) -> 0 | DH17: =IF(Input!BZ$44>0,(Input!BZ$44+Input!BZ$54)*$AT17,0) -> 0 | DI17: =IF(Input!CA$44>0,(Input!CA$44+Input!CA$54)*$AT17,0) -> 0 | DJ17: 0 | DK17: 0 | DL17: 0 | DM17: 0 | DN17: =IF(Output!$H$2='Inputs & Utility Cost'!$B$41,('Inputs & Utility Cost'!$C$41*(J17+T17+AD17+AN17+AX17+BF17+BP17+BZ17+CJ17+CT17+DD17)),IF(Output!$H$2='Inputs & Utility Cost'!$B$42,('Inputs & Utility Cost'!$C$42*('Inputs & Utility Cost'!$C$41*(J17+T17+AD17+AN17+AX17+BF17+BP17+BZ17+CJ17+CT17+DD17))),(J17+T17+AD17+AN17+AX17+BF17+BP17+BZ17+CJ17+CT17+DD17))) -> 0 | DO17: =IF(Output!$H$2='Inputs & Utility Cost'!$B$41,('Inputs & Utility Cost'!$C$41*(K17+U17+AE17+AO17+AY17+BG17+BQ17+CA17+CK17+CU17+DE17)),IF(Output!$H$2='Inputs & Utility Cost'!$B$42,('Inputs & Utility Cost'!$C$42*('Inputs & Utility Cost'!$C$41*(K17+U17+AE17+AO17+AY17+BG17+BQ17+CA17+CK17+CU17+DE17))),(K17+U17+AE17+AO17+AY17+BG17+BQ17+CA17+CK17+CU17+DE17))) -> 0 | DP17: =IF(Output!$H$2='Inputs & Utility Cost'!$B$41,('Inputs & Utility Cost'!$C$41*(L17+V17+AF17+AP17+AZ17+BH17+BR17+CB17+CL17+CV17+DF17)),IF(Output!$H$2='Inputs & Utility Cost'!$B$42,('Inputs & Utility Cost'!$C$42*('Inputs & Utility Cost'!$C$41*(L17+V17+AF17+AP17+AZ17+BH17+BR17+CB17+CL17+CV17+DF17))),(L17+V17+AF17+AP17+AZ17+BH17+BR17+CB17+CL17+CV17+DF17))) -> 0 | DQ17: =IF(Output!$H$2='Inputs & Utility Cost'!$B$41,('Inputs & Utility Cost'!$C$41*(M17+W17+AG17+AQ17+BA17+BI17+BS17+CC17+CM17+CW17+DG17)),IF(Output!$H$2='Inputs & Utility Cost'!$B$42,('Inputs & Utility Cost'!$C$42*('Inputs & Utility Cost'!$C$41*(M17+W17+AG17+AQ17+BA17+BI17+BS17+CC17+CM17+CW17+DG17))),(M17+W17+AG17+AQ17+BA17+BI17+BS17+CC17+CM17+CW17+DG17))) -> 0 | DR17: =IF(Output!$H$2='Inputs & Utility Cost'!$B$41,('Inputs & Utility Cost'!$C$41*(N17+X17+AH17+AR17+BB17+BJ17+BT17+CD17+CN17+CX17+DH17)),IF(Output!$H$2='Inputs & Utility Cost'!$B$42,('Inputs & Utility Cost'!$C$42*('Inputs & Utility Cost'!$C$41*(N17+X17+AH17+AR17+BB17+BJ17+BT17+CD17+CN17+CX17+DH17))),(N17+X17+AH17+AR17+BB17+BJ17+BT17+CD17+CN17+CX17+DH17))) -> 0 | DS17: =IF(Output!$H$2='Inputs & Utility Cost'!$B$41,('Inputs & Utility Cost'!$C$41*(O17+Y17+AI17+AS17+BC17+BK17+BU17+CE17+CO17+CY17+DI17)),IF(Output!$H$2='Inputs & Utility Cost'!$B$42,('Inputs & Utility Cost'!$C$42*('Inputs & Utility Cost'!$C$41*(O17+Y17+AI17+AS17+BC17+BK17+BU17+CE17+CO17+CY17+DI17))),(O17+Y17+AI17+AS17+BC17+BK17+BU17+CE17+CO17+CY17+DI17))) -> 0
B18: Electricity: low rate escalation scenario | C18: 0.0196 | F18: EIA high oil and gas supply case, 2020-2049 | H18: 2030 | I18: =$P18*Input!$E$41 -> 0 | J18: =$P18*Input!$F$41 -> 0 | K18: =$P18*Input!$G$41 -> 0 | L18: =$P18*Input!$H$41 -> 0 | M18: =$P18*Input!$I$41 -> 0 | N18: =$P18*Input!$J$41 -> 0 | O18: =$P18*Input!$K$41 -> 0 | P18: 0.4076360394 | Q18: 0 | R18: 0 | S18: =IF(Input!$E$35>0,(Input!E$35+Input!E$53)*$Z18,0) -> 0 | T18: =IF(Input!$F$35>0,(Input!F$35+Input!F$53)*$Z18,0) -> 0 | U18: =IF(Input!$G$35>0,(Input!G$35+Input!G$53)*$Z18,0) -> 0 | V18: =IF(Input!$H$35>0,(Input!H$35+Input!H$53)*$Z18,0) -> 0 | W18: =IF(Input!$I$35>0,(Input!I$35+Input!I$53)*$Z18,0) -> 0 | X18: =IF(Input!$J$35>0,(Input!J$35+Input!J$53)*$Z18,0) -> 0 | Y18: =IF(Input!$K$35>0,(Input!K$35+Input!K$53)*$Z18,0) -> 0 | Z18: 0.09702100548 | AA18: 0.1030479318 | AB18: 0.09662230908 | AC18: =IF(Input!E$33>0,(Input!E$33+Input!E$53)*$AJ18,0) -> 0 | AD18: =IF(Input!F$33>0,(Input!F$33+Input!F$53)*$AJ18,0) -> 0 | AE18: =IF(Input!G$33>0,(Input!G$33+Input!G$53)*$AJ18,0) -> 0 | AF18: =IF(Input!H$33>0,(Input!H$33+Input!H$53)*$AJ18,0) -> 0 | AG18: =IF(Input!I$33>0,(Input!I$33+Input!I$53)*$AJ18,0) -> 0 | AH18: =IF(Input!J$33>0,(Input!J$33+Input!J$53)*$AJ18,0) -> 0 | AI18: =IF(Input!K$33>0,(Input!K$33+Input!K$53)*$AJ18,0) -> 0 | AJ18: 0.09702100548 | AK18: 0.1030479318 | AL18: 0.09662230908 | AM18: =IF(Input!E$44>0,(Input!E$44+Input!E$54)*$AT18,0) -> 0 | AN18: =IF(Input!F$44>0,(Input!F$44+Input!F$54)*$AT18,0) -> 0 | AO18: =IF(Input!G$44>0,(Input!G$44+Input!G$54)*$AT18,0) -> 0 | AP18: =IF(Input!H$44>0,(Input!H$44+Input!H$54)*$AT18,0) -> 0 | AQ18: =IF(Input!I$44>0,(Input!I$44+Input!I$54)*$AT18,0) -> 0 | AR18: =IF(Input!J$44>0,(Input!J$44+Input!J$54)*$AT18,0) -> 0 | AS18: =IF(Input!K$44>0,(Input!K$44+Input!K$54)*$AT18,0) -> 0 | AT18: 18.75125781 | AU18: 19.82386537 | AV18: 18.55563205 | AW18: =IF(Input!E$46>0,(Input!E$46+Input!E$54)*$BD18,0) -> 0 | AX18: =IF(Input!F$46>0,(Input!F$46+Input!F$54)*$BD18,0) -> 0 | AY18: =IF(Input!G$46>0,(Input!G$46+Input!G$54)*$BD18,0) -> 0 | AZ18: =IF(Input!H$46>0,(Input!H$46+Input!H$54)*$BD18,0) -> 0 | BA18: =IF(Input!I$46>0,(Input!I$46+Input!I$54)*$BD18,0) -> 0 | BB18: =IF(Input!J$46>0,(Input!J$46+Input!J$54)*$BD18,0) -> 0 | BC18: =IF(Input!K$46>0,(Input!K$46+Input!K$54)*$BD18,0) -> 0 | BD18: 18.75125781 | BE18: =IF(Input!E$37>0,(Input!E$37+Input!E$53)*$AJ18,0) -> 0 | BF18: =IF(Input!F$37>0,(Input!F$37+Input!F$53)*$AJ18,0) -> 0 | BG18: =IF(Input!G$37>0,(Input!G$37+Input!G$53)*$AJ18,0) -> 0 | BH18: =IF(Input!H$37>0,(Input!H$37+Input!H$53)*$AJ18,0) -> 0 | BI18: =IF(Input!I$37>0,(Input!I$37+Input!I$53)*$AJ18,0) -> 0 | BJ18: =IF(Input!J$37>0,(Input!J$37+Input!J$53)*$AJ18,0) -> 0 | BK18: =IF(Input!K$37>0,(Input!K$37+Input!K$53)*$AJ18,0) -> 0 | BL18: 0.09702100548 | BM18: 0 | BN18: 0 | BO18: =IF(Input!E$39>0,(Input!E$39+Input!AQ$53)*$BV18,0) -> 0 | BP18: =IF(Input!F$39>0,(Input!F$39+Input!AR$53)*$BV18,0) -> 0 | BQ18: =IF(Input!G$39>0,(Input!G$39+Input!AS$53)*$BV18,0) -> 0 | BR18: =IF(Input!H$39>0,(Input!H$39+Input!AT$53)*$BV18,0) -> 0 | BS18: =IF(Input!I$39>0,(Input!I$39+Input!AU$53)*$BV18,0) -> 0 | BT18: =IF(Input!J$39>0,(Input!J$39+Input!AV$53)*$BV18,0) -> 0 | BU18: =IF(Input!K$39>0,(Input!K$39+Input!AW$53)*$BV18,0) -> 0 | BV18: 0.09702100548 | BW18: 0 | BX18: 0 | BY18: =$CF18*Input!$E$43 -> 0 | BZ18: =$CF18*Input!$E$43 -> 0 | CA18: =$CF18*Input!$E$43 -> 0 | CB18: =$CF18*Input!$E$43 -> 0 | CC18: =$CF18*Input!$E$43 -> 0 | CD18: =$CF18*Input!$E$43 -> 0 | CE18: =$CF18*Input!$E$43 -> 0 | CF18: 0.4076360394 | CG18: 0 | CH18: 0 | CI18: =$CP18*Input!$E$42 -> 0 | CJ18: =$CP18*Input!$E$42 -> 0 | CK18: =$CP18*Input!$E$42 -> 0 | CL18: =$CP18*Input!$E$42 -> 0 | CM18: =$CP18*Input!$E$42 -> 0 | CN18: =$CP18*Input!$E$42 -> 0 | CO18: =$CP18*Input!$E$42 -> 0 | CP18: 0.4076360394 | CQ18: 0 | CR18: 0 | CS18: =IF(Input!BK$44>0,(Input!BK$44+Input!BK$54)*$AT18,0) -> 0 | CT18: =IF(Input!BL$44>0,(Input!BL$44+Input!BL$54)*$AT18,0) -> 0 | CU18: =IF(Input!BM$44>0,(Input!BM$44+Input!BM$54)*$AT18,0) -> 0 | CV18: =IF(Input!BN$44>0,(Input!BN$44+Input!BN$54)*$AT18,0) -> 0 | CW18: =IF(Input!BO$44>0,(Input!BO$44+Input!BO$54)*$AT18,0) -> 0 | CX18: =IF(Input!BP$44>0,(Input!BP$44+Input!BP$54)*$AT18,0) -> 0 | CY18: =IF(Input!BQ$44>0,(Input!BQ$44+Input!BQ$54)*$AT18,0) -> 0 | CZ18: 19.32692143 | DA18: 0 | DB18: 0 | DC18: =IF(Input!BU$44>0,(Input!BU$44+Input!BU$54)*$AT18,0) -> 0 | DD18: =IF(Input!BV$44>0,(Input!BV$44+Input!BV$54)*$AT18,0) -> 0 | DE18: =IF(Input!BW$44>0,(Input!BW$44+Input!BW$54)*$AT18,0) -> 0 | DF18: =IF(Input!BX$44>0,(Input!BX$44+Input!BX$54)*$AT18,0) -> 0 | DG18: =IF(Input!BY$44>0,(Input!BY$44+Input!BY$54)*$AT18,0) -> 0 | DH18: =IF(Input!BZ$44>0,(Input!BZ$44+Input!BZ$54)*$AT18,0) -> 0 | DI18: =IF(Input!CA$44>0,(Input!CA$44+Input!CA$54)*$AT18,0) -> 0 | DJ18: 0 | DK18: 0 | DL18: 0 | DM18: 0 | DN18: =IF(Output!$H$2='Inputs & Utility Cost'!$B$41,('Inputs & Utility Cost'!$C$41*(J18+T18+AD18+AN18+AX18+BF18+BP18+BZ18+CJ18+CT18+DD18)),IF(Output!$H$2='Inputs & Utility Cost'!$B$42,('Inputs & Utility Cost'!$C$42*('Inputs & Utility Cost'!$C$41*(J18+T18+AD18+AN18+AX18+BF18+BP18+BZ18+CJ18+CT18+DD18))),(J18+T18+AD18+AN18+AX18+BF18+BP18+BZ18+CJ18+CT18+DD18))) -> 0 | DO18: =IF(Output!$H$2='Inputs & Utility Cost'!$B$41,('Inputs & Utility Cost'!$C$41*(K18+U18+AE18+AO18+AY18+BG18+BQ18+CA18+CK18+CU18+DE18)),IF(Output!$H$2='Inputs & Utility Cost'!$B$42,('Inputs & Utility Cost'!$C$42*('Inputs & Utility Cost'!$C$41*(K18+U18+AE18+AO18+AY18+BG18+BQ18+CA18+CK18+CU18+DE18))),(K18+U18+AE18+AO18+AY18+BG18+BQ18+CA18+CK18+CU18+DE18))) -> 0 | DP18: =IF(Output!$H$2='Inputs & Utility Cost'!$B$41,('Inputs & Utility Cost'!$C$41*(L18+V18+AF18+AP18+AZ18+BH18+BR18+CB18+CL18+CV18+DF18)),IF(Output!$H$2='Inputs & Utility Cost'!$B$42,('Inputs & Utility Cost'!$C$42*('Inputs & Utility Cost'!$C$41*(L18+V18+AF18+AP18+AZ18+BH18+BR18+CB18+CL18+CV18+DF18))),(L18+V18+AF18+AP18+AZ18+BH18+BR18+CB18+CL18+CV18+DF18))) -> 0 | DQ18: =IF(Output!$H$2='Inputs & Utility Cost'!$B$41,('Inputs & Utility Cost'!$C$41*(M18+W18+AG18+AQ18+BA18+BI18+BS18+CC18+CM18+CW18+DG18)),IF(Output!$H$2='Inputs & Utility Cost'!$B$42,('Inputs & Utility Cost'!$C$42*('Inputs & Utility Cost'!$C$41*(M18+W18+AG18+AQ18+BA18+BI18+BS18+CC18+CM18+CW18+DG18))),(M18+W18+AG18+AQ18+BA18+BI18+BS18+CC18+CM18+CW18+DG18))) -> 0 | DR18: =IF(Output!$H$2='Inputs & Utility Cost'!$B$41,('Inputs & Utility Cost'!$C$41*(N18+X18+AH18+AR18+BB18+BJ18+BT18+CD18+CN18+CX18+DH18)),IF(Output!$H$2='Inputs & Utility Cost'!$B$42,('Inputs & Utility Cost'!$C$42*('Inputs & Utility Cost'!$C$41*(N18+X18+AH18+AR18+BB18+BJ18+BT18+CD18+CN18+CX18+DH18))),(N18+X18+AH18+AR18+BB18+BJ18+BT18+CD18+CN18+CX18+DH18))) -> 0 | DS18: =IF(Output!$H$2='Inputs & Utility Cost'!$B$41,('Inputs & Utility Cost'!$C$41*(O18+Y18+AI18+AS18+BC18+BK18+BU18+CE18+CO18+CY18+DI18)),IF(Output!$H$2='Inputs & Utility Cost'!$B$42,('Inputs & Utility Cost'!$C$42*('Inputs & Utility Cost'!$C$41*(O18+Y18+AI18+AS18+BC18+BK18+BU18+CE18+CO18+CY18+DI18))),(O18+Y18+AI18+AS18+BC18+BK18+BU18+CE18+CO18+CY18+DI18))) -> 0
B19: Natural gas: present day price ($/CCF) | C19: 0.34 | F19: From U-M | H19: 2031 | I19: =$P19*Input!$E$41 -> 0 | J19: =$P19*Input!$F$41 -> 0 | K19: =$P19*Input!$G$41 -> 0 | L19: =$P19*Input!$H$41 -> 0 | M19: =$P19*Input!$I$41 -> 0 | N19: =$P19*Input!$J$41 -> 0 | O19: =$P19*Input!$K$41 -> 0 | P19: 0.4201504658 | Q19: 0 | R19: 0 | S19: =IF(Input!$E$35>0,(Input!E$35+Input!E$53)*$Z19,0) -> 0 | T19: =IF(Input!$F$35>0,(Input!F$35+Input!F$53)*$Z19,0) -> 0 | U19: =IF(Input!$G$35>0,(Input!G$35+Input!G$53)*$Z19,0) -> 0 | V19: =IF(Input!$H$35>0,(Input!H$35+Input!H$53)*$Z19,0) -> 0 | W19: =IF(Input!$I$35>0,(Input!I$35+Input!I$53)*$Z19,0) -> 0 | X19: =IF(Input!$J$35>0,(Input!J$35+Input!J$53)*$Z19,0) -> 0 | Y19: =IF(Input!$K$35>0,(Input!K$35+Input!K$53)*$Z19,0) -> 0 | Z19: =Z18+(Z18*$C$16) -> 0.0989905319 | AA19: 0.1062011986 | AB19: 0.09851610633 | AC19: =IF(Input!E$33>0,(Input!E$33+Input!E$53)*$AJ19,0) -> 0 | AD19: =IF(Input!F$33>0,(Input!F$33+Input!F$53)*$AJ19,0) -> 0 | AE19: =IF(Input!G$33>0,(Input!G$33+Input!G$53)*$AJ19,0) -> 0 | AF19: =IF(Input!H$33>0,(Input!H$33+Input!H$53)*$AJ19,0) -> 0 | AG19: =IF(Input!I$33>0,(Input!I$33+Input!I$53)*$AJ19,0) -> 0 | AH19: =IF(Input!J$33>0,(Input!J$33+Input!J$53)*$AJ19,0) -> 0 | AI19: =IF(Input!K$33>0,(Input!K$33+Input!K$53)*$AJ19,0) -> 0 | AJ19: =AJ18+(AJ18*$C$16) -> 0.0989905319 | AK19: 0.1062011986 | AL19: 0.09851610633 | AM19: =IF(Input!E$44>0,(Input!E$44+Input!E$54)*$AT19,0) -> 0 | AN19: =IF(Input!F$44>0,(Input!F$44+Input!F$54)*$AT19,0) -> 0 | AO19: =IF(Input!G$44>0,(Input!G$44+Input!G$54)*$AT19,0) -> 0 | AP19: =IF(Input!H$44>0,(Input!H$44+Input!H$54)*$AT19,0) -> 0 | AQ19: =IF(Input!I$44>0,(Input!I$44+Input!I$54)*$AT19,0) -> 0 | AR19: =IF(Input!J$44>0,(Input!J$44+Input!J$54)*$AT19,0) -> 0 | AS19: =IF(Input!K$44>0,(Input!K$44+Input!K$54)*$AT19,0) -> 0 | AT19: 19.32692143 | AU19: 20.62276715 | AV19: 19.09188982 | AW19: =IF(Input!E$46>0,(Input!E$46+Input!E$54)*$BD19,0) -> 0 | AX19: =IF(Input!F$46>0,(Input!F$46+Input!F$54)*$BD19,0) -> 0 | AY19: =IF(Input!G$46>0,(Input!G$46+Input!G$54)*$BD19,0) -> 0 | AZ19: =IF(Input!H$46>0,(Input!H$46+Input!H$54)*$BD19,0) -> 0 | BA19: =IF(Input!I$46>0,(Input!I$46+Input!I$54)*$BD19,0) -> 0 | BB19: =IF(Input!J$46>0,(Input!J$46+Input!J$54)*$BD19,0) -> 0 | BC19: =IF(Input!K$46>0,(Input!K$46+Input!K$54)*$BD19,0) -> 0 | BD19: 19.32692143 | BE19: =IF(Input!E$37>0,(Input!E$37+Input!E$53)*$AJ19,0) -> 0 | BF19: =IF(Input!F$37>0,(Input!F$37+Input!F$53)*$AJ19,0) -> 0 | BG19: =IF(Input!G$37>0,(Input!G$37+Input!G$53)*$AJ19,0) -> 0 | BH19: =IF(Input!H$37>0,(Input!H$37+Input!H$53)*$AJ19,0) -> 0 | BI19: =IF(Input!I$37>0,(Input!I$37+Input!I$53)*$AJ19,0) -> 0 | BJ19: =IF(Input!J$37>0,(Input!J$37+Input!J$53)*$AJ19,0) -> 0 | BK19: =IF(Input!K$37>0,(Input!K$37+Input!K$53)*$AJ19,0) -> 0 | BL19: =BL18+(BL18*$C$16) -> 0.0989905319 | BM19: 0 | BN19: 0 | BO19: =IF(Input!E$39>0,(Input!E$39+Input!AQ$53)*$BV19,0) -> 0 | BP19: =IF(Input!F$39>0,(Input!F$39+Input!AR$53)*$BV19,0) -> 0 | BQ19: =IF(Input!G$39>0,(Input!G$39+Input!AS$53)*$BV19,0) -> 0 | BR19: =IF(Input!H$39>0,(Input!H$39+Input!AT$53)*$BV19,0) -> 0 | BS19: =IF(Input!I$39>0,(Input!I$39+Input!AU$53)*$BV19,0) -> 0 | BT19: =IF(Input!J$39>0,(Input!J$39+Input!AV$53)*$BV19,0) -> 0 | BU19: =IF(Input!K$39>0,(Input!K$39+Input!AW$53)*$BV19,0) -> 0 | BV19: =BV18+(BV18*$C$16) -> 0.0989905319 | BW19: 0 | BX19: 0 | BY19: =$CF19*Input!$E$43 -> 0 | BZ19: =$CF19*Input!$E$43 -> 0 | CA19: =$CF19*Input!$E$43 -> 0 | CB19: =$CF19*Input!$E$43 -> 0 | CC19: =$CF19*Input!$E$43 -> 0 | CD19: =$CF19*Input!$E$43 -> 0 | CE19: =$CF19*Input!$E$43 -> 0 | CF19: 0.4201504658 | CG19: 0 | CH19: 0 | CI19: =$CP19*Input!$E$42 -> 0 | CJ19: =$CP19*Input!$E$42 -> 0 | CK19: =$CP19*Input!$E$42 -> 0 | CL19: =$CP19*Input!$E$42 -> 0 | CM19: =$CP19*Input!$E$42 -> 0 | CN19: =$CP19*Input!$E$42 -> 0 | CO19: =$CP19*Input!$E$42 -> 0 | CP19: 0.4201504658 | CQ19: 0 | CR19: 0 | CS19: =IF(Input!BK$44>0,(Input!BK$44+Input!BK$54)*$AT19,0) -> 0 | CT19: =IF(Input!BL$44>0,(Input!BL$44+Input!BL$54)*$AT19,0) -> 0 | CU19: =IF(Input!BM$44>0,(Input!BM$44+Input!BM$54)*$AT19,0) -> 0 | CV19: =IF(Input!BN$44>0,(Input!BN$44+Input!BN$54)*$AT19,0) -> 0 | CW19: =IF(Input!BO$44>0,(Input!BO$44+Input!BO$54)*$AT19,0) -> 0 | CX19: =IF(Input!BP$44>0,(Input!BP$44+Input!BP$54)*$AT19,0) -> 0 | CY19: =IF(Input!BQ$44>0,(Input!BQ$44+Input!BQ$54)*$AT19,0) -> 0 | CZ19: 19.92025791 | DA19: 0 | DB19: 0 | DC19: =IF(Input!BU$44>0,(Input!BU$44+Input!BU$54)*$AT19,0) -> 0 | DD19: =IF(Input!BV$44>0,(Input!BV$44+Input!BV$54)*$AT19,0) -> 0 | DE19: =IF(Input!BW$44>0,(Input!BW$44+Input!BW$54)*$AT19,0) -> 0 | DF19: =IF(Input!BX$44>0,(Input!BX$44+Input!BX$54)*$AT19,0) -> 0 | DG19: =IF(Input!BY$44>0,(Input!BY$44+Input!BY$54)*$AT19,0) -> 0 | DH19: =IF(Input!BZ$44>0,(Input!BZ$44+Input!BZ$54)*$AT19,0) -> 0 | DI19: =IF(Input!CA$44>0,(Input!CA$44+Input!CA$54)*$AT19,0) -> 0 | DJ19: 0 | DK19: 0 | DL19: 0 | DM19: 0 | DN19: =IF(Output!$H$2='Inputs & Utility Cost'!$B$41,('Inputs & Utility Cost'!$C$41*(J19+T19+AD19+AN19+AX19+BF19+BP19+BZ19+CJ19+CT19+DD19)),IF(Output!$H$2='Inputs & Utility Cost'!$B$42,('Inputs & Utility Cost'!$C$42*('Inputs & Utility Cost'!$C$41*(J19+T19+AD19+AN19+AX19+BF19+BP19+BZ19+CJ19+CT19+DD19))),(J19+T19+AD19+AN19+AX19+BF19+BP19+BZ19+CJ19+CT19+DD19))) -> 0 | DO19: =IF(Output!$H$2='Inputs & Utility Cost'!$B$41,('Inputs & Utility Cost'!$C$41*(K19+U19+AE19+AO19+AY19+BG19+BQ19+CA19+CK19+CU19+DE19)),IF(Output!$H$2='Inputs & Utility Cost'!$B$42,('Inputs & Utility Cost'!$C$42*('Inputs & Utility Cost'!$C$41*(K19+U19+AE19+AO19+AY19+BG19+BQ19+CA19+CK19+CU19+DE19))),(K19+U19+AE19+AO19+AY19+BG19+BQ19+CA19+CK19+CU19+DE19))) -> 0 | DP19: =IF(Output!$H$2='Inputs & Utility Cost'!$B$41,('Inputs & Utility Cost'!$C$41*(L19+V19+AF19+AP19+AZ19+BH19+BR19+CB19+CL19+CV19+DF19)),IF(Output!$H$2='Inputs & Utility Cost'!$B$42,('Inputs & Utility Cost'!$C$42*('Inputs & Utility Cost'!$C$41*(L19+V19+AF19+AP19+AZ19+BH19+BR19+CB19+CL19+CV19+DF19))),(L19+V19+AF19+AP19+AZ19+BH19+BR19+CB19+CL19+CV19+DF19))) -> 0 | DQ19: =IF(Output!$H$2='Inputs & Utility Cost'!$B$41,('Inputs & Utility Cost'!$C$41*(M19+W19+AG19+AQ19+BA19+BI19+BS19+CC19+CM19+CW19+DG19)),IF(Output!$H$2='Inputs & Utility Cost'!$B$42,('Inputs & Utility Cost'!$C$42*('Inputs & Utility Cost'!$C$41*(M19+W19+AG19+AQ19+BA19+BI19+BS19+CC19+CM19+CW19+DG19))),(M19+W19+AG19+AQ19+BA19+BI19+BS19+CC19+CM19+CW19+DG19))) -> 0 | DR19: =IF(Output!$H$2='Inputs & Utility Cost'!$B$41,('Inputs & Utility Cost'!$C$41*(N19+X19+AH19+AR19+BB19+BJ19+BT19+CD19+CN19+CX19+DH19)),IF(Output!$H$2='Inputs & Utility Cost'!$B$42,('Inputs & Utility Cost'!$C$42*('Inputs & Utility Cost'!$C$41*(N19+X19+AH19+AR19+BB19+BJ19+BT19+CD19+CN19+CX19+DH19))),(N19+X19+AH19+AR19+BB19+BJ19+BT19+CD19+CN19+CX19+DH19))) -> 0 | DS19: =IF(Output!$H$2='Inputs & Utility Cost'!$B$41,('Inputs & Utility Cost'!$C$41*(O19+Y19+AI19+AS19+BC19+BK19+BU19+CE19+CO19+CY19+DI19)),IF(Output!$H$2='Inputs & Utility Cost'!$B$42,('Inputs & Utility Cost'!$C$42*('Inputs & Utility Cost'!$C$41*(O19+Y19+AI19+AS19+BC19+BK19+BU19+CE19+CO19+CY19+DI19))),(O19+Y19+AI19+AS19+BC19+BK19+BU19+CE19+CO19+CY19+DI19))) -> 0
B20: Dearborn Natural gas: present day price ($/CCF) | C20: 0.34 | H20: 2032 | I20: =$P20*Input!$E$41 -> 0 | J20: =$P20*Input!$F$41 -> 0 | K20: =$P20*Input!$G$41 -> 0 | L20: =$P20*Input!$H$41 -> 0 | M20: =$P20*Input!$I$41 -> 0 | N20: =$P20*Input!$J$41 -> 0 | O20: =$P20*Input!$K$41 -> 0 | P20: 0.4330490851 | Q20: 0 | R20: 0 | S20: =IF(Input!$E$35>0,(Input!E$35+Input!E$53)*$Z20,0) -> 0 | T20: =IF(Input!$F$35>0,(Input!F$35+Input!F$53)*$Z20,0) -> 0 | U20: =IF(Input!$G$35>0,(Input!G$35+Input!G$53)*$Z20,0) -> 0 | V20: =IF(Input!$H$35>0,(Input!H$35+Input!H$53)*$Z20,0) -> 0 | W20: =IF(Input!$I$35>0,(Input!I$35+Input!I$53)*$Z20,0) -> 0 | X20: =IF(Input!$J$35>0,(Input!J$35+Input!J$53)*$Z20,0) -> 0 | Y20: =IF(Input!$K$35>0,(Input!K$35+Input!K$53)*$Z20,0) -> 0 | Z20: 0.1010000397 | AA20: 0.1094509552 | AB20: 0.100447022 | AC20: =IF(Input!E$33>0,(Input!E$33+Input!E$53)*$AJ20,0) -> 0 | AD20: =IF(Input!F$33>0,(Input!F$33+Input!F$53)*$AJ20,0) -> 0 | AE20: =IF(Input!G$33>0,(Input!G$33+Input!G$53)*$AJ20,0) -> 0 | AF20: =IF(Input!H$33>0,(Input!H$33+Input!H$53)*$AJ20,0) -> 0 | AG20: =IF(Input!I$33>0,(Input!I$33+Input!I$53)*$AJ20,0) -> 0 | AH20: =IF(Input!J$33>0,(Input!J$33+Input!J$53)*$AJ20,0) -> 0 | AI20: =IF(Input!K$33>0,(Input!K$33+Input!K$53)*$AJ20,0) -> 0 | AJ20: 0.1010000397 | AK20: 0.1094509552 | AL20: 0.100447022 | AM20: =IF(Input!E$44>0,(Input!E$44+Input!E$54)*$AT20,0) -> 0 | AN20: =IF(Input!F$44>0,(Input!F$44+Input!F$54)*$AT20,0) -> 0 | AO20: =IF(Input!G$44>0,(Input!G$44+Input!G$54)*$AT20,0) -> 0 | AP20: =IF(Input!H$44>0,(Input!H$44+Input!H$54)*$AT20,0) -> 0 | AQ20: =IF(Input!I$44>0,(Input!I$44+Input!I$54)*$AT20,0) -> 0 | AR20: =IF(Input!J$44>0,(Input!J$44+Input!J$54)*$AT20,0) -> 0 | AS20: =IF(Input!K$44>0,(Input!K$44+Input!K$54)*$AT20,0) -> 0 | AT20: 19.92025791 | AU20: 21.45386466 | AV20: 19.64364543 | AW20: =IF(Input!E$46>0,(Input!E$46+Input!E$54)*$BD20,0) -> 0 | AX20: =IF(Input!F$46>0,(Input!F$46+Input!F$54)*$BD20,0) -> 0 | AY20: =IF(Input!G$46>0,(Input!G$46+Input!G$54)*$BD20,0) -> 0 | AZ20: =IF(Input!H$46>0,(Input!H$46+Input!H$54)*$BD20,0) -> 0 | BA20: =IF(Input!I$46>0,(Input!I$46+Input!I$54)*$BD20,0) -> 0 | BB20: =IF(Input!J$46>0,(Input!J$46+Input!J$54)*$BD20,0) -> 0 | BC20: =IF(Input!K$46>0,(Input!K$46+Input!K$54)*$BD20,0) -> 0 | BD20: 19.92025791 | BE20: =IF(Input!E$37>0,(Input!E$37+Input!E$53)*$AJ20,0) -> 0 | BF20: =IF(Input!F$37>0,(Input!F$37+Input!F$53)*$AJ20,0) -> 0 | BG20: =IF(Input!G$37>0,(Input!G$37+Input!G$53)*$AJ20,0) -> 0 | BH20: =IF(Input!H$37>0,(Input!H$37+Input!H$53)*$AJ20,0) -> 0 | BI20: =IF(Input!I$37>0,(Input!I$37+Input!I$53)*$AJ20,0) -> 0 | BJ20: =IF(Input!J$37>0,(Input!J$37+Input!J$53)*$AJ20,0) -> 0 | BK20: =IF(Input!K$37>0,(Input!K$37+Input!K$53)*$AJ20,0) -> 0 | BL20: 0.1010000397 | BM20: 0 | BN20: 0 | BO20: =IF(Input!E$39>0,(Input!E$39+Input!AQ$53)*$BV20,0) -> 0 | BP20: =IF(Input!F$39>0,(Input!F$39+Input!AR$53)*$BV20,0) -> 0 | BQ20: =IF(Input!G$39>0,(Input!G$39+Input!AS$53)*$BV20,0) -> 0 | BR20: =IF(Input!H$39>0,(Input!H$39+Input!AT$53)*$BV20,0) -> 0 | BS20: =IF(Input!I$39>0,(Input!I$39+Input!AU$53)*$BV20,0) -> 0 | BT20: =IF(Input!J$39>0,(Input!J$39+Input!AV$53)*$BV20,0) -> 0 | BU20: =IF(Input!K$39>0,(Input!K$39+Input!AW$53)*$BV20,0) -> 0 | BV20: 0.1010000397 | BW20: 0 | BX20: 0 | BY20: =$CF20*Input!$E$43 -> 0 | BZ20: =$CF20*Input!$E$43 -> 0 | CA20: =$CF20*Input!$E$43 -> 0 | CB20: =$CF20*Input!$E$43 -> 0 | CC20: =$CF20*Input!$E$43 -> 0 | CD20: =$CF20*Input!$E$43 -> 0 | CE20: =$CF20*Input!$E$43 -> 0 | CF20: 0.4330490851 | CG20: 0 | CH20: 0 | CI20: =$CP20*Input!$E$42 -> 0 | CJ20: =$CP20*Input!$E$42 -> 0 | CK20: =$CP20*Input!$E$42 -> 0 | CL20: =$CP20*Input!$E$42 -> 0 | CM20: =$CP20*Input!$E$42 -> 0 | CN20: =$CP20*Input!$E$42 -> 0 | CO20: =$CP20*Input!$E$42 -> 0 | CP20: 0.4330490851 | CQ20: 0 | CR20: 0 | CS20: =IF(Input!BK$44>0,(Input!BK$44+Input!BK$54)*$AT20,0) -> 0 | CT20: =IF(Input!BL$44>0,(Input!BL$44+Input!BL$54)*$AT20,0) -> 0 | CU20: =IF(Input!BM$44>0,(Input!BM$44+Input!BM$54)*$AT20,0) -> 0 | CV20: =IF(Input!BN$44>0,(Input!BN$44+Input!BN$54)*$AT20,0) -> 0 | CW20: =IF(Input!BO$44>0,(Input!BO$44+Input!BO$54)*$AT20,0) -> 0 | CX20: =IF(Input!BP$44>0,(Input!BP$44+Input!BP$54)*$AT20,0) -> 0 | CY20: =IF(Input!BQ$44>0,(Input!BQ$44+Input!BQ$54)*$AT20,0) -> 0 | CZ20: 20.53180983 | DA20: 0 | DB20: 0 | DC20: =IF(Input!BU$44>0,(Input!BU$44+Input!BU$54)*$AT20,0) -> 0 | DD20: =IF(Input!BV$44>0,(Input!BV$44+Input!BV$54)*$AT20,0) -> 0 | DE20: =IF(Input!BW$44>0,(Input!BW$44+Input!BW$54)*$AT20,0) -> 0 | DF20: =IF(Input!BX$44>0,(Input!BX$44+Input!BX$54)*$AT20,0) -> 0 | DG20: =IF(Input!BY$44>0,(Input!BY$44+Input!BY$54)*$AT20,0) -> 0 | DH20: =IF(Input!BZ$44>0,(Input!BZ$44+Input!BZ$54)*$AT20,0) -> 0 | DI20: =IF(Input!CA$44>0,(Input!CA$44+Input!CA$54)*$AT20,0) -> 0 | DJ20: 0 | DK20: 0 | DL20: 0 | DM20: 0 | DN20: =IF(Output!$H$2='Inputs & Utility Cost'!$B$41,('Inputs & Utility Cost'!$C$41*(J20+T20+AD20+AN20+AX20+BF20+BP20+BZ20+CJ20+CT20+DD20)),IF(Output!$H$2='Inputs & Utility Cost'!$B$42,('Inputs & Utility Cost'!$C$42*('Inputs & Utility Cost'!$C$41*(J20+T20+AD20+AN20+AX20+BF20+BP20+BZ20+CJ20+CT20+DD20))),(J20+T20+AD20+AN20+AX20+BF20+BP20+BZ20+CJ20+CT20+DD20))) -> 0 | DO20: =IF(Output!$H$2='Inputs & Utility Cost'!$B$41,('Inputs & Utility Cost'!$C$41*(K20+U20+AE20+AO20+AY20+BG20+BQ20+CA20+CK20+CU20+DE20)),IF(Output!$H$2='Inputs & Utility Cost'!$B$42,('Inputs & Utility Cost'!$C$42*('Inputs & Utility Cost'!$C$41*(K20+U20+AE20+AO20+AY20+BG20+BQ20+CA20+CK20+CU20+DE20))),(K20+U20+AE20+AO20+AY20+BG20+BQ20+CA20+CK20+CU20+DE20))) -> 0 | DP20: =IF(Output!$H$2='Inputs & Utility Cost'!$B$41,('Inputs & Utility Cost'!$C$41*(L20+V20+AF20+AP20+AZ20+BH20+BR20+CB20+CL20+CV20+DF20)),IF(Output!$H$2='Inputs & Utility Cost'!$B$42,('Inputs & Utility Cost'!$C$42*('Inputs & Utility Cost'!$C$41*(L20+V20+AF20+AP20+AZ20+BH20+BR20+CB20+CL20+CV20+DF20))),(L20+V20+AF20+AP20+AZ20+BH20+BR20+CB20+CL20+CV20+DF20))) -> 0 | DQ20: =IF(Output!$H$2='Inputs & Utility Cost'!$B$41,('Inputs & Utility Cost'!$C$41*(M20+W20+AG20+AQ20+BA20+BI20+BS20+CC20+CM20+CW20+DG20)),IF(Output!$H$2='Inputs & Utility Cost'!$B$42,('Inputs & Utility Cost'!$C$42*('Inputs & Utility Cost'!$C$41*(M20+W20+AG20+AQ20+BA20+BI20+BS20+CC20+CM20+CW20+DG20))),(M20+W20+AG20+AQ20+BA20+BI20+BS20+CC20+CM20+CW20+DG20))) -> 0 | DR20: =IF(Output!$H$2='Inputs & Utility Cost'!$B$41,('Inputs & Utility Cost'!$C$41*(N20+X20+AH20+AR20+BB20+BJ20+BT20+CD20+CN20+CX20+DH20)),IF(Output!$H$2='Inputs & Utility Cost'!$B$42,('Inputs & Utility Cost'!$C$42*('Inputs & Utility Cost'!$C$41*(N20+X20+AH20+AR20+BB20+BJ20+BT20+CD20+CN20+CX20+DH20))),(N20+X20+AH20+AR20+BB20+BJ20+BT20+CD20+CN20+CX20+DH20))) -> 0 | DS20: =IF(Output!$H$2='Inputs & Utility Cost'!$B$41,('Inputs & Utility Cost'!$C$41*(O20+Y20+AI20+AS20+BC20+BK20+BU20+CE20+CO20+CY20+DI20)),IF(Output!$H$2='Inputs & Utility Cost'!$B$42,('Inputs & Utility Cost'!$C$42*('Inputs & Utility Cost'!$C$41*(O20+Y20+AI20+AS20+BC20+BK20+BU20+CE20+CO20+CY20+DI20))),(O20+Y20+AI20+AS20+BC20+BK20+BU20+CE20+CO20+CY20+DI20))) -> 0
B21: Flint Natural gas: present day price ($/CCF) | C21: 0.34 | H21: 2033 | I21: =$P21*Input!$E$41 -> 0 | J21: =$P21*Input!$F$41 -> 0 | K21: =$P21*Input!$G$41 -> 0 | L21: =$P21*Input!$H$41 -> 0 | M21: =$P21*Input!$I$41 -> 0 | N21: =$P21*Input!$J$41 -> 0 | O21: =$P21*Input!$K$41 -> 0 | P21: 0.446343692 | Q21: 0 | R21: 0 | S21: =IF(Input!$E$35>0,(Input!E$35+Input!E$53)*$Z21,0) -> 0 | T21: =IF(Input!$F$35>0,(Input!F$35+Input!F$53)*$Z21,0) -> 0 | U21: =IF(Input!$G$35>0,(Input!G$35+Input!G$53)*$Z21,0) -> 0 | V21: =IF(Input!$H$35>0,(Input!H$35+Input!H$53)*$Z21,0) -> 0 | W21: =IF(Input!$I$35>0,(Input!I$35+Input!I$53)*$Z21,0) -> 0 | X21: =IF(Input!$J$35>0,(Input!J$35+Input!J$53)*$Z21,0) -> 0 | Y21: =IF(Input!$K$35>0,(Input!K$35+Input!K$53)*$Z21,0) -> 0 | Z21: 0.1030503405 | AA21: 0.1128001545 | AB21: 0.1024157836 | AC21: =IF(Input!E$33>0,(Input!E$33+Input!E$53)*$AJ21,0) -> 0 | AD21: =IF(Input!F$33>0,(Input!F$33+Input!F$53)*$AJ21,0) -> 0 | AE21: =IF(Input!G$33>0,(Input!G$33+Input!G$53)*$AJ21,0) -> 0 | AF21: =IF(Input!H$33>0,(Input!H$33+Input!H$53)*$AJ21,0) -> 0 | AG21: =IF(Input!I$33>0,(Input!I$33+Input!I$53)*$AJ21,0) -> 0 | AH21: =IF(Input!J$33>0,(Input!J$33+Input!J$53)*$AJ21,0) -> 0 | AI21: =IF(Input!K$33>0,(Input!K$33+Input!K$53)*$AJ21,0) -> 0 | AJ21: 0.1030503405 | AK21: 0.1128001545 | AL21: 0.1024157836 | AM21: =IF(Input!E$44>0,(Input!E$44+Input!E$54)*$AT21,0) -> 0 | AN21: =IF(Input!F$44>0,(Input!F$44+Input!F$54)*$AT21,0) -> 0 | AO21: =IF(Input!G$44>0,(Input!G$44+Input!G$54)*$AT21,0) -> 0 | AP21: =IF(Input!H$44>0,(Input!H$44+Input!H$54)*$AT21,0) -> 0 | AQ21: =IF(Input!I$44>0,(Input!I$44+Input!I$54)*$AT21,0) -> 0 | AR21: =IF(Input!J$44>0,(Input!J$44+Input!J$54)*$AT21,0) -> 0 | AS21: =IF(Input!K$44>0,(Input!K$44+Input!K$54)*$AT21,0) -> 0 | AT21: 20.53180983 | AU21: 22.31845541 | AV21: 20.21134678 | AW21: =IF(Input!E$46>0,(Input!E$46+Input!E$54)*$BD21,0) -> 0 | AX21: =IF(Input!F$46>0,(Input!F$46+Input!F$54)*$BD21,0) -> 0 | AY21: =IF(Input!G$46>0,(Input!G$46+Input!G$54)*$BD21,0) -> 0 | AZ21: =IF(Input!H$46>0,(Input!H$46+Input!H$54)*$BD21,0) -> 0 | BA21: =IF(Input!I$46>0,(Input!I$46+Input!I$54)*$BD21,0) -> 0 | BB21: =IF(Input!J$46>0,(Input!J$46+Input!J$54)*$BD21,0) -> 0 | BC21: =IF(Input!K$46>0,(Input!K$46+Input!K$54)*$BD21,0) -> 0 | BD21: 20.53180983 | BE21: =IF(Input!E$37>0,(Input!E$37+Input!E$53)*$AJ21,0) -> 0 | BF21: =IF(Input!F$37>0,(Input!F$37+Input!F$53)*$AJ21,0) -> 0 | BG21: =IF(Input!G$37>0,(Input!G$37+Input!G$53)*$AJ21,0) -> 0 | BH21: =IF(Input!H$37>0,(Input!H$37+Input!H$53)*$AJ21,0) -> 0 | BI21: =IF(Input!I$37>0,(Input!I$37+Input!I$53)*$AJ21,0) -> 0 | BJ21: =IF(Input!J$37>0,(Input!J$37+Input!J$53)*$AJ21,0) -> 0 | BK21: =IF(Input!K$37>0,(Input!K$37+Input!K$53)*$AJ21,0) -> 0 | BL21: 0.1030503405 | BM21: 0 | BN21: 0 | BO21: =IF(Input!E$39>0,(Input!E$39+Input!AQ$53)*$BV21,0) -> 0 | BP21: =IF(Input!F$39>0,(Input!F$39+Input!AR$53)*$BV21,0) -> 0 | BQ21: =IF(Input!G$39>0,(Input!G$39+Input!AS$53)*$BV21,0) -> 0 | BR21: =IF(Input!H$39>0,(Input!H$39+Input!AT$53)*$BV21,0) -> 0 | BS21: =IF(Input!I$39>0,(Input!I$39+Input!AU$53)*$BV21,0) -> 0 | BT21: =IF(Input!J$39>0,(Input!J$39+Input!AV$53)*$BV21,0) -> 0 | BU21: =IF(Input!K$39>0,(Input!K$39+Input!AW$53)*$BV21,0) -> 0 | BV21: 0.1030503405 | BW21: 0 | BX21: 0 | BY21: =$CF21*Input!$E$43 -> 0 | BZ21: =$CF21*Input!$E$43 -> 0 | CA21: =$CF21*Input!$E$43 -> 0 | CB21: =$CF21*Input!$E$43 -> 0 | CC21: =$CF21*Input!$E$43 -> 0 | CD21: =$CF21*Input!$E$43 -> 0 | CE21: =$CF21*Input!$E$43 -> 0 | CF21: 0.446343692 | CG21: 0 | CH21: 0 | CI21: =$CP21*Input!$E$42 -> 0 | CJ21: =$CP21*Input!$E$42 -> 0 | CK21: =$CP21*Input!$E$42 -> 0 | CL21: =$CP21*Input!$E$42 -> 0 | CM21: =$CP21*Input!$E$42 -> 0 | CN21: =$CP21*Input!$E$42 -> 0 | CO21: =$CP21*Input!$E$42 -> 0 | CP21: 0.446343692 | CQ21: 0 | CR21: 0 | CS21: =IF(Input!BK$44>0,(Input!BK$44+Input!BK$54)*$AT21,0) -> 0 | CT21: =IF(Input!BL$44>0,(Input!BL$44+Input!BL$54)*$AT21,0) -> 0 | CU21: =IF(Input!BM$44>0,(Input!BM$44+Input!BM$54)*$AT21,0) -> 0 | CV21: =IF(Input!BN$44>0,(Input!BN$44+Input!BN$54)*$AT21,0) -> 0 | CW21: =IF(Input!BO$44>0,(Input!BO$44+Input!BO$54)*$AT21,0) -> 0 | CX21: =IF(Input!BP$44>0,(Input!BP$44+Input!BP$54)*$AT21,0) -> 0 | CY21: =IF(Input!BQ$44>0,(Input!BQ$44+Input!BQ$54)*$AT21,0) -> 0 | CZ21: 21.16213639 | DA21: 0 | DB21: 0 | DC21: =IF(Input!BU$44>0,(Input!BU$44+Input!BU$54)*$AT21,0) -> 0 | DD21: =IF(Input!BV$44>0,(Input!BV$44+Input!BV$54)*$AT21,0) -> 0 | DE21: =IF(Input!BW$44>0,(Input!BW$44+Input!BW$54)*$AT21,0) -> 0 | DF21: =IF(Input!BX$44>0,(Input!BX$44+Input!BX$54)*$AT21,0) -> 0 | DG21: =IF(Input!BY$44>0,(Input!BY$44+Input!BY$54)*$AT21,0) -> 0 | DH21: =IF(Input!BZ$44>0,(Input!BZ$44+Input!BZ$54)*$AT21,0) -> 0 | DI21: =IF(Input!CA$44>0,(Input!CA$44+Input!CA$54)*$AT21,0) -> 0 | DJ21: 0 | DK21: 0 | DL21: 0 | DM21: 0 | DN21: =IF(Output!$H$2='Inputs & Utility Cost'!$B$41,('Inputs & Utility Cost'!$C$41*(J21+T21+AD21+AN21+AX21+BF21+BP21+BZ21+CJ21+CT21+DD21)),IF(Output!$H$2='Inputs & Utility Cost'!$B$42,('Inputs & Utility Cost'!$C$42*('Inputs & Utility Cost'!$C$41*(J21+T21+AD21+AN21+AX21+BF21+BP21+BZ21+CJ21+CT21+DD21))),(J21+T21+AD21+AN21+AX21+BF21+BP21+BZ21+CJ21+CT21+DD21))) -> 0 | DO21: =IF(Output!$H$2='Inputs & Utility Cost'!$B$41,('Inputs & Utility Cost'!$C$41*(K21+U21+AE21+AO21+AY21+BG21+BQ21+CA21+CK21+CU21+DE21)),IF(Output!$H$2='Inputs & Utility Cost'!$B$42,('Inputs & Utility Cost'!$C$42*('Inputs & Utility Cost'!$C$41*(K21+U21+AE21+AO21+AY21+BG21+BQ21+CA21+CK21+CU21+DE21))),(K21+U21+AE21+AO21+AY21+BG21+BQ21+CA21+CK21+CU21+DE21))) -> 0 | DP21: =IF(Output!$H$2='Inputs & Utility Cost'!$B$41,('Inputs & Utility Cost'!$C$41*(L21+V21+AF21+AP21+AZ21+BH21+BR21+CB21+CL21+CV21+DF21)),IF(Output!$H$2='Inputs & Utility Cost'!$B$42,('Inputs & Utility Cost'!$C$42*('Inputs & Utility Cost'!$C$41*(L21+V21+AF21+AP21+AZ21+BH21+BR21+CB21+CL21+CV21+DF21))),(L21+V21+AF21+AP21+AZ21+BH21+BR21+CB21+CL21+CV21+DF21))) -> 0 | DQ21: =IF(Output!$H$2='Inputs & Utility Cost'!$B$41,('Inputs & Utility Cost'!$C$41*(M21+W21+AG21+AQ21+BA21+BI21+BS21+CC21+CM21+CW21+DG21)),IF(Output!$H$2='Inputs & Utility Cost'!$B$42,('Inputs & Utility Cost'!$C$42*('Inputs & Utility Cost'!$C$41*(M21+W21+AG21+AQ21+BA21+BI21+BS21+CC21+CM21+CW21+DG21))),(M21+W21+AG21+AQ21+BA21+BI21+BS21+CC21+CM21+CW21+DG21))) -> 0 | DR21: =IF(Output!$H$2='Inputs & Utility Cost'!$B$41,('Inputs & Utility Cost'!$C$41*(N21+X21+AH21+AR21+BB21+BJ21+BT21+CD21+CN21+CX21+DH21)),IF(Output!$H$2='Inputs & Utility Cost'!$B$42,('Inputs & Utility Cost'!$C$42*('Inputs & Utility Cost'!$C$41*(N21+X21+AH21+AR21+BB21+BJ21+BT21+CD21+CN21+CX21+DH21))),(N21+X21+AH21+AR21+BB21+BJ21+BT21+CD21+CN21+CX21+DH21))) -> 0 | DS21: =IF(Output!$H$2='Inputs & Utility Cost'!$B$41,('Inputs & Utility Cost'!$C$41*(O21+Y21+AI21+AS21+BC21+BK21+BU21+CE21+CO21+CY21+DI21)),IF(Output!$H$2='Inputs & Utility Cost'!$B$42,('Inputs & Utility Cost'!$C$42*('Inputs & Utility Cost'!$C$41*(O21+Y21+AI21+AS21+BC21+BK21+BU21+CE21+CO21+CY21+DI21))),(O21+Y21+AI21+AS21+BC21+BK21+BU21+CE21+CO21+CY21+DI21))) -> 0
B22: Natural gas: assumed annual price escalation - base scenario | C22: 0.0307 | F22: 'via US DOE Energy Information Administration (EIA) 2020 AEU: base case forecast ('20-'49) for commercial sector nat gas prices (all-in, incl commodity + basis + utility charges) | H22: 2034 | I22: =$P22*Input!$E$41 -> 0 | J22: =$P22*Input!$F$41 -> 0 | K22: =$P22*Input!$G$41 -> 0 | L22: =$P22*Input!$H$41 -> 0 | M22: =$P22*Input!$I$41 -> 0 | N22: =$P22*Input!$J$41 -> 0 | O22: =$P22*Input!$K$41 -> 0 | P22: 0.4600464434 | Q22: 0 | R22: 0 | S22: =IF(Input!$E$35>0,(Input!E$35+Input!E$53)*$Z22,0) -> 0 | T22: =IF(Input!$F$35>0,(Input!F$35+Input!F$53)*$Z22,0) -> 0 | U22: =IF(Input!$G$35>0,(Input!G$35+Input!G$53)*$Z22,0) -> 0 | V22: =IF(Input!$H$35>0,(Input!H$35+Input!H$53)*$Z22,0) -> 0 | W22: =IF(Input!$I$35>0,(Input!I$35+Input!I$53)*$Z22,0) -> 0 | X22: =IF(Input!$J$35>0,(Input!J$35+Input!J$53)*$Z22,0) -> 0 | Y22: =IF(Input!$K$35>0,(Input!K$35+Input!K$53)*$Z22,0) -> 0 | Z22: 0.1051422624 | AA22: 0.1162518392 | AB22: 0.104423133 | AC22: =IF(Input!E$33>0,(Input!E$33+Input!E$53)*$AJ22,0) -> 0 | AD22: =IF(Input!F$33>0,(Input!F$33+Input!F$53)*$AJ22,0) -> 0 | AE22: =IF(Input!G$33>0,(Input!G$33+Input!G$53)*$AJ22,0) -> 0 | AF22: =IF(Input!H$33>0,(Input!H$33+Input!H$53)*$AJ22,0) -> 0 | AG22: =IF(Input!I$33>0,(Input!I$33+Input!I$53)*$AJ22,0) -> 0 | AH22: =IF(Input!J$33>0,(Input!J$33+Input!J$53)*$AJ22,0) -> 0 | AI22: =IF(Input!K$33>0,(Input!K$33+Input!K$53)*$AJ22,0) -> 0 | AJ22: 0.1051422624 | AK22: 0.1162518392 | AL22: 0.104423133 | AM22: =IF(Input!E$44>0,(Input!E$44+Input!E$54)*$AT22,0) -> 0 | AN22: =IF(Input!F$44>0,(Input!F$44+Input!F$54)*$AT22,0) -> 0 | AO22: =IF(Input!G$44>0,(Input!G$44+Input!G$54)*$AT22,0) -> 0 | AP22: =IF(Input!H$44>0,(Input!H$44+Input!H$54)*$AT22,0) -> 0 | AQ22: =IF(Input!I$44>0,(Input!I$44+Input!I$54)*$AT22,0) -> 0 | AR22: =IF(Input!J$44>0,(Input!J$44+Input!J$54)*$AT22,0) -> 0 | AS22: =IF(Input!K$44>0,(Input!K$44+Input!K$54)*$AT22,0) -> 0 | AT22: 21.16213639 | AU22: 23.21788916 | AV22: 20.79545471 | AW22: =IF(Input!E$46>0,(Input!E$46+Input!E$54)*$BD22,0) -> 0 | AX22: =IF(Input!F$46>0,(Input!F$46+Input!F$54)*$BD22,0) -> 0 | AY22: =IF(Input!G$46>0,(Input!G$46+Input!G$54)*$BD22,0) -> 0 | AZ22: =IF(Input!H$46>0,(Input!H$46+Input!H$54)*$BD22,0) -> 0 | BA22: =IF(Input!I$46>0,(Input!I$46+Input!I$54)*$BD22,0) -> 0 | BB22: =IF(Input!J$46>0,(Input!J$46+Input!J$54)*$BD22,0) -> 0 | BC22: =IF(Input!K$46>0,(Input!K$46+Input!K$54)*$BD22,0) -> 0 | BD22: 21.16213639 | BE22: =IF(Input!E$37>0,(Input!E$37+Input!E$53)*$AJ22,0) -> 0 | BF22: =IF(Input!F$37>0,(Input!F$37+Input!F$53)*$AJ22,0) -> 0 | BG22: =IF(Input!G$37>0,(Input!G$37+Input!G$53)*$AJ22,0) -> 0 | BH22: =IF(Input!H$37>0,(Input!H$37+Input!H$53)*$AJ22,0) -> 0 | BI22: =IF(Input!I$37>0,(Input!I$37+Input!I$53)*$AJ22,0) -> 0 | BJ22: =IF(Input!J$37>0,(Input!J$37+Input!J$53)*$AJ22,0) -> 0 | BK22: =IF(Input!K$37>0,(Input!K$37+Input!K$53)*$AJ22,0) -> 0 | BL22: 0.1051422624 | BM22: 0 | BN22: 0 | BO22: =IF(Input!E$39>0,(Input!E$39+Input!AQ$53)*$BV22,0) -> 0 | BP22: =IF(Input!F$39>0,(Input!F$39+Input!AR$53)*$BV22,0) -> 0 | BQ22: =IF(Input!G$39>0,(Input!G$39+Input!AS$53)*$BV22,0) -> 0 | BR22: =IF(Input!H$39>0,(Input!H$39+Input!AT$53)*$BV22,0) -> 0 | BS22: =IF(Input!I$39>0,(Input!I$39+Input!AU$53)*$BV22,0) -> 0 | BT22: =IF(Input!J$39>0,(Input!J$39+Input!AV$53)*$BV22,0) -> 0 | BU22: =IF(Input!K$39>0,(Input!K$39+Input!AW$53)*$BV22,0) -> 0 | BV22: 0.1051422624 | BW22: 0 | BX22: 0 | BY22: =$CF22*Input!$E$43 -> 0 | BZ22: =$CF22*Input!$E$43 -> 0 | CA22: =$CF22*Input!$E$43 -> 0 | CB22: =$CF22*Input!$E$43 -> 0 | CC22: =$CF22*Input!$E$43 -> 0 | CD22: =$CF22*Input!$E$43 -> 0 | CE22: =$CF22*Input!$E$43 -> 0 | CF22: 0.4600464434 | CG22: 0 | CH22: 0 | CI22: =$CP22*Input!$E$42 -> 0 | CJ22: =$CP22*Input!$E$42 -> 0 | CK22: =$CP22*Input!$E$42 -> 0 | CL22: =$CP22*Input!$E$42 -> 0 | CM22: =$CP22*Input!$E$42 -> 0 | CN22: =$CP22*Input!$E$42 -> 0 | CO22: =$CP22*Input!$E$42 -> 0 | CP22: 0.4600464434 | CQ22: 0 | CR22: 0 | CS22: =IF(Input!BK$44>0,(Input!BK$44+Input!BK$54)*$AT22,0) -> 0 | CT22: =IF(Input!BL$44>0,(Input!BL$44+Input!BL$54)*$AT22,0) -> 0 | CU22: =IF(Input!BM$44>0,(Input!BM$44+Input!BM$54)*$AT22,0) -> 0 | CV22: =IF(Input!BN$44>0,(Input!BN$44+Input!BN$54)*$AT22,0) -> 0 | CW22: =IF(Input!BO$44>0,(Input!BO$44+Input!BO$54)*$AT22,0) -> 0 | CX22: =IF(Input!BP$44>0,(Input!BP$44+Input!BP$54)*$AT22,0) -> 0 | CY22: =IF(Input!BQ$44>0,(Input!BQ$44+Input!BQ$54)*$AT22,0) -> 0 | CZ22: 21.81181398 | DA22: 0 | DB22: 0 | DC22: =IF(Input!BU$44>0,(Input!BU$44+Input!BU$54)*$AT22,0) -> 0 | DD22: =IF(Input!BV$44>0,(Input!BV$44+Input!BV$54)*$AT22,0) -> 0 | DE22: =IF(Input!BW$44>0,(Input!BW$44+Input!BW$54)*$AT22,0) -> 0 | DF22: =IF(Input!BX$44>0,(Input!BX$44+Input!BX$54)*$AT22,0) -> 0 | DG22: =IF(Input!BY$44>0,(Input!BY$44+Input!BY$54)*$AT22,0) -> 0 | DH22: =IF(Input!BZ$44>0,(Input!BZ$44+Input!BZ$54)*$AT22,0) -> 0 | DI22: =IF(Input!CA$44>0,(Input!CA$44+Input!CA$54)*$AT22,0) -> 0 | DJ22: 0 | DK22: 0 | DL22: 0 | DM22: 0 | DN22: =IF(Output!$H$2='Inputs & Utility Cost'!$B$41,('Inputs & Utility Cost'!$C$41*(J22+T22+AD22+AN22+AX22+BF22+BP22+BZ22+CJ22+CT22+DD22)),IF(Output!$H$2='Inputs & Utility Cost'!$B$42,('Inputs & Utility Cost'!$C$42*('Inputs & Utility Cost'!$C$41*(J22+T22+AD22+AN22+AX22+BF22+BP22+BZ22+CJ22+CT22+DD22))),(J22+T22+AD22+AN22+AX22+BF22+BP22+BZ22+CJ22+CT22+DD22))) -> 0 | DO22: =IF(Output!$H$2='Inputs & Utility Cost'!$B$41,('Inputs & Utility Cost'!$C$41*(K22+U22+AE22+AO22+AY22+BG22+BQ22+CA22+CK22+CU22+DE22)),IF(Output!$H$2='Inputs & Utility Cost'!$B$42,('Inputs & Utility Cost'!$C$42*('Inputs & Utility Cost'!$C$41*(K22+U22+AE22+AO22+AY22+BG22+BQ22+CA22+CK22+CU22+DE22))),(K22+U22+AE22+AO22+AY22+BG22+BQ22+CA22+CK22+CU22+DE22))) -> 0 | DP22: =IF(Output!$H$2='Inputs & Utility Cost'!$B$41,('Inputs & Utility Cost'!$C$41*(L22+V22+AF22+AP22+AZ22+BH22+BR22+CB22+CL22+CV22+DF22)),IF(Output!$H$2='Inputs & Utility Cost'!$B$42,('Inputs & Utility Cost'!$C$42*('Inputs & Utility Cost'!$C$41*(L22+V22+AF22+AP22+AZ22+BH22+BR22+CB22+CL22+CV22+DF22))),(L22+V22+AF22+AP22+AZ22+BH22+BR22+CB22+CL22+CV22+DF22))) -> 0 | DQ22: =IF(Output!$H$2='Inputs & Utility Cost'!$B$41,('Inputs & Utility Cost'!$C$41*(M22+W22+AG22+AQ22+BA22+BI22+BS22+CC22+CM22+CW22+DG22)),IF(Output!$H$2='Inputs & Utility Cost'!$B$42,('Inputs & Utility Cost'!$C$42*('Inputs & Utility Cost'!$C$41*(M22+W22+AG22+AQ22+BA22+BI22+BS22+CC22+CM22+CW22+DG22))),(M22+W22+AG22+AQ22+BA22+BI22+BS22+CC22+CM22+CW22+DG22))) -> 0 | DR22: =IF(Output!$H$2='Inputs & Utility Cost'!$B$41,('Inputs & Utility Cost'!$C$41*(N22+X22+AH22+AR22+BB22+BJ22+BT22+CD22+CN22+CX22+DH22)),IF(Output!$H$2='Inputs & Utility Cost'!$B$42,('Inputs & Utility Cost'!$C$42*('Inputs & Utility Cost'!$C$41*(N22+X22+AH22+AR22+BB22+BJ22+BT22+CD22+CN22+CX22+DH22))),(N22+X22+AH22+AR22+BB22+BJ22+BT22+CD22+CN22+CX22+DH22))) -> 0 | DS22: =IF(Output!$H$2='Inputs & Utility Cost'!$B$41,('Inputs & Utility Cost'!$C$41*(O22+Y22+AI22+AS22+BC22+BK22+BU22+CE22+CO22+CY22+DI22)),IF(Output!$H$2='Inputs & Utility Cost'!$B$42,('Inputs & Utility Cost'!$C$42*('Inputs & Utility Cost'!$C$41*(O22+Y22+AI22+AS22+BC22+BK22+BU22+CE22+CO22+CY22+DI22))),(O22+Y22+AI22+AS22+BC22+BK22+BU22+CE22+CO22+CY22+DI22))) -> 0
B23: Natural gas: high rate escalation scenario | C23: 0.0403 | F23: EIA economic growth case, 2020-2049 | H23: 2035 | I23: =$P23*Input!$E$41 -> 0 | J23: =$P23*Input!$F$41 -> 0 | K23: =$P23*Input!$G$41 -> 0 | L23: =$P23*Input!$H$41 -> 0 | M23: =$P23*Input!$I$41 -> 0 | N23: =$P23*Input!$J$41 -> 0 | O23: =$P23*Input!$K$41 -> 0 | P23: 0.4741698692 | Q23: 0 | R23: 0 | S23: =IF(Input!$E$35>0,(Input!E$35+Input!E$53)*$Z23,0) -> 0 | T23: =IF(Input!$F$35>0,(Input!F$35+Input!F$53)*$Z23,0) -> 0 | U23: =IF(Input!$G$35>0,(Input!G$35+Input!G$53)*$Z23,0) -> 0 | V23: =IF(Input!$H$35>0,(Input!H$35+Input!H$53)*$Z23,0) -> 0 | W23: =IF(Input!$I$35>0,(Input!I$35+Input!I$53)*$Z23,0) -> 0 | X23: =IF(Input!$J$35>0,(Input!J$35+Input!J$53)*$Z23,0) -> 0 | Y23: =IF(Input!$K$35>0,(Input!K$35+Input!K$53)*$Z23,0) -> 0 | Z23: 0.1072766503 | AA23: 0.1198091455 | AB23: 0.1064698264 | AC23: =IF(Input!E$33>0,(Input!E$33+Input!E$53)*$AJ23,0) -> 0 | AD23: =IF(Input!F$33>0,(Input!F$33+Input!F$53)*$AJ23,0) -> 0 | AE23: =IF(Input!G$33>0,(Input!G$33+Input!G$53)*$AJ23,0) -> 0 | AF23: =IF(Input!H$33>0,(Input!H$33+Input!H$53)*$AJ23,0) -> 0 | AG23: =IF(Input!I$33>0,(Input!I$33+Input!I$53)*$AJ23,0) -> 0 | AH23: =IF(Input!J$33>0,(Input!J$33+Input!J$53)*$AJ23,0) -> 0 | AI23: =IF(Input!K$33>0,(Input!K$33+Input!K$53)*$AJ23,0) -> 0 | AJ23: 0.1072766503 | AK23: 0.1198091455 | AL23: 0.1064698264 | AM23: =IF(Input!E$44>0,(Input!E$44+Input!E$54)*$AT23,0) -> 0 | AN23: =IF(Input!F$44>0,(Input!F$44+Input!F$54)*$AT23,0) -> 0 | AO23: =IF(Input!G$44>0,(Input!G$44+Input!G$54)*$AT23,0) -> 0 | AP23: =IF(Input!H$44>0,(Input!H$44+Input!H$54)*$AT23,0) -> 0 | AQ23: =IF(Input!I$44>0,(Input!I$44+Input!I$54)*$AT23,0) -> 0 | AR23: =IF(Input!J$44>0,(Input!J$44+Input!J$54)*$AT23,0) -> 0 | AS23: =IF(Input!K$44>0,(Input!K$44+Input!K$54)*$AT23,0) -> 0 | AT23: 21.81181398 | AU23: 24.15357009 | AV23: 21.39644335 | AW23: =IF(Input!E$46>0,(Input!E$46+Input!E$54)*$BD23,0) -> 0 | AX23: =IF(Input!F$46>0,(Input!F$46+Input!F$54)*$BD23,0) -> 0 | AY23: =IF(Input!G$46>0,(Input!G$46+Input!G$54)*$BD23,0) -> 0 | AZ23: =IF(Input!H$46>0,(Input!H$46+Input!H$54)*$BD23,0) -> 0 | BA23: =IF(Input!I$46>0,(Input!I$46+Input!I$54)*$BD23,0) -> 0 | BB23: =IF(Input!J$46>0,(Input!J$46+Input!J$54)*$BD23,0) -> 0 | BC23: =IF(Input!K$46>0,(Input!K$46+Input!K$54)*$BD23,0) -> 0 | BD23: 21.81181398 | BE23: =IF(Input!E$37>0,(Input!E$37+Input!E$53)*$AJ23,0) -> 0 | BF23: =IF(Input!F$37>0,(Input!F$37+Input!F$53)*$AJ23,0) -> 0 | BG23: =IF(Input!G$37>0,(Input!G$37+Input!G$53)*$AJ23,0) -> 0 | BH23: =IF(Input!H$37>0,(Input!H$37+Input!H$53)*$AJ23,0) -> 0 | BI23: =IF(Input!I$37>0,(Input!I$37+Input!I$53)*$AJ23,0) -> 0 | BJ23: =IF(Input!J$37>0,(Input!J$37+Input!J$53)*$AJ23,0) -> 0 | BK23: =IF(Input!K$37>0,(Input!K$37+Input!K$53)*$AJ23,0) -> 0 | BL23: 0.1072766503 | BM23: 0 | BN23: 0 | BO23: =IF(Input!E$39>0,(Input!E$39+Input!AQ$53)*$BV23,0) -> 0 | BP23: =IF(Input!F$39>0,(Input!F$39+Input!AR$53)*$BV23,0) -> 0 | BQ23: =IF(Input!G$39>0,(Input!G$39+Input!AS$53)*$BV23,0) -> 0 | BR23: =IF(Input!H$39>0,(Input!H$39+Input!AT$53)*$BV23,0) -> 0 | BS23: =IF(Input!I$39>0,(Input!I$39+Input!AU$53)*$BV23,0) -> 0 | BT23: =IF(Input!J$39>0,(Input!J$39+Input!AV$53)*$BV23,0) -> 0 | BU23: =IF(Input!K$39>0,(Input!K$39+Input!AW$53)*$BV23,0) -> 0 | BV23: 0.1072766503 | BW23: 0 | BX23: 0 | BY23: =$CF23*Input!$E$43 -> 0 | BZ23: =$CF23*Input!$E$43 -> 0 | CA23: =$CF23*Input!$E$43 -> 0 | CB23: =$CF23*Input!$E$43 -> 0 | CC23: =$CF23*Input!$E$43 -> 0 | CD23: =$CF23*Input!$E$43 -> 0 | CE23: =$CF23*Input!$E$43 -> 0 | CF23: 0.4741698692 | CG23: 0 | CH23: 0 | CI23: =$CP23*Input!$E$42 -> 0 | CJ23: =$CP23*Input!$E$42 -> 0 | CK23: =$CP23*Input!$E$42 -> 0 | CL23: =$CP23*Input!$E$42 -> 0 | CM23: =$CP23*Input!$E$42 -> 0 | CN23: =$CP23*Input!$E$42 -> 0 | CO23: =$CP23*Input!$E$42 -> 0 | CP23: 0.4741698692 | CQ23: 0 | CR23: 0 | CS23: =IF(Input!BK$44>0,(Input!BK$44+Input!BK$54)*$AT23,0) -> 0 | CT23: =IF(Input!BL$44>0,(Input!BL$44+Input!BL$54)*$AT23,0) -> 0 | CU23: =IF(Input!BM$44>0,(Input!BM$44+Input!BM$54)*$AT23,0) -> 0 | CV23: =IF(Input!BN$44>0,(Input!BN$44+Input!BN$54)*$AT23,0) -> 0 | CW23: =IF(Input!BO$44>0,(Input!BO$44+Input!BO$54)*$AT23,0) -> 0 | CX23: =IF(Input!BP$44>0,(Input!BP$44+Input!BP$54)*$AT23,0) -> 0 | CY23: =IF(Input!BQ$44>0,(Input!BQ$44+Input!BQ$54)*$AT23,0) -> 0 | CZ23: 22.48143667 | DA23: 0 | DB23: 0 | DC23: =IF(Input!BU$44>0,(Input!BU$44+Input!BU$54)*$AT23,0) -> 0 | DD23: =IF(Input!BV$44>0,(Input!BV$44+Input!BV$54)*$AT23,0) -> 0 | DE23: =IF(Input!BW$44>0,(Input!BW$44+Input!BW$54)*$AT23,0) -> 0 | DF23: =IF(Input!BX$44>0,(Input!BX$44+Input!BX$54)*$AT23,0) -> 0 | DG23: =IF(Input!BY$44>0,(Input!BY$44+Input!BY$54)*$AT23,0) -> 0 | DH23: =IF(Input!BZ$44>0,(Input!BZ$44+Input!BZ$54)*$AT23,0) -> 0 | DI23: =IF(Input!CA$44>0,(Input!CA$44+Input!CA$54)*$AT23,0) -> 0 | DJ23: 0 | DK23: 0 | DL23: 0 | DM23: 0 | DN23: =IF(Output!$H$2='Inputs & Utility Cost'!$B$41,('Inputs & Utility Cost'!$C$41*(J23+T23+AD23+AN23+AX23+BF23+BP23+BZ23+CJ23+CT23+DD23)),IF(Output!$H$2='Inputs & Utility Cost'!$B$42,('Inputs & Utility Cost'!$C$42*('Inputs & Utility Cost'!$C$41*(J23+T23+AD23+AN23+AX23+BF23+BP23+BZ23+CJ23+CT23+DD23))),(J23+T23+AD23+AN23+AX23+BF23+BP23+BZ23+CJ23+CT23+DD23))) -> 0 | DO23: =IF(Output!$H$2='Inputs & Utility Cost'!$B$41,('Inputs & Utility Cost'!$C$41*(K23+U23+AE23+AO23+AY23+BG23+BQ23+CA23+CK23+CU23+DE23)),IF(Output!$H$2='Inputs & Utility Cost'!$B$42,('Inputs & Utility Cost'!$C$42*('Inputs & Utility Cost'!$C$41*(K23+U23+AE23+AO23+AY23+BG23+BQ23+CA23+CK23+CU23+DE23))),(K23+U23+AE23+AO23+AY23+BG23+BQ23+CA23+CK23+CU23+DE23))) -> 0 | DP23: =IF(Output!$H$2='Inputs & Utility Cost'!$B$41,('Inputs & Utility Cost'!$C$41*(L23+V23+AF23+AP23+AZ23+BH23+BR23+CB23+CL23+CV23+DF23)),IF(Output!$H$2='Inputs & Utility Cost'!$B$42,('Inputs & Utility Cost'!$C$42*('Inputs & Utility Cost'!$C$41*(L23+V23+AF23+AP23+AZ23+BH23+BR23+CB23+CL23+CV23+DF23))),(L23+V23+AF23+AP23+AZ23+BH23+BR23+CB23+CL23+CV23+DF23))) -> 0 | DQ23: =IF(Output!$H$2='Inputs & Utility Cost'!$B$41,('Inputs & Utility Cost'!$C$41*(M23+W23+AG23+AQ23+BA23+BI23+BS23+CC23+CM23+CW23+DG23)),IF(Output!$H$2='Inputs & Utility Cost'!$B$42,('Inputs & Utility Cost'!$C$42*('Inputs & Utility Cost'!$C$41*(M23+W23+AG23+AQ23+BA23+BI23+BS23+CC23+CM23+CW23+DG23))),(M23+W23+AG23+AQ23+BA23+BI23+BS23+CC23+CM23+CW23+DG23))) -> 0 | DR23: =IF(Output!$H$2='Inputs & Utility Cost'!$B$41,('Inputs & Utility Cost'!$C$41*(N23+X23+AH23+AR23+BB23+BJ23+BT23+CD23+CN23+CX23+DH23)),IF(Output!$H$2='Inputs & Utility Cost'!$B$42,('Inputs & Utility Cost'!$C$42*('Inputs & Utility Cost'!$C$41*(N23+X23+AH23+AR23+BB23+BJ23+BT23+CD23+CN23+CX23+DH23))),(N23+X23+AH23+AR23+BB23+BJ23+BT23+CD23+CN23+CX23+DH23))) -> 0 | DS23: =IF(Output!$H$2='Inputs & Utility Cost'!$B$41,('Inputs & Utility Cost'!$C$41*(O23+Y23+AI23+AS23+BC23+BK23+BU23+CE23+CO23+CY23+DI23)),IF(Output!$H$2='Inputs & Utility Cost'!$B$42,('Inputs & Utility Cost'!$C$42*('Inputs & Utility Cost'!$C$41*(O23+Y23+AI23+AS23+BC23+BK23+BU23+CE23+CO23+CY23+DI23))),(O23+Y23+AI23+AS23+BC23+BK23+BU23+CE23+CO23+CY23+DI23))) -> 0
B24: Natural gas: low rate escalation scenario | C24: 0.0289 | F24: EIA high oil and gas supply case, 2020-2049 | H24: 2036 | I24: =$P24*Input!$E$41 -> 0 | J24: =$P24*Input!$F$41 -> 0 | K24: =$P24*Input!$G$41 -> 0 | L24: =$P24*Input!$H$41 -> 0 | M24: =$P24*Input!$I$41 -> 0 | N24: =$P24*Input!$J$41 -> 0 | O24: =$P24*Input!$K$41 -> 0 | P24: 0.4887268842 | Q24: 0 | R24: 0 | S24: =IF(Input!$E$35>0,(Input!E$35+Input!E$53)*$Z24,0) -> 0 | T24: =IF(Input!$F$35>0,(Input!F$35+Input!F$53)*$Z24,0) -> 0 | U24: =IF(Input!$G$35>0,(Input!G$35+Input!G$53)*$Z24,0) -> 0 | V24: =IF(Input!$H$35>0,(Input!H$35+Input!H$53)*$Z24,0) -> 0 | W24: =IF(Input!$I$35>0,(Input!I$35+Input!I$53)*$Z24,0) -> 0 | X24: =IF(Input!$J$35>0,(Input!J$35+Input!J$53)*$Z24,0) -> 0 | Y24: =IF(Input!$K$35>0,(Input!K$35+Input!K$53)*$Z24,0) -> 0 | Z24: 0.1094543663 | AA24: 0.1234753053 | AB24: 0.108556635 | AC24: =IF(Input!E$33>0,(Input!E$33+Input!E$53)*$AJ24,0) -> 0 | AD24: =IF(Input!F$33>0,(Input!F$33+Input!F$53)*$AJ24,0) -> 0 | AE24: =IF(Input!G$33>0,(Input!G$33+Input!G$53)*$AJ24,0) -> 0 | AF24: =IF(Input!H$33>0,(Input!H$33+Input!H$53)*$AJ24,0) -> 0 | AG24: =IF(Input!I$33>0,(Input!I$33+Input!I$53)*$AJ24,0) -> 0 | AH24: =IF(Input!J$33>0,(Input!J$33+Input!J$53)*$AJ24,0) -> 0 | AI24: =IF(Input!K$33>0,(Input!K$33+Input!K$53)*$AJ24,0) -> 0 | AJ24: 0.1094543663 | AK24: 0.1234753053 | AL24: 0.108556635 | AM24: =IF(Input!E$44>0,(Input!E$44+Input!E$54)*$AT24,0) -> 0 | AN24: =IF(Input!F$44>0,(Input!F$44+Input!F$54)*$AT24,0) -> 0 | AO24: =IF(Input!G$44>0,(Input!G$44+Input!G$54)*$AT24,0) -> 0 | AP24: =IF(Input!H$44>0,(Input!H$44+Input!H$54)*$AT24,0) -> 0 | AQ24: =IF(Input!I$44>0,(Input!I$44+Input!I$54)*$AT24,0) -> 0 | AR24: =IF(Input!J$44>0,(Input!J$44+Input!J$54)*$AT24,0) -> 0 | AS24: =IF(Input!K$44>0,(Input!K$44+Input!K$54)*$AT24,0) -> 0 | AT24: 22.48143667 | AU24: 25.12695897 | AV24: 22.01480056 | AW24: =IF(Input!E$46>0,(Input!E$46+Input!E$54)*$BD24,0) -> 0 | AX24: =IF(Input!F$46>0,(Input!F$46+Input!F$54)*$BD24,0) -> 0 | AY24: =IF(Input!G$46>0,(Input!G$46+Input!G$54)*$BD24,0) -> 0 | AZ24: =IF(Input!H$46>0,(Input!H$46+Input!H$54)*$BD24,0) -> 0 | BA24: =IF(Input!I$46>0,(Input!I$46+Input!I$54)*$BD24,0) -> 0 | BB24: =IF(Input!J$46>0,(Input!J$46+Input!J$54)*$BD24,0) -> 0 | BC24: =IF(Input!K$46>0,(Input!K$46+Input!K$54)*$BD24,0) -> 0 | BD24: 22.48143667 | BE24: =IF(Input!E$37>0,(Input!E$37+Input!E$53)*$AJ24,0) -> 0 | BF24: =IF(Input!F$37>0,(Input!F$37+Input!F$53)*$AJ24,0) -> 0 | BG24: =IF(Input!G$37>0,(Input!G$37+Input!G$53)*$AJ24,0) -> 0 | BH24: =IF(Input!H$37>0,(Input!H$37+Input!H$53)*$AJ24,0) -> 0 | BI24: =IF(Input!I$37>0,(Input!I$37+Input!I$53)*$AJ24,0) -> 0 | BJ24: =IF(Input!J$37>0,(Input!J$37+Input!J$53)*$AJ24,0) -> 0 | BK24: =IF(Input!K$37>0,(Input!K$37+Input!K$53)*$AJ24,0) -> 0 | BL24: 0.1094543663 | BM24: 0 | BN24: 0 | BO24: =IF(Input!E$39>0,(Input!E$39+Input!AQ$53)*$BV24,0) -> 0 | BP24: =IF(Input!F$39>0,(Input!F$39+Input!AR$53)*$BV24,0) -> 0 | BQ24: =IF(Input!G$39>0,(Input!G$39+Input!AS$53)*$BV24,0) -> 0 | BR24: =IF(Input!H$39>0,(Input!H$39+Input!AT$53)*$BV24,0) -> 0 | BS24: =IF(Input!I$39>0,(Input!I$39+Input!AU$53)*$BV24,0) -> 0 | BT24: =IF(Input!J$39>0,(Input!J$39+Input!AV$53)*$BV24,0) -> 0 | BU24: =IF(Input!K$39>0,(Input!K$39+Input!AW$53)*$BV24,0) -> 0 | BV24: 0.1094543663 | BW24: 0 | BX24: 0 | BY24: =$CF24*Input!$E$43 -> 0 | BZ24: =$CF24*Input!$E$43 -> 0 | CA24: =$CF24*Input!$E$43 -> 0 | CB24: =$CF24*Input!$E$43 -> 0 | CC24: =$CF24*Input!$E$43 -> 0 | CD24: =$CF24*Input!$E$43 -> 0 | CE24: =$CF24*Input!$E$43 -> 0 | CF24: 0.4887268842 | CG24: 0 | CH24: 0 | CI24: =$CP24*Input!$E$42 -> 0 | CJ24: =$CP24*Input!$E$42 -> 0 | CK24: =$CP24*Input!$E$42 -> 0 | CL24: =$CP24*Input!$E$42 -> 0 | CM24: =$CP24*Input!$E$42 -> 0 | CN24: =$CP24*Input!$E$42 -> 0 | CO24: =$CP24*Input!$E$42 -> 0 | CP24: 0.4887268842 | CQ24: 0 | CR24: 0 | CS24: =IF(Input!BK$44>0,(Input!BK$44+Input!BK$54)*$AT24,0) -> 0 | CT24: =IF(Input!BL$44>0,(Input!BL$44+Input!BL$54)*$AT24,0) -> 0 | CU24: =IF(Input!BM$44>0,(Input!BM$44+Input!BM$54)*$AT24,0) -> 0 | CV24: =IF(Input!BN$44>0,(Input!BN$44+Input!BN$54)*$AT24,0) -> 0 | CW24: =IF(Input!BO$44>0,(Input!BO$44+Input!BO$54)*$AT24,0) -> 0 | CX24: =IF(Input!BP$44>0,(Input!BP$44+Input!BP$54)*$AT24,0) -> 0 | CY24: =IF(Input!BQ$44>0,(Input!BQ$44+Input!BQ$54)*$AT24,0) -> 0 | CZ24: 23.17161678 | DA24: 0 | DB24: 0 | DC24: =IF(Input!BU$44>0,(Input!BU$44+Input!BU$54)*$AT24,0) -> 0 | DD24: =IF(Input!BV$44>0,(Input!BV$44+Input!BV$54)*$AT24,0) -> 0 | DE24: =IF(Input!BW$44>0,(Input!BW$44+Input!BW$54)*$AT24,0) -> 0 | DF24: =IF(Input!BX$44>0,(Input!BX$44+Input!BX$54)*$AT24,0) -> 0 | DG24: =IF(Input!BY$44>0,(Input!BY$44+Input!BY$54)*$AT24,0) -> 0 | DH24: =IF(Input!BZ$44>0,(Input!BZ$44+Input!BZ$54)*$AT24,0) -> 0 | DI24: =IF(Input!CA$44>0,(Input!CA$44+Input!CA$54)*$AT24,0) -> 0 | DJ24: 0 | DK24: 0 | DL24: 0 | DM24: 0 | DN24: =IF(Output!$H$2='Inputs & Utility Cost'!$B$41,('Inputs & Utility Cost'!$C$41*(J24+T24+AD24+AN24+AX24+BF24+BP24+BZ24+CJ24+CT24+DD24)),IF(Output!$H$2='Inputs & Utility Cost'!$B$42,('Inputs & Utility Cost'!$C$42*('Inputs & Utility Cost'!$C$41*(J24+T24+AD24+AN24+AX24+BF24+BP24+BZ24+CJ24+CT24+DD24))),(J24+T24+AD24+AN24+AX24+BF24+BP24+BZ24+CJ24+CT24+DD24))) -> 0 | DO24: =IF(Output!$H$2='Inputs & Utility Cost'!$B$41,('Inputs & Utility Cost'!$C$41*(K24+U24+AE24+AO24+AY24+BG24+BQ24+CA24+CK24+CU24+DE24)),IF(Output!$H$2='Inputs & Utility Cost'!$B$42,('Inputs & Utility Cost'!$C$42*('Inputs & Utility Cost'!$C$41*(K24+U24+AE24+AO24+AY24+BG24+BQ24+CA24+CK24+CU24+DE24))),(K24+U24+AE24+AO24+AY24+BG24+BQ24+CA24+CK24+CU24+DE24))) -> 0 | DP24: =IF(Output!$H$2='Inputs & Utility Cost'!$B$41,('Inputs & Utility Cost'!$C$41*(L24+V24+AF24+AP24+AZ24+BH24+BR24+CB24+CL24+CV24+DF24)),IF(Output!$H$2='Inputs & Utility Cost'!$B$42,('Inputs & Utility Cost'!$C$42*('Inputs & Utility Cost'!$C$41*(L24+V24+AF24+AP24+AZ24+BH24+BR24+CB24+CL24+CV24+DF24))),(L24+V24+AF24+AP24+AZ24+BH24+BR24+CB24+CL24+CV24+DF24))) -> 0 | DQ24: =IF(Output!$H$2='Inputs & Utility Cost'!$B$41,('Inputs & Utility Cost'!$C$41*(M24+W24+AG24+AQ24+BA24+BI24+BS24+CC24+CM24+CW24+DG24)),IF(Output!$H$2='Inputs & Utility Cost'!$B$42,('Inputs & Utility Cost'!$C$42*('Inputs & Utility Cost'!$C$41*(M24+W24+AG24+AQ24+BA24+BI24+BS24+CC24+CM24+CW24+DG24))),(M24+W24+AG24+AQ24+BA24+BI24+BS24+CC24+CM24+CW24+DG24))) -> 0 | DR24: =IF(Output!$H$2='Inputs & Utility Cost'!$B$41,('Inputs & Utility Cost'!$C$41*(N24+X24+AH24+AR24+BB24+BJ24+BT24+CD24+CN24+CX24+DH24)),IF(Output!$H$2='Inputs & Utility Cost'!$B$42,('Inputs & Utility Cost'!$C$42*('Inputs & Utility Cost'!$C$41*(N24+X24+AH24+AR24+BB24+BJ24+BT24+CD24+CN24+CX24+DH24))),(N24+X24+AH24+AR24+BB24+BJ24+BT24+CD24+CN24+CX24+DH24))) -> 0 | DS24: =IF(Output!$H$2='Inputs & Utility Cost'!$B$41,('Inputs & Utility Cost'!$C$41*(O24+Y24+AI24+AS24+BC24+BK24+BU24+CE24+CO24+CY24+DI24)),IF(Output!$H$2='Inputs & Utility Cost'!$B$42,('Inputs & Utility Cost'!$C$42*('Inputs & Utility Cost'!$C$41*(O24+Y24+AI24+AS24+BC24+BK24+BU24+CE24+CO24+CY24+DI24))),(O24+Y24+AI24+AS24+BC24+BK24+BU24+CE24+CO24+CY24+DI24))) -> 0
B25: Renewable Natural Gas (RNG) - offsite ‘virtual’ purchase - present day price | C25: >> | F25: This market that is very volatile and difficult to predict; during U-M engagement, idea: use multiplier on natural gas (note: multiplier can be adjusted on each campus-specific LCCA tab) | H25: 2037 | I25: =$P25*Input!$E$41 -> 0 | J25: =$P25*Input!$F$41 -> 0 | K25: =$P25*Input!$G$41 -> 0 | L25: =$P25*Input!$H$41 -> 0 | M25: =$P25*Input!$I$41 -> 0 | N25: =$P25*Input!$J$41 -> 0 | O25: =$P25*Input!$K$41 -> 0 | P25: 0.5037307995 | Q25: 0 | R25: 0 | S25: =IF(Input!$E$35>0,(Input!E$35+Input!E$53)*$Z25,0) -> 0 | T25: =IF(Input!$F$35>0,(Input!F$35+Input!F$53)*$Z25,0) -> 0 | U25: =IF(Input!$G$35>0,(Input!G$35+Input!G$53)*$Z25,0) -> 0 | V25: =IF(Input!$H$35>0,(Input!H$35+Input!H$53)*$Z25,0) -> 0 | W25: =IF(Input!$I$35>0,(Input!I$35+Input!I$53)*$Z25,0) -> 0 | X25: =IF(Input!$J$35>0,(Input!J$35+Input!J$53)*$Z25,0) -> 0 | Y25: =IF(Input!$K$35>0,(Input!K$35+Input!K$53)*$Z25,0) -> 0 | Z25: 0.11167629 | AA25: 0.1272536497 | AB25: 0.1106843451 | AC25: =IF(Input!E$33>0,(Input!E$33+Input!E$53)*$AJ25,0) -> 0 | AD25: =IF(Input!F$33>0,(Input!F$33+Input!F$53)*$AJ25,0) -> 0 | AE25: =IF(Input!G$33>0,(Input!G$33+Input!G$53)*$AJ25,0) -> 0 | AF25: =IF(Input!H$33>0,(Input!H$33+Input!H$53)*$AJ25,0) -> 0 | AG25: =IF(Input!I$33>0,(Input!I$33+Input!I$53)*$AJ25,0) -> 0 | AH25: =IF(Input!J$33>0,(Input!J$33+Input!J$53)*$AJ25,0) -> 0 | AI25: =IF(Input!K$33>0,(Input!K$33+Input!K$53)*$AJ25,0) -> 0 | AJ25: 0.11167629 | AK25: 0.1272536497 | AL25: 0.1106843451 | AM25: =IF(Input!E$44>0,(Input!E$44+Input!E$54)*$AT25,0) -> 0 | AN25: =IF(Input!F$44>0,(Input!F$44+Input!F$54)*$AT25,0) -> 0 | AO25: =IF(Input!G$44>0,(Input!G$44+Input!G$54)*$AT25,0) -> 0 | AP25: =IF(Input!H$44>0,(Input!H$44+Input!H$54)*$AT25,0) -> 0 | AQ25: =IF(Input!I$44>0,(Input!I$44+Input!I$54)*$AT25,0) -> 0 | AR25: =IF(Input!J$44>0,(Input!J$44+Input!J$54)*$AT25,0) -> 0 | AS25: =IF(Input!K$44>0,(Input!K$44+Input!K$54)*$AT25,0) -> 0 | AT25: 23.17161678 | AU25: 26.13957542 | AV25: 22.6510283 | AW25: =IF(Input!E$46>0,(Input!E$46+Input!E$54)*$BD25,0) -> 0 | AX25: =IF(Input!F$46>0,(Input!F$46+Input!F$54)*$BD25,0) -> 0 | AY25: =IF(Input!G$46>0,(Input!G$46+Input!G$54)*$BD25,0) -> 0 | AZ25: =IF(Input!H$46>0,(Input!H$46+Input!H$54)*$BD25,0) -> 0 | BA25: =IF(Input!I$46>0,(Input!I$46+Input!I$54)*$BD25,0) -> 0 | BB25: =IF(Input!J$46>0,(Input!J$46+Input!J$54)*$BD25,0) -> 0 | BC25: =IF(Input!K$46>0,(Input!K$46+Input!K$54)*$BD25,0) -> 0 | BD25: 23.17161678 | BE25: =IF(Input!E$37>0,(Input!E$37+Input!E$53)*$AJ25,0) -> 0 | BF25: =IF(Input!F$37>0,(Input!F$37+Input!F$53)*$AJ25,0) -> 0 | BG25: =IF(Input!G$37>0,(Input!G$37+Input!G$53)*$AJ25,0) -> 0 | BH25: =IF(Input!H$37>0,(Input!H$37+Input!H$53)*$AJ25,0) -> 0 | BI25: =IF(Input!I$37>0,(Input!I$37+Input!I$53)*$AJ25,0) -> 0 | BJ25: =IF(Input!J$37>0,(Input!J$37+Input!J$53)*$AJ25,0) -> 0 | BK25: =IF(Input!K$37>0,(Input!K$37+Input!K$53)*$AJ25,0) -> 0 | BL25: 0.11167629 | BM25: 0 | BN25: 0 | BO25: =IF(Input!E$39>0,(Input!E$39+Input!AQ$53)*$BV25,0) -> 0 | BP25: =IF(Input!F$39>0,(Input!F$39+Input!AR$53)*$BV25,0) -> 0 | BQ25: =IF(Input!G$39>0,(Input!G$39+Input!AS$53)*$BV25,0) -> 0 | BR25: =IF(Input!H$39>0,(Input!H$39+Input!AT$53)*$BV25,0) -> 0 | BS25: =IF(Input!I$39>0,(Input!I$39+Input!AU$53)*$BV25,0) -> 0 | BT25: =IF(Input!J$39>0,(Input!J$39+Input!AV$53)*$BV25,0) -> 0 | BU25: =IF(Input!K$39>0,(Input!K$39+Input!AW$53)*$BV25,0) -> 0 | BV25: 0.11167629 | BW25: 0 | BX25: 0 | BY25: =$CF25*Input!$E$43 -> 0 | BZ25: =$CF25*Input!$E$43 -> 0 | CA25: =$CF25*Input!$E$43 -> 0 | CB25: =$CF25*Input!$E$43 -> 0 | CC25: =$CF25*Input!$E$43 -> 0 | CD25: =$CF25*Input!$E$43 -> 0 | CE25: =$CF25*Input!$E$43 -> 0 | CF25: 0.5037307995 | CG25: 0 | CH25: 0 | CI25: =$CP25*Input!$E$42 -> 0 | CJ25: =$CP25*Input!$E$42 -> 0 | CK25: =$CP25*Input!$E$42 -> 0 | CL25: =$CP25*Input!$E$42 -> 0 | CM25: =$CP25*Input!$E$42 -> 0 | CN25: =$CP25*Input!$E$42 -> 0 | CO25: =$CP25*Input!$E$42 -> 0 | CP25: 0.5037307995 | CQ25: 0 | CR25: 0 | CS25: =IF(Input!BK$44>0,(Input!BK$44+Input!BK$54)*$AT25,0) -> 0 | CT25: =IF(Input!BL$44>0,(Input!BL$44+Input!BL$54)*$AT25,0) -> 0 | CU25: =IF(Input!BM$44>0,(Input!BM$44+Input!BM$54)*$AT25,0) -> 0 | CV25: =IF(Input!BN$44>0,(Input!BN$44+Input!BN$54)*$AT25,0) -> 0 | CW25: =IF(Input!BO$44>0,(Input!BO$44+Input!BO$54)*$AT25,0) -> 0 | CX25: =IF(Input!BP$44>0,(Input!BP$44+Input!BP$54)*$AT25,0) -> 0 | CY25: =IF(Input!BQ$44>0,(Input!BQ$44+Input!BQ$54)*$AT25,0) -> 0 | CZ25: 23.88298541 | DA25: 0 | DB25: 0 | DC25: =IF(Input!BU$44>0,(Input!BU$44+Input!BU$54)*$AT25,0) -> 0 | DD25: =IF(Input!BV$44>0,(Input!BV$44+Input!BV$54)*$AT25,0) -> 0 | DE25: =IF(Input!BW$44>0,(Input!BW$44+Input!BW$54)*$AT25,0) -> 0 | DF25: =IF(Input!BX$44>0,(Input!BX$44+Input!BX$54)*$AT25,0) -> 0 | DG25: =IF(Input!BY$44>0,(Input!BY$44+Input!BY$54)*$AT25,0) -> 0 | DH25: =IF(Input!BZ$44>0,(Input!BZ$44+Input!BZ$54)*$AT25,0) -> 0 | DI25: =IF(Input!CA$44>0,(Input!CA$44+Input!CA$54)*$AT25,0) -> 0 | DJ25: 0 | DK25: 0 | DL25: 0 | DM25: 0 | DN25: =IF(Output!$H$2='Inputs & Utility Cost'!$B$41,('Inputs & Utility Cost'!$C$41*(J25+T25+AD25+AN25+AX25+BF25+BP25+BZ25+CJ25+CT25+DD25)),IF(Output!$H$2='Inputs & Utility Cost'!$B$42,('Inputs & Utility Cost'!$C$42*('Inputs & Utility Cost'!$C$41*(J25+T25+AD25+AN25+AX25+BF25+BP25+BZ25+CJ25+CT25+DD25))),(J25+T25+AD25+AN25+AX25+BF25+BP25+BZ25+CJ25+CT25+DD25))) -> 0 | DO25: =IF(Output!$H$2='Inputs & Utility Cost'!$B$41,('Inputs & Utility Cost'!$C$41*(K25+U25+AE25+AO25+AY25+BG25+BQ25+CA25+CK25+CU25+DE25)),IF(Output!$H$2='Inputs & Utility Cost'!$B$42,('Inputs & Utility Cost'!$C$42*('Inputs & Utility Cost'!$C$41*(K25+U25+AE25+AO25+AY25+BG25+BQ25+CA25+CK25+CU25+DE25))),(K25+U25+AE25+AO25+AY25+BG25+BQ25+CA25+CK25+CU25+DE25))) -> 0 | DP25: =IF(Output!$H$2='Inputs & Utility Cost'!$B$41,('Inputs & Utility Cost'!$C$41*(L25+V25+AF25+AP25+AZ25+BH25+BR25+CB25+CL25+CV25+DF25)),IF(Output!$H$2='Inputs & Utility Cost'!$B$42,('Inputs & Utility Cost'!$C$42*('Inputs & Utility Cost'!$C$41*(L25+V25+AF25+AP25+AZ25+BH25+BR25+CB25+CL25+CV25+DF25))),(L25+V25+AF25+AP25+AZ25+BH25+BR25+CB25+CL25+CV25+DF25))) -> 0 | DQ25: =IF(Output!$H$2='Inputs & Utility Cost'!$B$41,('Inputs & Utility Cost'!$C$41*(M25+W25+AG25+AQ25+BA25+BI25+BS25+CC25+CM25+CW25+DG25)),IF(Output!$H$2='Inputs & Utility Cost'!$B$42,('Inputs & Utility Cost'!$C$42*('Inputs & Utility Cost'!$C$41*(M25+W25+AG25+AQ25+BA25+BI25+BS25+CC25+CM25+CW25+DG25))),(M25+W25+AG25+AQ25+BA25+BI25+BS25+CC25+CM25+CW25+DG25))) -> 0 | DR25: =IF(Output!$H$2='Inputs & Utility Cost'!$B$41,('Inputs & Utility Cost'!$C$41*(N25+X25+AH25+AR25+BB25+BJ25+BT25+CD25+CN25+CX25+DH25)),IF(Output!$H$2='Inputs & Utility Cost'!$B$42,('Inputs & Utility Cost'!$C$42*('Inputs & Utility Cost'!$C$41*(N25+X25+AH25+AR25+BB25+BJ25+BT25+CD25+CN25+CX25+DH25))),(N25+X25+AH25+AR25+BB25+BJ25+BT25+CD25+CN25+CX25+DH25))) -> 0 | DS25: =IF(Output!$H$2='Inputs & Utility Cost'!$B$41,('Inputs & Utility Cost'!$C$41*(O25+Y25+AI25+AS25+BC25+BK25+BU25+CE25+CO25+CY25+DI25)),IF(Output!$H$2='Inputs & Utility Cost'!$B$42,('Inputs & Utility Cost'!$C$42*('Inputs & Utility Cost'!$C$41*(O25+Y25+AI25+AS25+BC25+BK25+BU25+CE25+CO25+CY25+DI25))),(O25+Y25+AI25+AS25+BC25+BK25+BU25+CE25+CO25+CY25+DI25))) -> 0
B26: RNG price - assumed annual escalation | C26: >> | F26: Market intelligence, see row above; nat gas assumptions re rate escalation serves as proxy RNG rate escalation | H26: 2038 | I26: =$P26*Input!$E$41 -> 0 | J26: =$P26*Input!$F$41 -> 0 | K26: =$P26*Input!$G$41 -> 0 | L26: =$P26*Input!$H$41 -> 0 | M26: =$P26*Input!$I$41 -> 0 | N26: =$P26*Input!$J$41 -> 0 | O26: =$P26*Input!$K$41 -> 0 | P26: 0.519195335 | Q26: 0 | R26: 0 | S26: =IF(Input!$E$35>0,(Input!E$35+Input!E$53)*$Z26,0) -> 0 | T26: =IF(Input!$F$35>0,(Input!F$35+Input!F$53)*$Z26,0) -> 0 | U26: =IF(Input!$G$35>0,(Input!G$35+Input!G$53)*$Z26,0) -> 0 | V26: =IF(Input!$H$35>0,(Input!H$35+Input!H$53)*$Z26,0) -> 0 | W26: =IF(Input!$I$35>0,(Input!I$35+Input!I$53)*$Z26,0) -> 0 | X26: =IF(Input!$J$35>0,(Input!J$35+Input!J$53)*$Z26,0) -> 0 | Y26: =IF(Input!$K$35>0,(Input!K$35+Input!K$53)*$Z26,0) -> 0 | Z26: 0.1139433187 | AA26: 0.1311476113 | AB26: 0.1128537582 | AC26: =IF(Input!E$33>0,(Input!E$33+Input!E$53)*$AJ26,0) -> 0 | AD26: =IF(Input!F$33>0,(Input!F$33+Input!F$53)*$AJ26,0) -> 0 | AE26: =IF(Input!G$33>0,(Input!G$33+Input!G$53)*$AJ26,0) -> 0 | AF26: =IF(Input!H$33>0,(Input!H$33+Input!H$53)*$AJ26,0) -> 0 | AG26: =IF(Input!I$33>0,(Input!I$33+Input!I$53)*$AJ26,0) -> 0 | AH26: =IF(Input!J$33>0,(Input!J$33+Input!J$53)*$AJ26,0) -> 0 | AI26: =IF(Input!K$33>0,(Input!K$33+Input!K$53)*$AJ26,0) -> 0 | AJ26: 0.1139433187 | AK26: 0.1311476113 | AL26: 0.1128537582 | AM26: =IF(Input!E$44>0,(Input!E$44+Input!E$54)*$AT26,0) -> 0 | AN26: =IF(Input!F$44>0,(Input!F$44+Input!F$54)*$AT26,0) -> 0 | AO26: =IF(Input!G$44>0,(Input!G$44+Input!G$54)*$AT26,0) -> 0 | AP26: =IF(Input!H$44>0,(Input!H$44+Input!H$54)*$AT26,0) -> 0 | AQ26: =IF(Input!I$44>0,(Input!I$44+Input!I$54)*$AT26,0) -> 0 | AR26: =IF(Input!J$44>0,(Input!J$44+Input!J$54)*$AT26,0) -> 0 | AS26: =IF(Input!K$44>0,(Input!K$44+Input!K$54)*$AT26,0) -> 0 | AT26: 23.88298541 | AU26: 27.1930003 | AV26: 23.30564301 | AW26: =IF(Input!E$46>0,(Input!E$46+Input!E$54)*$BD26,0) -> 0 | AX26: =IF(Input!F$46>0,(Input!F$46+Input!F$54)*$BD26,0) -> 0 | AY26: =IF(Input!G$46>0,(Input!G$46+Input!G$54)*$BD26,0) -> 0 | AZ26: =IF(Input!H$46>0,(Input!H$46+Input!H$54)*$BD26,0) -> 0 | BA26: =IF(Input!I$46>0,(Input!I$46+Input!I$54)*$BD26,0) -> 0 | BB26: =IF(Input!J$46>0,(Input!J$46+Input!J$54)*$BD26,0) -> 0 | BC26: =IF(Input!K$46>0,(Input!K$46+Input!K$54)*$BD26,0) -> 0 | BD26: 23.88298541 | BE26: =IF(Input!E$37>0,(Input!E$37+Input!E$53)*$AJ26,0) -> 0 | BF26: =IF(Input!F$37>0,(Input!F$37+Input!F$53)*$AJ26,0) -> 0 | BG26: =IF(Input!G$37>0,(Input!G$37+Input!G$53)*$AJ26,0) -> 0 | BH26: =IF(Input!H$37>0,(Input!H$37+Input!H$53)*$AJ26,0) -> 0 | BI26: =IF(Input!I$37>0,(Input!I$37+Input!I$53)*$AJ26,0) -> 0 | BJ26: =IF(Input!J$37>0,(Input!J$37+Input!J$53)*$AJ26,0) -> 0 | BK26: =IF(Input!K$37>0,(Input!K$37+Input!K$53)*$AJ26,0) -> 0 | BL26: 0.1139433187 | BM26: 0 | BN26: 0 | BO26: =IF(Input!E$39>0,(Input!E$39+Input!AQ$53)*$BV26,0) -> 0 | BP26: =IF(Input!F$39>0,(Input!F$39+Input!AR$53)*$BV26,0) -> 0 | BQ26: =IF(Input!G$39>0,(Input!G$39+Input!AS$53)*$BV26,0) -> 0 | BR26: =IF(Input!H$39>0,(Input!H$39+Input!AT$53)*$BV26,0) -> 0 | BS26: =IF(Input!I$39>0,(Input!I$39+Input!AU$53)*$BV26,0) -> 0 | BT26: =IF(Input!J$39>0,(Input!J$39+Input!AV$53)*$BV26,0) -> 0 | BU26: =IF(Input!K$39>0,(Input!K$39+Input!AW$53)*$BV26,0) -> 0 | BV26: 0.1139433187 | BW26: 0 | BX26: 0 | BY26: =$CF26*Input!$E$43 -> 0 | BZ26: =$CF26*Input!$E$43 -> 0 | CA26: =$CF26*Input!$E$43 -> 0 | CB26: =$CF26*Input!$E$43 -> 0 | CC26: =$CF26*Input!$E$43 -> 0 | CD26: =$CF26*Input!$E$43 -> 0 | CE26: =$CF26*Input!$E$43 -> 0 | CF26: 0.519195335 | CG26: 0 | CH26: 0 | CI26: =$CP26*Input!$E$42 -> 0 | CJ26: =$CP26*Input!$E$42 -> 0 | CK26: =$CP26*Input!$E$42 -> 0 | CL26: =$CP26*Input!$E$42 -> 0 | CM26: =$CP26*Input!$E$42 -> 0 | CN26: =$CP26*Input!$E$42 -> 0 | CO26: =$CP26*Input!$E$42 -> 0 | CP26: 0.519195335 | CQ26: 0 | CR26: 0 | CS26: =IF(Input!BK$44>0,(Input!BK$44+Input!BK$54)*$AT26,0) -> 0 | CT26: =IF(Input!BL$44>0,(Input!BL$44+Input!BL$54)*$AT26,0) -> 0 | CU26: =IF(Input!BM$44>0,(Input!BM$44+Input!BM$54)*$AT26,0) -> 0 | CV26: =IF(Input!BN$44>0,(Input!BN$44+Input!BN$54)*$AT26,0) -> 0 | CW26: =IF(Input!BO$44>0,(Input!BO$44+Input!BO$54)*$AT26,0) -> 0 | CX26: =IF(Input!BP$44>0,(Input!BP$44+Input!BP$54)*$AT26,0) -> 0 | CY26: =IF(Input!BQ$44>0,(Input!BQ$44+Input!BQ$54)*$AT26,0) -> 0 | CZ26: 24.61619306 | DA26: 0 | DB26: 0 | DC26: =IF(Input!BU$44>0,(Input!BU$44+Input!BU$54)*$AT26,0) -> 0 | DD26: =IF(Input!BV$44>0,(Input!BV$44+Input!BV$54)*$AT26,0) -> 0 | DE26: =IF(Input!BW$44>0,(Input!BW$44+Input!BW$54)*$AT26,0) -> 0 | DF26: =IF(Input!BX$44>0,(Input!BX$44+Input!BX$54)*$AT26,0) -> 0 | DG26: =IF(Input!BY$44>0,(Input!BY$44+Input!BY$54)*$AT26,0) -> 0 | DH26: =IF(Input!BZ$44>0,(Input!BZ$44+Input!BZ$54)*$AT26,0) -> 0 | DI26: =IF(Input!CA$44>0,(Input!CA$44+Input!CA$54)*$AT26,0) -> 0 | DJ26: 0 | DK26: 0 | DL26: 0 | DM26: 0 | DN26: =IF(Output!$H$2='Inputs & Utility Cost'!$B$41,('Inputs & Utility Cost'!$C$41*(J26+T26+AD26+AN26+AX26+BF26+BP26+BZ26+CJ26+CT26+DD26)),IF(Output!$H$2='Inputs & Utility Cost'!$B$42,('Inputs & Utility Cost'!$C$42*('Inputs & Utility Cost'!$C$41*(J26+T26+AD26+AN26+AX26+BF26+BP26+BZ26+CJ26+CT26+DD26))),(J26+T26+AD26+AN26+AX26+BF26+BP26+BZ26+CJ26+CT26+DD26))) -> 0 | DO26: =IF(Output!$H$2='Inputs & Utility Cost'!$B$41,('Inputs & Utility Cost'!$C$41*(K26+U26+AE26+AO26+AY26+BG26+BQ26+CA26+CK26+CU26+DE26)),IF(Output!$H$2='Inputs & Utility Cost'!$B$42,('Inputs & Utility Cost'!$C$42*('Inputs & Utility Cost'!$C$41*(K26+U26+AE26+AO26+AY26+BG26+BQ26+CA26+CK26+CU26+DE26))),(K26+U26+AE26+AO26+AY26+BG26+BQ26+CA26+CK26+CU26+DE26))) -> 0 | DP26: =IF(Output!$H$2='Inputs & Utility Cost'!$B$41,('Inputs & Utility Cost'!$C$41*(L26+V26+AF26+AP26+AZ26+BH26+BR26+CB26+CL26+CV26+DF26)),IF(Output!$H$2='Inputs & Utility Cost'!$B$42,('Inputs & Utility Cost'!$C$42*('Inputs & Utility Cost'!$C$41*(L26+V26+AF26+AP26+AZ26+BH26+BR26+CB26+CL26+CV26+DF26))),(L26+V26+AF26+AP26+AZ26+BH26+BR26+CB26+CL26+CV26+DF26))) -> 0 | DQ26: =IF(Output!$H$2='Inputs & Utility Cost'!$B$41,('Inputs & Utility Cost'!$C$41*(M26+W26+AG26+AQ26+BA26+BI26+BS26+CC26+CM26+CW26+DG26)),IF(Output!$H$2='Inputs & Utility Cost'!$B$42,('Inputs & Utility Cost'!$C$42*('Inputs & Utility Cost'!$C$41*(M26+W26+AG26+AQ26+BA26+BI26+BS26+CC26+CM26+CW26+DG26))),(M26+W26+AG26+AQ26+BA26+BI26+BS26+CC26+CM26+CW26+DG26))) -> 0 | DR26: =IF(Output!$H$2='Inputs & Utility Cost'!$B$41,('Inputs & Utility Cost'!$C$41*(N26+X26+AH26+AR26+BB26+BJ26+BT26+CD26+CN26+CX26+DH26)),IF(Output!$H$2='Inputs & Utility Cost'!$B$42,('Inputs & Utility Cost'!$C$42*('Inputs & Utility Cost'!$C$41*(N26+X26+AH26+AR26+BB26+BJ26+BT26+CD26+CN26+CX26+DH26))),(N26+X26+AH26+AR26+BB26+BJ26+BT26+CD26+CN26+CX26+DH26))) -> 0 | DS26: =IF(Output!$H$2='Inputs & Utility Cost'!$B$41,('Inputs & Utility Cost'!$C$41*(O26+Y26+AI26+AS26+BC26+BK26+BU26+CE26+CO26+CY26+DI26)),IF(Output!$H$2='Inputs & Utility Cost'!$B$42,('Inputs & Utility Cost'!$C$42*('Inputs & Utility Cost'!$C$41*(O26+Y26+AI26+AS26+BC26+BK26+BU26+CE26+CO26+CY26+DI26))),(O26+Y26+AI26+AS26+BC26+BK26+BU26+CE26+CO26+CY26+DI26))) -> 0
B27: Steam: present day price | C27: 15.64 | F27: From U-M website | H27: 2039 | I27: =$P27*Input!$E$41 -> 0 | J27: =$P27*Input!$F$41 -> 0 | K27: =$P27*Input!$G$41 -> 0 | L27: =$P27*Input!$H$41 -> 0 | M27: =$P27*Input!$I$41 -> 0 | N27: =$P27*Input!$J$41 -> 0 | O27: =$P27*Input!$K$41 -> 0 | P27: 0.5351346318 | Q27: 0 | R27: 0 | S27: =IF(Input!$E$35>0,(Input!E$35+Input!E$53)*$Z27,0) -> 0 | T27: =IF(Input!$F$35>0,(Input!F$35+Input!F$53)*$Z27,0) -> 0 | U27: =IF(Input!$G$35>0,(Input!G$35+Input!G$53)*$Z27,0) -> 0 | V27: =IF(Input!$H$35>0,(Input!H$35+Input!H$53)*$Z27,0) -> 0 | W27: =IF(Input!$I$35>0,(Input!I$35+Input!I$53)*$Z27,0) -> 0 | X27: =IF(Input!$J$35>0,(Input!J$35+Input!J$53)*$Z27,0) -> 0 | Y27: =IF(Input!$K$35>0,(Input!K$35+Input!K$53)*$Z27,0) -> 0 | Z27: 0.116256368 | AA27: 0.1351607283 | AB27: 0.1150656919 | AC27: =IF(Input!E$33>0,(Input!E$33+Input!E$53)*$AJ27,0) -> 0 | AD27: =IF(Input!F$33>0,(Input!F$33+Input!F$53)*$AJ27,0) -> 0 | AE27: =IF(Input!G$33>0,(Input!G$33+Input!G$53)*$AJ27,0) -> 0 | AF27: =IF(Input!H$33>0,(Input!H$33+Input!H$53)*$AJ27,0) -> 0 | AG27: =IF(Input!I$33>0,(Input!I$33+Input!I$53)*$AJ27,0) -> 0 | AH27: =IF(Input!J$33>0,(Input!J$33+Input!J$53)*$AJ27,0) -> 0 | AI27: =IF(Input!K$33>0,(Input!K$33+Input!K$53)*$AJ27,0) -> 0 | AJ27: 0.116256368 | AK27: 0.1351607283 | AL27: 0.1150656919 | AM27: =IF(Input!E$44>0,(Input!E$44+Input!E$54)*$AT27,0) -> 0 | AN27: =IF(Input!F$44>0,(Input!F$44+Input!F$54)*$AT27,0) -> 0 | AO27: =IF(Input!G$44>0,(Input!G$44+Input!G$54)*$AT27,0) -> 0 | AP27: =IF(Input!H$44>0,(Input!H$44+Input!H$54)*$AT27,0) -> 0 | AQ27: =IF(Input!I$44>0,(Input!I$44+Input!I$54)*$AT27,0) -> 0 | AR27: =IF(Input!J$44>0,(Input!J$44+Input!J$54)*$AT27,0) -> 0 | AS27: =IF(Input!K$44>0,(Input!K$44+Input!K$54)*$AT27,0) -> 0 | AT27: 24.61619306 | AU27: 28.28887822 | AV27: 23.9791761 | AW27: =IF(Input!E$46>0,(Input!E$46+Input!E$54)*$BD27,0) -> 0 | AX27: =IF(Input!F$46>0,(Input!F$46+Input!F$54)*$BD27,0) -> 0 | AY27: =IF(Input!G$46>0,(Input!G$46+Input!G$54)*$BD27,0) -> 0 | AZ27: =IF(Input!H$46>0,(Input!H$46+Input!H$54)*$BD27,0) -> 0 | BA27: =IF(Input!I$46>0,(Input!I$46+Input!I$54)*$BD27,0) -> 0 | BB27: =IF(Input!J$46>0,(Input!J$46+Input!J$54)*$BD27,0) -> 0 | BC27: =IF(Input!K$46>0,(Input!K$46+Input!K$54)*$BD27,0) -> 0 | BD27: 24.61619306 | BE27: =IF(Input!E$37>0,(Input!E$37+Input!E$53)*$AJ27,0) -> 0 | BF27: =IF(Input!F$37>0,(Input!F$37+Input!F$53)*$AJ27,0) -> 0 | BG27: =IF(Input!G$37>0,(Input!G$37+Input!G$53)*$AJ27,0) -> 0 | BH27: =IF(Input!H$37>0,(Input!H$37+Input!H$53)*$AJ27,0) -> 0 | BI27: =IF(Input!I$37>0,(Input!I$37+Input!I$53)*$AJ27,0) -> 0 | BJ27: =IF(Input!J$37>0,(Input!J$37+Input!J$53)*$AJ27,0) -> 0 | BK27: =IF(Input!K$37>0,(Input!K$37+Input!K$53)*$AJ27,0) -> 0 | BL27: 0.116256368 | BM27: 0 | BN27: 0 | BO27: =IF(Input!E$39>0,(Input!E$39+Input!AQ$53)*$BV27,0) -> 0 | BP27: =IF(Input!F$39>0,(Input!F$39+Input!AR$53)*$BV27,0) -> 0 | BQ27: =IF(Input!G$39>0,(Input!G$39+Input!AS$53)*$BV27,0) -> 0 | BR27: =IF(Input!H$39>0,(Input!H$39+Input!AT$53)*$BV27,0) -> 0 | BS27: =IF(Input!I$39>0,(Input!I$39+Input!AU$53)*$BV27,0) -> 0 | BT27: =IF(Input!J$39>0,(Input!J$39+Input!AV$53)*$BV27,0) -> 0 | BU27: =IF(Input!K$39>0,(Input!K$39+Input!AW$53)*$BV27,0) -> 0 | BV27: 0.116256368 | BW27: 0 | BX27: 0 | BY27: =$CF27*Input!$E$43 -> 0 | BZ27: =$CF27*Input!$E$43 -> 0 | CA27: =$CF27*Input!$E$43 -> 0 | CB27: =$CF27*Input!$E$43 -> 0 | CC27: =$CF27*Input!$E$43 -> 0 | CD27: =$CF27*Input!$E$43 -> 0 | CE27: =$CF27*Input!$E$43 -> 0 | CF27: 0.5351346318 | CG27: 0 | CH27: 0 | CI27: =$CP27*Input!$E$42 -> 0 | CJ27: =$CP27*Input!$E$42 -> 0 | CK27: =$CP27*Input!$E$42 -> 0 | CL27: =$CP27*Input!$E$42 -> 0 | CM27: =$CP27*Input!$E$42 -> 0 | CN27: =$CP27*Input!$E$42 -> 0 | CO27: =$CP27*Input!$E$42 -> 0 | CP27: 0.5351346318 | CQ27: 0 | CR27: 0 | CS27: =IF(Input!BK$44>0,(Input!BK$44+Input!BK$54)*$AT27,0) -> 0 | CT27: =IF(Input!BL$44>0,(Input!BL$44+Input!BL$54)*$AT27,0) -> 0 | CU27: =IF(Input!BM$44>0,(Input!BM$44+Input!BM$54)*$AT27,0) -> 0 | CV27: =IF(Input!BN$44>0,(Input!BN$44+Input!BN$54)*$AT27,0) -> 0 | CW27: =IF(Input!BO$44>0,(Input!BO$44+Input!BO$54)*$AT27,0) -> 0 | CX27: =IF(Input!BP$44>0,(Input!BP$44+Input!BP$54)*$AT27,0) -> 0 | CY27: =IF(Input!BQ$44>0,(Input!BQ$44+Input!BQ$54)*$AT27,0) -> 0 | CZ27: 25.37191019 | DA27: 0 | DB27: 0 | DC27: =IF(Input!BU$44>0,(Input!BU$44+Input!BU$54)*$AT27,0) -> 0 | DD27: =IF(Input!BV$44>0,(Input!BV$44+Input!BV$54)*$AT27,0) -> 0 | DE27: =IF(Input!BW$44>0,(Input!BW$44+Input!BW$54)*$AT27,0) -> 0 | DF27: =IF(Input!BX$44>0,(Input!BX$44+Input!BX$54)*$AT27,0) -> 0 | DG27: =IF(Input!BY$44>0,(Input!BY$44+Input!BY$54)*$AT27,0) -> 0 | DH27: =IF(Input!BZ$44>0,(Input!BZ$44+Input!BZ$54)*$AT27,0) -> 0 | DI27: =IF(Input!CA$44>0,(Input!CA$44+Input!CA$54)*$AT27,0) -> 0 | DJ27: 0 | DK27: 0 | DL27: 0 | DM27: 0 | DN27: =IF(Output!$H$2='Inputs & Utility Cost'!$B$41,('Inputs & Utility Cost'!$C$41*(J27+T27+AD27+AN27+AX27+BF27+BP27+BZ27+CJ27+CT27+DD27)),IF(Output!$H$2='Inputs & Utility Cost'!$B$42,('Inputs & Utility Cost'!$C$42*('Inputs & Utility Cost'!$C$41*(J27+T27+AD27+AN27+AX27+BF27+BP27+BZ27+CJ27+CT27+DD27))),(J27+T27+AD27+AN27+AX27+BF27+BP27+BZ27+CJ27+CT27+DD27))) -> 0 | DO27: =IF(Output!$H$2='Inputs & Utility Cost'!$B$41,('Inputs & Utility Cost'!$C$41*(K27+U27+AE27+AO27+AY27+BG27+BQ27+CA27+CK27+CU27+DE27)),IF(Output!$H$2='Inputs & Utility Cost'!$B$42,('Inputs & Utility Cost'!$C$42*('Inputs & Utility Cost'!$C$41*(K27+U27+AE27+AO27+AY27+BG27+BQ27+CA27+CK27+CU27+DE27))),(K27+U27+AE27+AO27+AY27+BG27+BQ27+CA27+CK27+CU27+DE27))) -> 0 | DP27: =IF(Output!$H$2='Inputs & Utility Cost'!$B$41,('Inputs & Utility Cost'!$C$41*(L27+V27+AF27+AP27+AZ27+BH27+BR27+CB27+CL27+CV27+DF27)),IF(Output!$H$2='Inputs & Utility Cost'!$B$42,('Inputs & Utility Cost'!$C$42*('Inputs & Utility Cost'!$C$41*(L27+V27+AF27+AP27+AZ27+BH27+BR27+CB27+CL27+CV27+DF27))),(L27+V27+AF27+AP27+AZ27+BH27+BR27+CB27+CL27+CV27+DF27))) -> 0 | DQ27: =IF(Output!$H$2='Inputs & Utility Cost'!$B$41,('Inputs & Utility Cost'!$C$41*(M27+W27+AG27+AQ27+BA27+BI27+BS27+CC27+CM27+CW27+DG27)),IF(Output!$H$2='Inputs & Utility Cost'!$B$42,('Inputs & Utility Cost'!$C$42*('Inputs & Utility Cost'!$C$41*(M27+W27+AG27+AQ27+BA27+BI27+BS27+CC27+CM27+CW27+DG27))),(M27+W27+AG27+AQ27+BA27+BI27+BS27+CC27+CM27+CW27+DG27))) -> 0 | DR27: =IF(Output!$H$2='Inputs & Utility Cost'!$B$41,('Inputs & Utility Cost'!$C$41*(N27+X27+AH27+AR27+BB27+BJ27+BT27+CD27+CN27+CX27+DH27)),IF(Output!$H$2='Inputs & Utility Cost'!$B$42,('Inputs & Utility Cost'!$C$42*('Inputs & Utility Cost'!$C$41*(N27+X27+AH27+AR27+BB27+BJ27+BT27+CD27+CN27+CX27+DH27))),(N27+X27+AH27+AR27+BB27+BJ27+BT27+CD27+CN27+CX27+DH27))) -> 0 | DS27: =IF(Output!$H$2='Inputs & Utility Cost'!$B$41,('Inputs & Utility Cost'!$C$41*(O27+Y27+AI27+AS27+BC27+BK27+BU27+CE27+CO27+CY27+DI27)),IF(Output!$H$2='Inputs & Utility Cost'!$B$42,('Inputs & Utility Cost'!$C$42*('Inputs & Utility Cost'!$C$41*(O27+Y27+AI27+AS27+BC27+BK27+BU27+CE27+CO27+CY27+DI27))),(O27+Y27+AI27+AS27+BC27+BK27+BU27+CE27+CO27+CY27+DI27))) -> 0
H28: 2040 | I28: =$P28*Input!$E$41 -> 0 | J28: =$P28*Input!$F$41 -> 0 | K28: =$P28*Input!$G$41 -> 0 | L28: =$P28*Input!$H$41 -> 0 | M28: =$P28*Input!$I$41 -> 0 | N28: =$P28*Input!$J$41 -> 0 | O28: =$P28*Input!$K$41 -> 0 | P28: =P27+(P27*$C$22) -> 0.551563265 | Q28: 0 | R28: 0 | S28: =IF(Input!$E$35>0,(Input!E$35+Input!E$53)*$Z28,0) -> 0 | T28: =IF(Input!$F$35>0,(Input!F$35+Input!F$53)*$Z28,0) -> 0 | U28: =IF(Input!$G$35>0,(Input!G$35+Input!G$53)*$Z28,0) -> 0 | V28: =IF(Input!$H$35>0,(Input!H$35+Input!H$53)*$Z28,0) -> 0 | W28: =IF(Input!$I$35>0,(Input!I$35+Input!I$53)*$Z28,0) -> 0 | X28: =IF(Input!$J$35>0,(Input!J$35+Input!J$53)*$Z28,0) -> 0 | Y28: =IF(Input!$K$35>0,(Input!K$35+Input!K$53)*$Z28,0) -> 0 | Z28: 0.1186163723 | AA28: 0.1392966465 | AB28: 0.1173209794 | AC28: =IF(Input!E$33>0,(Input!E$33+Input!E$53)*$AJ28,0) -> 0 | AD28: =IF(Input!F$33>0,(Input!F$33+Input!F$53)*$AJ28,0) -> 0 | AE28: =IF(Input!G$33>0,(Input!G$33+Input!G$53)*$AJ28,0) -> 0 | AF28: =IF(Input!H$33>0,(Input!H$33+Input!H$53)*$AJ28,0) -> 0 | AG28: =IF(Input!I$33>0,(Input!I$33+Input!I$53)*$AJ28,0) -> 0 | AH28: =IF(Input!J$33>0,(Input!J$33+Input!J$53)*$AJ28,0) -> 0 | AI28: =IF(Input!K$33>0,(Input!K$33+Input!K$53)*$AJ28,0) -> 0 | AJ28: 0.1186163723 | AK28: 0.1392966465 | AL28: 0.1173209794 | AM28: =IF(Input!E$44>0,(Input!E$44+Input!E$54)*$AT28,0) -> 0 | AN28: =IF(Input!F$44>0,(Input!F$44+Input!F$54)*$AT28,0) -> 0 | AO28: =IF(Input!G$44>0,(Input!G$44+Input!G$54)*$AT28,0) -> 0 | AP28: =IF(Input!H$44>0,(Input!H$44+Input!H$54)*$AT28,0) -> 0 | AQ28: =IF(Input!I$44>0,(Input!I$44+Input!I$54)*$AT28,0) -> 0 | AR28: =IF(Input!J$44>0,(Input!J$44+Input!J$54)*$AT28,0) -> 0 | AS28: =IF(Input!K$44>0,(Input!K$44+Input!K$54)*$AT28,0) -> 0 | AT28: 25.37191019 | AU28: 29.42892001 | AV28: 24.67217429 | AW28: =IF(Input!E$46>0,(Input!E$46+Input!E$54)*$BD28,0) -> 0 | AX28: =IF(Input!F$46>0,(Input!F$46+Input!F$54)*$BD28,0) -> 0 | AY28: =IF(Input!G$46>0,(Input!G$46+Input!G$54)*$BD28,0) -> 0 | AZ28: =IF(Input!H$46>0,(Input!H$46+Input!H$54)*$BD28,0) -> 0 | BA28: =IF(Input!I$46>0,(Input!I$46+Input!I$54)*$BD28,0) -> 0 | BB28: =IF(Input!J$46>0,(Input!J$46+Input!J$54)*$BD28,0) -> 0 | BC28: =IF(Input!K$46>0,(Input!K$46+Input!K$54)*$BD28,0) -> 0 | BD28: 25.37191019 | BE28: =IF(Input!E$37>0,(Input!E$37+Input!E$53)*$AJ28,0) -> 0 | BF28: =IF(Input!F$37>0,(Input!F$37+Input!F$53)*$AJ28,0) -> 0 | BG28: =IF(Input!G$37>0,(Input!G$37+Input!G$53)*$AJ28,0) -> 0 | BH28: =IF(Input!H$37>0,(Input!H$37+Input!H$53)*$AJ28,0) -> 0 | BI28: =IF(Input!I$37>0,(Input!I$37+Input!I$53)*$AJ28,0) -> 0 | BJ28: =IF(Input!J$37>0,(Input!J$37+Input!J$53)*$AJ28,0) -> 0 | BK28: =IF(Input!K$37>0,(Input!K$37+Input!K$53)*$AJ28,0) -> 0 | BL28: 0.1186163723 | BM28: 0 | BN28: 0 | BO28: =IF(Input!E$39>0,(Input!E$39+Input!AQ$53)*$BV28,0) -> 0 | BP28: =IF(Input!F$39>0,(Input!F$39+Input!AR$53)*$BV28,0) -> 0 | BQ28: =IF(Input!G$39>0,(Input!G$39+Input!AS$53)*$BV28,0) -> 0 | BR28: =IF(Input!H$39>0,(Input!H$39+Input!AT$53)*$BV28,0) -> 0 | BS28: =IF(Input!I$39>0,(Input!I$39+Input!AU$53)*$BV28,0) -> 0 | BT28: =IF(Input!J$39>0,(Input!J$39+Input!AV$53)*$BV28,0) -> 0 | BU28: =IF(Input!K$39>0,(Input!K$39+Input!AW$53)*$BV28,0) -> 0 | BV28: 0.1186163723 | BW28: 0 | BX28: 0 | BY28: =$CF28*Input!$E$43 -> 0 | BZ28: =$CF28*Input!$E$43 -> 0 | CA28: =$CF28*Input!$E$43 -> 0 | CB28: =$CF28*Input!$E$43 -> 0 | CC28: =$CF28*Input!$E$43 -> 0 | CD28: =$CF28*Input!$E$43 -> 0 | CE28: =$CF28*Input!$E$43 -> 0 | CF28: =CF27+(CF27*$C$22) -> 0.551563265 | CG28: 0 | CH28: 0 | CI28: =$CP28*Input!$E$42 -> 0 | CJ28: =$CP28*Input!$E$42 -> 0 | CK28: =$CP28*Input!$E$42 -> 0 | CL28: =$CP28*Input!$E$42 -> 0 | CM28: =$CP28*Input!$E$42 -> 0 | CN28: =$CP28*Input!$E$42 -> 0 | CO28: =$CP28*Input!$E$42 -> 0 | CP28: =CP27+(CP27*$C$22) -> 0.551563265 | CQ28: 0 | CR28: 0 | CS28: =IF(Input!BK$44>0,(Input!BK$44+Input!BK$54)*$AT28,0) -> 0 | CT28: =IF(Input!BL$44>0,(Input!BL$44+Input!BL$54)*$AT28,0) -> 0 | CU28: =IF(Input!BM$44>0,(Input!BM$44+Input!BM$54)*$AT28,0) -> 0 | CV28: =IF(Input!BN$44>0,(Input!BN$44+Input!BN$54)*$AT28,0) -> 0 | CW28: =IF(Input!BO$44>0,(Input!BO$44+Input!BO$54)*$AT28,0) -> 0 | CX28: =IF(Input!BP$44>0,(Input!BP$44+Input!BP$54)*$AT28,0) -> 0 | CY28: =IF(Input!BQ$44>0,(Input!BQ$44+Input!BQ$54)*$AT28,0) -> 0 | CZ28: =CZ27+(CZ27*$C$22) -> 26.15082783 | DA28: 0 | DB28: 0 | DC28: =IF(Input!BU$44>0,(Input!BU$44+Input!BU$54)*$AT28,0) -> 0 | DD28: =IF(Input!BV$44>0,(Input!BV$44+Input!BV$54)*$AT28,0) -> 0 | DE28: =IF(Input!BW$44>0,(Input!BW$44+Input!BW$54)*$AT28,0) -> 0 | DF28: =IF(Input!BX$44>0,(Input!BX$44+Input!BX$54)*$AT28,0) -> 0 | DG28: =IF(Input!BY$44>0,(Input!BY$44+Input!BY$54)*$AT28,0) -> 0 | DH28: =IF(Input!BZ$44>0,(Input!BZ$44+Input!BZ$54)*$AT28,0) -> 0 | DI28: =IF(Input!CA$44>0,(Input!CA$44+Input!CA$54)*$AT28,0) -> 0 | DJ28: 0 | DK28: 0 | DL28: 0 | DM28: 0 | DN28: =IF(Output!$H$2='Inputs & Utility Cost'!$B$41,('Inputs & Utility Cost'!$C$41*(J28+T28+AD28+AN28+AX28+BF28+BP28+BZ28+CJ28+CT28+DD28)),IF(Output!$H$2='Inputs & Utility Cost'!$B$42,('Inputs & Utility Cost'!$C$42*('Inputs & Utility Cost'!$C$41*(J28+T28+AD28+AN28+AX28+BF28+BP28+BZ28+CJ28+CT28+DD28))),(J28+T28+AD28+AN28+AX28+BF28+BP28+BZ28+CJ28+CT28+DD28))) -> 0 | DO28: =IF(Output!$H$2='Inputs & Utility Cost'!$B$41,('Inputs & Utility Cost'!$C$41*(K28+U28+AE28+AO28+AY28+BG28+BQ28+CA28+CK28+CU28+DE28)),IF(Output!$H$2='Inputs & Utility Cost'!$B$42,('Inputs & Utility Cost'!$C$42*('Inputs & Utility Cost'!$C$41*(K28+U28+AE28+AO28+AY28+BG28+BQ28+CA28+CK28+CU28+DE28))),(K28+U28+AE28+AO28+AY28+BG28+BQ28+CA28+CK28+CU28+DE28))) -> 0 | DP28: =IF(Output!$H$2='Inputs & Utility Cost'!$B$41,('Inputs & Utility Cost'!$C$41*(L28+V28+AF28+AP28+AZ28+BH28+BR28+CB28+CL28+CV28+DF28)),IF(Output!$H$2='Inputs & Utility Cost'!$B$42,('Inputs & Utility Cost'!$C$42*('Inputs & Utility Cost'!$C$41*(L28+V28+AF28+AP28+AZ28+BH28+BR28+CB28+CL28+CV28+DF28))),(L28+V28+AF28+AP28+AZ28+BH28+BR28+CB28+CL28+CV28+DF28))) -> 0 | DQ28: =IF(Output!$H$2='Inputs & Utility Cost'!$B$41,('Inputs & Utility Cost'!$C$41*(M28+W28+AG28+AQ28+BA28+BI28+BS28+CC28+CM28+CW28+DG28)),IF(Output!$H$2='Inputs & Utility Cost'!$B$42,('Inputs & Utility Cost'!$C$42*('Inputs & Utility Cost'!$C$41*(M28+W28+AG28+AQ28+BA28+BI28+BS28+CC28+CM28+CW28+DG28))),(M28+W28+AG28+AQ28+BA28+BI28+BS28+CC28+CM28+CW28+DG28))) -> 0 | DR28: =IF(Output!$H$2='Inputs & Utility Cost'!$B$41,('Inputs & Utility Cost'!$C$41*(N28+X28+AH28+AR28+BB28+BJ28+BT28+CD28+CN28+CX28+DH28)),IF(Output!$H$2='Inputs & Utility Cost'!$B$42,('Inputs & Utility Cost'!$C$42*('Inputs & Utility Cost'!$C$41*(N28+X28+AH28+AR28+BB28+BJ28+BT28+CD28+CN28+CX28+DH28))),(N28+X28+AH28+AR28+BB28+BJ28+BT28+CD28+CN28+CX28+DH28))) -> 0 | DS28: =IF(Output!$H$2='Inputs & Utility Cost'!$B$41,('Inputs & Utility Cost'!$C$41*(O28+Y28+AI28+AS28+BC28+BK28+BU28+CE28+CO28+CY28+DI28)),IF(Output!$H$2='Inputs & Utility Cost'!$B$42,('Inputs & Utility Cost'!$C$42*('Inputs & Utility Cost'!$C$41*(O28+Y28+AI28+AS28+BC28+BK28+BU28+CE28+CO28+CY28+DI28))),(O28+Y28+AI28+AS28+BC28+BK28+BU28+CE28+CO28+CY28+DI28))) -> 0
B29: Cost of Carbon ($/MT) | C29: 2766 | F29: PCCA includes a number. | H29: 2041 | I29: =$P29*Input!$E$41 -> 0 | J29: =$P29*Input!$F$41 -> 0 | K29: =$P29*Input!$G$41 -> 0 | L29: =$P29*Input!$H$41 -> 0 | M29: =$P29*Input!$I$41 -> 0 | N29: =$P29*Input!$J$41 -> 0 | O29: =$P29*Input!$K$41 -> 0 | P29: =P28+(P28*$C$22) -> 0.5684962573 | Q29: 0 | R29: 0 | S29: =IF(Input!$E$35>0,(Input!E$35+Input!E$53)*$Z29,0) -> 0 | T29: =IF(Input!$F$35>0,(Input!F$35+Input!F$53)*$Z29,0) -> 0 | U29: =IF(Input!$G$35>0,(Input!G$35+Input!G$53)*$Z29,0) -> 0 | V29: =IF(Input!$H$35>0,(Input!H$35+Input!H$53)*$Z29,0) -> 0 | W29: =IF(Input!$I$35>0,(Input!I$35+Input!I$53)*$Z29,0) -> 0 | X29: =IF(Input!$J$35>0,(Input!J$35+Input!J$53)*$Z29,0) -> 0 | Y29: =IF(Input!$K$35>0,(Input!K$35+Input!K$53)*$Z29,0) -> 0 | Z29: 0.1210242847 | AA29: 0.1435591239 | AB29: 0.1196204706 | AC29: =IF(Input!E$33>0,(Input!E$33+Input!E$53)*$AJ29,0) -> 0 | AD29: =IF(Input!F$33>0,(Input!F$33+Input!F$53)*$AJ29,0) -> 0 | AE29: =IF(Input!G$33>0,(Input!G$33+Input!G$53)*$AJ29,0) -> 0 | AF29: =IF(Input!H$33>0,(Input!H$33+Input!H$53)*$AJ29,0) -> 0 | AG29: =IF(Input!I$33>0,(Input!I$33+Input!I$53)*$AJ29,0) -> 0 | AH29: =IF(Input!J$33>0,(Input!J$33+Input!J$53)*$AJ29,0) -> 0 | AI29: =IF(Input!K$33>0,(Input!K$33+Input!K$53)*$AJ29,0) -> 0 | AJ29: 0.1210242847 | AK29: 0.1435591239 | AL29: 0.1196204706 | AM29: =IF(Input!E$44>0,(Input!E$44+Input!E$54)*$AT29,0) -> 0 | AN29: =IF(Input!F$44>0,(Input!F$44+Input!F$54)*$AT29,0) -> 0 | AO29: =IF(Input!G$44>0,(Input!G$44+Input!G$54)*$AT29,0) -> 0 | AP29: =IF(Input!H$44>0,(Input!H$44+Input!H$54)*$AT29,0) -> 0 | AQ29: =IF(Input!I$44>0,(Input!I$44+Input!I$54)*$AT29,0) -> 0 | AR29: =IF(Input!J$44>0,(Input!J$44+Input!J$54)*$AT29,0) -> 0 | AS29: =IF(Input!K$44>0,(Input!K$44+Input!K$54)*$AT29,0) -> 0 | AT29: =AT28+(AT28*$C$22) -> 26.15082783 | AU29: 30.61490549 | AV29: 25.38520012 | AW29: =IF(Input!E$46>0,(Input!E$46+Input!E$54)*$BD29,0) -> 0 | AX29: =IF(Input!F$46>0,(Input!F$46+Input!F$54)*$BD29,0) -> 0 | AY29: =IF(Input!G$46>0,(Input!G$46+Input!G$54)*$BD29,0) -> 0 | AZ29: =IF(Input!H$46>0,(Input!H$46+Input!H$54)*$BD29,0) -> 0 | BA29: =IF(Input!I$46>0,(Input!I$46+Input!I$54)*$BD29,0) -> 0 | BB29: =IF(Input!J$46>0,(Input!J$46+Input!J$54)*$BD29,0) -> 0 | BC29: =IF(Input!K$46>0,(Input!K$46+Input!K$54)*$BD29,0) -> 0 | BD29: =BD28+(BD28*$C$22) -> 26.15082783 | BE29: =IF(Input!E$37>0,(Input!E$37+Input!E$53)*$AJ29,0) -> 0 | BF29: =IF(Input!F$37>0,(Input!F$37+Input!F$53)*$AJ29,0) -> 0 | BG29: =IF(Input!G$37>0,(Input!G$37+Input!G$53)*$AJ29,0) -> 0 | BH29: =IF(Input!H$37>0,(Input!H$37+Input!H$53)*$AJ29,0) -> 0 | BI29: =IF(Input!I$37>0,(Input!I$37+Input!I$53)*$AJ29,0) -> 0 | BJ29: =IF(Input!J$37>0,(Input!J$37+Input!J$53)*$AJ29,0) -> 0 | BK29: =IF(Input!K$37>0,(Input!K$37+Input!K$53)*$AJ29,0) -> 0 | BL29: 0.1210242847 | BM29: 0 | BN29: 0 | BO29: =IF(Input!E$39>0,(Input!E$39+Input!AQ$53)*$BV29,0) -> 0 | BP29: =IF(Input!F$39>0,(Input!F$39+Input!AR$53)*$BV29,0) -> 0 | BQ29: =IF(Input!G$39>0,(Input!G$39+Input!AS$53)*$BV29,0) -> 0 | BR29: =IF(Input!H$39>0,(Input!H$39+Input!AT$53)*$BV29,0) -> 0 | BS29: =IF(Input!I$39>0,(Input!I$39+Input!AU$53)*$BV29,0) -> 0 | BT29: =IF(Input!J$39>0,(Input!J$39+Input!AV$53)*$BV29,0) -> 0 | BU29: =IF(Input!K$39>0,(Input!K$39+Input!AW$53)*$BV29,0) -> 0 | BV29: 0.1210242847 | BW29: 0 | BX29: 0 | BY29: =$CF29*Input!$E$43 -> 0 | BZ29: =$CF29*Input!$E$43 -> 0 | CA29: =$CF29*Input!$E$43 -> 0 | CB29: =$CF29*Input!$E$43 -> 0 | CC29: =$CF29*Input!$E$43 -> 0 | CD29: =$CF29*Input!$E$43 -> 0 | CE29: =$CF29*Input!$E$43 -> 0 | CF29: =CF28+(CF28*$C$22) -> 0.5684962573 | CG29: 0 | CH29: 0 | CI29: =$CP29*Input!$E$42 -> 0 | CJ29: =$CP29*Input!$E$42 -> 0 | CK29: =$CP29*Input!$E$42 -> 0 | CL29: =$CP29*Input!$E$42 -> 0 | CM29: =$CP29*Input!$E$42 -> 0 | CN29: =$CP29*Input!$E$42 -> 0 | CO29: =$CP29*Input!$E$42 -> 0 | CP29: =CP28+(CP28*$C$22) -> 0.5684962573 | CQ29: 0 | CR29: 0 | CS29: =IF(Input!BK$44>0,(Input!BK$44+Input!BK$54)*$AT29,0) -> 0 | CT29: =IF(Input!BL$44>0,(Input!BL$44+Input!BL$54)*$AT29,0) -> 0 | CU29: =IF(Input!BM$44>0,(Input!BM$44+Input!BM$54)*$AT29,0) -> 0 | CV29: =IF(Input!BN$44>0,(Input!BN$44+Input!BN$54)*$AT29,0) -> 0 | CW29: =IF(Input!BO$44>0,(Input!BO$44+Input!BO$54)*$AT29,0) -> 0 | CX29: =IF(Input!BP$44>0,(Input!BP$44+Input!BP$54)*$AT29,0) -> 0 | CY29: =IF(Input!BQ$44>0,(Input!BQ$44+Input!BQ$54)*$AT29,0) -> 0 | CZ29: 26.95365825 | DA29: 0 | DB29: 0 | DC29: =IF(Input!BU$44>0,(Input!BU$44+Input!BU$54)*$AT29,0) -> 0 | DD29: =IF(Input!BV$44>0,(Input!BV$44+Input!BV$54)*$AT29,0) -> 0 | DE29: =IF(Input!BW$44>0,(Input!BW$44+Input!BW$54)*$AT29,0) -> 0 | DF29: =IF(Input!BX$44>0,(Input!BX$44+Input!BX$54)*$AT29,0) -> 0 | DG29: =IF(Input!BY$44>0,(Input!BY$44+Input!BY$54)*$AT29,0) -> 0 | DH29: =IF(Input!BZ$44>0,(Input!BZ$44+Input!BZ$54)*$AT29,0) -> 0 | DI29: =IF(Input!CA$44>0,(Input!CA$44+Input!CA$54)*$AT29,0) -> 0 | DJ29: =DJ28+(DJ28*$C$22) -> 0 | DK29: 0 | DL29: 0 | DM29: 0 | DN29: =IF(Output!$H$2='Inputs & Utility Cost'!$B$41,('Inputs & Utility Cost'!$C$41*(J29+T29+AD29+AN29+AX29+BF29+BP29+BZ29+CJ29+CT29+DD29)),IF(Output!$H$2='Inputs & Utility Cost'!$B$42,('Inputs & Utility Cost'!$C$42*('Inputs & Utility Cost'!$C$41*(J29+T29+AD29+AN29+AX29+BF29+BP29+BZ29+CJ29+CT29+DD29))),(J29+T29+AD29+AN29+AX29+BF29+BP29+BZ29+CJ29+CT29+DD29))) -> 0 | DO29: =IF(Output!$H$2='Inputs & Utility Cost'!$B$41,('Inputs & Utility Cost'!$C$41*(K29+U29+AE29+AO29+AY29+BG29+BQ29+CA29+CK29+CU29+DE29)),IF(Output!$H$2='Inputs & Utility Cost'!$B$42,('Inputs & Utility Cost'!$C$42*('Inputs & Utility Cost'!$C$41*(K29+U29+AE29+AO29+AY29+BG29+BQ29+CA29+CK29+CU29+DE29))),(K29+U29+AE29+AO29+AY29+BG29+BQ29+CA29+CK29+CU29+DE29))) -> 0 | DP29: =IF(Output!$H$2='Inputs & Utility Cost'!$B$41,('Inputs & Utility Cost'!$C$41*(L29+V29+AF29+AP29+AZ29+BH29+BR29+CB29+CL29+CV29+DF29)),IF(Output!$H$2='Inputs & Utility Cost'!$B$42,('Inputs & Utility Cost'!$C$42*('Inputs & Utility Cost'!$C$41*(L29+V29+AF29+AP29+AZ29+BH29+BR29+CB29+CL29+CV29+DF29))),(L29+V29+AF29+AP29+AZ29+BH29+BR29+CB29+CL29+CV29+DF29))) -> 0 | DQ29: =IF(Output!$H$2='Inputs & Utility Cost'!$B$41,('Inputs & Utility Cost'!$C$41*(M29+W29+AG29+AQ29+BA29+BI29+BS29+CC29+CM29+CW29+DG29)),IF(Output!$H$2='Inputs & Utility Cost'!$B$42,('Inputs & Utility Cost'!$C$42*('Inputs & Utility Cost'!$C$41*(M29+W29+AG29+AQ29+BA29+BI29+BS29+CC29+CM29+CW29+DG29))),(M29+W29+AG29+AQ29+BA29+BI29+BS29+CC29+CM29+CW29+DG29))) -> 0 | DR29: =IF(Output!$H$2='Inputs & Utility Cost'!$B$41,('Inputs & Utility Cost'!$C$41*(N29+X29+AH29+AR29+BB29+BJ29+BT29+CD29+CN29+CX29+DH29)),IF(Output!$H$2='Inputs & Utility Cost'!$B$42,('Inputs & Utility Cost'!$C$42*('Inputs & Utility Cost'!$C$41*(N29+X29+AH29+AR29+BB29+BJ29+BT29+CD29+CN29+CX29+DH29))),(N29+X29+AH29+AR29+BB29+BJ29+BT29+CD29+CN29+CX29+DH29))) -> 0 | DS29: =IF(Output!$H$2='Inputs & Utility Cost'!$B$41,('Inputs & Utility Cost'!$C$41*(O29+Y29+AI29+AS29+BC29+BK29+BU29+CE29+CO29+CY29+DI29)),IF(Output!$H$2='Inputs & Utility Cost'!$B$42,('Inputs & Utility Cost'!$C$42*('Inputs & Utility Cost'!$C$41*(O29+Y29+AI29+AS29+BC29+BK29+BU29+CE29+CO29+CY29+DI29))),(O29+Y29+AI29+AS29+BC29+BK29+BU29+CE29+CO29+CY29+DI29))) -> 0
H30: 2042 | I30: =$P30*Input!$E$41 -> 0 | J30: =$P30*Input!$F$41 -> 0 | K30: =$P30*Input!$G$41 -> 0 | L30: =$P30*Input!$H$41 -> 0 | M30: =$P30*Input!$I$41 -> 0 | N30: =$P30*Input!$J$41 -> 0 | O30: =$P30*Input!$K$41 -> 0 | P30: 0.5859490924 | Q30: 0 | R30: 0 | S30: =IF(Input!$E$35>0,(Input!E$35+Input!E$53)*$Z30,0) -> 0 | T30: =IF(Input!$F$35>0,(Input!F$35+Input!F$53)*$Z30,0) -> 0 | U30: =IF(Input!$G$35>0,(Input!G$35+Input!G$53)*$Z30,0) -> 0 | V30: =IF(Input!$H$35>0,(Input!H$35+Input!H$53)*$Z30,0) -> 0 | W30: =IF(Input!$I$35>0,(Input!I$35+Input!I$53)*$Z30,0) -> 0 | X30: =IF(Input!$J$35>0,(Input!J$35+Input!J$53)*$Z30,0) -> 0 | Y30: =IF(Input!$K$35>0,(Input!K$35+Input!K$53)*$Z30,0) -> 0 | Z30: 0.1234810776 | AA30: 0.1479520331 | AB30: 0.1219650319 | AC30: =IF(Input!E$33>0,(Input!E$33+Input!E$53)*$AJ30,0) -> 0 | AD30: =IF(Input!F$33>0,(Input!F$33+Input!F$53)*$AJ30,0) -> 0 | AE30: =IF(Input!G$33>0,(Input!G$33+Input!G$53)*$AJ30,0) -> 0 | AF30: =IF(Input!H$33>0,(Input!H$33+Input!H$53)*$AJ30,0) -> 0 | AG30: =IF(Input!I$33>0,(Input!I$33+Input!I$53)*$AJ30,0) -> 0 | AH30: =IF(Input!J$33>0,(Input!J$33+Input!J$53)*$AJ30,0) -> 0 | AI30: =IF(Input!K$33>0,(Input!K$33+Input!K$53)*$AJ30,0) -> 0 | AJ30: 0.1234810776 | AK30: 0.1479520331 | AL30: 0.1219650319 | AM30: =IF(Input!E$44>0,(Input!E$44+Input!E$54)*$AT30,0) -> 0 | AN30: =IF(Input!F$44>0,(Input!F$44+Input!F$54)*$AT30,0) -> 0 | AO30: =IF(Input!G$44>0,(Input!G$44+Input!G$54)*$AT30,0) -> 0 | AP30: =IF(Input!H$44>0,(Input!H$44+Input!H$54)*$AT30,0) -> 0 | AQ30: =IF(Input!I$44>0,(Input!I$44+Input!I$54)*$AT30,0) -> 0 | AR30: =IF(Input!J$44>0,(Input!J$44+Input!J$54)*$AT30,0) -> 0 | AS30: =IF(Input!K$44>0,(Input!K$44+Input!K$54)*$AT30,0) -> 0 | AT30: 26.95365825 | AU30: 31.84868618 | AV30: 26.11883241 | AW30: =IF(Input!E$46>0,(Input!E$46+Input!E$54)*$BD30,0) -> 0 | AX30: =IF(Input!F$46>0,(Input!F$46+Input!F$54)*$BD30,0) -> 0 | AY30: =IF(Input!G$46>0,(Input!G$46+Input!G$54)*$BD30,0) -> 0 | AZ30: =IF(Input!H$46>0,(Input!H$46+Input!H$54)*$BD30,0) -> 0 | BA30: =IF(Input!I$46>0,(Input!I$46+Input!I$54)*$BD30,0) -> 0 | BB30: =IF(Input!J$46>0,(Input!J$46+Input!J$54)*$BD30,0) -> 0 | BC30: =IF(Input!K$46>0,(Input!K$46+Input!K$54)*$BD30,0) -> 0 | BD30: 26.95365825 | BE30: =IF(Input!E$37>0,(Input!E$37+Input!E$53)*$AJ30,0) -> 0 | BF30: =IF(Input!F$37>0,(Input!F$37+Input!F$53)*$AJ30,0) -> 0 | BG30: =IF(Input!G$37>0,(Input!G$37+Input!G$53)*$AJ30,0) -> 0 | BH30: =IF(Input!H$37>0,(Input!H$37+Input!H$53)*$AJ30,0) -> 0 | BI30: =IF(Input!I$37>0,(Input!I$37+Input!I$53)*$AJ30,0) -> 0 | BJ30: =IF(Input!J$37>0,(Input!J$37+Input!J$53)*$AJ30,0) -> 0 | BK30: =IF(Input!K$37>0,(Input!K$37+Input!K$53)*$AJ30,0) -> 0 | BL30: 0.1234810776 | BM30: 0 | BN30: 0 | BO30: =IF(Input!E$39>0,(Input!E$39+Input!AQ$53)*$BV30,0) -> 0 | BP30: =IF(Input!F$39>0,(Input!F$39+Input!AR$53)*$BV30,0) -> 0 | BQ30: =IF(Input!G$39>0,(Input!G$39+Input!AS$53)*$BV30,0) -> 0 | BR30: =IF(Input!H$39>0,(Input!H$39+Input!AT$53)*$BV30,0) -> 0 | BS30: =IF(Input!I$39>0,(Input!I$39+Input!AU$53)*$BV30,0) -> 0 | BT30: =IF(Input!J$39>0,(Input!J$39+Input!AV$53)*$BV30,0) -> 0 | BU30: =IF(Input!K$39>0,(Input!K$39+Input!AW$53)*$BV30,0) -> 0 | BV30: 0.1234810776 | BW30: 0 | BX30: 0 | BY30: =$CF30*Input!$E$43 -> 0 | BZ30: =$CF30*Input!$E$43 -> 0 | CA30: =$CF30*Input!$E$43 -> 0 | CB30: =$CF30*Input!$E$43 -> 0 | CC30: =$CF30*Input!$E$43 -> 0 | CD30: =$CF30*Input!$E$43 -> 0 | CE30: =$CF30*Input!$E$43 -> 0 | CF30: 0.5859490924 | CG30: 0 | CH30: 0 | CI30: =$CP30*Input!$E$42 -> 0 | CJ30: =$CP30*Input!$E$42 -> 0 | CK30: =$CP30*Input!$E$42 -> 0 | CL30: =$CP30*Input!$E$42 -> 0 | CM30: =$CP30*Input!$E$42 -> 0 | CN30: =$CP30*Input!$E$42 -> 0 | CO30: =$CP30*Input!$E$42 -> 0 | CP30: 0.5859490924 | CQ30: 0 | CR30: 0 | CS30: =IF(Input!BK$44>0,(Input!BK$44+Input!BK$54)*$AT30,0) -> 0 | CT30: =IF(Input!BL$44>0,(Input!BL$44+Input!BL$54)*$AT30,0) -> 0 | CU30: =IF(Input!BM$44>0,(Input!BM$44+Input!BM$54)*$AT30,0) -> 0 | CV30: =IF(Input!BN$44>0,(Input!BN$44+Input!BN$54)*$AT30,0) -> 0 | CW30: =IF(Input!BO$44>0,(Input!BO$44+Input!BO$54)*$AT30,0) -> 0 | CX30: =IF(Input!BP$44>0,(Input!BP$44+Input!BP$54)*$AT30,0) -> 0 | CY30: =IF(Input!BQ$44>0,(Input!BQ$44+Input!BQ$54)*$AT30,0) -> 0 | CZ30: 27.78113556 | DA30: 0 | DB30: 0 | DC30: =IF(Input!BU$44>0,(Input!BU$44+Input!BU$54)*$AT30,0) -> 0 | DD30: =IF(Input!BV$44>0,(Input!BV$44+Input!BV$54)*$AT30,0) -> 0 | DE30: =IF(Input!BW$44>0,(Input!BW$44+Input!BW$54)*$AT30,0) -> 0 | DF30: =IF(Input!BX$44>0,(Input!BX$44+Input!BX$54)*$AT30,0) -> 0 | DG30: =IF(Input!BY$44>0,(Input!BY$44+Input!BY$54)*$AT30,0) -> 0 | DH30: =IF(Input!BZ$44>0,(Input!BZ$44+Input!BZ$54)*$AT30,0) -> 0 | DI30: =IF(Input!CA$44>0,(Input!CA$44+Input!CA$54)*$AT30,0) -> 0 | DJ30: 0 | DK30: 0 | DL30: 0 | DM30: 0 | DN30: =IF(Output!$H$2='Inputs & Utility Cost'!$B$41,('Inputs & Utility Cost'!$C$41*(J30+T30+AD30+AN30+AX30+BF30+BP30+BZ30+CJ30+CT30+DD30)),IF(Output!$H$2='Inputs & Utility Cost'!$B$42,('Inputs & Utility Cost'!$C$42*('Inputs & Utility Cost'!$C$41*(J30+T30+AD30+AN30+AX30+BF30+BP30+BZ30+CJ30+CT30+DD30))),(J30+T30+AD30+AN30+AX30+BF30+BP30+BZ30+CJ30+CT30+DD30))) -> 0 | DO30: =IF(Output!$H$2='Inputs & Utility Cost'!$B$41,('Inputs & Utility Cost'!$C$41*(K30+U30+AE30+AO30+AY30+BG30+BQ30+CA30+CK30+CU30+DE30)),IF(Output!$H$2='Inputs & Utility Cost'!$B$42,('Inputs & Utility Cost'!$C$42*('Inputs & Utility Cost'!$C$41*(K30+U30+AE30+AO30+AY30+BG30+BQ30+CA30+CK30+CU30+DE30))),(K30+U30+AE30+AO30+AY30+BG30+BQ30+CA30+CK30+CU30+DE30))) -> 0 | DP30: =IF(Output!$H$2='Inputs & Utility Cost'!$B$41,('Inputs & Utility Cost'!$C$41*(L30+V30+AF30+AP30+AZ30+BH30+BR30+CB30+CL30+CV30+DF30)),IF(Output!$H$2='Inputs & Utility Cost'!$B$42,('Inputs & Utility Cost'!$C$42*('Inputs & Utility Cost'!$C$41*(L30+V30+AF30+AP30+AZ30+BH30+BR30+CB30+CL30+CV30+DF30))),(L30+V30+AF30+AP30+AZ30+BH30+BR30+CB30+CL30+CV30+DF30))) -> 0 | DQ30: =IF(Output!$H$2='Inputs & Utility Cost'!$B$41,('Inputs & Utility Cost'!$C$41*(M30+W30+AG30+AQ30+BA30+BI30+BS30+CC30+CM30+CW30+DG30)),IF(Output!$H$2='Inputs & Utility Cost'!$B$42,('Inputs & Utility Cost'!$C$42*('Inputs & Utility Cost'!$C$41*(M30+W30+AG30+AQ30+BA30+BI30+BS30+CC30+CM30+CW30+DG30))),(M30+W30+AG30+AQ30+BA30+BI30+BS30+CC30+CM30+CW30+DG30))) -> 0 | DR30: =IF(Output!$H$2='Inputs & Utility Cost'!$B$41,('Inputs & Utility Cost'!$C$41*(N30+X30+AH30+AR30+BB30+BJ30+BT30+CD30+CN30+CX30+DH30)),IF(Output!$H$2='Inputs & Utility Cost'!$B$42,('Inputs & Utility Cost'!$C$42*('Inputs & Utility Cost'!$C$41*(N30+X30+AH30+AR30+BB30+BJ30+BT30+CD30+CN30+CX30+DH30))),(N30+X30+AH30+AR30+BB30+BJ30+BT30+CD30+CN30+CX30+DH30))) -> 0 | DS30: =IF(Output!$H$2='Inputs & Utility Cost'!$B$41,('Inputs & Utility Cost'!$C$41*(O30+Y30+AI30+AS30+BC30+BK30+BU30+CE30+CO30+CY30+DI30)),IF(Output!$H$2='Inputs & Utility Cost'!$B$42,('Inputs & Utility Cost'!$C$42*('Inputs & Utility Cost'!$C$41*(O30+Y30+AI30+AS30+BC30+BK30+BU30+CE30+CO30+CY30+DI30))),(O30+Y30+AI30+AS30+BC30+BK30+BU30+CE30+CO30+CY30+DI30))) -> 0
B31: Multiple natural gas vs electric prices (on equivalent BTU basis) | C31: =C13/C30 ->  | H31: 2043 | I31: =$P31*Input!$E$41 -> 0 | J31: =$P31*Input!$F$41 -> 0 | K31: =$P31*Input!$G$41 -> 0 | L31: =$P31*Input!$H$41 -> 0 | M31: =$P31*Input!$I$41 -> 0 | N31: =$P31*Input!$J$41 -> 0 | O31: =$P31*Input!$K$41 -> 0 | P31: 0.6039377295 | Q31: 0 | R31: 0 | S31: =IF(Input!$E$35>0,(Input!E$35+Input!E$53)*$Z31,0) -> 0 | T31: =IF(Input!$F$35>0,(Input!F$35+Input!F$53)*$Z31,0) -> 0 | U31: =IF(Input!$G$35>0,(Input!G$35+Input!G$53)*$Z31,0) -> 0 | V31: =IF(Input!$H$35>0,(Input!H$35+Input!H$53)*$Z31,0) -> 0 | W31: =IF(Input!$I$35>0,(Input!I$35+Input!I$53)*$Z31,0) -> 0 | X31: =IF(Input!$J$35>0,(Input!J$35+Input!J$53)*$Z31,0) -> 0 | Y31: =IF(Input!$K$35>0,(Input!K$35+Input!K$53)*$Z31,0) -> 0 | Z31: 0.1259877435 | AA31: 0.1524793653 | AB31: 0.1243555465 | AC31: =IF(Input!E$33>0,(Input!E$33+Input!E$53)*$AJ31,0) -> 0 | AD31: =IF(Input!F$33>0,(Input!F$33+Input!F$53)*$AJ31,0) -> 0 | AE31: =IF(Input!G$33>0,(Input!G$33+Input!G$53)*$AJ31,0) -> 0 | AF31: =IF(Input!H$33>0,(Input!H$33+Input!H$53)*$AJ31,0) -> 0 | AG31: =IF(Input!I$33>0,(Input!I$33+Input!I$53)*$AJ31,0) -> 0 | AH31: =IF(Input!J$33>0,(Input!J$33+Input!J$53)*$AJ31,0) -> 0 | AI31: =IF(Input!K$33>0,(Input!K$33+Input!K$53)*$AJ31,0) -> 0 | AJ31: 0.1259877435 | AK31: 0.1524793653 | AL31: 0.1243555465 | AM31: =IF(Input!E$44>0,(Input!E$44+Input!E$54)*$AT31,0) -> 0 | AN31: =IF(Input!F$44>0,(Input!F$44+Input!F$54)*$AT31,0) -> 0 | AO31: =IF(Input!G$44>0,(Input!G$44+Input!G$54)*$AT31,0) -> 0 | AP31: =IF(Input!H$44>0,(Input!H$44+Input!H$54)*$AT31,0) -> 0 | AQ31: =IF(Input!I$44>0,(Input!I$44+Input!I$54)*$AT31,0) -> 0 | AR31: =IF(Input!J$44>0,(Input!J$44+Input!J$54)*$AT31,0) -> 0 | AS31: =IF(Input!K$44>0,(Input!K$44+Input!K$54)*$AT31,0) -> 0 | AT31: 27.78113556 | AU31: 33.13218823 | AV31: 26.87366666 | AW31: =IF(Input!E$46>0,(Input!E$46+Input!E$54)*$BD31,0) -> 0 | AX31: =IF(Input!F$46>0,(Input!F$46+Input!F$54)*$BD31,0) -> 0 | AY31: =IF(Input!G$46>0,(Input!G$46+Input!G$54)*$BD31,0) -> 0 | AZ31: =IF(Input!H$46>0,(Input!H$46+Input!H$54)*$BD31,0) -> 0 | BA31: =IF(Input!I$46>0,(Input!I$46+Input!I$54)*$BD31,0) -> 0 | BB31: =IF(Input!J$46>0,(Input!J$46+Input!J$54)*$BD31,0) -> 0 | BC31: =IF(Input!K$46>0,(Input!K$46+Input!K$54)*$BD31,0) -> 0 | BD31: 27.78113556 | BE31: =IF(Input!E$37>0,(Input!E$37+Input!E$53)*$AJ31,0) -> 0 | BF31: =IF(Input!F$37>0,(Input!F$37+Input!F$53)*$AJ31,0) -> 0 | BG31: =IF(Input!G$37>0,(Input!G$37+Input!G$53)*$AJ31,0) -> 0 | BH31: =IF(Input!H$37>0,(Input!H$37+Input!H$53)*$AJ31,0) -> 0 | BI31: =IF(Input!I$37>0,(Input!I$37+Input!I$53)*$AJ31,0) -> 0 | BJ31: =IF(Input!J$37>0,(Input!J$37+Input!J$53)*$AJ31,0) -> 0 | BK31: =IF(Input!K$37>0,(Input!K$37+Input!K$53)*$AJ31,0) -> 0 | BL31: 0.1259877435 | BM31: 0 | BN31: 0 | BO31: =IF(Input!E$39>0,(Input!E$39+Input!AQ$53)*$BV31,0) -> 0 | BP31: =IF(Input!F$39>0,(Input!F$39+Input!AR$53)*$BV31,0) -> 0 | BQ31: =IF(Input!G$39>0,(Input!G$39+Input!AS$53)*$BV31,0) -> 0 | BR31: =IF(Input!H$39>0,(Input!H$39+Input!AT$53)*$BV31,0) -> 0 | BS31: =IF(Input!I$39>0,(Input!I$39+Input!AU$53)*$BV31,0) -> 0 | BT31: =IF(Input!J$39>0,(Input!J$39+Input!AV$53)*$BV31,0) -> 0 | BU31: =IF(Input!K$39>0,(Input!K$39+Input!AW$53)*$BV31,0) -> 0 | BV31: 0.1259877435 | BW31: 0 | BX31: 0 | BY31: =$CF31*Input!$E$43 -> 0 | BZ31: =$CF31*Input!$E$43 -> 0 | CA31: =$CF31*Input!$E$43 -> 0 | CB31: =$CF31*Input!$E$43 -> 0 | CC31: =$CF31*Input!$E$43 -> 0 | CD31: =$CF31*Input!$E$43 -> 0 | CE31: =$CF31*Input!$E$43 -> 0 | CF31: 0.6039377295 | CG31: 0 | CH31: 0 | CI31: =$CP31*Input!$E$42 -> 0 | CJ31: =$CP31*Input!$E$42 -> 0 | CK31: =$CP31*Input!$E$42 -> 0 | CL31: =$CP31*Input!$E$42 -> 0 | CM31: =$CP31*Input!$E$42 -> 0 | CN31: =$CP31*Input!$E$42 -> 0 | CO31: =$CP31*Input!$E$42 -> 0 | CP31: 0.6039377295 | CQ31: 0 | CR31: 0 | CS31: =IF(Input!BK$44>0,(Input!BK$44+Input!BK$54)*$AT31,0) -> 0 | CT31: =IF(Input!BL$44>0,(Input!BL$44+Input!BL$54)*$AT31,0) -> 0 | CU31: =IF(Input!BM$44>0,(Input!BM$44+Input!BM$54)*$AT31,0) -> 0 | CV31: =IF(Input!BN$44>0,(Input!BN$44+Input!BN$54)*$AT31,0) -> 0 | CW31: =IF(Input!BO$44>0,(Input!BO$44+Input!BO$54)*$AT31,0) -> 0 | CX31: =IF(Input!BP$44>0,(Input!BP$44+Input!BP$54)*$AT31,0) -> 0 | CY31: =IF(Input!BQ$44>0,(Input!BQ$44+Input!BQ$54)*$AT31,0) -> 0 | CZ31: 28.63401642 | DA31: 0 | DB31: 0 | DC31: =IF(Input!BU$44>0,(Input!BU$44+Input!BU$54)*$AT31,0) -> 0 | DD31: =IF(Input!BV$44>0,(Input!BV$44+Input!BV$54)*$AT31,0) -> 0 | DE31: =IF(Input!BW$44>0,(Input!BW$44+Input!BW$54)*$AT31,0) -> 0 | DF31: =IF(Input!BX$44>0,(Input!BX$44+Input!BX$54)*$AT31,0) -> 0 | DG31: =IF(Input!BY$44>0,(Input!BY$44+Input!BY$54)*$AT31,0) -> 0 | DH31: =IF(Input!BZ$44>0,(Input!BZ$44+Input!BZ$54)*$AT31,0) -> 0 | DI31: =IF(Input!CA$44>0,(Input!CA$44+Input!CA$54)*$AT31,0) -> 0 | DJ31: 0 | DK31: 0 | DL31: 0 | DM31: 0 | DN31: =IF(Output!$H$2='Inputs & Utility Cost'!$B$41,('Inputs & Utility Cost'!$C$41*(J31+T31+AD31+AN31+AX31+BF31+BP31+BZ31+CJ31+CT31+DD31)),IF(Output!$H$2='Inputs & Utility Cost'!$B$42,('Inputs & Utility Cost'!$C$42*('Inputs & Utility Cost'!$C$41*(J31+T31+AD31+AN31+AX31+BF31+BP31+BZ31+CJ31+CT31+DD31))),(J31+T31+AD31+AN31+AX31+BF31+BP31+BZ31+CJ31+CT31+DD31))) -> 0 | DO31: =IF(Output!$H$2='Inputs & Utility Cost'!$B$41,('Inputs & Utility Cost'!$C$41*(K31+U31+AE31+AO31+AY31+BG31+BQ31+CA31+CK31+CU31+DE31)),IF(Output!$H$2='Inputs & Utility Cost'!$B$42,('Inputs & Utility Cost'!$C$42*('Inputs & Utility Cost'!$C$41*(K31+U31+AE31+AO31+AY31+BG31+BQ31+CA31+CK31+CU31+DE31))),(K31+U31+AE31+AO31+AY31+BG31+BQ31+CA31+CK31+CU31+DE31))) -> 0 | DP31: =IF(Output!$H$2='Inputs & Utility Cost'!$B$41,('Inputs & Utility Cost'!$C$41*(L31+V31+AF31+AP31+AZ31+BH31+BR31+CB31+CL31+CV31+DF31)),IF(Output!$H$2='Inputs & Utility Cost'!$B$42,('Inputs & Utility Cost'!$C$42*('Inputs & Utility Cost'!$C$41*(L31+V31+AF31+AP31+AZ31+BH31+BR31+CB31+CL31+CV31+DF31))),(L31+V31+AF31+AP31+AZ31+BH31+BR31+CB31+CL31+CV31+DF31))) -> 0 | DQ31: =IF(Output!$H$2='Inputs & Utility Cost'!$B$41,('Inputs & Utility Cost'!$C$41*(M31+W31+AG31+AQ31+BA31+BI31+BS31+CC31+CM31+CW31+DG31)),IF(Output!$H$2='Inputs & Utility Cost'!$B$42,('Inputs & Utility Cost'!$C$42*('Inputs & Utility Cost'!$C$41*(M31+W31+AG31+AQ31+BA31+BI31+BS31+CC31+CM31+CW31+DG31))),(M31+W31+AG31+AQ31+BA31+BI31+BS31+CC31+CM31+CW31+DG31))) -> 0 | DR31: =IF(Output!$H$2='Inputs & Utility Cost'!$B$41,('Inputs & Utility Cost'!$C$41*(N31+X31+AH31+AR31+BB31+BJ31+BT31+CD31+CN31+CX31+DH31)),IF(Output!$H$2='Inputs & Utility Cost'!$B$42,('Inputs & Utility Cost'!$C$42*('Inputs & Utility Cost'!$C$41*(N31+X31+AH31+AR31+BB31+BJ31+BT31+CD31+CN31+CX31+DH31))),(N31+X31+AH31+AR31+BB31+BJ31+BT31+CD31+CN31+CX31+DH31))) -> 0 | DS31: =IF(Output!$H$2='Inputs & Utility Cost'!$B$41,('Inputs & Utility Cost'!$C$41*(O31+Y31+AI31+AS31+BC31+BK31+BU31+CE31+CO31+CY31+DI31)),IF(Output!$H$2='Inputs & Utility Cost'!$B$42,('Inputs & Utility Cost'!$C$42*('Inputs & Utility Cost'!$C$41*(O31+Y31+AI31+AS31+BC31+BK31+BU31+CE31+CO31+CY31+DI31))),(O31+Y31+AI31+AS31+BC31+BK31+BU31+CE31+CO31+CY31+DI31))) -> 0
B32: Cost of Carbon: impact on natural gas prices ($/therm) | C32: =C29*C35/10 -> 14.67673469 | H32: 2044 | I32: =$P32*Input!$E$41 -> 0 | J32: =$P32*Input!$F$41 -> 0 | K32: =$P32*Input!$G$41 -> 0 | L32: =$P32*Input!$H$41 -> 0 | M32: =$P32*Input!$I$41 -> 0 | N32: =$P32*Input!$J$41 -> 0 | O32: =$P32*Input!$K$41 -> 0 | P32: 0.6224786178 | Q32: 0 | R32: 0 | S32: =IF(Input!$E$35>0,(Input!E$35+Input!E$53)*$Z32,0) -> 0 | T32: =IF(Input!$F$35>0,(Input!F$35+Input!F$53)*$Z32,0) -> 0 | U32: =IF(Input!$G$35>0,(Input!G$35+Input!G$53)*$Z32,0) -> 0 | V32: =IF(Input!$H$35>0,(Input!H$35+Input!H$53)*$Z32,0) -> 0 | W32: =IF(Input!$I$35>0,(Input!I$35+Input!I$53)*$Z32,0) -> 0 | X32: =IF(Input!$J$35>0,(Input!J$35+Input!J$53)*$Z32,0) -> 0 | Y32: =IF(Input!$K$35>0,(Input!K$35+Input!K$53)*$Z32,0) -> 0 | Z32: 0.1285452947 | AA32: 0.1571452339 | AB32: 0.1267929152 | AC32: =IF(Input!E$33>0,(Input!E$33+Input!E$53)*$AJ32,0) -> 0 | AD32: =IF(Input!F$33>0,(Input!F$33+Input!F$53)*$AJ32,0) -> 0 | AE32: =IF(Input!G$33>0,(Input!G$33+Input!G$53)*$AJ32,0) -> 0 | AF32: =IF(Input!H$33>0,(Input!H$33+Input!H$53)*$AJ32,0) -> 0 | AG32: =IF(Input!I$33>0,(Input!I$33+Input!I$53)*$AJ32,0) -> 0 | AH32: =IF(Input!J$33>0,(Input!J$33+Input!J$53)*$AJ32,0) -> 0 | AI32: =IF(Input!K$33>0,(Input!K$33+Input!K$53)*$AJ32,0) -> 0 | AJ32: 0.1285452947 | AK32: 0.1571452339 | AL32: 0.1267929152 | AM32: =IF(Input!E$44>0,(Input!E$44+Input!E$54)*$AT32,0) -> 0 | AN32: =IF(Input!F$44>0,(Input!F$44+Input!F$54)*$AT32,0) -> 0 | AO32: =IF(Input!G$44>0,(Input!G$44+Input!G$54)*$AT32,0) -> 0 | AP32: =IF(Input!H$44>0,(Input!H$44+Input!H$54)*$AT32,0) -> 0 | AQ32: =IF(Input!I$44>0,(Input!I$44+Input!I$54)*$AT32,0) -> 0 | AR32: =IF(Input!J$44>0,(Input!J$44+Input!J$54)*$AT32,0) -> 0 | AS32: =IF(Input!K$44>0,(Input!K$44+Input!K$54)*$AT32,0) -> 0 | AT32: 28.63401642 | AU32: 34.46741542 | AV32: 27.65031563 | AW32: =IF(Input!E$46>0,(Input!E$46+Input!E$54)*$BD32,0) -> 0 | AX32: =IF(Input!F$46>0,(Input!F$46+Input!F$54)*$BD32,0) -> 0 | AY32: =IF(Input!G$46>0,(Input!G$46+Input!G$54)*$BD32,0) -> 0 | AZ32: =IF(Input!H$46>0,(Input!H$46+Input!H$54)*$BD32,0) -> 0 | BA32: =IF(Input!I$46>0,(Input!I$46+Input!I$54)*$BD32,0) -> 0 | BB32: =IF(Input!J$46>0,(Input!J$46+Input!J$54)*$BD32,0) -> 0 | BC32: =IF(Input!K$46>0,(Input!K$46+Input!K$54)*$BD32,0) -> 0 | BD32: 28.63401642 | BE32: =IF(Input!E$37>0,(Input!E$37+Input!E$53)*$AJ32,0) -> 0 | BF32: =IF(Input!F$37>0,(Input!F$37+Input!F$53)*$AJ32,0) -> 0 | BG32: =IF(Input!G$37>0,(Input!G$37+Input!G$53)*$AJ32,0) -> 0 | BH32: =IF(Input!H$37>0,(Input!H$37+Input!H$53)*$AJ32,0) -> 0 | BI32: =IF(Input!I$37>0,(Input!I$37+Input!I$53)*$AJ32,0) -> 0 | BJ32: =IF(Input!J$37>0,(Input!J$37+Input!J$53)*$AJ32,0) -> 0 | BK32: =IF(Input!K$37>0,(Input!K$37+Input!K$53)*$AJ32,0) -> 0 | BL32: 0.1285452947 | BM32: 0 | BN32: 0 | BO32: =IF(Input!E$39>0,(Input!E$39+Input!AQ$53)*$BV32,0) -> 0 | BP32: =IF(Input!F$39>0,(Input!F$39+Input!AR$53)*$BV32,0) -> 0 | BQ32: =IF(Input!G$39>0,(Input!G$39+Input!AS$53)*$BV32,0) -> 0 | BR32: =IF(Input!H$39>0,(Input!H$39+Input!AT$53)*$BV32,0) -> 0 | BS32: =IF(Input!I$39>0,(Input!I$39+Input!AU$53)*$BV32,0) -> 0 | BT32: =IF(Input!J$39>0,(Input!J$39+Input!AV$53)*$BV32,0) -> 0 | BU32: =IF(Input!K$39>0,(Input!K$39+Input!AW$53)*$BV32,0) -> 0 | BV32: 0.1285452947 | BW32: 0 | BX32: 0 | BY32: =$CF32*Input!$E$43 -> 0 | BZ32: =$CF32*Input!$E$43 -> 0 | CA32: =$CF32*Input!$E$43 -> 0 | CB32: =$CF32*Input!$E$43 -> 0 | CC32: =$CF32*Input!$E$43 -> 0 | CD32: =$CF32*Input!$E$43 -> 0 | CE32: =$CF32*Input!$E$43 -> 0 | CF32: 0.6224786178 | CG32: 0 | CH32: 0 | CI32: =$CP32*Input!$E$42 -> 0 | CJ32: =$CP32*Input!$E$42 -> 0 | CK32: =$CP32*Input!$E$42 -> 0 | CL32: =$CP32*Input!$E$42 -> 0 | CM32: =$CP32*Input!$E$42 -> 0 | CN32: =$CP32*Input!$E$42 -> 0 | CO32: =$CP32*Input!$E$42 -> 0 | CP32: 0.6224786178 | CQ32: 0 | CR32: 0 | CS32: =IF(Input!BK$44>0,(Input!BK$44+Input!BK$54)*$AT32,0) -> 0 | CT32: =IF(Input!BL$44>0,(Input!BL$44+Input!BL$54)*$AT32,0) -> 0 | CU32: =IF(Input!BM$44>0,(Input!BM$44+Input!BM$54)*$AT32,0) -> 0 | CV32: =IF(Input!BN$44>0,(Input!BN$44+Input!BN$54)*$AT32,0) -> 0 | CW32: =IF(Input!BO$44>0,(Input!BO$44+Input!BO$54)*$AT32,0) -> 0 | CX32: =IF(Input!BP$44>0,(Input!BP$44+Input!BP$54)*$AT32,0) -> 0 | CY32: =IF(Input!BQ$44>0,(Input!BQ$44+Input!BQ$54)*$AT32,0) -> 0 | CZ32: 29.51308072 | DA32: 0 | DB32: 0 | DC32: =IF(Input!BU$44>0,(Input!BU$44+Input!BU$54)*$AT32,0) -> 0 | DD32: =IF(Input!BV$44>0,(Input!BV$44+Input!BV$54)*$AT32,0) -> 0 | DE32: =IF(Input!BW$44>0,(Input!BW$44+Input!BW$54)*$AT32,0) -> 0 | DF32: =IF(Input!BX$44>0,(Input!BX$44+Input!BX$54)*$AT32,0) -> 0 | DG32: =IF(Input!BY$44>0,(Input!BY$44+Input!BY$54)*$AT32,0) -> 0 | DH32: =IF(Input!BZ$44>0,(Input!BZ$44+Input!BZ$54)*$AT32,0) -> 0 | DI32: =IF(Input!CA$44>0,(Input!CA$44+Input!CA$54)*$AT32,0) -> 0 | DJ32: 0 | DK32: 0 | DL32: 0 | DM32: 0 | DN32: =IF(Output!$H$2='Inputs & Utility Cost'!$B$41,('Inputs & Utility Cost'!$C$41*(J32+T32+AD32+AN32+AX32+BF32+BP32+BZ32+CJ32+CT32+DD32)),IF(Output!$H$2='Inputs & Utility Cost'!$B$42,('Inputs & Utility Cost'!$C$42*('Inputs & Utility Cost'!$C$41*(J32+T32+AD32+AN32+AX32+BF32+BP32+BZ32+CJ32+CT32+DD32))),(J32+T32+AD32+AN32+AX32+BF32+BP32+BZ32+CJ32+CT32+DD32))) -> 0 | DO32: =IF(Output!$H$2='Inputs & Utility Cost'!$B$41,('Inputs & Utility Cost'!$C$41*(K32+U32+AE32+AO32+AY32+BG32+BQ32+CA32+CK32+CU32+DE32)),IF(Output!$H$2='Inputs & Utility Cost'!$B$42,('Inputs & Utility Cost'!$C$42*('Inputs & Utility Cost'!$C$41*(K32+U32+AE32+AO32+AY32+BG32+BQ32+CA32+CK32+CU32+DE32))),(K32+U32+AE32+AO32+AY32+BG32+BQ32+CA32+CK32+CU32+DE32))) -> 0 | DP32: =IF(Output!$H$2='Inputs & Utility Cost'!$B$41,('Inputs & Utility Cost'!$C$41*(L32+V32+AF32+AP32+AZ32+BH32+BR32+CB32+CL32+CV32+DF32)),IF(Output!$H$2='Inputs & Utility Cost'!$B$42,('Inputs & Utility Cost'!$C$42*('Inputs & Utility Cost'!$C$41*(L32+V32+AF32+AP32+AZ32+BH32+BR32+CB32+CL32+CV32+DF32))),(L32+V32+AF32+AP32+AZ32+BH32+BR32+CB32+CL32+CV32+DF32))) -> 0 | DQ32: =IF(Output!$H$2='Inputs & Utility Cost'!$B$41,('Inputs & Utility Cost'!$C$41*(M32+W32+AG32+AQ32+BA32+BI32+BS32+CC32+CM32+CW32+DG32)),IF(Output!$H$2='Inputs & Utility Cost'!$B$42,('Inputs & Utility Cost'!$C$42*('Inputs & Utility Cost'!$C$41*(M32+W32+AG32+AQ32+BA32+BI32+BS32+CC32+CM32+CW32+DG32))),(M32+W32+AG32+AQ32+BA32+BI32+BS32+CC32+CM32+CW32+DG32))) -> 0 | DR32: =IF(Output!$H$2='Inputs & Utility Cost'!$B$41,('Inputs & Utility Cost'!$C$41*(N32+X32+AH32+AR32+BB32+BJ32+BT32+CD32+CN32+CX32+DH32)),IF(Output!$H$2='Inputs & Utility Cost'!$B$42,('Inputs & Utility Cost'!$C$42*('Inputs & Utility Cost'!$C$41*(N32+X32+AH32+AR32+BB32+BJ32+BT32+CD32+CN32+CX32+DH32))),(N32+X32+AH32+AR32+BB32+BJ32+BT32+CD32+CN32+CX32+DH32))) -> 0 | DS32: =IF(Output!$H$2='Inputs & Utility Cost'!$B$41,('Inputs & Utility Cost'!$C$41*(O32+Y32+AI32+AS32+BC32+BK32+BU32+CE32+CO32+CY32+DI32)),IF(Output!$H$2='Inputs & Utility Cost'!$B$42,('Inputs & Utility Cost'!$C$42*('Inputs & Utility Cost'!$C$41*(O32+Y32+AI32+AS32+BC32+BK32+BU32+CE32+CO32+CY32+DI32))),(O32+Y32+AI32+AS32+BC32+BK32+BU32+CE32+CO32+CY32+DI32))) -> 0
B33: Cost of Carbon: % increase in natural gas price ($/therm) | C33: =C32/C19 -> 43.16686675 | H33: 2045 | I33: =$P33*Input!$E$41 -> 0 | J33: =$P33*Input!$F$41 -> 0 | K33: =$P33*Input!$G$41 -> 0 | L33: =$P33*Input!$H$41 -> 0 | M33: =$P33*Input!$I$41 -> 0 | N33: =$P33*Input!$J$41 -> 0 | O33: =$P33*Input!$K$41 -> 0 | P33: 0.6415887114 | Q33: 0 | R33: 0 | S33: =IF(Input!$E$35>0,(Input!E$35+Input!E$53)*$Z33,0) -> 0 | T33: =IF(Input!$F$35>0,(Input!F$35+Input!F$53)*$Z33,0) -> 0 | U33: =IF(Input!$G$35>0,(Input!G$35+Input!G$53)*$Z33,0) -> 0 | V33: =IF(Input!$H$35>0,(Input!H$35+Input!H$53)*$Z33,0) -> 0 | W33: =IF(Input!$I$35>0,(Input!I$35+Input!I$53)*$Z33,0) -> 0 | X33: =IF(Input!$J$35>0,(Input!J$35+Input!J$53)*$Z33,0) -> 0 | Y33: =IF(Input!$K$35>0,(Input!K$35+Input!K$53)*$Z33,0) -> 0 | Z33: 0.1311547642 | AA33: 0.1619538781 | AB33: 0.1292780563 | AC33: =IF(Input!E$33>0,(Input!E$33+Input!E$53)*$AJ33,0) -> 0 | AD33: =IF(Input!F$33>0,(Input!F$33+Input!F$53)*$AJ33,0) -> 0 | AE33: =IF(Input!G$33>0,(Input!G$33+Input!G$53)*$AJ33,0) -> 0 | AF33: =IF(Input!H$33>0,(Input!H$33+Input!H$53)*$AJ33,0) -> 0 | AG33: =IF(Input!I$33>0,(Input!I$33+Input!I$53)*$AJ33,0) -> 0 | AH33: =IF(Input!J$33>0,(Input!J$33+Input!J$53)*$AJ33,0) -> 0 | AI33: =IF(Input!K$33>0,(Input!K$33+Input!K$53)*$AJ33,0) -> 0 | AJ33: 0.1311547642 | AK33: 0.1619538781 | AL33: 0.1292780563 | AM33: =IF(Input!E$44>0,(Input!E$44+Input!E$54)*$AT33,0) -> 0 | AN33: =IF(Input!F$44>0,(Input!F$44+Input!F$54)*$AT33,0) -> 0 | AO33: =IF(Input!G$44>0,(Input!G$44+Input!G$54)*$AT33,0) -> 0 | AP33: =IF(Input!H$44>0,(Input!H$44+Input!H$54)*$AT33,0) -> 0 | AQ33: =IF(Input!I$44>0,(Input!I$44+Input!I$54)*$AT33,0) -> 0 | AR33: =IF(Input!J$44>0,(Input!J$44+Input!J$54)*$AT33,0) -> 0 | AS33: =IF(Input!K$44>0,(Input!K$44+Input!K$54)*$AT33,0) -> 0 | AT33: 29.51308072 | AU33: 35.85645226 | AV33: 28.44940975 | AW33: =IF(Input!E$46>0,(Input!E$46+Input!E$54)*$BD33,0) -> 0 | AX33: =IF(Input!F$46>0,(Input!F$46+Input!F$54)*$BD33,0) -> 0 | AY33: =IF(Input!G$46>0,(Input!G$46+Input!G$54)*$BD33,0) -> 0 | AZ33: =IF(Input!H$46>0,(Input!H$46+Input!H$54)*$BD33,0) -> 0 | BA33: =IF(Input!I$46>0,(Input!I$46+Input!I$54)*$BD33,0) -> 0 | BB33: =IF(Input!J$46>0,(Input!J$46+Input!J$54)*$BD33,0) -> 0 | BC33: =IF(Input!K$46>0,(Input!K$46+Input!K$54)*$BD33,0) -> 0 | BD33: 29.51308072 | BE33: =IF(Input!E$37>0,(Input!E$37+Input!E$53)*$AJ33,0) -> 0 | BF33: =IF(Input!F$37>0,(Input!F$37+Input!F$53)*$AJ33,0) -> 0 | BG33: =IF(Input!G$37>0,(Input!G$37+Input!G$53)*$AJ33,0) -> 0 | BH33: =IF(Input!H$37>0,(Input!H$37+Input!H$53)*$AJ33,0) -> 0 | BI33: =IF(Input!I$37>0,(Input!I$37+Input!I$53)*$AJ33,0) -> 0 | BJ33: =IF(Input!J$37>0,(Input!J$37+Input!J$53)*$AJ33,0) -> 0 | BK33: =IF(Input!K$37>0,(Input!K$37+Input!K$53)*$AJ33,0) -> 0 | BL33: 0.1311547642 | BM33: 0 | BN33: 0 | BO33: =IF(Input!E$39>0,(Input!E$39+Input!AQ$53)*$BV33,0) -> 0 | BP33: =IF(Input!F$39>0,(Input!F$39+Input!AR$53)*$BV33,0) -> 0 | BQ33: =IF(Input!G$39>0,(Input!G$39+Input!AS$53)*$BV33,0) -> 0 | BR33: =IF(Input!H$39>0,(Input!H$39+Input!AT$53)*$BV33,0) -> 0 | BS33: =IF(Input!I$39>0,(Input!I$39+Input!AU$53)*$BV33,0) -> 0 | BT33: =IF(Input!J$39>0,(Input!J$39+Input!AV$53)*$BV33,0) -> 0 | BU33: =IF(Input!K$39>0,(Input!K$39+Input!AW$53)*$BV33,0) -> 0 | BV33: 0.1311547642 | BW33: 0 | BX33: 0 | BY33: =$CF33*Input!$E$43 -> 0 | BZ33: =$CF33*Input!$E$43 -> 0 | CA33: =$CF33*Input!$E$43 -> 0 | CB33: =$CF33*Input!$E$43 -> 0 | CC33: =$CF33*Input!$E$43 -> 0 | CD33: =$CF33*Input!$E$43 -> 0 | CE33: =$CF33*Input!$E$43 -> 0 | CF33: 0.6415887114 | CG33: 0 | CH33: 0 | CI33: =$CP33*Input!$E$42 -> 0 | CJ33: =$CP33*Input!$E$42 -> 0 | CK33: =$CP33*Input!$E$42 -> 0 | CL33: =$CP33*Input!$E$42 -> 0 | CM33: =$CP33*Input!$E$42 -> 0 | CN33: =$CP33*Input!$E$42 -> 0 | CO33: =$CP33*Input!$E$42 -> 0 | CP33: 0.6415887114 | CQ33: 0 | CR33: 0 | CS33: =IF(Input!BK$44>0,(Input!BK$44+Input!BK$54)*$AT33,0) -> 0 | CT33: =IF(Input!BL$44>0,(Input!BL$44+Input!BL$54)*$AT33,0) -> 0 | CU33: =IF(Input!BM$44>0,(Input!BM$44+Input!BM$54)*$AT33,0) -> 0 | CV33: =IF(Input!BN$44>0,(Input!BN$44+Input!BN$54)*$AT33,0) -> 0 | CW33: =IF(Input!BO$44>0,(Input!BO$44+Input!BO$54)*$AT33,0) -> 0 | CX33: =IF(Input!BP$44>0,(Input!BP$44+Input!BP$54)*$AT33,0) -> 0 | CY33: =IF(Input!BQ$44>0,(Input!BQ$44+Input!BQ$54)*$AT33,0) -> 0 | CZ33: 30.4191323 | DA33: 0 | DB33: 0 | DC33: =IF(Input!BU$44>0,(Input!BU$44+Input!BU$54)*$AT33,0) -> 0 | DD33: =IF(Input!BV$44>0,(Input!BV$44+Input!BV$54)*$AT33,0) -> 0 | DE33: =IF(Input!BW$44>0,(Input!BW$44+Input!BW$54)*$AT33,0) -> 0 | DF33: =IF(Input!BX$44>0,(Input!BX$44+Input!BX$54)*$AT33,0) -> 0 | DG33: =IF(Input!BY$44>0,(Input!BY$44+Input!BY$54)*$AT33,0) -> 0 | DH33: =IF(Input!BZ$44>0,(Input!BZ$44+Input!BZ$54)*$AT33,0) -> 0 | DI33: =IF(Input!CA$44>0,(Input!CA$44+Input!CA$54)*$AT33,0) -> 0 | DJ33: 0 | DK33: 0 | DL33: 0 | DM33: 0 | DN33: =IF(Output!$H$2='Inputs & Utility Cost'!$B$41,('Inputs & Utility Cost'!$C$41*(J33+T33+AD33+AN33+AX33+BF33+BP33+BZ33+CJ33+CT33+DD33)),IF(Output!$H$2='Inputs & Utility Cost'!$B$42,('Inputs & Utility Cost'!$C$42*('Inputs & Utility Cost'!$C$41*(J33+T33+AD33+AN33+AX33+BF33+BP33+BZ33+CJ33+CT33+DD33))),(J33+T33+AD33+AN33+AX33+BF33+BP33+BZ33+CJ33+CT33+DD33))) -> 0 | DO33: =IF(Output!$H$2='Inputs & Utility Cost'!$B$41,('Inputs & Utility Cost'!$C$41*(K33+U33+AE33+AO33+AY33+BG33+BQ33+CA33+CK33+CU33+DE33)),IF(Output!$H$2='Inputs & Utility Cost'!$B$42,('Inputs & Utility Cost'!$C$42*('Inputs & Utility Cost'!$C$41*(K33+U33+AE33+AO33+AY33+BG33+BQ33+CA33+CK33+CU33+DE33))),(K33+U33+AE33+AO33+AY33+BG33+BQ33+CA33+CK33+CU33+DE33))) -> 0 | DP33: =IF(Output!$H$2='Inputs & Utility Cost'!$B$41,('Inputs & Utility Cost'!$C$41*(L33+V33+AF33+AP33+AZ33+BH33+BR33+CB33+CL33+CV33+DF33)),IF(Output!$H$2='Inputs & Utility Cost'!$B$42,('Inputs & Utility Cost'!$C$42*('Inputs & Utility Cost'!$C$41*(L33+V33+AF33+AP33+AZ33+BH33+BR33+CB33+CL33+CV33+DF33))),(L33+V33+AF33+AP33+AZ33+BH33+BR33+CB33+CL33+CV33+DF33))) -> 0 | DQ33: =IF(Output!$H$2='Inputs & Utility Cost'!$B$41,('Inputs & Utility Cost'!$C$41*(M33+W33+AG33+AQ33+BA33+BI33+BS33+CC33+CM33+CW33+DG33)),IF(Output!$H$2='Inputs & Utility Cost'!$B$42,('Inputs & Utility Cost'!$C$42*('Inputs & Utility Cost'!$C$41*(M33+W33+AG33+AQ33+BA33+BI33+BS33+CC33+CM33+CW33+DG33))),(M33+W33+AG33+AQ33+BA33+BI33+BS33+CC33+CM33+CW33+DG33))) -> 0 | DR33: =IF(Output!$H$2='Inputs & Utility Cost'!$B$41,('Inputs & Utility Cost'!$C$41*(N33+X33+AH33+AR33+BB33+BJ33+BT33+CD33+CN33+CX33+DH33)),IF(Output!$H$2='Inputs & Utility Cost'!$B$42,('Inputs & Utility Cost'!$C$42*('Inputs & Utility Cost'!$C$41*(N33+X33+AH33+AR33+BB33+BJ33+BT33+CD33+CN33+CX33+DH33))),(N33+X33+AH33+AR33+BB33+BJ33+BT33+CD33+CN33+CX33+DH33))) -> 0 | DS33: =IF(Output!$H$2='Inputs & Utility Cost'!$B$41,('Inputs & Utility Cost'!$C$41*(O33+Y33+AI33+AS33+BC33+BK33+BU33+CE33+CO33+CY33+DI33)),IF(Output!$H$2='Inputs & Utility Cost'!$B$42,('Inputs & Utility Cost'!$C$42*('Inputs & Utility Cost'!$C$41*(O33+Y33+AI33+AS33+BC33+BK33+BU33+CE33+CO33+CY33+DI33))),(O33+Y33+AI33+AS33+BC33+BK33+BU33+CE33+CO33+CY33+DI33))) -> 0
B34: Natural Gas - carbon intensity (pounds/BTU) | C34: 117 | H34: 2046 | I34: =$P34*Input!$E$41 -> 0 | J34: =$P34*Input!$F$41 -> 0 | K34: =$P34*Input!$G$41 -> 0 | L34: =$P34*Input!$H$41 -> 0 | M34: =$P34*Input!$I$41 -> 0 | N34: =$P34*Input!$J$41 -> 0 | O34: =$P34*Input!$K$41 -> 0 | P34: 0.6612854848 | Q34: 0 | R34: 0 | S34: =IF(Input!$E$35>0,(Input!E$35+Input!E$53)*$Z34,0) -> 0 | T34: =IF(Input!$F$35>0,(Input!F$35+Input!F$53)*$Z34,0) -> 0 | U34: =IF(Input!$G$35>0,(Input!G$35+Input!G$53)*$Z34,0) -> 0 | V34: =IF(Input!$H$35>0,(Input!H$35+Input!H$53)*$Z34,0) -> 0 | W34: =IF(Input!$I$35>0,(Input!I$35+Input!I$53)*$Z34,0) -> 0 | X34: =IF(Input!$J$35>0,(Input!J$35+Input!J$53)*$Z34,0) -> 0 | Y34: =IF(Input!$K$35>0,(Input!K$35+Input!K$53)*$Z34,0) -> 0 | Z34: 0.1338172059 | AA34: 0.1669096667 | AB34: 0.1318119062 | AC34: =IF(Input!E$33>0,(Input!E$33+Input!E$53)*$AJ34,0) -> 0 | AD34: =IF(Input!F$33>0,(Input!F$33+Input!F$53)*$AJ34,0) -> 0 | AE34: =IF(Input!G$33>0,(Input!G$33+Input!G$53)*$AJ34,0) -> 0 | AF34: =IF(Input!H$33>0,(Input!H$33+Input!H$53)*$AJ34,0) -> 0 | AG34: =IF(Input!I$33>0,(Input!I$33+Input!I$53)*$AJ34,0) -> 0 | AH34: =IF(Input!J$33>0,(Input!J$33+Input!J$53)*$AJ34,0) -> 0 | AI34: =IF(Input!K$33>0,(Input!K$33+Input!K$53)*$AJ34,0) -> 0 | AJ34: 0.1338172059 | AK34: 0.1669096667 | AL34: 0.1318119062 | AM34: =IF(Input!E$44>0,(Input!E$44+Input!E$54)*$AT34,0) -> 0 | AN34: =IF(Input!F$44>0,(Input!F$44+Input!F$54)*$AT34,0) -> 0 | AO34: =IF(Input!G$44>0,(Input!G$44+Input!G$54)*$AT34,0) -> 0 | AP34: =IF(Input!H$44>0,(Input!H$44+Input!H$54)*$AT34,0) -> 0 | AQ34: =IF(Input!I$44>0,(Input!I$44+Input!I$54)*$AT34,0) -> 0 | AR34: =IF(Input!J$44>0,(Input!J$44+Input!J$54)*$AT34,0) -> 0 | AS34: =IF(Input!K$44>0,(Input!K$44+Input!K$54)*$AT34,0) -> 0 | AT34: 30.4191323 | AU34: 37.30146728 | AV34: 29.27159769 | AW34: =IF(Input!E$46>0,(Input!E$46+Input!E$54)*$BD34,0) -> 0 | AX34: =IF(Input!F$46>0,(Input!F$46+Input!F$54)*$BD34,0) -> 0 | AY34: =IF(Input!G$46>0,(Input!G$46+Input!G$54)*$BD34,0) -> 0 | AZ34: =IF(Input!H$46>0,(Input!H$46+Input!H$54)*$BD34,0) -> 0 | BA34: =IF(Input!I$46>0,(Input!I$46+Input!I$54)*$BD34,0) -> 0 | BB34: =IF(Input!J$46>0,(Input!J$46+Input!J$54)*$BD34,0) -> 0 | BC34: =IF(Input!K$46>0,(Input!K$46+Input!K$54)*$BD34,0) -> 0 | BD34: 30.4191323 | BE34: =IF(Input!E$37>0,(Input!E$37+Input!E$53)*$AJ34,0) -> 0 | BF34: =IF(Input!F$37>0,(Input!F$37+Input!F$53)*$AJ34,0) -> 0 | BG34: =IF(Input!G$37>0,(Input!G$37+Input!G$53)*$AJ34,0) -> 0 | BH34: =IF(Input!H$37>0,(Input!H$37+Input!H$53)*$AJ34,0) -> 0 | BI34: =IF(Input!I$37>0,(Input!I$37+Input!I$53)*$AJ34,0) -> 0 | BJ34: =IF(Input!J$37>0,(Input!J$37+Input!J$53)*$AJ34,0) -> 0 | BK34: =IF(Input!K$37>0,(Input!K$37+Input!K$53)*$AJ34,0) -> 0 | BL34: 0.1338172059 | BM34: 0 | BN34: 0 | BO34: =IF(Input!E$39>0,(Input!E$39+Input!AQ$53)*$BV34,0) -> 0 | BP34: =IF(Input!F$39>0,(Input!F$39+Input!AR$53)*$BV34,0) -> 0 | BQ34: =IF(Input!G$39>0,(Input!G$39+Input!AS$53)*$BV34,0) -> 0 | BR34: =IF(Input!H$39>0,(Input!H$39+Input!AT$53)*$BV34,0) -> 0 | BS34: =IF(Input!I$39>0,(Input!I$39+Input!AU$53)*$BV34,0) -> 0 | BT34: =IF(Input!J$39>0,(Input!J$39+Input!AV$53)*$BV34,0) -> 0 | BU34: =IF(Input!K$39>0,(Input!K$39+Input!AW$53)*$BV34,0) -> 0 | BV34: 0.1338172059 | BW34: 0 | BX34: 0 | BY34: =$CF34*Input!$E$43 -> 0 | BZ34: =$CF34*Input!$E$43 -> 0 | CA34: =$CF34*Input!$E$43 -> 0 | CB34: =$CF34*Input!$E$43 -> 0 | CC34: =$CF34*Input!$E$43 -> 0 | CD34: =$CF34*Input!$E$43 -> 0 | CE34: =$CF34*Input!$E$43 -> 0 | CF34: 0.6612854848 | CG34: 0 | CH34: 0 | CI34: =$CP34*Input!$E$42 -> 0 | CJ34: =$CP34*Input!$E$42 -> 0 | CK34: =$CP34*Input!$E$42 -> 0 | CL34: =$CP34*Input!$E$42 -> 0 | CM34: =$CP34*Input!$E$42 -> 0 | CN34: =$CP34*Input!$E$42 -> 0 | CO34: =$CP34*Input!$E$42 -> 0 | CP34: 0.6612854848 | CQ34: 0 | CR34: 0 | CS34: =IF(Input!BK$44>0,(Input!BK$44+Input!BK$54)*$AT34,0) -> 0 | CT34: =IF(Input!BL$44>0,(Input!BL$44+Input!BL$54)*$AT34,0) -> 0 | CU34: =IF(Input!BM$44>0,(Input!BM$44+Input!BM$54)*$AT34,0) -> 0 | CV34: =IF(Input!BN$44>0,(Input!BN$44+Input!BN$54)*$AT34,0) -> 0 | CW34: =IF(Input!BO$44>0,(Input!BO$44+Input!BO$54)*$AT34,0) -> 0 | CX34: =IF(Input!BP$44>0,(Input!BP$44+Input!BP$54)*$AT34,0) -> 0 | CY34: =IF(Input!BQ$44>0,(Input!BQ$44+Input!BQ$54)*$AT34,0) -> 0 | CZ34: 31.35299966 | DA34: 0 | DB34: 0 | DC34: =IF(Input!BU$44>0,(Input!BU$44+Input!BU$54)*$AT34,0) -> 0 | DD34: =IF(Input!BV$44>0,(Input!BV$44+Input!BV$54)*$AT34,0) -> 0 | DE34: =IF(Input!BW$44>0,(Input!BW$44+Input!BW$54)*$AT34,0) -> 0 | DF34: =IF(Input!BX$44>0,(Input!BX$44+Input!BX$54)*$AT34,0) -> 0 | DG34: =IF(Input!BY$44>0,(Input!BY$44+Input!BY$54)*$AT34,0) -> 0 | DH34: =IF(Input!BZ$44>0,(Input!BZ$44+Input!BZ$54)*$AT34,0) -> 0 | DI34: =IF(Input!CA$44>0,(Input!CA$44+Input!CA$54)*$AT34,0) -> 0 | DJ34: 0 | DK34: 0 | DL34: 0 | DM34: 0 | DN34: =IF(Output!$H$2='Inputs & Utility Cost'!$B$41,('Inputs & Utility Cost'!$C$41*(J34+T34+AD34+AN34+AX34+BF34+BP34+BZ34+CJ34+CT34+DD34)),IF(Output!$H$2='Inputs & Utility Cost'!$B$42,('Inputs & Utility Cost'!$C$42*('Inputs & Utility Cost'!$C$41*(J34+T34+AD34+AN34+AX34+BF34+BP34+BZ34+CJ34+CT34+DD34))),(J34+T34+AD34+AN34+AX34+BF34+BP34+BZ34+CJ34+CT34+DD34))) -> 0 | DO34: =IF(Output!$H$2='Inputs & Utility Cost'!$B$41,('Inputs & Utility Cost'!$C$41*(K34+U34+AE34+AO34+AY34+BG34+BQ34+CA34+CK34+CU34+DE34)),IF(Output!$H$2='Inputs & Utility Cost'!$B$42,('Inputs & Utility Cost'!$C$42*('Inputs & Utility Cost'!$C$41*(K34+U34+AE34+AO34+AY34+BG34+BQ34+CA34+CK34+CU34+DE34))),(K34+U34+AE34+AO34+AY34+BG34+BQ34+CA34+CK34+CU34+DE34))) -> 0 | DP34: =IF(Output!$H$2='Inputs & Utility Cost'!$B$41,('Inputs & Utility Cost'!$C$41*(L34+V34+AF34+AP34+AZ34+BH34+BR34+CB34+CL34+CV34+DF34)),IF(Output!$H$2='Inputs & Utility Cost'!$B$42,('Inputs & Utility Cost'!$C$42*('Inputs & Utility Cost'!$C$41*(L34+V34+AF34+AP34+AZ34+BH34+BR34+CB34+CL34+CV34+DF34))),(L34+V34+AF34+AP34+AZ34+BH34+BR34+CB34+CL34+CV34+DF34))) -> 0 | DQ34: =IF(Output!$H$2='Inputs & Utility Cost'!$B$41,('Inputs & Utility Cost'!$C$41*(M34+W34+AG34+AQ34+BA34+BI34+BS34+CC34+CM34+CW34+DG34)),IF(Output!$H$2='Inputs & Utility Cost'!$B$42,('Inputs & Utility Cost'!$C$42*('Inputs & Utility Cost'!$C$41*(M34+W34+AG34+AQ34+BA34+BI34+BS34+CC34+CM34+CW34+DG34))),(M34+W34+AG34+AQ34+BA34+BI34+BS34+CC34+CM34+CW34+DG34))) -> 0 | DR34: =IF(Output!$H$2='Inputs & Utility Cost'!$B$41,('Inputs & Utility Cost'!$C$41*(N34+X34+AH34+AR34+BB34+BJ34+BT34+CD34+CN34+CX34+DH34)),IF(Output!$H$2='Inputs & Utility Cost'!$B$42,('Inputs & Utility Cost'!$C$42*('Inputs & Utility Cost'!$C$41*(N34+X34+AH34+AR34+BB34+BJ34+BT34+CD34+CN34+CX34+DH34))),(N34+X34+AH34+AR34+BB34+BJ34+BT34+CD34+CN34+CX34+DH34))) -> 0 | DS34: =IF(Output!$H$2='Inputs & Utility Cost'!$B$41,('Inputs & Utility Cost'!$C$41*(O34+Y34+AI34+AS34+BC34+BK34+BU34+CE34+CO34+CY34+DI34)),IF(Output!$H$2='Inputs & Utility Cost'!$B$42,('Inputs & Utility Cost'!$C$42*('Inputs & Utility Cost'!$C$41*(O34+Y34+AI34+AS34+BC34+BK34+BU34+CE34+CO34+CY34+DI34))),(O34+Y34+AI34+AS34+BC34+BK34+BU34+CE34+CO34+CY34+DI34))) -> 0
B35: Natural Gas - carbon intensity (MT/BTU) | C35: =C34/2205 -> 0.05306122449 | F35: 2205 pounds to 1 metric ton | H35: 2047 | I35: =$P35*Input!$E$41 -> 0 | J35: =$P35*Input!$F$41 -> 0 | K35: =$P35*Input!$G$41 -> 0 | L35: =$P35*Input!$H$41 -> 0 | M35: =$P35*Input!$I$41 -> 0 | N35: =$P35*Input!$J$41 -> 0 | O35: =$P35*Input!$K$41 -> 0 | P35: 0.6815869492 | Q35: 0 | R35: 0 | S35: =IF(Input!$E$35>0,(Input!E$35+Input!E$53)*$Z35,0) -> 0 | T35: =IF(Input!$F$35>0,(Input!F$35+Input!F$53)*$Z35,0) -> 0 | U35: =IF(Input!$G$35>0,(Input!G$35+Input!G$53)*$Z35,0) -> 0 | V35: =IF(Input!$H$35>0,(Input!H$35+Input!H$53)*$Z35,0) -> 0 | W35: =IF(Input!$I$35>0,(Input!I$35+Input!I$53)*$Z35,0) -> 0 | X35: =IF(Input!$J$35>0,(Input!J$35+Input!J$53)*$Z35,0) -> 0 | Y35: =IF(Input!$K$35>0,(Input!K$35+Input!K$53)*$Z35,0) -> 0 | Z35: 0.1365336952 | AA35: 0.1720171025 | AB35: 0.1343954196 | AC35: =IF(Input!E$33>0,(Input!E$33+Input!E$53)*$AJ35,0) -> 0 | AD35: =IF(Input!F$33>0,(Input!F$33+Input!F$53)*$AJ35,0) -> 0 | AE35: =IF(Input!G$33>0,(Input!G$33+Input!G$53)*$AJ35,0) -> 0 | AF35: =IF(Input!H$33>0,(Input!H$33+Input!H$53)*$AJ35,0) -> 0 | AG35: =IF(Input!I$33>0,(Input!I$33+Input!I$53)*$AJ35,0) -> 0 | AH35: =IF(Input!J$33>0,(Input!J$33+Input!J$53)*$AJ35,0) -> 0 | AI35: =IF(Input!K$33>0,(Input!K$33+Input!K$53)*$AJ35,0) -> 0 | AJ35: 0.1365336952 | AK35: 0.1720171025 | AL35: 0.1343954196 | AM35: =IF(Input!E$44>0,(Input!E$44+Input!E$54)*$AT35,0) -> 0 | AN35: =IF(Input!F$44>0,(Input!F$44+Input!F$54)*$AT35,0) -> 0 | AO35: =IF(Input!G$44>0,(Input!G$44+Input!G$54)*$AT35,0) -> 0 | AP35: =IF(Input!H$44>0,(Input!H$44+Input!H$54)*$AT35,0) -> 0 | AQ35: =IF(Input!I$44>0,(Input!I$44+Input!I$54)*$AT35,0) -> 0 | AR35: =IF(Input!J$44>0,(Input!J$44+Input!J$54)*$AT35,0) -> 0 | AS35: =IF(Input!K$44>0,(Input!K$44+Input!K$54)*$AT35,0) -> 0 | AT35: 31.35299966 | AU35: 38.80471641 | AV35: 30.11754687 | AW35: =IF(Input!E$46>0,(Input!E$46+Input!E$54)*$BD35,0) -> 0 | AX35: =IF(Input!F$46>0,(Input!F$46+Input!F$54)*$BD35,0) -> 0 | AY35: =IF(Input!G$46>0,(Input!G$46+Input!G$54)*$BD35,0) -> 0 | AZ35: =IF(Input!H$46>0,(Input!H$46+Input!H$54)*$BD35,0) -> 0 | BA35: =IF(Input!I$46>0,(Input!I$46+Input!I$54)*$BD35,0) -> 0 | BB35: =IF(Input!J$46>0,(Input!J$46+Input!J$54)*$BD35,0) -> 0 | BC35: =IF(Input!K$46>0,(Input!K$46+Input!K$54)*$BD35,0) -> 0 | BD35: 31.35299966 | BE35: =IF(Input!E$37>0,(Input!E$37+Input!E$53)*$AJ35,0) -> 0 | BF35: =IF(Input!F$37>0,(Input!F$37+Input!F$53)*$AJ35,0) -> 0 | BG35: =IF(Input!G$37>0,(Input!G$37+Input!G$53)*$AJ35,0) -> 0 | BH35: =IF(Input!H$37>0,(Input!H$37+Input!H$53)*$AJ35,0) -> 0 | BI35: =IF(Input!I$37>0,(Input!I$37+Input!I$53)*$AJ35,0) -> 0 | BJ35: =IF(Input!J$37>0,(Input!J$37+Input!J$53)*$AJ35,0) -> 0 | BK35: =IF(Input!K$37>0,(Input!K$37+Input!K$53)*$AJ35,0) -> 0 | BL35: 0.1365336952 | BM35: 0 | BN35: 0 | BO35: =IF(Input!E$39>0,(Input!E$39+Input!AQ$53)*$BV35,0) -> 0 | BP35: =IF(Input!F$39>0,(Input!F$39+Input!AR$53)*$BV35,0) -> 0 | BQ35: =IF(Input!G$39>0,(Input!G$39+Input!AS$53)*$BV35,0) -> 0 | BR35: =IF(Input!H$39>0,(Input!H$39+Input!AT$53)*$BV35,0) -> 0 | BS35: =IF(Input!I$39>0,(Input!I$39+Input!AU$53)*$BV35,0) -> 0 | BT35: =IF(Input!J$39>0,(Input!J$39+Input!AV$53)*$BV35,0) -> 0 | BU35: =IF(Input!K$39>0,(Input!K$39+Input!AW$53)*$BV35,0) -> 0 | BV35: 0.1365336952 | BW35: 0 | BX35: 0 | BY35: =$CF35*Input!$E$43 -> 0 | BZ35: =$CF35*Input!$E$43 -> 0 | CA35: =$CF35*Input!$E$43 -> 0 | CB35: =$CF35*Input!$E$43 -> 0 | CC35: =$CF35*Input!$E$43 -> 0 | CD35: =$CF35*Input!$E$43 -> 0 | CE35: =$CF35*Input!$E$43 -> 0 | CF35: 0.6815869492 | CG35: 0 | CH35: 0 | CI35: =$CP35*Input!$E$42 -> 0 | CJ35: =$CP35*Input!$E$42 -> 0 | CK35: =$CP35*Input!$E$42 -> 0 | CL35: =$CP35*Input!$E$42 -> 0 | CM35: =$CP35*Input!$E$42 -> 0 | CN35: =$CP35*Input!$E$42 -> 0 | CO35: =$CP35*Input!$E$42 -> 0 | CP35: 0.6815869492 | CQ35: 0 | CR35: 0 | CS35: =IF(Input!BK$44>0,(Input!BK$44+Input!BK$54)*$AT35,0) -> 0 | CT35: =IF(Input!BL$44>0,(Input!BL$44+Input!BL$54)*$AT35,0) -> 0 | CU35: =IF(Input!BM$44>0,(Input!BM$44+Input!BM$54)*$AT35,0) -> 0 | CV35: =IF(Input!BN$44>0,(Input!BN$44+Input!BN$54)*$AT35,0) -> 0 | CW35: =IF(Input!BO$44>0,(Input!BO$44+Input!BO$54)*$AT35,0) -> 0 | CX35: =IF(Input!BP$44>0,(Input!BP$44+Input!BP$54)*$AT35,0) -> 0 | CY35: =IF(Input!BQ$44>0,(Input!BQ$44+Input!BQ$54)*$AT35,0) -> 0 | CZ35: 32.31553675 | DA35: 0 | DB35: 0 | DC35: =IF(Input!BU$44>0,(Input!BU$44+Input!BU$54)*$AT35,0) -> 0 | DD35: =IF(Input!BV$44>0,(Input!BV$44+Input!BV$54)*$AT35,0) -> 0 | DE35: =IF(Input!BW$44>0,(Input!BW$44+Input!BW$54)*$AT35,0) -> 0 | DF35: =IF(Input!BX$44>0,(Input!BX$44+Input!BX$54)*$AT35,0) -> 0 | DG35: =IF(Input!BY$44>0,(Input!BY$44+Input!BY$54)*$AT35,0) -> 0 | DH35: =IF(Input!BZ$44>0,(Input!BZ$44+Input!BZ$54)*$AT35,0) -> 0 | DI35: =IF(Input!CA$44>0,(Input!CA$44+Input!CA$54)*$AT35,0) -> 0 | DJ35: 0 | DK35: 0 | DL35: 0 | DM35: 0 | DN35: =IF(Output!$H$2='Inputs & Utility Cost'!$B$41,('Inputs & Utility Cost'!$C$41*(J35+T35+AD35+AN35+AX35+BF35+BP35+BZ35+CJ35+CT35+DD35)),IF(Output!$H$2='Inputs & Utility Cost'!$B$42,('Inputs & Utility Cost'!$C$42*('Inputs & Utility Cost'!$C$41*(J35+T35+AD35+AN35+AX35+BF35+BP35+BZ35+CJ35+CT35+DD35))),(J35+T35+AD35+AN35+AX35+BF35+BP35+BZ35+CJ35+CT35+DD35))) -> 0 | DO35: =IF(Output!$H$2='Inputs & Utility Cost'!$B$41,('Inputs & Utility Cost'!$C$41*(K35+U35+AE35+AO35+AY35+BG35+BQ35+CA35+CK35+CU35+DE35)),IF(Output!$H$2='Inputs & Utility Cost'!$B$42,('Inputs & Utility Cost'!$C$42*('Inputs & Utility Cost'!$C$41*(K35+U35+AE35+AO35+AY35+BG35+BQ35+CA35+CK35+CU35+DE35))),(K35+U35+AE35+AO35+AY35+BG35+BQ35+CA35+CK35+CU35+DE35))) -> 0 | DP35: =IF(Output!$H$2='Inputs & Utility Cost'!$B$41,('Inputs & Utility Cost'!$C$41*(L35+V35+AF35+AP35+AZ35+BH35+BR35+CB35+CL35+CV35+DF35)),IF(Output!$H$2='Inputs & Utility Cost'!$B$42,('Inputs & Utility Cost'!$C$42*('Inputs & Utility Cost'!$C$41*(L35+V35+AF35+AP35+AZ35+BH35+BR35+CB35+CL35+CV35+DF35))),(L35+V35+AF35+AP35+AZ35+BH35+BR35+CB35+CL35+CV35+DF35))) -> 0 | DQ35: =IF(Output!$H$2='Inputs & Utility Cost'!$B$41,('Inputs & Utility Cost'!$C$41*(M35+W35+AG35+AQ35+BA35+BI35+BS35+CC35+CM35+CW35+DG35)),IF(Output!$H$2='Inputs & Utility Cost'!$B$42,('Inputs & Utility Cost'!$C$42*('Inputs & Utility Cost'!$C$41*(M35+W35+AG35+AQ35+BA35+BI35+BS35+CC35+CM35+CW35+DG35))),(M35+W35+AG35+AQ35+BA35+BI35+BS35+CC35+CM35+CW35+DG35))) -> 0 | DR35: =IF(Output!$H$2='Inputs & Utility Cost'!$B$41,('Inputs & Utility Cost'!$C$41*(N35+X35+AH35+AR35+BB35+BJ35+BT35+CD35+CN35+CX35+DH35)),IF(Output!$H$2='Inputs & Utility Cost'!$B$42,('Inputs & Utility Cost'!$C$42*('Inputs & Utility Cost'!$C$41*(N35+X35+AH35+AR35+BB35+BJ35+BT35+CD35+CN35+CX35+DH35))),(N35+X35+AH35+AR35+BB35+BJ35+BT35+CD35+CN35+CX35+DH35))) -> 0 | DS35: =IF(Output!$H$2='Inputs & Utility Cost'!$B$41,('Inputs & Utility Cost'!$C$41*(O35+Y35+AI35+AS35+BC35+BK35+BU35+CE35+CO35+CY35+DI35)),IF(Output!$H$2='Inputs & Utility Cost'!$B$42,('Inputs & Utility Cost'!$C$42*('Inputs & Utility Cost'!$C$41*(O35+Y35+AI35+AS35+BC35+BK35+BU35+CE35+CO35+CY35+DI35))),(O35+Y35+AI35+AS35+BC35+BK35+BU35+CE35+CO35+CY35+DI35))) -> 0
B36: Emissions Factors | C36: 2050 | F36: <— Use this drop-down to select whether GHG calculations use either: "2020" - current electric grid intensity | "2050" - estimated electric grid intensity (via DTE) | H36: 2048 | I36: =$P36*Input!$E$41 -> 0 | J36: =$P36*Input!$F$41 -> 0 | K36: =$P36*Input!$G$41 -> 0 | L36: =$P36*Input!$H$41 -> 0 | M36: =$P36*Input!$I$41 -> 0 | N36: =$P36*Input!$J$41 -> 0 | O36: =$P36*Input!$K$41 -> 0 | P36: 0.7025116685 | Q36: 0 | R36: 0 | S36: =IF(Input!$E$35>0,(Input!E$35+Input!E$53)*$Z36,0) -> 0 | T36: =IF(Input!$F$35>0,(Input!F$35+Input!F$53)*$Z36,0) -> 0 | U36: =IF(Input!$G$35>0,(Input!G$35+Input!G$53)*$Z36,0) -> 0 | V36: =IF(Input!$H$35>0,(Input!H$35+Input!H$53)*$Z36,0) -> 0 | W36: =IF(Input!$I$35>0,(Input!I$35+Input!I$53)*$Z36,0) -> 0 | X36: =IF(Input!$J$35>0,(Input!J$35+Input!J$53)*$Z36,0) -> 0 | Y36: =IF(Input!$K$35>0,(Input!K$35+Input!K$53)*$Z36,0) -> 0 | Z36: 0.1393053292 | AA36: 0.1772808259 | AB36: 0.1370295698 | AC36: =IF(Input!E$33>0,(Input!E$33+Input!E$53)*$AJ36,0) -> 0 | AD36: =IF(Input!F$33>0,(Input!F$33+Input!F$53)*$AJ36,0) -> 0 | AE36: =IF(Input!G$33>0,(Input!G$33+Input!G$53)*$AJ36,0) -> 0 | AF36: =IF(Input!H$33>0,(Input!H$33+Input!H$53)*$AJ36,0) -> 0 | AG36: =IF(Input!I$33>0,(Input!I$33+Input!I$53)*$AJ36,0) -> 0 | AH36: =IF(Input!J$33>0,(Input!J$33+Input!J$53)*$AJ36,0) -> 0 | AI36: =IF(Input!K$33>0,(Input!K$33+Input!K$53)*$AJ36,0) -> 0 | AJ36: 0.1393053292 | AK36: 0.1772808259 | AL36: 0.1370295698 | AM36: =IF(Input!E$44>0,(Input!E$44+Input!E$54)*$AT36,0) -> 0 | AN36: =IF(Input!F$44>0,(Input!F$44+Input!F$54)*$AT36,0) -> 0 | AO36: =IF(Input!G$44>0,(Input!G$44+Input!G$54)*$AT36,0) -> 0 | AP36: =IF(Input!H$44>0,(Input!H$44+Input!H$54)*$AT36,0) -> 0 | AQ36: =IF(Input!I$44>0,(Input!I$44+Input!I$54)*$AT36,0) -> 0 | AR36: =IF(Input!J$44>0,(Input!J$44+Input!J$54)*$AT36,0) -> 0 | AS36: =IF(Input!K$44>0,(Input!K$44+Input!K$54)*$AT36,0) -> 0 | AT36: 32.31553675 | AU36: 40.36854649 | AV36: 30.98794397 | AW36: =IF(Input!E$46>0,(Input!E$46+Input!E$54)*$BD36,0) -> 0 | AX36: =IF(Input!F$46>0,(Input!F$46+Input!F$54)*$BD36,0) -> 0 | AY36: =IF(Input!G$46>0,(Input!G$46+Input!G$54)*$BD36,0) -> 0 | AZ36: =IF(Input!H$46>0,(Input!H$46+Input!H$54)*$BD36,0) -> 0 | BA36: =IF(Input!I$46>0,(Input!I$46+Input!I$54)*$BD36,0) -> 0 | BB36: =IF(Input!J$46>0,(Input!J$46+Input!J$54)*$BD36,0) -> 0 | BC36: =IF(Input!K$46>0,(Input!K$46+Input!K$54)*$BD36,0) -> 0 | BD36: 32.31553675 | BE36: =IF(Input!E$37>0,(Input!E$37+Input!E$53)*$AJ36,0) -> 0 | BF36: =IF(Input!F$37>0,(Input!F$37+Input!F$53)*$AJ36,0) -> 0 | BG36: =IF(Input!G$37>0,(Input!G$37+Input!G$53)*$AJ36,0) -> 0 | BH36: =IF(Input!H$37>0,(Input!H$37+Input!H$53)*$AJ36,0) -> 0 | BI36: =IF(Input!I$37>0,(Input!I$37+Input!I$53)*$AJ36,0) -> 0 | BJ36: =IF(Input!J$37>0,(Input!J$37+Input!J$53)*$AJ36,0) -> 0 | BK36: =IF(Input!K$37>0,(Input!K$37+Input!K$53)*$AJ36,0) -> 0 | BL36: 0.1393053292 | BM36: 0 | BN36: 0 | BO36: =IF(Input!E$39>0,(Input!E$39+Input!AQ$53)*$BV36,0) -> 0 | BP36: =IF(Input!F$39>0,(Input!F$39+Input!AR$53)*$BV36,0) -> 0 | BQ36: =IF(Input!G$39>0,(Input!G$39+Input!AS$53)*$BV36,0) -> 0 | BR36: =IF(Input!H$39>0,(Input!H$39+Input!AT$53)*$BV36,0) -> 0 | BS36: =IF(Input!I$39>0,(Input!I$39+Input!AU$53)*$BV36,0) -> 0 | BT36: =IF(Input!J$39>0,(Input!J$39+Input!AV$53)*$BV36,0) -> 0 | BU36: =IF(Input!K$39>0,(Input!K$39+Input!AW$53)*$BV36,0) -> 0 | BV36: 0.1393053292 | BW36: 0 | BX36: 0 | BY36: =$CF36*Input!$E$43 -> 0 | BZ36: =$CF36*Input!$E$43 -> 0 | CA36: =$CF36*Input!$E$43 -> 0 | CB36: =$CF36*Input!$E$43 -> 0 | CC36: =$CF36*Input!$E$43 -> 0 | CD36: =$CF36*Input!$E$43 -> 0 | CE36: =$CF36*Input!$E$43 -> 0 | CF36: 0.7025116685 | CG36: 0 | CH36: 0 | CI36: =$CP36*Input!$E$42 -> 0 | CJ36: =$CP36*Input!$E$42 -> 0 | CK36: =$CP36*Input!$E$42 -> 0 | CL36: =$CP36*Input!$E$42 -> 0 | CM36: =$CP36*Input!$E$42 -> 0 | CN36: =$CP36*Input!$E$42 -> 0 | CO36: =$CP36*Input!$E$42 -> 0 | CP36: 0.7025116685 | CQ36: 0 | CR36: 0 | CS36: =IF(Input!BK$44>0,(Input!BK$44+Input!BK$54)*$AT36,0) -> 0 | CT36: =IF(Input!BL$44>0,(Input!BL$44+Input!BL$54)*$AT36,0) -> 0 | CU36: =IF(Input!BM$44>0,(Input!BM$44+Input!BM$54)*$AT36,0) -> 0 | CV36: =IF(Input!BN$44>0,(Input!BN$44+Input!BN$54)*$AT36,0) -> 0 | CW36: =IF(Input!BO$44>0,(Input!BO$44+Input!BO$54)*$AT36,0) -> 0 | CX36: =IF(Input!BP$44>0,(Input!BP$44+Input!BP$54)*$AT36,0) -> 0 | CY36: =IF(Input!BQ$44>0,(Input!BQ$44+Input!BQ$54)*$AT36,0) -> 0 | CZ36: 33.30762373 | DA36: 0 | DB36: 0 | DC36: =IF(Input!BU$44>0,(Input!BU$44+Input!BU$54)*$AT36,0) -> 0 | DD36: =IF(Input!BV$44>0,(Input!BV$44+Input!BV$54)*$AT36,0) -> 0 | DE36: =IF(Input!BW$44>0,(Input!BW$44+Input!BW$54)*$AT36,0) -> 0 | DF36: =IF(Input!BX$44>0,(Input!BX$44+Input!BX$54)*$AT36,0) -> 0 | DG36: =IF(Input!BY$44>0,(Input!BY$44+Input!BY$54)*$AT36,0) -> 0 | DH36: =IF(Input!BZ$44>0,(Input!BZ$44+Input!BZ$54)*$AT36,0) -> 0 | DI36: =IF(Input!CA$44>0,(Input!CA$44+Input!CA$54)*$AT36,0) -> 0 | DJ36: 0 | DK36: 0 | DL36: 0 | DM36: 0 | DN36: =IF(Output!$H$2='Inputs & Utility Cost'!$B$41,('Inputs & Utility Cost'!$C$41*(J36+T36+AD36+AN36+AX36+BF36+BP36+BZ36+CJ36+CT36+DD36)),IF(Output!$H$2='Inputs & Utility Cost'!$B$42,('Inputs & Utility Cost'!$C$42*('Inputs & Utility Cost'!$C$41*(J36+T36+AD36+AN36+AX36+BF36+BP36+BZ36+CJ36+CT36+DD36))),(J36+T36+AD36+AN36+AX36+BF36+BP36+BZ36+CJ36+CT36+DD36))) -> 0 | DO36: =IF(Output!$H$2='Inputs & Utility Cost'!$B$41,('Inputs & Utility Cost'!$C$41*(K36+U36+AE36+AO36+AY36+BG36+BQ36+CA36+CK36+CU36+DE36)),IF(Output!$H$2='Inputs & Utility Cost'!$B$42,('Inputs & Utility Cost'!$C$42*('Inputs & Utility Cost'!$C$41*(K36+U36+AE36+AO36+AY36+BG36+BQ36+CA36+CK36+CU36+DE36))),(K36+U36+AE36+AO36+AY36+BG36+BQ36+CA36+CK36+CU36+DE36))) -> 0 | DP36: =IF(Output!$H$2='Inputs & Utility Cost'!$B$41,('Inputs & Utility Cost'!$C$41*(L36+V36+AF36+AP36+AZ36+BH36+BR36+CB36+CL36+CV36+DF36)),IF(Output!$H$2='Inputs & Utility Cost'!$B$42,('Inputs & Utility Cost'!$C$42*('Inputs & Utility Cost'!$C$41*(L36+V36+AF36+AP36+AZ36+BH36+BR36+CB36+CL36+CV36+DF36))),(L36+V36+AF36+AP36+AZ36+BH36+BR36+CB36+CL36+CV36+DF36))) -> 0 | DQ36: =IF(Output!$H$2='Inputs & Utility Cost'!$B$41,('Inputs & Utility Cost'!$C$41*(M36+W36+AG36+AQ36+BA36+BI36+BS36+CC36+CM36+CW36+DG36)),IF(Output!$H$2='Inputs & Utility Cost'!$B$42,('Inputs & Utility Cost'!$C$42*('Inputs & Utility Cost'!$C$41*(M36+W36+AG36+AQ36+BA36+BI36+BS36+CC36+CM36+CW36+DG36))),(M36+W36+AG36+AQ36+BA36+BI36+BS36+CC36+CM36+CW36+DG36))) -> 0 | DR36: =IF(Output!$H$2='Inputs & Utility Cost'!$B$41,('Inputs & Utility Cost'!$C$41*(N36+X36+AH36+AR36+BB36+BJ36+BT36+CD36+CN36+CX36+DH36)),IF(Output!$H$2='Inputs & Utility Cost'!$B$42,('Inputs & Utility Cost'!$C$42*('Inputs & Utility Cost'!$C$41*(N36+X36+AH36+AR36+BB36+BJ36+BT36+CD36+CN36+CX36+DH36))),(N36+X36+AH36+AR36+BB36+BJ36+BT36+CD36+CN36+CX36+DH36))) -> 0 | DS36: =IF(Output!$H$2='Inputs & Utility Cost'!$B$41,('Inputs & Utility Cost'!$C$41*(O36+Y36+AI36+AS36+BC36+BK36+BU36+CE36+CO36+CY36+DI36)),IF(Output!$H$2='Inputs & Utility Cost'!$B$42,('Inputs & Utility Cost'!$C$42*('Inputs & Utility Cost'!$C$41*(O36+Y36+AI36+AS36+BC36+BK36+BU36+CE36+CO36+CY36+DI36))),(O36+Y36+AI36+AS36+BC36+BK36+BU36+CE36+CO36+CY36+DI36))) -> 0
H37: 2049 | I37: =$P37*Input!$E$41 -> 0 | J37: =$P37*Input!$F$41 -> 0 | K37: =$P37*Input!$G$41 -> 0 | L37: =$P37*Input!$H$41 -> 0 | M37: =$P37*Input!$I$41 -> 0 | N37: =$P37*Input!$J$41 -> 0 | O37: =$P37*Input!$K$41 -> 0 | P37: 0.7240787767 | Q37: 0 | R37: 0 | S37: =IF(Input!$E$35>0,(Input!E$35+Input!E$53)*$Z37,0) -> 0 | T37: =IF(Input!$F$35>0,(Input!F$35+Input!F$53)*$Z37,0) -> 0 | U37: =IF(Input!$G$35>0,(Input!G$35+Input!G$53)*$Z37,0) -> 0 | V37: =IF(Input!$H$35>0,(Input!H$35+Input!H$53)*$Z37,0) -> 0 | W37: =IF(Input!$I$35>0,(Input!I$35+Input!I$53)*$Z37,0) -> 0 | X37: =IF(Input!$J$35>0,(Input!J$35+Input!J$53)*$Z37,0) -> 0 | Y37: =IF(Input!$K$35>0,(Input!K$35+Input!K$53)*$Z37,0) -> 0 | Z37: 0.1421332274 | AA37: 0.1827056191 | AB37: 0.1397153494 | AC37: =IF(Input!E$33>0,(Input!E$33+Input!E$53)*$AJ37,0) -> 0 | AD37: =IF(Input!F$33>0,(Input!F$33+Input!F$53)*$AJ37,0) -> 0 | AE37: =IF(Input!G$33>0,(Input!G$33+Input!G$53)*$AJ37,0) -> 0 | AF37: =IF(Input!H$33>0,(Input!H$33+Input!H$53)*$AJ37,0) -> 0 | AG37: =IF(Input!I$33>0,(Input!I$33+Input!I$53)*$AJ37,0) -> 0 | AH37: =IF(Input!J$33>0,(Input!J$33+Input!J$53)*$AJ37,0) -> 0 | AI37: =IF(Input!K$33>0,(Input!K$33+Input!K$53)*$AJ37,0) -> 0 | AJ37: 0.1421332274 | AK37: 0.1827056191 | AL37: 0.1397153494 | AM37: =IF(Input!E$44>0,(Input!E$44+Input!E$54)*$AT37,0) -> 0 | AN37: =IF(Input!F$44>0,(Input!F$44+Input!F$54)*$AT37,0) -> 0 | AO37: =IF(Input!G$44>0,(Input!G$44+Input!G$54)*$AT37,0) -> 0 | AP37: =IF(Input!H$44>0,(Input!H$44+Input!H$54)*$AT37,0) -> 0 | AQ37: =IF(Input!I$44>0,(Input!I$44+Input!I$54)*$AT37,0) -> 0 | AR37: =IF(Input!J$44>0,(Input!J$44+Input!J$54)*$AT37,0) -> 0 | AS37: =IF(Input!K$44>0,(Input!K$44+Input!K$54)*$AT37,0) -> 0 | AT37: 33.30762373 | AU37: 41.99539891 | AV37: 31.88349555 | AW37: =IF(Input!E$46>0,(Input!E$46+Input!E$54)*$BD37,0) -> 0 | AX37: =IF(Input!F$46>0,(Input!F$46+Input!F$54)*$BD37,0) -> 0 | AY37: =IF(Input!G$46>0,(Input!G$46+Input!G$54)*$BD37,0) -> 0 | AZ37: =IF(Input!H$46>0,(Input!H$46+Input!H$54)*$BD37,0) -> 0 | BA37: =IF(Input!I$46>0,(Input!I$46+Input!I$54)*$BD37,0) -> 0 | BB37: =IF(Input!J$46>0,(Input!J$46+Input!J$54)*$BD37,0) -> 0 | BC37: =IF(Input!K$46>0,(Input!K$46+Input!K$54)*$BD37,0) -> 0 | BD37: 33.30762373 | BE37: =IF(Input!E$37>0,(Input!E$37+Input!E$53)*$AJ37,0) -> 0 | BF37: =IF(Input!F$37>0,(Input!F$37+Input!F$53)*$AJ37,0) -> 0 | BG37: =IF(Input!G$37>0,(Input!G$37+Input!G$53)*$AJ37,0) -> 0 | BH37: =IF(Input!H$37>0,(Input!H$37+Input!H$53)*$AJ37,0) -> 0 | BI37: =IF(Input!I$37>0,(Input!I$37+Input!I$53)*$AJ37,0) -> 0 | BJ37: =IF(Input!J$37>0,(Input!J$37+Input!J$53)*$AJ37,0) -> 0 | BK37: =IF(Input!K$37>0,(Input!K$37+Input!K$53)*$AJ37,0) -> 0 | BL37: 0.1421332274 | BM37: 0 | BN37: 0 | BO37: =IF(Input!E$39>0,(Input!E$39+Input!AQ$53)*$BV37,0) -> 0 | BP37: =IF(Input!F$39>0,(Input!F$39+Input!AR$53)*$BV37,0) -> 0 | BQ37: =IF(Input!G$39>0,(Input!G$39+Input!AS$53)*$BV37,0) -> 0 | BR37: =IF(Input!H$39>0,(Input!H$39+Input!AT$53)*$BV37,0) -> 0 | BS37: =IF(Input!I$39>0,(Input!I$39+Input!AU$53)*$BV37,0) -> 0 | BT37: =IF(Input!J$39>0,(Input!J$39+Input!AV$53)*$BV37,0) -> 0 | BU37: =IF(Input!K$39>0,(Input!K$39+Input!AW$53)*$BV37,0) -> 0 | BV37: 0.1421332274 | BW37: 0 | BX37: 0 | BY37: =$CF37*Input!$E$43 -> 0 | BZ37: =$CF37*Input!$E$43 -> 0 | CA37: =$CF37*Input!$E$43 -> 0 | CB37: =$CF37*Input!$E$43 -> 0 | CC37: =$CF37*Input!$E$43 -> 0 | CD37: =$CF37*Input!$E$43 -> 0 | CE37: =$CF37*Input!$E$43 -> 0 | CF37: 0.7240787767 | CG37: 0 | CH37: 0 | CI37: =$CP37*Input!$E$42 -> 0 | CJ37: =$CP37*Input!$E$42 -> 0 | CK37: =$CP37*Input!$E$42 -> 0 | CL37: =$CP37*Input!$E$42 -> 0 | CM37: =$CP37*Input!$E$42 -> 0 | CN37: =$CP37*Input!$E$42 -> 0 | CO37: =$CP37*Input!$E$42 -> 0 | CP37: 0.7240787767 | CQ37: 0 | CR37: 0 | CS37: =IF(Input!BK$44>0,(Input!BK$44+Input!BK$54)*$AT37,0) -> 0 | CT37: =IF(Input!BL$44>0,(Input!BL$44+Input!BL$54)*$AT37,0) -> 0 | CU37: =IF(Input!BM$44>0,(Input!BM$44+Input!BM$54)*$AT37,0) -> 0 | CV37: =IF(Input!BN$44>0,(Input!BN$44+Input!BN$54)*$AT37,0) -> 0 | CW37: =IF(Input!BO$44>0,(Input!BO$44+Input!BO$54)*$AT37,0) -> 0 | CX37: =IF(Input!BP$44>0,(Input!BP$44+Input!BP$54)*$AT37,0) -> 0 | CY37: =IF(Input!BQ$44>0,(Input!BQ$44+Input!BQ$54)*$AT37,0) -> 0 | CZ37: 34.33016778 | DA37: 0 | DB37: 0 | DC37: =IF(Input!BU$44>0,(Input!BU$44+Input!BU$54)*$AT37,0) -> 0 | DD37: =IF(Input!BV$44>0,(Input!BV$44+Input!BV$54)*$AT37,0) -> 0 | DE37: =IF(Input!BW$44>0,(Input!BW$44+Input!BW$54)*$AT37,0) -> 0 | DF37: =IF(Input!BX$44>0,(Input!BX$44+Input!BX$54)*$AT37,0) -> 0 | DG37: =IF(Input!BY$44>0,(Input!BY$44+Input!BY$54)*$AT37,0) -> 0 | DH37: =IF(Input!BZ$44>0,(Input!BZ$44+Input!BZ$54)*$AT37,0) -> 0 | DI37: =IF(Input!CA$44>0,(Input!CA$44+Input!CA$54)*$AT37,0) -> 0 | DJ37: 0 | DK37: 0 | DL37: 0 | DM37: 0 | DN37: =IF(Output!$H$2='Inputs & Utility Cost'!$B$41,('Inputs & Utility Cost'!$C$41*(J37+T37+AD37+AN37+AX37+BF37+BP37+BZ37+CJ37+CT37+DD37)),IF(Output!$H$2='Inputs & Utility Cost'!$B$42,('Inputs & Utility Cost'!$C$42*('Inputs & Utility Cost'!$C$41*(J37+T37+AD37+AN37+AX37+BF37+BP37+BZ37+CJ37+CT37+DD37))),(J37+T37+AD37+AN37+AX37+BF37+BP37+BZ37+CJ37+CT37+DD37))) -> 0 | DO37: =IF(Output!$H$2='Inputs & Utility Cost'!$B$41,('Inputs & Utility Cost'!$C$41*(K37+U37+AE37+AO37+AY37+BG37+BQ37+CA37+CK37+CU37+DE37)),IF(Output!$H$2='Inputs & Utility Cost'!$B$42,('Inputs & Utility Cost'!$C$42*('Inputs & Utility Cost'!$C$41*(K37+U37+AE37+AO37+AY37+BG37+BQ37+CA37+CK37+CU37+DE37))),(K37+U37+AE37+AO37+AY37+BG37+BQ37+CA37+CK37+CU37+DE37))) -> 0 | DP37: =IF(Output!$H$2='Inputs & Utility Cost'!$B$41,('Inputs & Utility Cost'!$C$41*(L37+V37+AF37+AP37+AZ37+BH37+BR37+CB37+CL37+CV37+DF37)),IF(Output!$H$2='Inputs & Utility Cost'!$B$42,('Inputs & Utility Cost'!$C$42*('Inputs & Utility Cost'!$C$41*(L37+V37+AF37+AP37+AZ37+BH37+BR37+CB37+CL37+CV37+DF37))),(L37+V37+AF37+AP37+AZ37+BH37+BR37+CB37+CL37+CV37+DF37))) -> 0 | DQ37: =IF(Output!$H$2='Inputs & Utility Cost'!$B$41,('Inputs & Utility Cost'!$C$41*(M37+W37+AG37+AQ37+BA37+BI37+BS37+CC37+CM37+CW37+DG37)),IF(Output!$H$2='Inputs & Utility Cost'!$B$42,('Inputs & Utility Cost'!$C$42*('Inputs & Utility Cost'!$C$41*(M37+W37+AG37+AQ37+BA37+BI37+BS37+CC37+CM37+CW37+DG37))),(M37+W37+AG37+AQ37+BA37+BI37+BS37+CC37+CM37+CW37+DG37))) -> 0 | DR37: =IF(Output!$H$2='Inputs & Utility Cost'!$B$41,('Inputs & Utility Cost'!$C$41*(N37+X37+AH37+AR37+BB37+BJ37+BT37+CD37+CN37+CX37+DH37)),IF(Output!$H$2='Inputs & Utility Cost'!$B$42,('Inputs & Utility Cost'!$C$42*('Inputs & Utility Cost'!$C$41*(N37+X37+AH37+AR37+BB37+BJ37+BT37+CD37+CN37+CX37+DH37))),(N37+X37+AH37+AR37+BB37+BJ37+BT37+CD37+CN37+CX37+DH37))) -> 0 | DS37: =IF(Output!$H$2='Inputs & Utility Cost'!$B$41,('Inputs & Utility Cost'!$C$41*(O37+Y37+AI37+AS37+BC37+BK37+BU37+CE37+CO37+CY37+DI37)),IF(Output!$H$2='Inputs & Utility Cost'!$B$42,('Inputs & Utility Cost'!$C$42*('Inputs & Utility Cost'!$C$41*(O37+Y37+AI37+AS37+BC37+BK37+BU37+CE37+CO37+CY37+DI37))),(O37+Y37+AI37+AS37+BC37+BK37+BU37+CE37+CO37+CY37+DI37))) -> 0
H38: 2050 | I38: =$P38*Input!$E$41 -> 0 | J38: =$P38*Input!$F$41 -> 0 | K38: =$P38*Input!$G$41 -> 0 | L38: =$P38*Input!$H$41 -> 0 | M38: =$P38*Input!$I$41 -> 0 | N38: =$P38*Input!$J$41 -> 0 | O38: =$P38*Input!$K$41 -> 0 | P38: 0.7463079952 | Q38: 0 | R38: 0 | S38: =IF(Input!$E$35>0,(Input!E$35+Input!E$53)*$Z38,0) -> 0 | T38: =IF(Input!$F$35>0,(Input!F$35+Input!F$53)*$Z38,0) -> 0 | U38: =IF(Input!$G$35>0,(Input!G$35+Input!G$53)*$Z38,0) -> 0 | V38: =IF(Input!$H$35>0,(Input!H$35+Input!H$53)*$Z38,0) -> 0 | W38: =IF(Input!$I$35>0,(Input!I$35+Input!I$53)*$Z38,0) -> 0 | X38: =IF(Input!$J$35>0,(Input!J$35+Input!J$53)*$Z38,0) -> 0 | Y38: =IF(Input!$K$35>0,(Input!K$35+Input!K$53)*$Z38,0) -> 0 | Z38: 0.1450185319 | AA38: 0.1882964111 | AB38: 0.1424537702 | AC38: =IF(Input!E$33>0,(Input!E$33+Input!E$53)*$AJ38,0) -> 0 | AD38: =IF(Input!F$33>0,(Input!F$33+Input!F$53)*$AJ38,0) -> 0 | AE38: =IF(Input!G$33>0,(Input!G$33+Input!G$53)*$AJ38,0) -> 0 | AF38: =IF(Input!H$33>0,(Input!H$33+Input!H$53)*$AJ38,0) -> 0 | AG38: =IF(Input!I$33>0,(Input!I$33+Input!I$53)*$AJ38,0) -> 0 | AH38: =IF(Input!J$33>0,(Input!J$33+Input!J$53)*$AJ38,0) -> 0 | AI38: =IF(Input!K$33>0,(Input!K$33+Input!K$53)*$AJ38,0) -> 0 | AJ38: 0.1450185319 | AK38: 0.1882964111 | AL38: 0.1424537702 | AM38: =IF(Input!E$44>0,(Input!E$44+Input!E$54)*$AT38,0) -> 0 | AN38: =IF(Input!F$44>0,(Input!F$44+Input!F$54)*$AT38,0) -> 0 | AO38: =IF(Input!G$44>0,(Input!G$44+Input!G$54)*$AT38,0) -> 0 | AP38: =IF(Input!H$44>0,(Input!H$44+Input!H$54)*$AT38,0) -> 0 | AQ38: =IF(Input!I$44>0,(Input!I$44+Input!I$54)*$AT38,0) -> 0 | AR38: =IF(Input!J$44>0,(Input!J$44+Input!J$54)*$AT38,0) -> 0 | AS38: =IF(Input!K$44>0,(Input!K$44+Input!K$54)*$AT38,0) -> 0 | AT38: 34.33016778 | AU38: 43.68781348 | AV38: 32.80492857 | AW38: =IF(Input!E$46>0,(Input!E$46+Input!E$54)*$BD38,0) -> 0 | AX38: =IF(Input!F$46>0,(Input!F$46+Input!F$54)*$BD38,0) -> 0 | AY38: =IF(Input!G$46>0,(Input!G$46+Input!G$54)*$BD38,0) -> 0 | AZ38: =IF(Input!H$46>0,(Input!H$46+Input!H$54)*$BD38,0) -> 0 | BA38: =IF(Input!I$46>0,(Input!I$46+Input!I$54)*$BD38,0) -> 0 | BB38: =IF(Input!J$46>0,(Input!J$46+Input!J$54)*$BD38,0) -> 0 | BC38: =IF(Input!K$46>0,(Input!K$46+Input!K$54)*$BD38,0) -> 0 | BD38: 34.33016778 | BE38: =IF(Input!E$37>0,(Input!E$37+Input!E$53)*$AJ38,0) -> 0 | BF38: =IF(Input!F$37>0,(Input!F$37+Input!F$53)*$AJ38,0) -> 0 | BG38: =IF(Input!G$37>0,(Input!G$37+Input!G$53)*$AJ38,0) -> 0 | BH38: =IF(Input!H$37>0,(Input!H$37+Input!H$53)*$AJ38,0) -> 0 | BI38: =IF(Input!I$37>0,(Input!I$37+Input!I$53)*$AJ38,0) -> 0 | BJ38: =IF(Input!J$37>0,(Input!J$37+Input!J$53)*$AJ38,0) -> 0 | BK38: =IF(Input!K$37>0,(Input!K$37+Input!K$53)*$AJ38,0) -> 0 | BL38: 0.1450185319 | BM38: 0 | BN38: 0 | BO38: =IF(Input!E$39>0,(Input!E$39+Input!AQ$53)*$BV38,0) -> 0 | BP38: =IF(Input!F$39>0,(Input!F$39+Input!AR$53)*$BV38,0) -> 0 | BQ38: =IF(Input!G$39>0,(Input!G$39+Input!AS$53)*$BV38,0) -> 0 | BR38: =IF(Input!H$39>0,(Input!H$39+Input!AT$53)*$BV38,0) -> 0 | BS38: =IF(Input!I$39>0,(Input!I$39+Input!AU$53)*$BV38,0) -> 0 | BT38: =IF(Input!J$39>0,(Input!J$39+Input!AV$53)*$BV38,0) -> 0 | BU38: =IF(Input!K$39>0,(Input!K$39+Input!AW$53)*$BV38,0) -> 0 | BV38: 0.1450185319 | BW38: 0 | BX38: 0 | BY38: =$CF38*Input!$E$43 -> 0 | BZ38: =$CF38*Input!$E$43 -> 0 | CA38: =$CF38*Input!$E$43 -> 0 | CB38: =$CF38*Input!$E$43 -> 0 | CC38: =$CF38*Input!$E$43 -> 0 | CD38: =$CF38*Input!$E$43 -> 0 | CE38: =$CF38*Input!$E$43 -> 0 | CF38: 0.7463079952 | CG38: 0 | CH38: 0 | CI38: =$CP38*Input!$E$42 -> 0 | CJ38: =$CP38*Input!$E$42 -> 0 | CK38: =$CP38*Input!$E$42 -> 0 | CL38: =$CP38*Input!$E$42 -> 0 | CM38: =$CP38*Input!$E$42 -> 0 | CN38: =$CP38*Input!$E$42 -> 0 | CO38: =$CP38*Input!$E$42 -> 0 | CP38: 0.7463079952 | CQ38: 0 | CR38: 0 | CS38: =IF(Input!BK$44>0,(Input!BK$44+Input!BK$54)*$AT38,0) -> 0 | CT38: =IF(Input!BL$44>0,(Input!BL$44+Input!BL$54)*$AT38,0) -> 0 | CU38: =IF(Input!BM$44>0,(Input!BM$44+Input!BM$54)*$AT38,0) -> 0 | CV38: =IF(Input!BN$44>0,(Input!BN$44+Input!BN$54)*$AT38,0) -> 0 | CW38: =IF(Input!BO$44>0,(Input!BO$44+Input!BO$54)*$AT38,0) -> 0 | CX38: =IF(Input!BP$44>0,(Input!BP$44+Input!BP$54)*$AT38,0) -> 0 | CY38: =IF(Input!BQ$44>0,(Input!BQ$44+Input!BQ$54)*$AT38,0) -> 0 | CZ38: 35.38410393 | DA38: 0 | DB38: 0 | DC38: =IF(Input!BU$44>0,(Input!BU$44+Input!BU$54)*$AT38,0) -> 0 | DD38: =IF(Input!BV$44>0,(Input!BV$44+Input!BV$54)*$AT38,0) -> 0 | DE38: =IF(Input!BW$44>0,(Input!BW$44+Input!BW$54)*$AT38,0) -> 0 | DF38: =IF(Input!BX$44>0,(Input!BX$44+Input!BX$54)*$AT38,0) -> 0 | DG38: =IF(Input!BY$44>0,(Input!BY$44+Input!BY$54)*$AT38,0) -> 0 | DH38: =IF(Input!BZ$44>0,(Input!BZ$44+Input!BZ$54)*$AT38,0) -> 0 | DI38: =IF(Input!CA$44>0,(Input!CA$44+Input!CA$54)*$AT38,0) -> 0 | DJ38: 0 | DK38: 0 | DL38: 0 | DM38: 0 | DN38: =IF(Output!$H$2='Inputs & Utility Cost'!$B$41,('Inputs & Utility Cost'!$C$41*(J38+T38+AD38+AN38+AX38+BF38+BP38+BZ38+CJ38+CT38+DD38)),IF(Output!$H$2='Inputs & Utility Cost'!$B$42,('Inputs & Utility Cost'!$C$42*('Inputs & Utility Cost'!$C$41*(J38+T38+AD38+AN38+AX38+BF38+BP38+BZ38+CJ38+CT38+DD38))),(J38+T38+AD38+AN38+AX38+BF38+BP38+BZ38+CJ38+CT38+DD38))) -> 0 | DO38: =IF(Output!$H$2='Inputs & Utility Cost'!$B$41,('Inputs & Utility Cost'!$C$41*(K38+U38+AE38+AO38+AY38+BG38+BQ38+CA38+CK38+CU38+DE38)),IF(Output!$H$2='Inputs & Utility Cost'!$B$42,('Inputs & Utility Cost'!$C$42*('Inputs & Utility Cost'!$C$41*(K38+U38+AE38+AO38+AY38+BG38+BQ38+CA38+CK38+CU38+DE38))),(K38+U38+AE38+AO38+AY38+BG38+BQ38+CA38+CK38+CU38+DE38))) -> 0 | DP38: =IF(Output!$H$2='Inputs & Utility Cost'!$B$41,('Inputs & Utility Cost'!$C$41*(L38+V38+AF38+AP38+AZ38+BH38+BR38+CB38+CL38+CV38+DF38)),IF(Output!$H$2='Inputs & Utility Cost'!$B$42,('Inputs & Utility Cost'!$C$42*('Inputs & Utility Cost'!$C$41*(L38+V38+AF38+AP38+AZ38+BH38+BR38+CB38+CL38+CV38+DF38))),(L38+V38+AF38+AP38+AZ38+BH38+BR38+CB38+CL38+CV38+DF38))) -> 0 | DQ38: =IF(Output!$H$2='Inputs & Utility Cost'!$B$41,('Inputs & Utility Cost'!$C$41*(M38+W38+AG38+AQ38+BA38+BI38+BS38+CC38+CM38+CW38+DG38)),IF(Output!$H$2='Inputs & Utility Cost'!$B$42,('Inputs & Utility Cost'!$C$42*('Inputs & Utility Cost'!$C$41*(M38+W38+AG38+AQ38+BA38+BI38+BS38+CC38+CM38+CW38+DG38))),(M38+W38+AG38+AQ38+BA38+BI38+BS38+CC38+CM38+CW38+DG38))) -> 0 | DR38: =IF(Output!$H$2='Inputs & Utility Cost'!$B$41,('Inputs & Utility Cost'!$C$41*(N38+X38+AH38+AR38+BB38+BJ38+BT38+CD38+CN38+CX38+DH38)),IF(Output!$H$2='Inputs & Utility Cost'!$B$42,('Inputs & Utility Cost'!$C$42*('Inputs & Utility Cost'!$C$41*(N38+X38+AH38+AR38+BB38+BJ38+BT38+CD38+CN38+CX38+DH38))),(N38+X38+AH38+AR38+BB38+BJ38+BT38+CD38+CN38+CX38+DH38))) -> 0 | DS38: =IF(Output!$H$2='Inputs & Utility Cost'!$B$41,('Inputs & Utility Cost'!$C$41*(O38+Y38+AI38+AS38+BC38+BK38+BU38+CE38+CO38+CY38+DI38)),IF(Output!$H$2='Inputs & Utility Cost'!$B$42,('Inputs & Utility Cost'!$C$42*('Inputs & Utility Cost'!$C$41*(O38+Y38+AI38+AS38+BC38+BK38+BU38+CE38+CO38+CY38+DI38))),(O38+Y38+AI38+AS38+BC38+BK38+BU38+CE38+CO38+CY38+DI38))) -> 0
B39: Power Purchase Agreements | C39: Campus PPA Fee | H39: 2051 | I39: =$P39*Input!$E$41 -> 0 | J39: =$P39*Input!$F$41 -> 0 | K39: =$P39*Input!$G$41 -> 0 | L39: =$P39*Input!$H$41 -> 0 | M39: =$P39*Input!$I$41 -> 0 | N39: =$P39*Input!$J$41 -> 0 | O39: =$P39*Input!$K$41 -> 0 | P39: 0.7692196506 | Q39: 0 | R39: 0 | S39: =IF(Input!$E$35>0,(Input!E$35+Input!E$53)*$Z39,0) -> 0 | T39: =IF(Input!$F$35>0,(Input!F$35+Input!F$53)*$Z39,0) -> 0 | U39: =IF(Input!$G$35>0,(Input!G$35+Input!G$53)*$Z39,0) -> 0 | V39: =IF(Input!$H$35>0,(Input!H$35+Input!H$53)*$Z39,0) -> 0 | W39: =IF(Input!$I$35>0,(Input!I$35+Input!I$53)*$Z39,0) -> 0 | X39: =IF(Input!$J$35>0,(Input!J$35+Input!J$53)*$Z39,0) -> 0 | Y39: =IF(Input!$K$35>0,(Input!K$35+Input!K$53)*$Z39,0) -> 0 | Z39: 0.1479624081 | AA39: 0.1940582813 | AB39: 0.1452458641 | AC39: =IF(Input!E$33>0,(Input!E$33+Input!E$53)*$AJ39,0) -> 0 | AD39: =IF(Input!F$33>0,(Input!F$33+Input!F$53)*$AJ39,0) -> 0 | AE39: =IF(Input!G$33>0,(Input!G$33+Input!G$53)*$AJ39,0) -> 0 | AF39: =IF(Input!H$33>0,(Input!H$33+Input!H$53)*$AJ39,0) -> 0 | AG39: =IF(Input!I$33>0,(Input!I$33+Input!I$53)*$AJ39,0) -> 0 | AH39: =IF(Input!J$33>0,(Input!J$33+Input!J$53)*$AJ39,0) -> 0 | AI39: =IF(Input!K$33>0,(Input!K$33+Input!K$53)*$AJ39,0) -> 0 | AJ39: 0.1479624081 | AK39: 0.1940582813 | AL39: 0.1452458641 | AM39: =IF(Input!E$44>0,(Input!E$44+Input!E$54)*$AT39,0) -> 0 | AN39: =IF(Input!F$44>0,(Input!F$44+Input!F$54)*$AT39,0) -> 0 | AO39: =IF(Input!G$44>0,(Input!G$44+Input!G$54)*$AT39,0) -> 0 | AP39: =IF(Input!H$44>0,(Input!H$44+Input!H$54)*$AT39,0) -> 0 | AQ39: =IF(Input!I$44>0,(Input!I$44+Input!I$54)*$AT39,0) -> 0 | AR39: =IF(Input!J$44>0,(Input!J$44+Input!J$54)*$AT39,0) -> 0 | AS39: =IF(Input!K$44>0,(Input!K$44+Input!K$54)*$AT39,0) -> 0 | AT39: 35.38410393 | AU39: 45.44843237 | AV39: 33.75299101 | AW39: =IF(Input!E$46>0,(Input!E$46+Input!E$54)*$BD39,0) -> 0 | AX39: =IF(Input!F$46>0,(Input!F$46+Input!F$54)*$BD39,0) -> 0 | AY39: =IF(Input!G$46>0,(Input!G$46+Input!G$54)*$BD39,0) -> 0 | AZ39: =IF(Input!H$46>0,(Input!H$46+Input!H$54)*$BD39,0) -> 0 | BA39: =IF(Input!I$46>0,(Input!I$46+Input!I$54)*$BD39,0) -> 0 | BB39: =IF(Input!J$46>0,(Input!J$46+Input!J$54)*$BD39,0) -> 0 | BC39: =IF(Input!K$46>0,(Input!K$46+Input!K$54)*$BD39,0) -> 0 | BD39: 35.38410393 | BE39: =IF(Input!E$37>0,(Input!E$37+Input!E$53)*$AJ39,0) -> 0 | BF39: =IF(Input!F$37>0,(Input!F$37+Input!F$53)*$AJ39,0) -> 0 | BG39: =IF(Input!G$37>0,(Input!G$37+Input!G$53)*$AJ39,0) -> 0 | BH39: =IF(Input!H$37>0,(Input!H$37+Input!H$53)*$AJ39,0) -> 0 | BI39: =IF(Input!I$37>0,(Input!I$37+Input!I$53)*$AJ39,0) -> 0 | BJ39: =IF(Input!J$37>0,(Input!J$37+Input!J$53)*$AJ39,0) -> 0 | BK39: =IF(Input!K$37>0,(Input!K$37+Input!K$53)*$AJ39,0) -> 0 | BL39: 0.1479624081 | BM39: 0 | BN39: 0 | BO39: =IF(Input!E$39>0,(Input!E$39+Input!AQ$53)*$BV39,0) -> 0 | BP39: =IF(Input!F$39>0,(Input!F$39+Input!AR$53)*$BV39,0) -> 0 | BQ39: =IF(Input!G$39>0,(Input!G$39+Input!AS$53)*$BV39,0) -> 0 | BR39: =IF(Input!H$39>0,(Input!H$39+Input!AT$53)*$BV39,0) -> 0 | BS39: =IF(Input!I$39>0,(Input!I$39+Input!AU$53)*$BV39,0) -> 0 | BT39: =IF(Input!J$39>0,(Input!J$39+Input!AV$53)*$BV39,0) -> 0 | BU39: =IF(Input!K$39>0,(Input!K$39+Input!AW$53)*$BV39,0) -> 0 | BV39: 0.1479624081 | BW39: 0 | BX39: 0 | BY39: =$CF39*Input!$E$43 -> 0 | BZ39: =$CF39*Input!$E$43 -> 0 | CA39: =$CF39*Input!$E$43 -> 0 | CB39: =$CF39*Input!$E$43 -> 0 | CC39: =$CF39*Input!$E$43 -> 0 | CD39: =$CF39*Input!$E$43 -> 0 | CE39: =$CF39*Input!$E$43 -> 0 | CF39: 0.7692196506 | CG39: 0 | CH39: 0 | CI39: =$CP39*Input!$E$42 -> 0 | CJ39: =$CP39*Input!$E$42 -> 0 | CK39: =$CP39*Input!$E$42 -> 0 | CL39: =$CP39*Input!$E$42 -> 0 | CM39: =$CP39*Input!$E$42 -> 0 | CN39: =$CP39*Input!$E$42 -> 0 | CO39: =$CP39*Input!$E$42 -> 0 | CP39: 0.7692196506 | CQ39: 0 | CR39: 0 | CS39: =IF(Input!BK$44>0,(Input!BK$44+Input!BK$54)*$AT39,0) -> 0 | CT39: =IF(Input!BL$44>0,(Input!BL$44+Input!BL$54)*$AT39,0) -> 0 | CU39: =IF(Input!BM$44>0,(Input!BM$44+Input!BM$54)*$AT39,0) -> 0 | CV39: =IF(Input!BN$44>0,(Input!BN$44+Input!BN$54)*$AT39,0) -> 0 | CW39: =IF(Input!BO$44>0,(Input!BO$44+Input!BO$54)*$AT39,0) -> 0 | CX39: =IF(Input!BP$44>0,(Input!BP$44+Input!BP$54)*$AT39,0) -> 0 | CY39: =IF(Input!BQ$44>0,(Input!BQ$44+Input!BQ$54)*$AT39,0) -> 0 | CZ39: 36.47039592 | DA39: 0 | DB39: 0 | DC39: =IF(Input!BU$44>0,(Input!BU$44+Input!BU$54)*$AT39,0) -> 0 | DD39: =IF(Input!BV$44>0,(Input!BV$44+Input!BV$54)*$AT39,0) -> 0 | DE39: =IF(Input!BW$44>0,(Input!BW$44+Input!BW$54)*$AT39,0) -> 0 | DF39: =IF(Input!BX$44>0,(Input!BX$44+Input!BX$54)*$AT39,0) -> 0 | DG39: =IF(Input!BY$44>0,(Input!BY$44+Input!BY$54)*$AT39,0) -> 0 | DH39: =IF(Input!BZ$44>0,(Input!BZ$44+Input!BZ$54)*$AT39,0) -> 0 | DI39: =IF(Input!CA$44>0,(Input!CA$44+Input!CA$54)*$AT39,0) -> 0 | DJ39: 0 | DK39: 0 | DL39: 0 | DM39: 0 | DN39: =IF(Output!$H$2='Inputs & Utility Cost'!$B$41,('Inputs & Utility Cost'!$C$41*(J39+T39+AD39+AN39+AX39+BF39+BP39+BZ39+CJ39+CT39+DD39)),IF(Output!$H$2='Inputs & Utility Cost'!$B$42,('Inputs & Utility Cost'!$C$42*('Inputs & Utility Cost'!$C$41*(J39+T39+AD39+AN39+AX39+BF39+BP39+BZ39+CJ39+CT39+DD39))),(J39+T39+AD39+AN39+AX39+BF39+BP39+BZ39+CJ39+CT39+DD39))) -> 0 | DO39: =IF(Output!$H$2='Inputs & Utility Cost'!$B$41,('Inputs & Utility Cost'!$C$41*(K39+U39+AE39+AO39+AY39+BG39+BQ39+CA39+CK39+CU39+DE39)),IF(Output!$H$2='Inputs & Utility Cost'!$B$42,('Inputs & Utility Cost'!$C$42*('Inputs & Utility Cost'!$C$41*(K39+U39+AE39+AO39+AY39+BG39+BQ39+CA39+CK39+CU39+DE39))),(K39+U39+AE39+AO39+AY39+BG39+BQ39+CA39+CK39+CU39+DE39))) -> 0 | DP39: =IF(Output!$H$2='Inputs & Utility Cost'!$B$41,('Inputs & Utility Cost'!$C$41*(L39+V39+AF39+AP39+AZ39+BH39+BR39+CB39+CL39+CV39+DF39)),IF(Output!$H$2='Inputs & Utility Cost'!$B$42,('Inputs & Utility Cost'!$C$42*('Inputs & Utility Cost'!$C$41*(L39+V39+AF39+AP39+AZ39+BH39+BR39+CB39+CL39+CV39+DF39))),(L39+V39+AF39+AP39+AZ39+BH39+BR39+CB39+CL39+CV39+DF39))) -> 0 | DQ39: =IF(Output!$H$2='Inputs & Utility Cost'!$B$41,('Inputs & Utility Cost'!$C$41*(M39+W39+AG39+AQ39+BA39+BI39+BS39+CC39+CM39+CW39+DG39)),IF(Output!$H$2='Inputs & Utility Cost'!$B$42,('Inputs & Utility Cost'!$C$42*('Inputs & Utility Cost'!$C$41*(M39+W39+AG39+AQ39+BA39+BI39+BS39+CC39+CM39+CW39+DG39))),(M39+W39+AG39+AQ39+BA39+BI39+BS39+CC39+CM39+CW39+DG39))) -> 0 | DR39: =IF(Output!$H$2='Inputs & Utility Cost'!$B$41,('Inputs & Utility Cost'!$C$41*(N39+X39+AH39+AR39+BB39+BJ39+BT39+CD39+CN39+CX39+DH39)),IF(Output!$H$2='Inputs & Utility Cost'!$B$42,('Inputs & Utility Cost'!$C$42*('Inputs & Utility Cost'!$C$41*(N39+X39+AH39+AR39+BB39+BJ39+BT39+CD39+CN39+CX39+DH39))),(N39+X39+AH39+AR39+BB39+BJ39+BT39+CD39+CN39+CX39+DH39))) -> 0 | DS39: =IF(Output!$H$2='Inputs & Utility Cost'!$B$41,('Inputs & Utility Cost'!$C$41*(O39+Y39+AI39+AS39+BC39+BK39+BU39+CE39+CO39+CY39+DI39)),IF(Output!$H$2='Inputs & Utility Cost'!$B$42,('Inputs & Utility Cost'!$C$42*('Inputs & Utility Cost'!$C$41*(O39+Y39+AI39+AS39+BC39+BK39+BU39+CE39+CO39+CY39+DI39))),(O39+Y39+AI39+AS39+BC39+BK39+BU39+CE39+CO39+CY39+DI39))) -> 0
B40: No Power Purchase Agreement | H40: 2052 | I40: =$P40*Input!$E$41 -> 0 | J40: =$P40*Input!$F$41 -> 0 | K40: =$P40*Input!$G$41 -> 0 | L40: =$P40*Input!$H$41 -> 0 | M40: =$P40*Input!$I$41 -> 0 | N40: =$P40*Input!$J$41 -> 0 | O40: =$P40*Input!$K$41 -> 0 | P40: 0.7928346939 | Q40: 0 | R40: 0 | S40: =IF(Input!$E$35>0,(Input!E$35+Input!E$53)*$Z40,0) -> 0 | T40: =IF(Input!$F$35>0,(Input!F$35+Input!F$53)*$Z40,0) -> 0 | U40: =IF(Input!$G$35>0,(Input!G$35+Input!G$53)*$Z40,0) -> 0 | V40: =IF(Input!$H$35>0,(Input!H$35+Input!H$53)*$Z40,0) -> 0 | W40: =IF(Input!$I$35>0,(Input!I$35+Input!I$53)*$Z40,0) -> 0 | X40: =IF(Input!$J$35>0,(Input!J$35+Input!J$53)*$Z40,0) -> 0 | Y40: =IF(Input!$K$35>0,(Input!K$35+Input!K$53)*$Z40,0) -> 0 | Z40: 0.150966045 | AA40: 0.1999964647 | AB40: 0.1480926831 | AC40: =IF(Input!E$33>0,(Input!E$33+Input!E$53)*$AJ40,0) -> 0 | AD40: =IF(Input!F$33>0,(Input!F$33+Input!F$53)*$AJ40,0) -> 0 | AE40: =IF(Input!G$33>0,(Input!G$33+Input!G$53)*$AJ40,0) -> 0 | AF40: =IF(Input!H$33>0,(Input!H$33+Input!H$53)*$AJ40,0) -> 0 | AG40: =IF(Input!I$33>0,(Input!I$33+Input!I$53)*$AJ40,0) -> 0 | AH40: =IF(Input!J$33>0,(Input!J$33+Input!J$53)*$AJ40,0) -> 0 | AI40: =IF(Input!K$33>0,(Input!K$33+Input!K$53)*$AJ40,0) -> 0 | AJ40: 0.150966045 | AK40: 0.1999964647 | AL40: 0.1480926831 | AM40: =IF(Input!E$44>0,(Input!E$44+Input!E$54)*$AT40,0) -> 0 | AN40: =IF(Input!F$44>0,(Input!F$44+Input!F$54)*$AT40,0) -> 0 | AO40: =IF(Input!G$44>0,(Input!G$44+Input!G$54)*$AT40,0) -> 0 | AP40: =IF(Input!H$44>0,(Input!H$44+Input!H$54)*$AT40,0) -> 0 | AQ40: =IF(Input!I$44>0,(Input!I$44+Input!I$54)*$AT40,0) -> 0 | AR40: =IF(Input!J$44>0,(Input!J$44+Input!J$54)*$AT40,0) -> 0 | AS40: =IF(Input!K$44>0,(Input!K$44+Input!K$54)*$AT40,0) -> 0 | AT40: 36.47039592 | AU40: 47.28000419 | AV40: 34.72845245 | AW40: =IF(Input!E$46>0,(Input!E$46+Input!E$54)*$BD40,0) -> 0 | AX40: =IF(Input!F$46>0,(Input!F$46+Input!F$54)*$BD40,0) -> 0 | AY40: =IF(Input!G$46>0,(Input!G$46+Input!G$54)*$BD40,0) -> 0 | AZ40: =IF(Input!H$46>0,(Input!H$46+Input!H$54)*$BD40,0) -> 0 | BA40: =IF(Input!I$46>0,(Input!I$46+Input!I$54)*$BD40,0) -> 0 | BB40: =IF(Input!J$46>0,(Input!J$46+Input!J$54)*$BD40,0) -> 0 | BC40: =IF(Input!K$46>0,(Input!K$46+Input!K$54)*$BD40,0) -> 0 | BD40: 36.47039592 | BE40: =IF(Input!E$37>0,(Input!E$37+Input!E$53)*$AJ40,0) -> 0 | BF40: =IF(Input!F$37>0,(Input!F$37+Input!F$53)*$AJ40,0) -> 0 | BG40: =IF(Input!G$37>0,(Input!G$37+Input!G$53)*$AJ40,0) -> 0 | BH40: =IF(Input!H$37>0,(Input!H$37+Input!H$53)*$AJ40,0) -> 0 | BI40: =IF(Input!I$37>0,(Input!I$37+Input!I$53)*$AJ40,0) -> 0 | BJ40: =IF(Input!J$37>0,(Input!J$37+Input!J$53)*$AJ40,0) -> 0 | BK40: =IF(Input!K$37>0,(Input!K$37+Input!K$53)*$AJ40,0) -> 0 | BL40: 0.150966045 | BM40: 0 | BN40: 0 | BO40: =IF(Input!E$39>0,(Input!E$39+Input!AQ$53)*$BV40,0) -> 0 | BP40: =IF(Input!F$39>0,(Input!F$39+Input!AR$53)*$BV40,0) -> 0 | BQ40: =IF(Input!G$39>0,(Input!G$39+Input!AS$53)*$BV40,0) -> 0 | BR40: =IF(Input!H$39>0,(Input!H$39+Input!AT$53)*$BV40,0) -> 0 | BS40: =IF(Input!I$39>0,(Input!I$39+Input!AU$53)*$BV40,0) -> 0 | BT40: =IF(Input!J$39>0,(Input!J$39+Input!AV$53)*$BV40,0) -> 0 | BU40: =IF(Input!K$39>0,(Input!K$39+Input!AW$53)*$BV40,0) -> 0 | BV40: 0.150966045 | BW40: 0 | BX40: 0 | BY40: =$CF40*Input!$E$43 -> 0 | BZ40: =$CF40*Input!$E$43 -> 0 | CA40: =$CF40*Input!$E$43 -> 0 | CB40: =$CF40*Input!$E$43 -> 0 | CC40: =$CF40*Input!$E$43 -> 0 | CD40: =$CF40*Input!$E$43 -> 0 | CE40: =$CF40*Input!$E$43 -> 0 | CF40: 0.7928346939 | CG40: 0 | CH40: 0 | CI40: =$CP40*Input!$E$42 -> 0 | CJ40: =$CP40*Input!$E$42 -> 0 | CK40: =$CP40*Input!$E$42 -> 0 | CL40: =$CP40*Input!$E$42 -> 0 | CM40: =$CP40*Input!$E$42 -> 0 | CN40: =$CP40*Input!$E$42 -> 0 | CO40: =$CP40*Input!$E$42 -> 0 | CP40: 0.7928346939 | CQ40: 0 | CR40: 0 | CS40: =IF(Input!BK$44>0,(Input!BK$44+Input!BK$54)*$AT40,0) -> 0 | CT40: =IF(Input!BL$44>0,(Input!BL$44+Input!BL$54)*$AT40,0) -> 0 | CU40: =IF(Input!BM$44>0,(Input!BM$44+Input!BM$54)*$AT40,0) -> 0 | CV40: =IF(Input!BN$44>0,(Input!BN$44+Input!BN$54)*$AT40,0) -> 0 | CW40: =IF(Input!BO$44>0,(Input!BO$44+Input!BO$54)*$AT40,0) -> 0 | CX40: =IF(Input!BP$44>0,(Input!BP$44+Input!BP$54)*$AT40,0) -> 0 | CY40: =IF(Input!BQ$44>0,(Input!BQ$44+Input!BQ$54)*$AT40,0) -> 0 | CZ40: 37.59003707 | DA40: 0 | DB40: 0 | DC40: =IF(Input!BU$44>0,(Input!BU$44+Input!BU$54)*$AT40,0) -> 0 | DD40: =IF(Input!BV$44>0,(Input!BV$44+Input!BV$54)*$AT40,0) -> 0 | DE40: =IF(Input!BW$44>0,(Input!BW$44+Input!BW$54)*$AT40,0) -> 0 | DF40: =IF(Input!BX$44>0,(Input!BX$44+Input!BX$54)*$AT40,0) -> 0 | DG40: =IF(Input!BY$44>0,(Input!BY$44+Input!BY$54)*$AT40,0) -> 0 | DH40: =IF(Input!BZ$44>0,(Input!BZ$44+Input!BZ$54)*$AT40,0) -> 0 | DI40: =IF(Input!CA$44>0,(Input!CA$44+Input!CA$54)*$AT40,0) -> 0 | DJ40: 0 | DK40: 0 | DL40: 0 | DM40: 0 | DN40: =IF(Output!$H$2='Inputs & Utility Cost'!$B$41,('Inputs & Utility Cost'!$C$41*(J40+T40+AD40+AN40+AX40+BF40+BP40+BZ40+CJ40+CT40+DD40)),IF(Output!$H$2='Inputs & Utility Cost'!$B$42,('Inputs & Utility Cost'!$C$42*('Inputs & Utility Cost'!$C$41*(J40+T40+AD40+AN40+AX40+BF40+BP40+BZ40+CJ40+CT40+DD40))),(J40+T40+AD40+AN40+AX40+BF40+BP40+BZ40+CJ40+CT40+DD40))) -> 0 | DO40: =IF(Output!$H$2='Inputs & Utility Cost'!$B$41,('Inputs & Utility Cost'!$C$41*(K40+U40+AE40+AO40+AY40+BG40+BQ40+CA40+CK40+CU40+DE40)),IF(Output!$H$2='Inputs & Utility Cost'!$B$42,('Inputs & Utility Cost'!$C$42*('Inputs & Utility Cost'!$C$41*(K40+U40+AE40+AO40+AY40+BG40+BQ40+CA40+CK40+CU40+DE40))),(K40+U40+AE40+AO40+AY40+BG40+BQ40+CA40+CK40+CU40+DE40))) -> 0 | DP40: =IF(Output!$H$2='Inputs & Utility Cost'!$B$41,('Inputs & Utility Cost'!$C$41*(L40+V40+AF40+AP40+AZ40+BH40+BR40+CB40+CL40+CV40+DF40)),IF(Output!$H$2='Inputs & Utility Cost'!$B$42,('Inputs & Utility Cost'!$C$42*('Inputs & Utility Cost'!$C$41*(L40+V40+AF40+AP40+AZ40+BH40+BR40+CB40+CL40+CV40+DF40))),(L40+V40+AF40+AP40+AZ40+BH40+BR40+CB40+CL40+CV40+DF40))) -> 0 | DQ40: =IF(Output!$H$2='Inputs & Utility Cost'!$B$41,('Inputs & Utility Cost'!$C$41*(M40+W40+AG40+AQ40+BA40+BI40+BS40+CC40+CM40+CW40+DG40)),IF(Output!$H$2='Inputs & Utility Cost'!$B$42,('Inputs & Utility Cost'!$C$42*('Inputs & Utility Cost'!$C$41*(M40+W40+AG40+AQ40+BA40+BI40+BS40+CC40+CM40+CW40+DG40))),(M40+W40+AG40+AQ40+BA40+BI40+BS40+CC40+CM40+CW40+DG40))) -> 0 | DR40: =IF(Output!$H$2='Inputs & Utility Cost'!$B$41,('Inputs & Utility Cost'!$C$41*(N40+X40+AH40+AR40+BB40+BJ40+BT40+CD40+CN40+CX40+DH40)),IF(Output!$H$2='Inputs & Utility Cost'!$B$42,('Inputs & Utility Cost'!$C$42*('Inputs & Utility Cost'!$C$41*(N40+X40+AH40+AR40+BB40+BJ40+BT40+CD40+CN40+CX40+DH40))),(N40+X40+AH40+AR40+BB40+BJ40+BT40+CD40+CN40+CX40+DH40))) -> 0 | DS40: =IF(Output!$H$2='Inputs & Utility Cost'!$B$41,('Inputs & Utility Cost'!$C$41*(O40+Y40+AI40+AS40+BC40+BK40+BU40+CE40+CO40+CY40+DI40)),IF(Output!$H$2='Inputs & Utility Cost'!$B$42,('Inputs & Utility Cost'!$C$42*('Inputs & Utility Cost'!$C$41*(O40+Y40+AI40+AS40+BC40+BK40+BU40+CE40+CO40+CY40+DI40))),(O40+Y40+AI40+AS40+BC40+BK40+BU40+CE40+CO40+CY40+DI40))) -> 0
B41: PPA-200,000MWH Renewable | C41: 1.03 | H41: 2053 | I41: =$P41*Input!$E$41 -> 0 | J41: =$P41*Input!$F$41 -> 0 | K41: =$P41*Input!$G$41 -> 0 | L41: =$P41*Input!$H$41 -> 0 | M41: =$P41*Input!$I$41 -> 0 | N41: =$P41*Input!$J$41 -> 0 | O41: =$P41*Input!$K$41 -> 0 | P41: 0.817174719 | S41: =IF(Input!$E$35>0,(Input!E$35+Input!E$53)*$Z41,0) -> 0 | T41: =IF(Input!$F$35>0,(Input!F$35+Input!F$53)*$Z41,0) -> 0 | U41: =IF(Input!$G$35>0,(Input!G$35+Input!G$53)*$Z41,0) -> 0 | V41: =IF(Input!$H$35>0,(Input!H$35+Input!H$53)*$Z41,0) -> 0 | W41: =IF(Input!$I$35>0,(Input!I$35+Input!I$53)*$Z41,0) -> 0 | X41: =IF(Input!$J$35>0,(Input!J$35+Input!J$53)*$Z41,0) -> 0 | Y41: =IF(Input!$K$35>0,(Input!K$35+Input!K$53)*$Z41,0) -> 0 | Z41: 0.1540306557 | AC41: =IF(Input!E$33>0,(Input!E$33+Input!E$53)*$AJ41,0) -> 0 | AD41: =IF(Input!F$33>0,(Input!F$33+Input!F$53)*$AJ41,0) -> 0 | AE41: =IF(Input!G$33>0,(Input!G$33+Input!G$53)*$AJ41,0) -> 0 | AF41: =IF(Input!H$33>0,(Input!H$33+Input!H$53)*$AJ41,0) -> 0 | AG41: =IF(Input!I$33>0,(Input!I$33+Input!I$53)*$AJ41,0) -> 0 | AH41: =IF(Input!J$33>0,(Input!J$33+Input!J$53)*$AJ41,0) -> 0 | AI41: =IF(Input!K$33>0,(Input!K$33+Input!K$53)*$AJ41,0) -> 0 | AJ41: 0.1540306557 | AM41: =IF(Input!E$44>0,(Input!E$44+Input!E$54)*$AT41,0) -> 0 | AN41: =IF(Input!F$44>0,(Input!F$44+Input!F$54)*$AT41,0) -> 0 | AO41: =IF(Input!G$44>0,(Input!G$44+Input!G$54)*$AT41,0) -> 0 | AP41: =IF(Input!H$44>0,(Input!H$44+Input!H$54)*$AT41,0) -> 0 | AQ41: =IF(Input!I$44>0,(Input!I$44+Input!I$54)*$AT41,0) -> 0 | AR41: =IF(Input!J$44>0,(Input!J$44+Input!J$54)*$AT41,0) -> 0 | AS41: =IF(Input!K$44>0,(Input!K$44+Input!K$54)*$AT41,0) -> 0 | AT41: 37.59003707 | AW41: =IF(Input!E$46>0,(Input!E$46+Input!E$54)*$BD41,0) -> 0 | AX41: =IF(Input!F$46>0,(Input!F$46+Input!F$54)*$BD41,0) -> 0 | AY41: =IF(Input!G$46>0,(Input!G$46+Input!G$54)*$BD41,0) -> 0 | AZ41: =IF(Input!H$46>0,(Input!H$46+Input!H$54)*$BD41,0) -> 0 | BA41: =IF(Input!I$46>0,(Input!I$46+Input!I$54)*$BD41,0) -> 0 | BB41: =IF(Input!J$46>0,(Input!J$46+Input!J$54)*$BD41,0) -> 0 | BC41: =IF(Input!K$46>0,(Input!K$46+Input!K$54)*$BD41,0) -> 0 | BD41: 37.59003707 | BE41: =IF(Input!E$37>0,(Input!E$37+Input!E$53)*$AJ41,0) -> 0 | BF41: =IF(Input!F$37>0,(Input!F$37+Input!F$53)*$AJ41,0) -> 0 | BG41: =IF(Input!G$37>0,(Input!G$37+Input!G$53)*$AJ41,0) -> 0 | BH41: =IF(Input!H$37>0,(Input!H$37+Input!H$53)*$AJ41,0) -> 0 | BI41: =IF(Input!I$37>0,(Input!I$37+Input!I$53)*$AJ41,0) -> 0 | BJ41: =IF(Input!J$37>0,(Input!J$37+Input!J$53)*$AJ41,0) -> 0 | BK41: =IF(Input!K$37>0,(Input!K$37+Input!K$53)*$AJ41,0) -> 0 | BL41: 0.1540306557 | BO41: =IF(Input!E$39>0,(Input!E$39+Input!AQ$53)*$BV41,0) -> 0 | BP41: =IF(Input!F$39>0,(Input!F$39+Input!AR$53)*$BV41,0) -> 0 | BQ41: =IF(Input!G$39>0,(Input!G$39+Input!AS$53)*$BV41,0) -> 0 | BR41: =IF(Input!H$39>0,(Input!H$39+Input!AT$53)*$BV41,0) -> 0 | BS41: =IF(Input!I$39>0,(Input!I$39+Input!AU$53)*$BV41,0) -> 0 | BT41: =IF(Input!J$39>0,(Input!J$39+Input!AV$53)*$BV41,0) -> 0 | BU41: =IF(Input!K$39>0,(Input!K$39+Input!AW$53)*$BV41,0) -> 0 | BV41: 0.1540306557 | BY41: =$CF41*Input!$E$43 -> 0 | BZ41: =$CF41*Input!$E$43 -> 0 | CA41: =$CF41*Input!$E$43 -> 0 | CB41: =$CF41*Input!$E$43 -> 0 | CC41: =$CF41*Input!$E$43 -> 0 | CD41: =$CF41*Input!$E$43 -> 0 | CE41: =$CF41*Input!$E$43 -> 0 | CF41: 0.817174719 | CI41: =$CP41*Input!$E$42 -> 0 | CJ41: =$CP41*Input!$E$42 -> 0 | CK41: =$CP41*Input!$E$42 -> 0 | CL41: =$CP41*Input!$E$42 -> 0 | CM41: =$CP41*Input!$E$42 -> 0 | CN41: =$CP41*Input!$E$42 -> 0 | CO41: =$CP41*Input!$E$42 -> 0 | CP41: 0.817174719 | CS41: =IF(Input!BK$44>0,(Input!BK$44+Input!BK$54)*$AT41,0) -> 0 | CT41: =IF(Input!BL$44>0,(Input!BL$44+Input!BL$54)*$AT41,0) -> 0 | CU41: =IF(Input!BM$44>0,(Input!BM$44+Input!BM$54)*$AT41,0) -> 0 | CV41: =IF(Input!BN$44>0,(Input!BN$44+Input!BN$54)*$AT41,0) -> 0 | CW41: =IF(Input!BO$44>0,(Input!BO$44+Input!BO$54)*$AT41,0) -> 0 | CX41: =IF(Input!BP$44>0,(Input!BP$44+Input!BP$54)*$AT41,0) -> 0 | CY41: =IF(Input!BQ$44>0,(Input!BQ$44+Input!BQ$54)*$AT41,0) -> 0 | CZ41: 38.74405121 | DC41: =IF(Input!BU$44>0,(Input!BU$44+Input!BU$54)*$AT41,0) -> 0 | DD41: =IF(Input!BV$44>0,(Input!BV$44+Input!BV$54)*$AT41,0) -> 0 | DE41: =IF(Input!BW$44>0,(Input!BW$44+Input!BW$54)*$AT41,0) -> 0 | DF41: =IF(Input!BX$44>0,(Input!BX$44+Input!BX$54)*$AT41,0) -> 0 | DG41: =IF(Input!BY$44>0,(Input!BY$44+Input!BY$54)*$AT41,0) -> 0 | DH41: =IF(Input!BZ$44>0,(Input!BZ$44+Input!BZ$54)*$AT41,0) -> 0 | DI41: =IF(Input!CA$44>0,(Input!CA$44+Input!CA$54)*$AT41,0) -> 0 | DJ41: 0 | DM41: 0 | DN41: =IF(Output!$H$2='Inputs & Utility Cost'!$B$41,('Inputs & Utility Cost'!$C$41*(J41+T41+AD41+AN41+AX41+BF41+BP41+BZ41+CJ41+CT41+DD41)),IF(Output!$H$2='Inputs & Utility Cost'!$B$42,('Inputs & Utility Cost'!$C$42*('Inputs & Utility Cost'!$C$41*(J41+T41+AD41+AN41+AX41+BF41+BP41+BZ41+CJ41+CT41+DD41))),(J41+T41+AD41+AN41+AX41+BF41+BP41+BZ41+CJ41+CT41+DD41))) -> 0 | DO41: =IF(Output!$H$2='Inputs & Utility Cost'!$B$41,('Inputs & Utility Cost'!$C$41*(K41+U41+AE41+AO41+AY41+BG41+BQ41+CA41+CK41+CU41+DE41)),IF(Output!$H$2='Inputs & Utility Cost'!$B$42,('Inputs & Utility Cost'!$C$42*('Inputs & Utility Cost'!$C$41*(K41+U41+AE41+AO41+AY41+BG41+BQ41+CA41+CK41+CU41+DE41))),(K41+U41+AE41+AO41+AY41+BG41+BQ41+CA41+CK41+CU41+DE41))) -> 0 | DP41: =IF(Output!$H$2='Inputs & Utility Cost'!$B$41,('Inputs & Utility Cost'!$C$41*(L41+V41+AF41+AP41+AZ41+BH41+BR41+CB41+CL41+CV41+DF41)),IF(Output!$H$2='Inputs & Utility Cost'!$B$42,('Inputs & Utility Cost'!$C$42*('Inputs & Utility Cost'!$C$41*(L41+V41+AF41+AP41+AZ41+BH41+BR41+CB41+CL41+CV41+DF41))),(L41+V41+AF41+AP41+AZ41+BH41+BR41+CB41+CL41+CV41+DF41))) -> 0 | DQ41: =IF(Output!$H$2='Inputs & Utility Cost'!$B$41,('Inputs & Utility Cost'!$C$41*(M41+W41+AG41+AQ41+BA41+BI41+BS41+CC41+CM41+CW41+DG41)),IF(Output!$H$2='Inputs & Utility Cost'!$B$42,('Inputs & Utility Cost'!$C$42*('Inputs & Utility Cost'!$C$41*(M41+W41+AG41+AQ41+BA41+BI41+BS41+CC41+CM41+CW41+DG41))),(M41+W41+AG41+AQ41+BA41+BI41+BS41+CC41+CM41+CW41+DG41))) -> 0 | DR41: =IF(Output!$H$2='Inputs & Utility Cost'!$B$41,('Inputs & Utility Cost'!$C$41*(N41+X41+AH41+AR41+BB41+BJ41+BT41+CD41+CN41+CX41+DH41)),IF(Output!$H$2='Inputs & Utility Cost'!$B$42,('Inputs & Utility Cost'!$C$42*('Inputs & Utility Cost'!$C$41*(N41+X41+AH41+AR41+BB41+BJ41+BT41+CD41+CN41+CX41+DH41))),(N41+X41+AH41+AR41+BB41+BJ41+BT41+CD41+CN41+CX41+DH41))) -> 0 | DS41: =IF(Output!$H$2='Inputs & Utility Cost'!$B$41,('Inputs & Utility Cost'!$C$41*(O41+Y41+AI41+AS41+BC41+BK41+BU41+CE41+CO41+CY41+DI41)),IF(Output!$H$2='Inputs & Utility Cost'!$B$42,('Inputs & Utility Cost'!$C$42*('Inputs & Utility Cost'!$C$41*(O41+Y41+AI41+AS41+BC41+BK41+BU41+CE41+CO41+CY41+DI41))),(O41+Y41+AI41+AS41+BC41+BK41+BU41+CE41+CO41+CY41+DI41))) -> 0
B42: PPA-All Purchased Renewable | C42: 1.0213 | H42: 2054 | I42: =$P42*Input!$E$41 -> 0 | J42: =$P42*Input!$F$41 -> 0 | K42: =$P42*Input!$G$41 -> 0 | L42: =$P42*Input!$H$41 -> 0 | M42: =$P42*Input!$I$41 -> 0 | N42: =$P42*Input!$J$41 -> 0 | O42: =$P42*Input!$K$41 -> 0 | P42: 0.8422619829 | S42: =IF(Input!$E$35>0,(Input!E$35+Input!E$53)*$Z42,0) -> 0 | T42: =IF(Input!$F$35>0,(Input!F$35+Input!F$53)*$Z42,0) -> 0 | U42: =IF(Input!$G$35>0,(Input!G$35+Input!G$53)*$Z42,0) -> 0 | V42: =IF(Input!$H$35>0,(Input!H$35+Input!H$53)*$Z42,0) -> 0 | W42: =IF(Input!$I$35>0,(Input!I$35+Input!I$53)*$Z42,0) -> 0 | X42: =IF(Input!$J$35>0,(Input!J$35+Input!J$53)*$Z42,0) -> 0 | Y42: =IF(Input!$K$35>0,(Input!K$35+Input!K$53)*$Z42,0) -> 0 | Z42: 0.157157478 | AC42: =IF(Input!E$33>0,(Input!E$33+Input!E$53)*$AJ42,0) -> 0 | AD42: =IF(Input!F$33>0,(Input!F$33+Input!F$53)*$AJ42,0) -> 0 | AE42: =IF(Input!G$33>0,(Input!G$33+Input!G$53)*$AJ42,0) -> 0 | AF42: =IF(Input!H$33>0,(Input!H$33+Input!H$53)*$AJ42,0) -> 0 | AG42: =IF(Input!I$33>0,(Input!I$33+Input!I$53)*$AJ42,0) -> 0 | AH42: =IF(Input!J$33>0,(Input!J$33+Input!J$53)*$AJ42,0) -> 0 | AI42: =IF(Input!K$33>0,(Input!K$33+Input!K$53)*$AJ42,0) -> 0 | AJ42: 0.157157478 | AM42: =IF(Input!E$44>0,(Input!E$44+Input!E$54)*$AT42,0) -> 0 | AN42: =IF(Input!F$44>0,(Input!F$44+Input!F$54)*$AT42,0) -> 0 | AO42: =IF(Input!G$44>0,(Input!G$44+Input!G$54)*$AT42,0) -> 0 | AP42: =IF(Input!H$44>0,(Input!H$44+Input!H$54)*$AT42,0) -> 0 | AQ42: =IF(Input!I$44>0,(Input!I$44+Input!I$54)*$AT42,0) -> 0 | AR42: =IF(Input!J$44>0,(Input!J$44+Input!J$54)*$AT42,0) -> 0 | AS42: =IF(Input!K$44>0,(Input!K$44+Input!K$54)*$AT42,0) -> 0 | AT42: 38.74405121 | AW42: =IF(Input!E$46>0,(Input!E$46+Input!E$54)*$BD42,0) -> 0 | AX42: =IF(Input!F$46>0,(Input!F$46+Input!F$54)*$BD42,0) -> 0 | AY42: =IF(Input!G$46>0,(Input!G$46+Input!G$54)*$BD42,0) -> 0 | AZ42: =IF(Input!H$46>0,(Input!H$46+Input!H$54)*$BD42,0) -> 0 | BA42: =IF(Input!I$46>0,(Input!I$46+Input!I$54)*$BD42,0) -> 0 | BB42: =IF(Input!J$46>0,(Input!J$46+Input!J$54)*$BD42,0) -> 0 | BC42: =IF(Input!K$46>0,(Input!K$46+Input!K$54)*$BD42,0) -> 0 | BD42: 38.74405121 | BE42: =IF(Input!E$37>0,(Input!E$37+Input!E$53)*$AJ42,0) -> 0 | BF42: =IF(Input!F$37>0,(Input!F$37+Input!F$53)*$AJ42,0) -> 0 | BG42: =IF(Input!G$37>0,(Input!G$37+Input!G$53)*$AJ42,0) -> 0 | BH42: =IF(Input!H$37>0,(Input!H$37+Input!H$53)*$AJ42,0) -> 0 | BI42: =IF(Input!I$37>0,(Input!I$37+Input!I$53)*$AJ42,0) -> 0 | BJ42: =IF(Input!J$37>0,(Input!J$37+Input!J$53)*$AJ42,0) -> 0 | BK42: =IF(Input!K$37>0,(Input!K$37+Input!K$53)*$AJ42,0) -> 0 | BL42: 0.157157478 | BO42: =IF(Input!E$39>0,(Input!E$39+Input!AQ$53)*$BV42,0) -> 0 | BP42: =IF(Input!F$39>0,(Input!F$39+Input!AR$53)*$BV42,0) -> 0 | BQ42: =IF(Input!G$39>0,(Input!G$39+Input!AS$53)*$BV42,0) -> 0 | BR42: =IF(Input!H$39>0,(Input!H$39+Input!AT$53)*$BV42,0) -> 0 | BS42: =IF(Input!I$39>0,(Input!I$39+Input!AU$53)*$BV42,0) -> 0 | BT42: =IF(Input!J$39>0,(Input!J$39+Input!AV$53)*$BV42,0) -> 0 | BU42: =IF(Input!K$39>0,(Input!K$39+Input!AW$53)*$BV42,0) -> 0 | BV42: 0.157157478 | BY42: =$CF42*Input!$E$43 -> 0 | BZ42: =$CF42*Input!$E$43 -> 0 | CA42: =$CF42*Input!$E$43 -> 0 | CB42: =$CF42*Input!$E$43 -> 0 | CC42: =$CF42*Input!$E$43 -> 0 | CD42: =$CF42*Input!$E$43 -> 0 | CE42: =$CF42*Input!$E$43 -> 0 | CF42: 0.8422619829 | CI42: =$CP42*Input!$E$42 -> 0 | CJ42: =$CP42*Input!$E$42 -> 0 | CK42: =$CP42*Input!$E$42 -> 0 | CL42: =$CP42*Input!$E$42 -> 0 | CM42: =$CP42*Input!$E$42 -> 0 | CN42: =$CP42*Input!$E$42 -> 0 | CO42: =$CP42*Input!$E$42 -> 0 | CP42: 0.8422619829 | CS42: =IF(Input!BK$44>0,(Input!BK$44+Input!BK$54)*$AT42,0) -> 0 | CT42: =IF(Input!BL$44>0,(Input!BL$44+Input!BL$54)*$AT42,0) -> 0 | CU42: =IF(Input!BM$44>0,(Input!BM$44+Input!BM$54)*$AT42,0) -> 0 | CV42: =IF(Input!BN$44>0,(Input!BN$44+Input!BN$54)*$AT42,0) -> 0 | CW42: =IF(Input!BO$44>0,(Input!BO$44+Input!BO$54)*$AT42,0) -> 0 | CX42: =IF(Input!BP$44>0,(Input!BP$44+Input!BP$54)*$AT42,0) -> 0 | CY42: =IF(Input!BQ$44>0,(Input!BQ$44+Input!BQ$54)*$AT42,0) -> 0 | CZ42: 39.93349359 | DC42: =IF(Input!BU$44>0,(Input!BU$44+Input!BU$54)*$AT42,0) -> 0 | DD42: =IF(Input!BV$44>0,(Input!BV$44+Input!BV$54)*$AT42,0) -> 0 | DE42: =IF(Input!BW$44>0,(Input!BW$44+Input!BW$54)*$AT42,0) -> 0 | DF42: =IF(Input!BX$44>0,(Input!BX$44+Input!BX$54)*$AT42,0) -> 0 | DG42: =IF(Input!BY$44>0,(Input!BY$44+Input!BY$54)*$AT42,0) -> 0 | DH42: =IF(Input!BZ$44>0,(Input!BZ$44+Input!BZ$54)*$AT42,0) -> 0 | DI42: =IF(Input!CA$44>0,(Input!CA$44+Input!CA$54)*$AT42,0) -> 0 | DJ42: 0 | DM42: 0 | DN42: =IF(Output!$H$2='Inputs & Utility Cost'!$B$41,('Inputs & Utility Cost'!$C$41*(J42+T42+AD42+AN42+AX42+BF42+BP42+BZ42+CJ42+CT42+DD42)),IF(Output!$H$2='Inputs & Utility Cost'!$B$42,('Inputs & Utility Cost'!$C$42*('Inputs & Utility Cost'!$C$41*(J42+T42+AD42+AN42+AX42+BF42+BP42+BZ42+CJ42+CT42+DD42))),(J42+T42+AD42+AN42+AX42+BF42+BP42+BZ42+CJ42+CT42+DD42))) -> 0 | DO42: =IF(Output!$H$2='Inputs & Utility Cost'!$B$41,('Inputs & Utility Cost'!$C$41*(K42+U42+AE42+AO42+AY42+BG42+BQ42+CA42+CK42+CU42+DE42)),IF(Output!$H$2='Inputs & Utility Cost'!$B$42,('Inputs & Utility Cost'!$C$42*('Inputs & Utility Cost'!$C$41*(K42+U42+AE42+AO42+AY42+BG42+BQ42+CA42+CK42+CU42+DE42))),(K42+U42+AE42+AO42+AY42+BG42+BQ42+CA42+CK42+CU42+DE42))) -> 0 | DP42: =IF(Output!$H$2='Inputs & Utility Cost'!$B$41,('Inputs & Utility Cost'!$C$41*(L42+V42+AF42+AP42+AZ42+BH42+BR42+CB42+CL42+CV42+DF42)),IF(Output!$H$2='Inputs & Utility Cost'!$B$42,('Inputs & Utility Cost'!$C$42*('Inputs & Utility Cost'!$C$41*(L42+V42+AF42+AP42+AZ42+BH42+BR42+CB42+CL42+CV42+DF42))),(L42+V42+AF42+AP42+AZ42+BH42+BR42+CB42+CL42+CV42+DF42))) -> 0 | DQ42: =IF(Output!$H$2='Inputs & Utility Cost'!$B$41,('Inputs & Utility Cost'!$C$41*(M42+W42+AG42+AQ42+BA42+BI42+BS42+CC42+CM42+CW42+DG42)),IF(Output!$H$2='Inputs & Utility Cost'!$B$42,('Inputs & Utility Cost'!$C$42*('Inputs & Utility Cost'!$C$41*(M42+W42+AG42+AQ42+BA42+BI42+BS42+CC42+CM42+CW42+DG42))),(M42+W42+AG42+AQ42+BA42+BI42+BS42+CC42+CM42+CW42+DG42))) -> 0 | DR42: =IF(Output!$H$2='Inputs & Utility Cost'!$B$41,('Inputs & Utility Cost'!$C$41*(N42+X42+AH42+AR42+BB42+BJ42+BT42+CD42+CN42+CX42+DH42)),IF(Output!$H$2='Inputs & Utility Cost'!$B$42,('Inputs & Utility Cost'!$C$42*('Inputs & Utility Cost'!$C$41*(N42+X42+AH42+AR42+BB42+BJ42+BT42+CD42+CN42+CX42+DH42))),(N42+X42+AH42+AR42+BB42+BJ42+BT42+CD42+CN42+CX42+DH42))) -> 0 | DS42: =IF(Output!$H$2='Inputs & Utility Cost'!$B$41,('Inputs & Utility Cost'!$C$41*(O42+Y42+AI42+AS42+BC42+BK42+BU42+CE42+CO42+CY42+DI42)),IF(Output!$H$2='Inputs & Utility Cost'!$B$42,('Inputs & Utility Cost'!$C$42*('Inputs & Utility Cost'!$C$41*(O42+Y42+AI42+AS42+BC42+BK42+BU42+CE42+CO42+CY42+DI42))),(O42+Y42+AI42+AS42+BC42+BK42+BU42+CE42+CO42+CY42+DI42))) -> 0
H43: 2055 | I43: =$P43*Input!$E$41 -> 0 | J43: =$P43*Input!$F$41 -> 0 | K43: =$P43*Input!$G$41 -> 0 | L43: =$P43*Input!$H$41 -> 0 | M43: =$P43*Input!$I$41 -> 0 | N43: =$P43*Input!$J$41 -> 0 | O43: =$P43*Input!$K$41 -> 0 | P43: 0.8681194258 | S43: =IF(Input!$E$35>0,(Input!E$35+Input!E$53)*$Z43,0) -> 0 | T43: =IF(Input!$F$35>0,(Input!F$35+Input!F$53)*$Z43,0) -> 0 | U43: =IF(Input!$G$35>0,(Input!G$35+Input!G$53)*$Z43,0) -> 0 | V43: =IF(Input!$H$35>0,(Input!H$35+Input!H$53)*$Z43,0) -> 0 | W43: =IF(Input!$I$35>0,(Input!I$35+Input!I$53)*$Z43,0) -> 0 | X43: =IF(Input!$J$35>0,(Input!J$35+Input!J$53)*$Z43,0) -> 0 | Y43: =IF(Input!$K$35>0,(Input!K$35+Input!K$53)*$Z43,0) -> 0 | Z43: 0.1603477748 | AC43: =IF(Input!E$33>0,(Input!E$33+Input!E$53)*$AJ43,0) -> 0 | AD43: =IF(Input!F$33>0,(Input!F$33+Input!F$53)*$AJ43,0) -> 0 | AE43: =IF(Input!G$33>0,(Input!G$33+Input!G$53)*$AJ43,0) -> 0 | AF43: =IF(Input!H$33>0,(Input!H$33+Input!H$53)*$AJ43,0) -> 0 | AG43: =IF(Input!I$33>0,(Input!I$33+Input!I$53)*$AJ43,0) -> 0 | AH43: =IF(Input!J$33>0,(Input!J$33+Input!J$53)*$AJ43,0) -> 0 | AI43: =IF(Input!K$33>0,(Input!K$33+Input!K$53)*$AJ43,0) -> 0 | AJ43: 0.1603477748 | AM43: =IF(Input!E$44>0,(Input!E$44+Input!E$54)*$AT43,0) -> 0 | AN43: =IF(Input!F$44>0,(Input!F$44+Input!F$54)*$AT43,0) -> 0 | AO43: =IF(Input!G$44>0,(Input!G$44+Input!G$54)*$AT43,0) -> 0 | AP43: =IF(Input!H$44>0,(Input!H$44+Input!H$54)*$AT43,0) -> 0 | AQ43: =IF(Input!I$44>0,(Input!I$44+Input!I$54)*$AT43,0) -> 0 | AR43: =IF(Input!J$44>0,(Input!J$44+Input!J$54)*$AT43,0) -> 0 | AS43: =IF(Input!K$44>0,(Input!K$44+Input!K$54)*$AT43,0) -> 0 | AT43: 39.93349359 | AW43: =IF(Input!E$46>0,(Input!E$46+Input!E$54)*$BD43,0) -> 0 | AX43: =IF(Input!F$46>0,(Input!F$46+Input!F$54)*$BD43,0) -> 0 | AY43: =IF(Input!G$46>0,(Input!G$46+Input!G$54)*$BD43,0) -> 0 | AZ43: =IF(Input!H$46>0,(Input!H$46+Input!H$54)*$BD43,0) -> 0 | BA43: =IF(Input!I$46>0,(Input!I$46+Input!I$54)*$BD43,0) -> 0 | BB43: =IF(Input!J$46>0,(Input!J$46+Input!J$54)*$BD43,0) -> 0 | BC43: =IF(Input!K$46>0,(Input!K$46+Input!K$54)*$BD43,0) -> 0 | BD43: 39.93349359 | BE43: =IF(Input!E$37>0,(Input!E$37+Input!E$53)*$AJ43,0) -> 0 | BF43: =IF(Input!F$37>0,(Input!F$37+Input!F$53)*$AJ43,0) -> 0 | BG43: =IF(Input!G$37>0,(Input!G$37+Input!G$53)*$AJ43,0) -> 0 | BH43: =IF(Input!H$37>0,(Input!H$37+Input!H$53)*$AJ43,0) -> 0 | BI43: =IF(Input!I$37>0,(Input!I$37+Input!I$53)*$AJ43,0) -> 0 | BJ43: =IF(Input!J$37>0,(Input!J$37+Input!J$53)*$AJ43,0) -> 0 | BK43: =IF(Input!K$37>0,(Input!K$37+Input!K$53)*$AJ43,0) -> 0 | BL43: 0.1603477748 | BO43: =IF(Input!E$39>0,(Input!E$39+Input!AQ$53)*$BV43,0) -> 0 | BP43: =IF(Input!F$39>0,(Input!F$39+Input!AR$53)*$BV43,0) -> 0 | BQ43: =IF(Input!G$39>0,(Input!G$39+Input!AS$53)*$BV43,0) -> 0 | BR43: =IF(Input!H$39>0,(Input!H$39+Input!AT$53)*$BV43,0) -> 0 | BS43: =IF(Input!I$39>0,(Input!I$39+Input!AU$53)*$BV43,0) -> 0 | BT43: =IF(Input!J$39>0,(Input!J$39+Input!AV$53)*$BV43,0) -> 0 | BU43: =IF(Input!K$39>0,(Input!K$39+Input!AW$53)*$BV43,0) -> 0 | BV43: 0.1603477748 | BY43: =$CF43*Input!$E$43 -> 0 | BZ43: =$CF43*Input!$E$43 -> 0 | CA43: =$CF43*Input!$E$43 -> 0 | CB43: =$CF43*Input!$E$43 -> 0 | CC43: =$CF43*Input!$E$43 -> 0 | CD43: =$CF43*Input!$E$43 -> 0 | CE43: =$CF43*Input!$E$43 -> 0 | CF43: 0.8681194258 | CI43: =$CP43*Input!$E$42 -> 0 | CJ43: =$CP43*Input!$E$42 -> 0 | CK43: =$CP43*Input!$E$42 -> 0 | CL43: =$CP43*Input!$E$42 -> 0 | CM43: =$CP43*Input!$E$42 -> 0 | CN43: =$CP43*Input!$E$42 -> 0 | CO43: =$CP43*Input!$E$42 -> 0 | CP43: 0.8681194258 | CS43: =IF(Input!BK$44>0,(Input!BK$44+Input!BK$54)*$AT43,0) -> 0 | CT43: =IF(Input!BL$44>0,(Input!BL$44+Input!BL$54)*$AT43,0) -> 0 | CU43: =IF(Input!BM$44>0,(Input!BM$44+Input!BM$54)*$AT43,0) -> 0 | CV43: =IF(Input!BN$44>0,(Input!BN$44+Input!BN$54)*$AT43,0) -> 0 | CW43: =IF(Input!BO$44>0,(Input!BO$44+Input!BO$54)*$AT43,0) -> 0 | CX43: =IF(Input!BP$44>0,(Input!BP$44+Input!BP$54)*$AT43,0) -> 0 | CY43: =IF(Input!BQ$44>0,(Input!BQ$44+Input!BQ$54)*$AT43,0) -> 0 | CZ43: 41.15945184 | DC43: =IF(Input!BU$44>0,(Input!BU$44+Input!BU$54)*$AT43,0) -> 0 | DD43: =IF(Input!BV$44>0,(Input!BV$44+Input!BV$54)*$AT43,0) -> 0 | DE43: =IF(Input!BW$44>0,(Input!BW$44+Input!BW$54)*$AT43,0) -> 0 | DF43: =IF(Input!BX$44>0,(Input!BX$44+Input!BX$54)*$AT43,0) -> 0 | DG43: =IF(Input!BY$44>0,(Input!BY$44+Input!BY$54)*$AT43,0) -> 0 | DH43: =IF(Input!BZ$44>0,(Input!BZ$44+Input!BZ$54)*$AT43,0) -> 0 | DI43: =IF(Input!CA$44>0,(Input!CA$44+Input!CA$54)*$AT43,0) -> 0 | DJ43: 0 | DM43: 0 | DN43: =IF(Output!$H$2='Inputs & Utility Cost'!$B$41,('Inputs & Utility Cost'!$C$41*(J43+T43+AD43+AN43+AX43+BF43+BP43+BZ43+CJ43+CT43+DD43)),IF(Output!$H$2='Inputs & Utility Cost'!$B$42,('Inputs & Utility Cost'!$C$42*('Inputs & Utility Cost'!$C$41*(J43+T43+AD43+AN43+AX43+BF43+BP43+BZ43+CJ43+CT43+DD43))),(J43+T43+AD43+AN43+AX43+BF43+BP43+BZ43+CJ43+CT43+DD43))) -> 0 | DO43: =IF(Output!$H$2='Inputs & Utility Cost'!$B$41,('Inputs & Utility Cost'!$C$41*(K43+U43+AE43+AO43+AY43+BG43+BQ43+CA43+CK43+CU43+DE43)),IF(Output!$H$2='Inputs & Utility Cost'!$B$42,('Inputs & Utility Cost'!$C$42*('Inputs & Utility Cost'!$C$41*(K43+U43+AE43+AO43+AY43+BG43+BQ43+CA43+CK43+CU43+DE43))),(K43+U43+AE43+AO43+AY43+BG43+BQ43+CA43+CK43+CU43+DE43))) -> 0 | DP43: =IF(Output!$H$2='Inputs & Utility Cost'!$B$41,('Inputs & Utility Cost'!$C$41*(L43+V43+AF43+AP43+AZ43+BH43+BR43+CB43+CL43+CV43+DF43)),IF(Output!$H$2='Inputs & Utility Cost'!$B$42,('Inputs & Utility Cost'!$C$42*('Inputs & Utility Cost'!$C$41*(L43+V43+AF43+AP43+AZ43+BH43+BR43+CB43+CL43+CV43+DF43))),(L43+V43+AF43+AP43+AZ43+BH43+BR43+CB43+CL43+CV43+DF43))) -> 0 | DQ43: =IF(Output!$H$2='Inputs & Utility Cost'!$B$41,('Inputs & Utility Cost'!$C$41*(M43+W43+AG43+AQ43+BA43+BI43+BS43+CC43+CM43+CW43+DG43)),IF(Output!$H$2='Inputs & Utility Cost'!$B$42,('Inputs & Utility Cost'!$C$42*('Inputs & Utility Cost'!$C$41*(M43+W43+AG43+AQ43+BA43+BI43+BS43+CC43+CM43+CW43+DG43))),(M43+W43+AG43+AQ43+BA43+BI43+BS43+CC43+CM43+CW43+DG43))) -> 0 | DR43: =IF(Output!$H$2='Inputs & Utility Cost'!$B$41,('Inputs & Utility Cost'!$C$41*(N43+X43+AH43+AR43+BB43+BJ43+BT43+CD43+CN43+CX43+DH43)),IF(Output!$H$2='Inputs & Utility Cost'!$B$42,('Inputs & Utility Cost'!$C$42*('Inputs & Utility Cost'!$C$41*(N43+X43+AH43+AR43+BB43+BJ43+BT43+CD43+CN43+CX43+DH43))),(N43+X43+AH43+AR43+BB43+BJ43+BT43+CD43+CN43+CX43+DH43))) -> 0 | DS43: =IF(Output!$H$2='Inputs & Utility Cost'!$B$41,('Inputs & Utility Cost'!$C$41*(O43+Y43+AI43+AS43+BC43+BK43+BU43+CE43+CO43+CY43+DI43)),IF(Output!$H$2='Inputs & Utility Cost'!$B$42,('Inputs & Utility Cost'!$C$42*('Inputs & Utility Cost'!$C$41*(O43+Y43+AI43+AS43+BC43+BK43+BU43+CE43+CO43+CY43+DI43))),(O43+Y43+AI43+AS43+BC43+BK43+BU43+CE43+CO43+CY43+DI43))) -> 0
H44: 2056 | I44: =$P44*Input!$E$41 -> 0 | J44: =$P44*Input!$F$41 -> 0 | K44: =$P44*Input!$G$41 -> 0 | L44: =$P44*Input!$H$41 -> 0 | M44: =$P44*Input!$I$41 -> 0 | N44: =$P44*Input!$J$41 -> 0 | O44: =$P44*Input!$K$41 -> 0 | P44: 0.8947706921 | S44: =IF(Input!$E$35>0,(Input!E$35+Input!E$53)*$Z44,0) -> 0 | T44: =IF(Input!$F$35>0,(Input!F$35+Input!F$53)*$Z44,0) -> 0 | U44: =IF(Input!$G$35>0,(Input!G$35+Input!G$53)*$Z44,0) -> 0 | V44: =IF(Input!$H$35>0,(Input!H$35+Input!H$53)*$Z44,0) -> 0 | W44: =IF(Input!$I$35>0,(Input!I$35+Input!I$53)*$Z44,0) -> 0 | X44: =IF(Input!$J$35>0,(Input!J$35+Input!J$53)*$Z44,0) -> 0 | Y44: =IF(Input!$K$35>0,(Input!K$35+Input!K$53)*$Z44,0) -> 0 | Z44: 0.1636028346 | AC44: =IF(Input!E$33>0,(Input!E$33+Input!E$53)*$AJ44,0) -> 0 | AD44: =IF(Input!F$33>0,(Input!F$33+Input!F$53)*$AJ44,0) -> 0 | AE44: =IF(Input!G$33>0,(Input!G$33+Input!G$53)*$AJ44,0) -> 0 | AF44: =IF(Input!H$33>0,(Input!H$33+Input!H$53)*$AJ44,0) -> 0 | AG44: =IF(Input!I$33>0,(Input!I$33+Input!I$53)*$AJ44,0) -> 0 | AH44: =IF(Input!J$33>0,(Input!J$33+Input!J$53)*$AJ44,0) -> 0 | AI44: =IF(Input!K$33>0,(Input!K$33+Input!K$53)*$AJ44,0) -> 0 | AJ44: 0.1636028346 | AM44: =IF(Input!E$44>0,(Input!E$44+Input!E$54)*$AT44,0) -> 0 | AN44: =IF(Input!F$44>0,(Input!F$44+Input!F$54)*$AT44,0) -> 0 | AO44: =IF(Input!G$44>0,(Input!G$44+Input!G$54)*$AT44,0) -> 0 | AP44: =IF(Input!H$44>0,(Input!H$44+Input!H$54)*$AT44,0) -> 0 | AQ44: =IF(Input!I$44>0,(Input!I$44+Input!I$54)*$AT44,0) -> 0 | AR44: =IF(Input!J$44>0,(Input!J$44+Input!J$54)*$AT44,0) -> 0 | AS44: =IF(Input!K$44>0,(Input!K$44+Input!K$54)*$AT44,0) -> 0 | AT44: 41.15945184 | AW44: =IF(Input!E$46>0,(Input!E$46+Input!E$54)*$BD44,0) -> 0 | AX44: =IF(Input!F$46>0,(Input!F$46+Input!F$54)*$BD44,0) -> 0 | AY44: =IF(Input!G$46>0,(Input!G$46+Input!G$54)*$BD44,0) -> 0 | AZ44: =IF(Input!H$46>0,(Input!H$46+Input!H$54)*$BD44,0) -> 0 | BA44: =IF(Input!I$46>0,(Input!I$46+Input!I$54)*$BD44,0) -> 0 | BB44: =IF(Input!J$46>0,(Input!J$46+Input!J$54)*$BD44,0) -> 0 | BC44: =IF(Input!K$46>0,(Input!K$46+Input!K$54)*$BD44,0) -> 0 | BD44: 41.15945184 | BE44: =IF(Input!E$37>0,(Input!E$37+Input!E$53)*$AJ44,0) -> 0 | BF44: =IF(Input!F$37>0,(Input!F$37+Input!F$53)*$AJ44,0) -> 0 | BG44: =IF(Input!G$37>0,(Input!G$37+Input!G$53)*$AJ44,0) -> 0 | BH44: =IF(Input!H$37>0,(Input!H$37+Input!H$53)*$AJ44,0) -> 0 | BI44: =IF(Input!I$37>0,(Input!I$37+Input!I$53)*$AJ44,0) -> 0 | BJ44: =IF(Input!J$37>0,(Input!J$37+Input!J$53)*$AJ44,0) -> 0 | BK44: =IF(Input!K$37>0,(Input!K$37+Input!K$53)*$AJ44,0) -> 0 | BL44: 0.1636028346 | BO44: =IF(Input!E$39>0,(Input!E$39+Input!AQ$53)*$BV44,0) -> 0 | BP44: =IF(Input!F$39>0,(Input!F$39+Input!AR$53)*$BV44,0) -> 0 | BQ44: =IF(Input!G$39>0,(Input!G$39+Input!AS$53)*$BV44,0) -> 0 | BR44: =IF(Input!H$39>0,(Input!H$39+Input!AT$53)*$BV44,0) -> 0 | BS44: =IF(Input!I$39>0,(Input!I$39+Input!AU$53)*$BV44,0) -> 0 | BT44: =IF(Input!J$39>0,(Input!J$39+Input!AV$53)*$BV44,0) -> 0 | BU44: =IF(Input!K$39>0,(Input!K$39+Input!AW$53)*$BV44,0) -> 0 | BV44: 0.1636028346 | BY44: =$CF44*Input!$E$43 -> 0 | BZ44: =$CF44*Input!$E$43 -> 0 | CA44: =$CF44*Input!$E$43 -> 0 | CB44: =$CF44*Input!$E$43 -> 0 | CC44: =$CF44*Input!$E$43 -> 0 | CD44: =$CF44*Input!$E$43 -> 0 | CE44: =$CF44*Input!$E$43 -> 0 | CF44: 0.8947706921 | CI44: =$CP44*Input!$E$42 -> 0 | CJ44: =$CP44*Input!$E$42 -> 0 | CK44: =$CP44*Input!$E$42 -> 0 | CL44: =$CP44*Input!$E$42 -> 0 | CM44: =$CP44*Input!$E$42 -> 0 | CN44: =$CP44*Input!$E$42 -> 0 | CO44: =$CP44*Input!$E$42 -> 0 | CP44: 0.8947706921 | CS44: =IF(Input!BK$44>0,(Input!BK$44+Input!BK$54)*$AT44,0) -> 0 | CT44: =IF(Input!BL$44>0,(Input!BL$44+Input!BL$54)*$AT44,0) -> 0 | CU44: =IF(Input!BM$44>0,(Input!BM$44+Input!BM$54)*$AT44,0) -> 0 | CV44: =IF(Input!BN$44>0,(Input!BN$44+Input!BN$54)*$AT44,0) -> 0 | CW44: =IF(Input!BO$44>0,(Input!BO$44+Input!BO$54)*$AT44,0) -> 0 | CX44: =IF(Input!BP$44>0,(Input!BP$44+Input!BP$54)*$AT44,0) -> 0 | CY44: =IF(Input!BQ$44>0,(Input!BQ$44+Input!BQ$54)*$AT44,0) -> 0 | CZ44: 42.42304701 | DC44: =IF(Input!BU$44>0,(Input!BU$44+Input!BU$54)*$AT44,0) -> 0 | DD44: =IF(Input!BV$44>0,(Input!BV$44+Input!BV$54)*$AT44,0) -> 0 | DE44: =IF(Input!BW$44>0,(Input!BW$44+Input!BW$54)*$AT44,0) -> 0 | DF44: =IF(Input!BX$44>0,(Input!BX$44+Input!BX$54)*$AT44,0) -> 0 | DG44: =IF(Input!BY$44>0,(Input!BY$44+Input!BY$54)*$AT44,0) -> 0 | DH44: =IF(Input!BZ$44>0,(Input!BZ$44+Input!BZ$54)*$AT44,0) -> 0 | DI44: =IF(Input!CA$44>0,(Input!CA$44+Input!CA$54)*$AT44,0) -> 0 | DJ44: 0 | DM44: 0 | DN44: =IF(Output!$H$2='Inputs & Utility Cost'!$B$41,('Inputs & Utility Cost'!$C$41*(J44+T44+AD44+AN44+AX44+BF44+BP44+BZ44+CJ44+CT44+DD44)),IF(Output!$H$2='Inputs & Utility Cost'!$B$42,('Inputs & Utility Cost'!$C$42*('Inputs & Utility Cost'!$C$41*(J44+T44+AD44+AN44+AX44+BF44+BP44+BZ44+CJ44+CT44+DD44))),(J44+T44+AD44+AN44+AX44+BF44+BP44+BZ44+CJ44+CT44+DD44))) -> 0 | DO44: =IF(Output!$H$2='Inputs & Utility Cost'!$B$41,('Inputs & Utility Cost'!$C$41*(K44+U44+AE44+AO44+AY44+BG44+BQ44+CA44+CK44+CU44+DE44)),IF(Output!$H$2='Inputs & Utility Cost'!$B$42,('Inputs & Utility Cost'!$C$42*('Inputs & Utility Cost'!$C$41*(K44+U44+AE44+AO44+AY44+BG44+BQ44+CA44+CK44+CU44+DE44))),(K44+U44+AE44+AO44+AY44+BG44+BQ44+CA44+CK44+CU44+DE44))) -> 0 | DP44: =IF(Output!$H$2='Inputs & Utility Cost'!$B$41,('Inputs & Utility Cost'!$C$41*(L44+V44+AF44+AP44+AZ44+BH44+BR44+CB44+CL44+CV44+DF44)),IF(Output!$H$2='Inputs & Utility Cost'!$B$42,('Inputs & Utility Cost'!$C$42*('Inputs & Utility Cost'!$C$41*(L44+V44+AF44+AP44+AZ44+BH44+BR44+CB44+CL44+CV44+DF44))),(L44+V44+AF44+AP44+AZ44+BH44+BR44+CB44+CL44+CV44+DF44))) -> 0 | DQ44: =IF(Output!$H$2='Inputs & Utility Cost'!$B$41,('Inputs & Utility Cost'!$C$41*(M44+W44+AG44+AQ44+BA44+BI44+BS44+CC44+CM44+CW44+DG44)),IF(Output!$H$2='Inputs & Utility Cost'!$B$42,('Inputs & Utility Cost'!$C$42*('Inputs & Utility Cost'!$C$41*(M44+W44+AG44+AQ44+BA44+BI44+BS44+CC44+CM44+CW44+DG44))),(M44+W44+AG44+AQ44+BA44+BI44+BS44+CC44+CM44+CW44+DG44))) -> 0 | DR44: =IF(Output!$H$2='Inputs & Utility Cost'!$B$41,('Inputs & Utility Cost'!$C$41*(N44+X44+AH44+AR44+BB44+BJ44+BT44+CD44+CN44+CX44+DH44)),IF(Output!$H$2='Inputs & Utility Cost'!$B$42,('Inputs & Utility Cost'!$C$42*('Inputs & Utility Cost'!$C$41*(N44+X44+AH44+AR44+BB44+BJ44+BT44+CD44+CN44+CX44+DH44))),(N44+X44+AH44+AR44+BB44+BJ44+BT44+CD44+CN44+CX44+DH44))) -> 0 | DS44: =IF(Output!$H$2='Inputs & Utility Cost'!$B$41,('Inputs & Utility Cost'!$C$41*(O44+Y44+AI44+AS44+BC44+BK44+BU44+CE44+CO44+CY44+DI44)),IF(Output!$H$2='Inputs & Utility Cost'!$B$42,('Inputs & Utility Cost'!$C$42*('Inputs & Utility Cost'!$C$41*(O44+Y44+AI44+AS44+BC44+BK44+BU44+CE44+CO44+CY44+DI44))),(O44+Y44+AI44+AS44+BC44+BK44+BU44+CE44+CO44+CY44+DI44))) -> 0
H45: 2057 | I45: =$P45*Input!$E$41 -> 0 | J45: =$P45*Input!$F$41 -> 0 | K45: =$P45*Input!$G$41 -> 0 | L45: =$P45*Input!$H$41 -> 0 | M45: =$P45*Input!$I$41 -> 0 | N45: =$P45*Input!$J$41 -> 0 | O45: =$P45*Input!$K$41 -> 0 | P45: 0.9222401524 | S45: =IF(Input!$E$35>0,(Input!E$35+Input!E$53)*$Z45,0) -> 0 | T45: =IF(Input!$F$35>0,(Input!F$35+Input!F$53)*$Z45,0) -> 0 | U45: =IF(Input!$G$35>0,(Input!G$35+Input!G$53)*$Z45,0) -> 0 | V45: =IF(Input!$H$35>0,(Input!H$35+Input!H$53)*$Z45,0) -> 0 | W45: =IF(Input!$I$35>0,(Input!I$35+Input!I$53)*$Z45,0) -> 0 | X45: =IF(Input!$J$35>0,(Input!J$35+Input!J$53)*$Z45,0) -> 0 | Y45: =IF(Input!$K$35>0,(Input!K$35+Input!K$53)*$Z45,0) -> 0 | Z45: 0.1669239722 | AC45: =IF(Input!E$33>0,(Input!E$33+Input!E$53)*$AJ45,0) -> 0 | AD45: =IF(Input!F$33>0,(Input!F$33+Input!F$53)*$AJ45,0) -> 0 | AE45: =IF(Input!G$33>0,(Input!G$33+Input!G$53)*$AJ45,0) -> 0 | AF45: =IF(Input!H$33>0,(Input!H$33+Input!H$53)*$AJ45,0) -> 0 | AG45: =IF(Input!I$33>0,(Input!I$33+Input!I$53)*$AJ45,0) -> 0 | AH45: =IF(Input!J$33>0,(Input!J$33+Input!J$53)*$AJ45,0) -> 0 | AI45: =IF(Input!K$33>0,(Input!K$33+Input!K$53)*$AJ45,0) -> 0 | AJ45: 0.1669239722 | AM45: =IF(Input!E$44>0,(Input!E$44+Input!E$54)*$AT45,0) -> 0 | AN45: =IF(Input!F$44>0,(Input!F$44+Input!F$54)*$AT45,0) -> 0 | AO45: =IF(Input!G$44>0,(Input!G$44+Input!G$54)*$AT45,0) -> 0 | AP45: =IF(Input!H$44>0,(Input!H$44+Input!H$54)*$AT45,0) -> 0 | AQ45: =IF(Input!I$44>0,(Input!I$44+Input!I$54)*$AT45,0) -> 0 | AR45: =IF(Input!J$44>0,(Input!J$44+Input!J$54)*$AT45,0) -> 0 | AS45: =IF(Input!K$44>0,(Input!K$44+Input!K$54)*$AT45,0) -> 0 | AT45: 42.42304701 | AW45: =IF(Input!E$46>0,(Input!E$46+Input!E$54)*$BD45,0) -> 0 | AX45: =IF(Input!F$46>0,(Input!F$46+Input!F$54)*$BD45,0) -> 0 | AY45: =IF(Input!G$46>0,(Input!G$46+Input!G$54)*$BD45,0) -> 0 | AZ45: =IF(Input!H$46>0,(Input!H$46+Input!H$54)*$BD45,0) -> 0 | BA45: =IF(Input!I$46>0,(Input!I$46+Input!I$54)*$BD45,0) -> 0 | BB45: =IF(Input!J$46>0,(Input!J$46+Input!J$54)*$BD45,0) -> 0 | BC45: =IF(Input!K$46>0,(Input!K$46+Input!K$54)*$BD45,0) -> 0 | BD45: 42.42304701 | BE45: =IF(Input!E$37>0,(Input!E$37+Input!E$53)*$AJ45,0) -> 0 | BF45: =IF(Input!F$37>0,(Input!F$37+Input!F$53)*$AJ45,0) -> 0 | BG45: =IF(Input!G$37>0,(Input!G$37+Input!G$53)*$AJ45,0) -> 0 | BH45: =IF(Input!H$37>0,(Input!H$37+Input!H$53)*$AJ45,0) -> 0 | BI45: =IF(Input!I$37>0,(Input!I$37+Input!I$53)*$AJ45,0) -> 0 | BJ45: =IF(Input!J$37>0,(Input!J$37+Input!J$53)*$AJ45,0) -> 0 | BK45: =IF(Input!K$37>0,(Input!K$37+Input!K$53)*$AJ45,0) -> 0 | BL45: 0.1669239722 | BO45: =IF(Input!E$39>0,(Input!E$39+Input!AQ$53)*$BV45,0) -> 0 | BP45: =IF(Input!F$39>0,(Input!F$39+Input!AR$53)*$BV45,0) -> 0 | BQ45: =IF(Input!G$39>0,(Input!G$39+Input!AS$53)*$BV45,0) -> 0 | BR45: =IF(Input!H$39>0,(Input!H$39+Input!AT$53)*$BV45,0) -> 0 | BS45: =IF(Input!I$39>0,(Input!I$39+Input!AU$53)*$BV45,0) -> 0 | BT45: =IF(Input!J$39>0,(Input!J$39+Input!AV$53)*$BV45,0) -> 0 | BU45: =IF(Input!K$39>0,(Input!K$39+Input!AW$53)*$BV45,0) -> 0 | BV45: 0.1669239722 | BY45: =$CF45*Input!$E$43 -> 0 | BZ45: =$CF45*Input!$E$43 -> 0 | CA45: =$CF45*Input!$E$43 -> 0 | CB45: =$CF45*Input!$E$43 -> 0 | CC45: =$CF45*Input!$E$43 -> 0 | CD45: =$CF45*Input!$E$43 -> 0 | CE45: =$CF45*Input!$E$43 -> 0 | CF45: 0.9222401524 | CI45: =$CP45*Input!$E$42 -> 0 | CJ45: =$CP45*Input!$E$42 -> 0 | CK45: =$CP45*Input!$E$42 -> 0 | CL45: =$CP45*Input!$E$42 -> 0 | CM45: =$CP45*Input!$E$42 -> 0 | CN45: =$CP45*Input!$E$42 -> 0 | CO45: =$CP45*Input!$E$42 -> 0 | CP45: 0.9222401524 | CS45: =IF(Input!BK$44>0,(Input!BK$44+Input!BK$54)*$AT45,0) -> 0 | CT45: =IF(Input!BL$44>0,(Input!BL$44+Input!BL$54)*$AT45,0) -> 0 | CU45: =IF(Input!BM$44>0,(Input!BM$44+Input!BM$54)*$AT45,0) -> 0 | CV45: =IF(Input!BN$44>0,(Input!BN$44+Input!BN$54)*$AT45,0) -> 0 | CW45: =IF(Input!BO$44>0,(Input!BO$44+Input!BO$54)*$AT45,0) -> 0 | CX45: =IF(Input!BP$44>0,(Input!BP$44+Input!BP$54)*$AT45,0) -> 0 | CY45: =IF(Input!BQ$44>0,(Input!BQ$44+Input!BQ$54)*$AT45,0) -> 0 | CZ45: 43.72543455 | DC45: =IF(Input!BU$44>0,(Input!BU$44+Input!BU$54)*$AT45,0) -> 0 | DD45: =IF(Input!BV$44>0,(Input!BV$44+Input!BV$54)*$AT45,0) -> 0 | DE45: =IF(Input!BW$44>0,(Input!BW$44+Input!BW$54)*$AT45,0) -> 0 | DF45: =IF(Input!BX$44>0,(Input!BX$44+Input!BX$54)*$AT45,0) -> 0 | DG45: =IF(Input!BY$44>0,(Input!BY$44+Input!BY$54)*$AT45,0) -> 0 | DH45: =IF(Input!BZ$44>0,(Input!BZ$44+Input!BZ$54)*$AT45,0) -> 0 | DI45: =IF(Input!CA$44>0,(Input!CA$44+Input!CA$54)*$AT45,0) -> 0 | DJ45: 0 | DM45: 0 | DN45: =IF(Output!$H$2='Inputs & Utility Cost'!$B$41,('Inputs & Utility Cost'!$C$41*(J45+T45+AD45+AN45+AX45+BF45+BP45+BZ45+CJ45+CT45+DD45)),IF(Output!$H$2='Inputs & Utility Cost'!$B$42,('Inputs & Utility Cost'!$C$42*('Inputs & Utility Cost'!$C$41*(J45+T45+AD45+AN45+AX45+BF45+BP45+BZ45+CJ45+CT45+DD45))),(J45+T45+AD45+AN45+AX45+BF45+BP45+BZ45+CJ45+CT45+DD45))) -> 0 | DO45: =IF(Output!$H$2='Inputs & Utility Cost'!$B$41,('Inputs & Utility Cost'!$C$41*(K45+U45+AE45+AO45+AY45+BG45+BQ45+CA45+CK45+CU45+DE45)),IF(Output!$H$2='Inputs & Utility Cost'!$B$42,('Inputs & Utility Cost'!$C$42*('Inputs & Utility Cost'!$C$41*(K45+U45+AE45+AO45+AY45+BG45+BQ45+CA45+CK45+CU45+DE45))),(K45+U45+AE45+AO45+AY45+BG45+BQ45+CA45+CK45+CU45+DE45))) -> 0 | DP45: =IF(Output!$H$2='Inputs & Utility Cost'!$B$41,('Inputs & Utility Cost'!$C$41*(L45+V45+AF45+AP45+AZ45+BH45+BR45+CB45+CL45+CV45+DF45)),IF(Output!$H$2='Inputs & Utility Cost'!$B$42,('Inputs & Utility Cost'!$C$42*('Inputs & Utility Cost'!$C$41*(L45+V45+AF45+AP45+AZ45+BH45+BR45+CB45+CL45+CV45+DF45))),(L45+V45+AF45+AP45+AZ45+BH45+BR45+CB45+CL45+CV45+DF45))) -> 0 | DQ45: =IF(Output!$H$2='Inputs & Utility Cost'!$B$41,('Inputs & Utility Cost'!$C$41*(M45+W45+AG45+AQ45+BA45+BI45+BS45+CC45+CM45+CW45+DG45)),IF(Output!$H$2='Inputs & Utility Cost'!$B$42,('Inputs & Utility Cost'!$C$42*('Inputs & Utility Cost'!$C$41*(M45+W45+AG45+AQ45+BA45+BI45+BS45+CC45+CM45+CW45+DG45))),(M45+W45+AG45+AQ45+BA45+BI45+BS45+CC45+CM45+CW45+DG45))) -> 0 | DR45: =IF(Output!$H$2='Inputs & Utility Cost'!$B$41,('Inputs & Utility Cost'!$C$41*(N45+X45+AH45+AR45+BB45+BJ45+BT45+CD45+CN45+CX45+DH45)),IF(Output!$H$2='Inputs & Utility Cost'!$B$42,('Inputs & Utility Cost'!$C$42*('Inputs & Utility Cost'!$C$41*(N45+X45+AH45+AR45+BB45+BJ45+BT45+CD45+CN45+CX45+DH45))),(N45+X45+AH45+AR45+BB45+BJ45+BT45+CD45+CN45+CX45+DH45))) -> 0 | DS45: =IF(Output!$H$2='Inputs & Utility Cost'!$B$41,('Inputs & Utility Cost'!$C$41*(O45+Y45+AI45+AS45+BC45+BK45+BU45+CE45+CO45+CY45+DI45)),IF(Output!$H$2='Inputs & Utility Cost'!$B$42,('Inputs & Utility Cost'!$C$42*('Inputs & Utility Cost'!$C$41*(O45+Y45+AI45+AS45+BC45+BK45+BU45+CE45+CO45+CY45+DI45))),(O45+Y45+AI45+AS45+BC45+BK45+BU45+CE45+CO45+CY45+DI45))) -> 0
H46: 2058 | I46: =$P46*Input!$E$41 -> 0 | J46: =$P46*Input!$F$41 -> 0 | K46: =$P46*Input!$G$41 -> 0 | L46: =$P46*Input!$H$41 -> 0 | M46: =$P46*Input!$I$41 -> 0 | N46: =$P46*Input!$J$41 -> 0 | O46: =$P46*Input!$K$41 -> 0 | P46: 0.9505529251 | S46: =IF(Input!$E$35>0,(Input!E$35+Input!E$53)*$Z46,0) -> 0 | T46: =IF(Input!$F$35>0,(Input!F$35+Input!F$53)*$Z46,0) -> 0 | U46: =IF(Input!$G$35>0,(Input!G$35+Input!G$53)*$Z46,0) -> 0 | V46: =IF(Input!$H$35>0,(Input!H$35+Input!H$53)*$Z46,0) -> 0 | W46: =IF(Input!$I$35>0,(Input!I$35+Input!I$53)*$Z46,0) -> 0 | X46: =IF(Input!$J$35>0,(Input!J$35+Input!J$53)*$Z46,0) -> 0 | Y46: =IF(Input!$K$35>0,(Input!K$35+Input!K$53)*$Z46,0) -> 0 | Z46: 0.1703125288 | AC46: =IF(Input!E$33>0,(Input!E$33+Input!E$53)*$AJ46,0) -> 0 | AD46: =IF(Input!F$33>0,(Input!F$33+Input!F$53)*$AJ46,0) -> 0 | AE46: =IF(Input!G$33>0,(Input!G$33+Input!G$53)*$AJ46,0) -> 0 | AF46: =IF(Input!H$33>0,(Input!H$33+Input!H$53)*$AJ46,0) -> 0 | AG46: =IF(Input!I$33>0,(Input!I$33+Input!I$53)*$AJ46,0) -> 0 | AH46: =IF(Input!J$33>0,(Input!J$33+Input!J$53)*$AJ46,0) -> 0 | AI46: =IF(Input!K$33>0,(Input!K$33+Input!K$53)*$AJ46,0) -> 0 | AJ46: 0.1703125288 | AM46: =IF(Input!E$44>0,(Input!E$44+Input!E$54)*$AT46,0) -> 0 | AN46: =IF(Input!F$44>0,(Input!F$44+Input!F$54)*$AT46,0) -> 0 | AO46: =IF(Input!G$44>0,(Input!G$44+Input!G$54)*$AT46,0) -> 0 | AP46: =IF(Input!H$44>0,(Input!H$44+Input!H$54)*$AT46,0) -> 0 | AQ46: =IF(Input!I$44>0,(Input!I$44+Input!I$54)*$AT46,0) -> 0 | AR46: =IF(Input!J$44>0,(Input!J$44+Input!J$54)*$AT46,0) -> 0 | AS46: =IF(Input!K$44>0,(Input!K$44+Input!K$54)*$AT46,0) -> 0 | AT46: 43.72543455 | AW46: =IF(Input!E$46>0,(Input!E$46+Input!E$54)*$BD46,0) -> 0 | AX46: =IF(Input!F$46>0,(Input!F$46+Input!F$54)*$BD46,0) -> 0 | AY46: =IF(Input!G$46>0,(Input!G$46+Input!G$54)*$BD46,0) -> 0 | AZ46: =IF(Input!H$46>0,(Input!H$46+Input!H$54)*$BD46,0) -> 0 | BA46: =IF(Input!I$46>0,(Input!I$46+Input!I$54)*$BD46,0) -> 0 | BB46: =IF(Input!J$46>0,(Input!J$46+Input!J$54)*$BD46,0) -> 0 | BC46: =IF(Input!K$46>0,(Input!K$46+Input!K$54)*$BD46,0) -> 0 | BD46: 43.72543455 | BE46: =IF(Input!E$37>0,(Input!E$37+Input!E$53)*$AJ46,0) -> 0 | BF46: =IF(Input!F$37>0,(Input!F$37+Input!F$53)*$AJ46,0) -> 0 | BG46: =IF(Input!G$37>0,(Input!G$37+Input!G$53)*$AJ46,0) -> 0 | BH46: =IF(Input!H$37>0,(Input!H$37+Input!H$53)*$AJ46,0) -> 0 | BI46: =IF(Input!I$37>0,(Input!I$37+Input!I$53)*$AJ46,0) -> 0 | BJ46: =IF(Input!J$37>0,(Input!J$37+Input!J$53)*$AJ46,0) -> 0 | BK46: =IF(Input!K$37>0,(Input!K$37+Input!K$53)*$AJ46,0) -> 0 | BL46: 0.1703125288 | BO46: =IF(Input!E$39>0,(Input!E$39+Input!AQ$53)*$BV46,0) -> 0 | BP46: =IF(Input!F$39>0,(Input!F$39+Input!AR$53)*$BV46,0) -> 0 | BQ46: =IF(Input!G$39>0,(Input!G$39+Input!AS$53)*$BV46,0) -> 0 | BR46: =IF(Input!H$39>0,(Input!H$39+Input!AT$53)*$BV46,0) -> 0 | BS46: =IF(Input!I$39>0,(Input!I$39+Input!AU$53)*$BV46,0) -> 0 | BT46: =IF(Input!J$39>0,(Input!J$39+Input!AV$53)*$BV46,0) -> 0 | BU46: =IF(Input!K$39>0,(Input!K$39+Input!AW$53)*$BV46,0) -> 0 | BV46: 0.1703125288 | BY46: =$CF46*Input!$E$43 -> 0 | BZ46: =$CF46*Input!$E$43 -> 0 | CA46: =$CF46*Input!$E$43 -> 0 | CB46: =$CF46*Input!$E$43 -> 0 | CC46: =$CF46*Input!$E$43 -> 0 | CD46: =$CF46*Input!$E$43 -> 0 | CE46: =$CF46*Input!$E$43 -> 0 | CF46: 0.9505529251 | CI46: =$CP46*Input!$E$42 -> 0 | CJ46: =$CP46*Input!$E$42 -> 0 | CK46: =$CP46*Input!$E$42 -> 0 | CL46: =$CP46*Input!$E$42 -> 0 | CM46: =$CP46*Input!$E$42 -> 0 | CN46: =$CP46*Input!$E$42 -> 0 | CO46: =$CP46*Input!$E$42 -> 0 | CP46: 0.9505529251 | CS46: =IF(Input!BK$44>0,(Input!BK$44+Input!BK$54)*$AT46,0) -> 0 | CT46: =IF(Input!BL$44>0,(Input!BL$44+Input!BL$54)*$AT46,0) -> 0 | CU46: =IF(Input!BM$44>0,(Input!BM$44+Input!BM$54)*$AT46,0) -> 0 | CV46: =IF(Input!BN$44>0,(Input!BN$44+Input!BN$54)*$AT46,0) -> 0 | CW46: =IF(Input!BO$44>0,(Input!BO$44+Input!BO$54)*$AT46,0) -> 0 | CX46: =IF(Input!BP$44>0,(Input!BP$44+Input!BP$54)*$AT46,0) -> 0 | CY46: =IF(Input!BQ$44>0,(Input!BQ$44+Input!BQ$54)*$AT46,0) -> 0 | CZ46: 45.06780539 | DC46: =IF(Input!BU$44>0,(Input!BU$44+Input!BU$54)*$AT46,0) -> 0 | DD46: =IF(Input!BV$44>0,(Input!BV$44+Input!BV$54)*$AT46,0) -> 0 | DE46: =IF(Input!BW$44>0,(Input!BW$44+Input!BW$54)*$AT46,0) -> 0 | DF46: =IF(Input!BX$44>0,(Input!BX$44+Input!BX$54)*$AT46,0) -> 0 | DG46: =IF(Input!BY$44>0,(Input!BY$44+Input!BY$54)*$AT46,0) -> 0 | DH46: =IF(Input!BZ$44>0,(Input!BZ$44+Input!BZ$54)*$AT46,0) -> 0 | DI46: =IF(Input!CA$44>0,(Input!CA$44+Input!CA$54)*$AT46,0) -> 0 | DJ46: 0 | DM46: 0 | DN46: =IF(Output!$H$2='Inputs & Utility Cost'!$B$41,('Inputs & Utility Cost'!$C$41*(J46+T46+AD46+AN46+AX46+BF46+BP46+BZ46+CJ46+CT46+DD46)),IF(Output!$H$2='Inputs & Utility Cost'!$B$42,('Inputs & Utility Cost'!$C$42*('Inputs & Utility Cost'!$C$41*(J46+T46+AD46+AN46+AX46+BF46+BP46+BZ46+CJ46+CT46+DD46))),(J46+T46+AD46+AN46+AX46+BF46+BP46+BZ46+CJ46+CT46+DD46))) -> 0 | DO46: =IF(Output!$H$2='Inputs & Utility Cost'!$B$41,('Inputs & Utility Cost'!$C$41*(K46+U46+AE46+AO46+AY46+BG46+BQ46+CA46+CK46+CU46+DE46)),IF(Output!$H$2='Inputs & Utility Cost'!$B$42,('Inputs & Utility Cost'!$C$42*('Inputs & Utility Cost'!$C$41*(K46+U46+AE46+AO46+AY46+BG46+BQ46+CA46+CK46+CU46+DE46))),(K46+U46+AE46+AO46+AY46+BG46+BQ46+CA46+CK46+CU46+DE46))) -> 0 | DP46: =IF(Output!$H$2='Inputs & Utility Cost'!$B$41,('Inputs & Utility Cost'!$C$41*(L46+V46+AF46+AP46+AZ46+BH46+BR46+CB46+CL46+CV46+DF46)),IF(Output!$H$2='Inputs & Utility Cost'!$B$42,('Inputs & Utility Cost'!$C$42*('Inputs & Utility Cost'!$C$41*(L46+V46+AF46+AP46+AZ46+BH46+BR46+CB46+CL46+CV46+DF46))),(L46+V46+AF46+AP46+AZ46+BH46+BR46+CB46+CL46+CV46+DF46))) -> 0 | DQ46: =IF(Output!$H$2='Inputs & Utility Cost'!$B$41,('Inputs & Utility Cost'!$C$41*(M46+W46+AG46+AQ46+BA46+BI46+BS46+CC46+CM46+CW46+DG46)),IF(Output!$H$2='Inputs & Utility Cost'!$B$42,('Inputs & Utility Cost'!$C$42*('Inputs & Utility Cost'!$C$41*(M46+W46+AG46+AQ46+BA46+BI46+BS46+CC46+CM46+CW46+DG46))),(M46+W46+AG46+AQ46+BA46+BI46+BS46+CC46+CM46+CW46+DG46))) -> 0 | DR46: =IF(Output!$H$2='Inputs & Utility Cost'!$B$41,('Inputs & Utility Cost'!$C$41*(N46+X46+AH46+AR46+BB46+BJ46+BT46+CD46+CN46+CX46+DH46)),IF(Output!$H$2='Inputs & Utility Cost'!$B$42,('Inputs & Utility Cost'!$C$42*('Inputs & Utility Cost'!$C$41*(N46+X46+AH46+AR46+BB46+BJ46+BT46+CD46+CN46+CX46+DH46))),(N46+X46+AH46+AR46+BB46+BJ46+BT46+CD46+CN46+CX46+DH46))) -> 0 | DS46: =IF(Output!$H$2='Inputs & Utility Cost'!$B$41,('Inputs & Utility Cost'!$C$41*(O46+Y46+AI46+AS46+BC46+BK46+BU46+CE46+CO46+CY46+DI46)),IF(Output!$H$2='Inputs & Utility Cost'!$B$42,('Inputs & Utility Cost'!$C$42*('Inputs & Utility Cost'!$C$41*(O46+Y46+AI46+AS46+BC46+BK46+BU46+CE46+CO46+CY46+DI46))),(O46+Y46+AI46+AS46+BC46+BK46+BU46+CE46+CO46+CY46+DI46))) -> 0
H47: 2059 | I47: =$P47*Input!$E$41 -> 0 | J47: =$P47*Input!$F$41 -> 0 | K47: =$P47*Input!$G$41 -> 0 | L47: =$P47*Input!$H$41 -> 0 | M47: =$P47*Input!$I$41 -> 0 | N47: =$P47*Input!$J$41 -> 0 | O47: =$P47*Input!$K$41 -> 0 | P47: 0.9797348999 | S47: =IF(Input!$E$35>0,(Input!E$35+Input!E$53)*$Z47,0) -> 0 | T47: =IF(Input!$F$35>0,(Input!F$35+Input!F$53)*$Z47,0) -> 0 | U47: =IF(Input!$G$35>0,(Input!G$35+Input!G$53)*$Z47,0) -> 0 | V47: =IF(Input!$H$35>0,(Input!H$35+Input!H$53)*$Z47,0) -> 0 | W47: =IF(Input!$I$35>0,(Input!I$35+Input!I$53)*$Z47,0) -> 0 | X47: =IF(Input!$J$35>0,(Input!J$35+Input!J$53)*$Z47,0) -> 0 | Y47: =IF(Input!$K$35>0,(Input!K$35+Input!K$53)*$Z47,0) -> 0 | Z47: 0.1737698731 | AC47: =IF(Input!E$33>0,(Input!E$33+Input!E$53)*$AJ47,0) -> 0 | AD47: =IF(Input!F$33>0,(Input!F$33+Input!F$53)*$AJ47,0) -> 0 | AE47: =IF(Input!G$33>0,(Input!G$33+Input!G$53)*$AJ47,0) -> 0 | AF47: =IF(Input!H$33>0,(Input!H$33+Input!H$53)*$AJ47,0) -> 0 | AG47: =IF(Input!I$33>0,(Input!I$33+Input!I$53)*$AJ47,0) -> 0 | AH47: =IF(Input!J$33>0,(Input!J$33+Input!J$53)*$AJ47,0) -> 0 | AI47: =IF(Input!K$33>0,(Input!K$33+Input!K$53)*$AJ47,0) -> 0 | AJ47: 0.1737698731 | AM47: =IF(Input!E$44>0,(Input!E$44+Input!E$54)*$AT47,0) -> 0 | AN47: =IF(Input!F$44>0,(Input!F$44+Input!F$54)*$AT47,0) -> 0 | AO47: =IF(Input!G$44>0,(Input!G$44+Input!G$54)*$AT47,0) -> 0 | AP47: =IF(Input!H$44>0,(Input!H$44+Input!H$54)*$AT47,0) -> 0 | AQ47: =IF(Input!I$44>0,(Input!I$44+Input!I$54)*$AT47,0) -> 0 | AR47: =IF(Input!J$44>0,(Input!J$44+Input!J$54)*$AT47,0) -> 0 | AS47: =IF(Input!K$44>0,(Input!K$44+Input!K$54)*$AT47,0) -> 0 | AT47: 45.06780539 | AW47: =IF(Input!E$46>0,(Input!E$46+Input!E$54)*$BD47,0) -> 0 | AX47: =IF(Input!F$46>0,(Input!F$46+Input!F$54)*$BD47,0) -> 0 | AY47: =IF(Input!G$46>0,(Input!G$46+Input!G$54)*$BD47,0) -> 0 | AZ47: =IF(Input!H$46>0,(Input!H$46+Input!H$54)*$BD47,0) -> 0 | BA47: =IF(Input!I$46>0,(Input!I$46+Input!I$54)*$BD47,0) -> 0 | BB47: =IF(Input!J$46>0,(Input!J$46+Input!J$54)*$BD47,0) -> 0 | BC47: =IF(Input!K$46>0,(Input!K$46+Input!K$54)*$BD47,0) -> 0 | BD47: 45.06780539 | BE47: =IF(Input!E$37>0,(Input!E$37+Input!E$53)*$AJ47,0) -> 0 | BF47: =IF(Input!F$37>0,(Input!F$37+Input!F$53)*$AJ47,0) -> 0 | BG47: =IF(Input!G$37>0,(Input!G$37+Input!G$53)*$AJ47,0) -> 0 | BH47: =IF(Input!H$37>0,(Input!H$37+Input!H$53)*$AJ47,0) -> 0 | BI47: =IF(Input!I$37>0,(Input!I$37+Input!I$53)*$AJ47,0) -> 0 | BJ47: =IF(Input!J$37>0,(Input!J$37+Input!J$53)*$AJ47,0) -> 0 | BK47: =IF(Input!K$37>0,(Input!K$37+Input!K$53)*$AJ47,0) -> 0 | BL47: 0.1737698731 | BO47: =IF(Input!E$39>0,(Input!E$39+Input!AQ$53)*$BV47,0) -> 0 | BP47: =IF(Input!F$39>0,(Input!F$39+Input!AR$53)*$BV47,0) -> 0 | BQ47: =IF(Input!G$39>0,(Input!G$39+Input!AS$53)*$BV47,0) -> 0 | BR47: =IF(Input!H$39>0,(Input!H$39+Input!AT$53)*$BV47,0) -> 0 | BS47: =IF(Input!I$39>0,(Input!I$39+Input!AU$53)*$BV47,0) -> 0 | BT47: =IF(Input!J$39>0,(Input!J$39+Input!AV$53)*$BV47,0) -> 0 | BU47: =IF(Input!K$39>0,(Input!K$39+Input!AW$53)*$BV47,0) -> 0 | BV47: 0.1737698731 | BY47: =$CF47*Input!$E$43 -> 0 | BZ47: =$CF47*Input!$E$43 -> 0 | CA47: =$CF47*Input!$E$43 -> 0 | CB47: =$CF47*Input!$E$43 -> 0 | CC47: =$CF47*Input!$E$43 -> 0 | CD47: =$CF47*Input!$E$43 -> 0 | CE47: =$CF47*Input!$E$43 -> 0 | CF47: 0.9797348999 | CI47: =$CP47*Input!$E$42 -> 0 | CJ47: =$CP47*Input!$E$42 -> 0 | CK47: =$CP47*Input!$E$42 -> 0 | CL47: =$CP47*Input!$E$42 -> 0 | CM47: =$CP47*Input!$E$42 -> 0 | CN47: =$CP47*Input!$E$42 -> 0 | CO47: =$CP47*Input!$E$42 -> 0 | CP47: 0.9797348999 | CS47: =IF(Input!BK$44>0,(Input!BK$44+Input!BK$54)*$AT47,0) -> 0 | CT47: =IF(Input!BL$44>0,(Input!BL$44+Input!BL$54)*$AT47,0) -> 0 | CU47: =IF(Input!BM$44>0,(Input!BM$44+Input!BM$54)*$AT47,0) -> 0 | CV47: =IF(Input!BN$44>0,(Input!BN$44+Input!BN$54)*$AT47,0) -> 0 | CW47: =IF(Input!BO$44>0,(Input!BO$44+Input!BO$54)*$AT47,0) -> 0 | CX47: =IF(Input!BP$44>0,(Input!BP$44+Input!BP$54)*$AT47,0) -> 0 | CY47: =IF(Input!BQ$44>0,(Input!BQ$44+Input!BQ$54)*$AT47,0) -> 0 | CZ47: 46.45138702 | DC47: =IF(Input!BU$44>0,(Input!BU$44+Input!BU$54)*$AT47,0) -> 0 | DD47: =IF(Input!BV$44>0,(Input!BV$44+Input!BV$54)*$AT47,0) -> 0 | DE47: =IF(Input!BW$44>0,(Input!BW$44+Input!BW$54)*$AT47,0) -> 0 | DF47: =IF(Input!BX$44>0,(Input!BX$44+Input!BX$54)*$AT47,0) -> 0 | DG47: =IF(Input!BY$44>0,(Input!BY$44+Input!BY$54)*$AT47,0) -> 0 | DH47: =IF(Input!BZ$44>0,(Input!BZ$44+Input!BZ$54)*$AT47,0) -> 0 | DI47: =IF(Input!CA$44>0,(Input!CA$44+Input!CA$54)*$AT47,0) -> 0 | DJ47: 0 | DM47: 0 | DN47: =IF(Output!$H$2='Inputs & Utility Cost'!$B$41,('Inputs & Utility Cost'!$C$41*(J47+T47+AD47+AN47+AX47+BF47+BP47+BZ47+CJ47+CT47+DD47)),IF(Output!$H$2='Inputs & Utility Cost'!$B$42,('Inputs & Utility Cost'!$C$42*('Inputs & Utility Cost'!$C$41*(J47+T47+AD47+AN47+AX47+BF47+BP47+BZ47+CJ47+CT47+DD47))),(J47+T47+AD47+AN47+AX47+BF47+BP47+BZ47+CJ47+CT47+DD47))) -> 0 | DO47: =IF(Output!$H$2='Inputs & Utility Cost'!$B$41,('Inputs & Utility Cost'!$C$41*(K47+U47+AE47+AO47+AY47+BG47+BQ47+CA47+CK47+CU47+DE47)),IF(Output!$H$2='Inputs & Utility Cost'!$B$42,('Inputs & Utility Cost'!$C$42*('Inputs & Utility Cost'!$C$41*(K47+U47+AE47+AO47+AY47+BG47+BQ47+CA47+CK47+CU47+DE47))),(K47+U47+AE47+AO47+AY47+BG47+BQ47+CA47+CK47+CU47+DE47))) -> 0 | DP47: =IF(Output!$H$2='Inputs & Utility Cost'!$B$41,('Inputs & Utility Cost'!$C$41*(L47+V47+AF47+AP47+AZ47+BH47+BR47+CB47+CL47+CV47+DF47)),IF(Output!$H$2='Inputs & Utility Cost'!$B$42,('Inputs & Utility Cost'!$C$42*('Inputs & Utility Cost'!$C$41*(L47+V47+AF47+AP47+AZ47+BH47+BR47+CB47+CL47+CV47+DF47))),(L47+V47+AF47+AP47+AZ47+BH47+BR47+CB47+CL47+CV47+DF47))) -> 0 | DQ47: =IF(Output!$H$2='Inputs & Utility Cost'!$B$41,('Inputs & Utility Cost'!$C$41*(M47+W47+AG47+AQ47+BA47+BI47+BS47+CC47+CM47+CW47+DG47)),IF(Output!$H$2='Inputs & Utility Cost'!$B$42,('Inputs & Utility Cost'!$C$42*('Inputs & Utility Cost'!$C$41*(M47+W47+AG47+AQ47+BA47+BI47+BS47+CC47+CM47+CW47+DG47))),(M47+W47+AG47+AQ47+BA47+BI47+BS47+CC47+CM47+CW47+DG47))) -> 0 | DR47: =IF(Output!$H$2='Inputs & Utility Cost'!$B$41,('Inputs & Utility Cost'!$C$41*(N47+X47+AH47+AR47+BB47+BJ47+BT47+CD47+CN47+CX47+DH47)),IF(Output!$H$2='Inputs & Utility Cost'!$B$42,('Inputs & Utility Cost'!$C$42*('Inputs & Utility Cost'!$C$41*(N47+X47+AH47+AR47+BB47+BJ47+BT47+CD47+CN47+CX47+DH47))),(N47+X47+AH47+AR47+BB47+BJ47+BT47+CD47+CN47+CX47+DH47))) -> 0 | DS47: =IF(Output!$H$2='Inputs & Utility Cost'!$B$41,('Inputs & Utility Cost'!$C$41*(O47+Y47+AI47+AS47+BC47+BK47+BU47+CE47+CO47+CY47+DI47)),IF(Output!$H$2='Inputs & Utility Cost'!$B$42,('Inputs & Utility Cost'!$C$42*('Inputs & Utility Cost'!$C$41*(O47+Y47+AI47+AS47+BC47+BK47+BU47+CE47+CO47+CY47+DI47))),(O47+Y47+AI47+AS47+BC47+BK47+BU47+CE47+CO47+CY47+DI47))) -> 0
